Workbook

Sheet INTRO
B2: PC Joint Reporting Form v.3.1
B4: The purpose of this template Joint Reporting Form (JRF) - available as an Excel file - is to provide national health authorities and data managers with a standardized tool to address these reporting challenges, facilitate integration and thereby further contribute to improving overall programme management. This template aims to standardize national reporting of programme implementation outcomes, improve availability and coordination of preventive chemotherapy data across the World Health Organization regions. National authorities are requested to complete this form for submission to the World Health Organization any time before 15 August of the current year for reporting data on PC interventions implemented during the previous year.
B6: Structure of the application (worksheets):
B8: INTRO | C8: This worksheet includes guides on how to complete the joint reporting form and information about status of PC for endemic diseases in the country
B9: COUNTRY_INFO | C9: This worksheet includes information about administrative structure of the country, population by age group, status of endemicity for each disease, population requiring PC, planned interventions and interventions implemented
B10: MDA1, MDA2, MDA3, T1, T2 and T3 | C10: These worksheets include information about endemic districts targeted for treatment with specified PC medicines, treatment plan, and number of people who received treatment by age group
B11: DISTRICT | C11: This worksheet includes summary of people treated by disease at the level of implementation. If data by gender is available, it requires to enter.
B12: SUMMARY | C12: This worksheet includes summary of people treated by disease and by PC intervention. Before generating the report (run macros) please select the disease for which you need the report. Follow the same rule to generate various reports. This worksheet should be printed and submitted as a Joint Report (see the instruction for submission in the SUMMARY worksheet).
B14: Instruction for data entry
B16: Most of the cells in the above-mentioned worksheets include formula that are calculated automatically according to the treatment policy recommended by WHO for each disease. See the link http://www.who.int/neglected_diseases/preventive_chemotherapy/pct_manual/en/index.html
B18: Please enter your data into the cells according to their colour code:
C20: White - cell is not protected. Please enter the value of the requested indicator.
C22: Yellow - cell is protected and includes name of indicator. No data entry required.
C24: Orange - cell is not protected and includes a drop-down menu. Please select the value from the drop-down list.
C27: Green - cell is not protected and includes formula. Please change the value only if your data are different from those that are calculated automatically.
C30: Blue - cell is protected and includes formula. No data entry required.
B32: Country data
B34: COUNTRY | E34: South Africa
B36: Year of reporting data | E36: 2019
B38: Is country endemic for lymphatic filariasis (LF)? | E38: Non-endemic
B40: Is country endemic for onchocerciasis (ONCHO)? | E40: Non-endemic
B42: Is country endemic for soil-transmitted helminthiases (STH)? | E42: Endemic
B44: Is country endemic for schistosomiasis (SCH)? | E44: Endemic but PC is not required
B46: How many administrative units in the country? | E46: 52
B47: If demographical data at the second administrative level are not available by age group, please enter the proportion (%) of population by age group in the country. If data are available, please leave these cells blank.
B48: 1-4 years age | C48: Preschool-age children (PreSAC) | E48: 0.082
B49: 5-14 years age | C49: School-age children (SAC) | E49: 0.191
B50: 15 years + | C50: Adults | E50: 0.712

Sheet COUNTRY_INFO
A1: COUNTRY INFORMATION
A2: Administrative structure, population by age group, endemicity status, planned interventions and interventions implemented
A4: TOTAL | D4: =SUM(D$9:D$1000) -> 57441425.2 | E4: =SUM(E$9:E$1000) -> 4710199 | F4: =SUM(F$9:F$1000) -> 10971313 | G4: =SUM(G$9:G$1000) -> 40898298 | L4: =SUM(L$9:L$1000) -> 0 | M4: =SUM(M$9:M$1000) -> 0 | N4: =SUM(N$9:N$1000) -> 15681512 | O4: =SUM(O$9:O$1000) -> 0
A6: Country administrative structure | D6: Population | H6: Endemicity | L6: Population requiring PC | P6: Number of treatment rounds planned for the year | T6: PC implemented | V6: Click to see the recommended strategy
A7: Country | B7: Province/State | C7: District | D7: Total | E7: PreSAC | F7: SAC | G7: Adults | H7: LF | I7: Oncho | J7: STH | K7: SCH | L7: LF | M7: Oncho | N7: STH | O7: SCH | P7: LF | Q7: Oncho | R7: STH | S7: SCH | T7: ROUND 1 | U7: ROUND2 | X7: IU_ID | Y7: IU_Name | Z7: x | AA7: x | AB7: x | AC7: x | AD7: x | AE7: x | AF7: x | AG7: x | AH7: x | AI7: x | AJ7: x | AK7: x | AL7: x | AM7: x | AN7: x | AO7: x | AP7: x | AQ7: x | AR7: x | AS7: x
A9: =IF(INTRO!$E$34<>0,INTRO!$E$34,"") -> South Africa | B9: Eastern Cape | C9: A Nzo DM | D9: 882109 | E9: =IF(INTRO!$E$48="","",ROUND($D9*INTRO!$E$48,0)) -> 72333 | F9: =IF(INTRO!$E$49="","",ROUND($D9*INTRO!$E$49,0)) -> 168483 | G9: =IF(INTRO!$E$50="","",ROUND($D9*INTRO!$E$50,0)) -> 628062 | H9: 0 | I9: 0 | J9: 2 | K9: 1 | L9: 0 | M9: 0 | N9: =IF(INTRO!$E$42="Endemic", IF(AND($J9>1,$J9<5), IF($J9=4, "Unknown", E9+F9), 0),"Not required") -> 240816 | O9: 0 | P9: 0 | Q9: 0 | R9: 1 | S9: 0 | T9: T3 (ALB/MBD) | X9: 43267 | Y9: A Nzo DM | AC9: =T3_R1!N9 -> 161169 | AF9: =_xlfn.XLOOKUP(X9,[1]COUNTRY_INFO!$Y$9:$Y$60,[1]COUNTRY_INFO!$J$9:$J$60) -> 1
A10: =IF(INTRO!$E$34<>0,INTRO!$E$34,"") -> South Africa | B10: Eastern Cape | C10: Amathole DM | D10: 944967 | E10: =IF(INTRO!$E$48="","",ROUND($D10*INTRO!$E$48,0)) -> 77487 | F10: =IF(INTRO!$E$49="","",ROUND($D10*INTRO!$E$49,0)) -> 180489 | G10: =IF(INTRO!$E$50="","",ROUND($D10*INTRO!$E$50,0)) -> 672817 | H10: 0 | I10: 0 | J10: 2 | K10: 1 | L10: 0 | M10: 0 | N10: =IF(INTRO!$E$42="Endemic", IF(AND($J10>1,$J10<5), IF($J10=4, "Unknown", E10+F10), 0),"Not required") -> 257976 | O10: 0 | P10: 0 | Q10: 0 | R10: 1 | S10: 0 | T10: T3 (ALB/MBD) | X10: 43268 | Y10: Amathole DM | AC10: =T3_R1!N10 -> 172654 | AF10: =_xlfn.XLOOKUP(X10,[1]COUNTRY_INFO!$Y$9:$Y$60,[1]COUNTRY_INFO!$J$9:$J$60) -> 2
A11: =IF(INTRO!$E$34<>0,INTRO!$E$34,"") -> South Africa | B11: Eastern Cape | C11: Buffalo City MM | D11: 803598 | E11: =IF(INTRO!$E$48="","",ROUND($D11*INTRO!$E$48,0)) -> 65895 | F11: =IF(INTRO!$E$49="","",ROUND($D11*INTRO!$E$49,0)) -> 153487 | G11: =IF(INTRO!$E$50="","",ROUND($D11*INTRO!$E$50,0)) -> 572162 | H11: 0 | I11: 0 | J11: 2 | K11: 1 | L11: 0 | M11: 0 | N11: =IF(INTRO!$E$42="Endemic", IF(AND($J11>1,$J11<5), IF($J11=4, "Unknown", E11+F11), 0),"Not required") -> 219382 | O11: 0 | P11: 0 | Q11: 0 | R11: 1 | S11: 0 | T11: T3 (ALB/MBD) | X11: 43269 | Y11: Buffalo City MM | AC11: =T3_R1!N11 -> 146824 | AF11: =_xlfn.XLOOKUP(X11,[1]COUNTRY_INFO!$Y$9:$Y$60,[1]COUNTRY_INFO!$J$9:$J$60) -> 2
A12: =IF(INTRO!$E$34<>0,INTRO!$E$34,"") -> South Africa | B12: Eastern Cape | C12: C Hani DM | D12: 850960 | E12: =IF(INTRO!$E$48="","",ROUND($D12*INTRO!$E$48,0)) -> 69779 | F12: =IF(INTRO!$E$49="","",ROUND($D12*INTRO!$E$49,0)) -> 162533 | G12: =IF(INTRO!$E$50="","",ROUND($D12*INTRO!$E$50,0)) -> 605884 | H12: 0 | I12: 0 | J12: 2 | K12: 1 | L12: 0 | M12: 0 | N12: =IF(INTRO!$E$42="Endemic", IF(AND($J12>1,$J12<5), IF($J12=4, "Unknown", E12+F12), 0),"Not required") -> 232312 | O12: 0 | P12: 0 | Q12: 0 | R12: 1 | S12: 0 | T12: T3 (ALB/MBD) | X12: 43270 | Y12: C Hani DM | AC12: =T3_R1!N12 -> 155477 | AF12: =_xlfn.XLOOKUP(X12,[1]COUNTRY_INFO!$Y$9:$Y$60,[1]COUNTRY_INFO!$J$9:$J$60) -> 2
A13: =IF(INTRO!$E$34<>0,INTRO!$E$34,"") -> South Africa | B13: Eastern Cape | C13: Joe Gqabi DM | D13: 376545 | E13: =IF(INTRO!$E$48="","",ROUND($D13*INTRO!$E$48,0)) -> 30877 | F13: =IF(INTRO!$E$49="","",ROUND($D13*INTRO!$E$49,0)) -> 71920 | G13: =IF(INTRO!$E$50="","",ROUND($D13*INTRO!$E$50,0)) -> 268100 | H13: 0 | I13: 0 | J13: 2 | K13: 1 | L13: 0 | M13: 0 | N13: =IF(INTRO!$E$42="Endemic", IF(AND($J13>1,$J13<5), IF($J13=4, "Unknown", E13+F13), 0),"Not required") -> 102797 | O13: 0 | P13: 0 | Q13: 0 | R13: 1 | S13: 0 | T13: T3 (ALB/MBD) | X13: 43271 | Y13: Joe Gqabi DM | AC13: =T3_R1!N13 -> 68798 | AF13: =_xlfn.XLOOKUP(X13,[1]COUNTRY_INFO!$Y$9:$Y$60,[1]COUNTRY_INFO!$J$9:$J$60) -> 1
A14: =IF(INTRO!$E$34<>0,INTRO!$E$34,"") -> South Africa | B14: Eastern Cape | C14: N Mandela Bay MM | D14: 1261699 | E14: =IF(INTRO!$E$48="","",ROUND($D14*INTRO!$E$48,0)) -> 103459 | F14: =IF(INTRO!$E$49="","",ROUND($D14*INTRO!$E$49,0)) -> 240985 | G14: =IF(INTRO!$E$50="","",ROUND($D14*INTRO!$E$50,0)) -> 898330 | H14: 0 | I14: 0 | J14: 2 | K14: 1 | L14: 0 | M14: 0 | N14: =IF(INTRO!$E$42="Endemic", IF(AND($J14>1,$J14<5), IF($J14=4, "Unknown", E14+F14), 0),"Not required") -> 344444 | O14: 0 | P14: 0 | Q14: 0 | R14: 1 | S14: 0 | T14: T3 (ALB/MBD) | X14: 43272 | Y14: N Mandela Bay MM | AC14: =T3_R1!N14 -> 230523 | AF14: =_xlfn.XLOOKUP(X14,[1]COUNTRY_INFO!$Y$9:$Y$60,[1]COUNTRY_INFO!$J$9:$J$60) -> 2
A15: =IF(INTRO!$E$34<>0,INTRO!$E$34,"") -> South Africa | B15: Eastern Cape | C15: O Tambo DM | D15: 1450056 | E15: =IF(INTRO!$E$48="","",ROUND($D15*INTRO!$E$48,0)) -> 118905 | F15: =IF(INTRO!$E$49="","",ROUND($D15*INTRO!$E$49,0)) -> 276961 | G15: =IF(INTRO!$E$50="","",ROUND($D15*INTRO!$E$50,0)) -> 1032440 | H15: 0 | I15: 0 | J15: 2 | K15: 1 | L15: 0 | M15: 0 | N15: =IF(INTRO!$E$42="Endemic", IF(AND($J15>1,$J15<5), IF($J15=4, "Unknown", E15+F15), 0),"Not required") -> 395866 | O15: 0 | P15: 0 | Q15: 0 | R15: 1 | S15: 0 | T15: T3 (ALB/MBD) | X15: 43273 | Y15: O Tambo DM | AC15: =T3_R1!N15 -> 264938 | AF15: =_xlfn.XLOOKUP(X15,[1]COUNTRY_INFO!$Y$9:$Y$60,[1]COUNTRY_INFO!$J$9:$J$60) -> 2
A16: =IF(INTRO!$E$34<>0,INTRO!$E$34,"") -> South Africa | B16: Eastern Cape | C16: Sarah Baartman DM | D16: 492865 | E16: =IF(INTRO!$E$48="","",ROUND($D16*INTRO!$E$48,0)) -> 40415 | F16: =IF(INTRO!$E$49="","",ROUND($D16*INTRO!$E$49,0)) -> 94137 | G16: =IF(INTRO!$E$50="","",ROUND($D16*INTRO!$E$50,0)) -> 350920 | H16: 0 | I16: 0 | J16: 2 | K16: 1 | L16: 0 | M16: 0 | N16: =IF(INTRO!$E$42="Endemic", IF(AND($J16>1,$J16<5), IF($J16=4, "Unknown", E16+F16), 0),"Not required") -> 134552 | O16: 0 | P16: 0 | Q16: 0 | R16: 1 | S16: 0 | T16: T3 (ALB/MBD) | X16: 43274 | Y16: Sarah Baartman DM | AC16: =T3_R1!N16 -> 90051 | AF16: =_xlfn.XLOOKUP(X16,[1]COUNTRY_INFO!$Y$9:$Y$60,[1]COUNTRY_INFO!$J$9:$J$60) -> 2
A17: =IF(INTRO!$E$34<>0,INTRO!$E$34,"") -> South Africa | B17: Free State | C17: Fezile Dabi DM | D17: 548969 | E17: =IF(INTRO!$E$48="","",ROUND($D17*INTRO!$E$48,0)) -> 45015 | F17: =IF(INTRO!$E$49="","",ROUND($D17*INTRO!$E$49,0)) -> 104853 | G17: =IF(INTRO!$E$50="","",ROUND($D17*INTRO!$E$50,0)) -> 390866 | H17: 0 | I17: 0 | J17: 2 | K17: 1 | L17: 0 | M17: 0 | N17: =IF(INTRO!$E$42="Endemic", IF(AND($J17>1,$J17<5), IF($J17=4, "Unknown", E17+F17), 0),"Not required") -> 149868 | O17: 0 | P17: 0 | Q17: 0 | R17: 1 | S17: 0 | T17: T3 (ALB/MBD) | X17: 43275 | Y17: Fezile Dabi DM | AC17: =T3_R1!N17 -> 69750 | AF17: =_xlfn.XLOOKUP(X17,[1]COUNTRY_INFO!$Y$9:$Y$60,[1]COUNTRY_INFO!$J$9:$J$60) -> 4
A18: =IF(INTRO!$E$34<>0,INTRO!$E$34,"") -> South Africa | B18: Free State | C18: Lejweleputswa DM | D18: 629009 | E18: =IF(INTRO!$E$48="","",ROUND($D18*INTRO!$E$48,0)) -> 51579 | F18: =IF(INTRO!$E$49="","",ROUND($D18*INTRO!$E$49,0)) -> 120141 | G18: =IF(INTRO!$E$50="","",ROUND($D18*INTRO!$E$50,0)) -> 447854 | H18: 0 | I18: 0 | J18: 2 | K18: 1 | L18: 0 | M18: 0 | N18: =IF(INTRO!$E$42="Endemic", IF(AND($J18>1,$J18<5), IF($J18=4, "Unknown", E18+F18), 0),"Not required") -> 171720 | O18: 0 | P18: 0 | Q18: 0 | R18: 1 | S18: 0 | T18: T3 (ALB/MBD) | X18: 43276 | Y18: Lejweleputswa DM | AC18: =T3_R1!N18 -> 66450 | AF18: =_xlfn.XLOOKUP(X18,[1]COUNTRY_INFO!$Y$9:$Y$60,[1]COUNTRY_INFO!$J$9:$J$60) -> 4
A19: =IF(INTRO!$E$34<>0,INTRO!$E$34,"") -> South Africa | B19: Free State | C19: Mangaung MM | D19: 839387 | E19: =IF(INTRO!$E$48="","",ROUND($D19*INTRO!$E$48,0)) -> 68830 | F19: =IF(INTRO!$E$49="","",ROUND($D19*INTRO!$E$49,0)) -> 160323 | G19: =IF(INTRO!$E$50="","",ROUND($D19*INTRO!$E$50,0)) -> 597644 | H19: 0 | I19: 0 | J19: 2 | K19: 1 | L19: 0 | M19: 0 | N19: =IF(INTRO!$E$42="Endemic", IF(AND($J19>1,$J19<5), IF($J19=4, "Unknown", E19+F19), 0),"Not required") -> 229153 | O19: 0 | P19: 0 | Q19: 0 | R19: 1 | S19: 0 | T19: T3 (ALB/MBD) | X19: 43277 | Y19: Mangaung MM | AC19: =T3_R1!N19 -> 104550 | AF19: =_xlfn.XLOOKUP(X19,[1]COUNTRY_INFO!$Y$9:$Y$60,[1]COUNTRY_INFO!$J$9:$J$60) -> 4
A20: =IF(INTRO!$E$34<>0,INTRO!$E$34,"") -> South Africa | B20: Free State | C20: T Mofutsanyane DM | D20: 753535.86 | E20: =IF(INTRO!$E$48="","",ROUND($D20*INTRO!$E$48,0)) -> 61790 | F20: =IF(INTRO!$E$49="","",ROUND($D20*INTRO!$E$49,0)) -> 143925 | G20: =IF(INTRO!$E$50="","",ROUND($D20*INTRO!$E$50,0)) -> 536518 | H20: 0 | I20: 0 | J20: 2 | K20: 1 | L20: 0 | M20: 0 | N20: =IF(INTRO!$E$42="Endemic", IF(AND($J20>1,$J20<5), IF($J20=4, "Unknown", E20+F20), 0),"Not required") -> 205715 | O20: 0 | P20: 0 | Q20: 0 | R20: 1 | S20: 0 | T20: T3 (ALB/MBD) | X20: 43278 | Y20: T Mofutsanyane DM | AC20: =T3_R1!N20 -> 97950 | AF20: =_xlfn.XLOOKUP(X20,[1]COUNTRY_INFO!$Y$9:$Y$60,[1]COUNTRY_INFO!$J$9:$J$60) -> 4
A21: =IF(INTRO!$E$34<>0,INTRO!$E$34,"") -> South Africa | B21: Free State | C21: Xhariep DM | D21: 144861 | E21: =IF(INTRO!$E$48="","",ROUND($D21*INTRO!$E$48,0)) -> 11879 | F21: =IF(INTRO!$E$49="","",ROUND($D21*INTRO!$E$49,0)) -> 27668 | G21: =IF(INTRO!$E$50="","",ROUND($D21*INTRO!$E$50,0)) -> 103141 | H21: 0 | I21: 0 | J21: 2 | K21: 1 | L21: 0 | M21: 0 | N21: =IF(INTRO!$E$42="Endemic", IF(AND($J21>1,$J21<5), IF($J21=4, "Unknown", E21+F21), 0),"Not required") -> 39547 | O21: 0 | P21: 0 | Q21: 0 | R21: 1 | S21: 0 | T21: T3 (ALB/MBD) | X21: 43279 | Y21: Xhariep DM | AC21: =T3_R1!N21 -> 18450 | AF21: =_xlfn.XLOOKUP(X21,[1]COUNTRY_INFO!$Y$9:$Y$60,[1]COUNTRY_INFO!$J$9:$J$60) -> 4
A22: =IF(INTRO!$E$34<>0,INTRO!$E$34,"") -> South Africa | B22: Gauteng | C22: Ekurhuleni MM | D22: 3523270 | E22: =IF(INTRO!$E$48="","",ROUND($D22*INTRO!$E$48,0)) -> 288908 | F22: =IF(INTRO!$E$49="","",ROUND($D22*INTRO!$E$49,0)) -> 672945 | G22: =IF(INTRO!$E$50="","",ROUND($D22*INTRO!$E$50,0)) -> 2508568 | H22: 0 | I22: 0 | J22: 2 | K22: 1 | L22: 0 | M22: 0 | N22: =IF(INTRO!$E$42="Endemic", IF(AND($J22>1,$J22<5), IF($J22=4, "Unknown", E22+F22), 0),"Not required") -> 961853 | O22: 0 | P22: 0 | Q22: 0 | R22: 1 | S22: 0 | T22: T3 (ALB/MBD) | X22: 43280 | Y22: Ekurhuleni MM | AC22: =T3_R1!N22 -> 451922 | AF22: =_xlfn.XLOOKUP(X22,[1]COUNTRY_INFO!$Y$9:$Y$60,[1]COUNTRY_INFO!$J$9:$J$60) -> 2
A23: =IF(INTRO!$E$34<>0,INTRO!$E$34,"") -> South Africa | B23: Gauteng | C23: Johannesburg MM | D23: 5154305 | E23: =IF(INTRO!$E$48="","",ROUND($D23*INTRO!$E$48,0)) -> 422653 | F23: =IF(INTRO!$E$49="","",ROUND($D23*INTRO!$E$49,0)) -> 984472 | G23: =IF(INTRO!$E$50="","",ROUND($D23*INTRO!$E$50,0)) -> 3669865 | H23: 0 | I23: 0 | J23: 2 | K23: 1 | L23: 0 | M23: 0 | N23: =IF(INTRO!$E$42="Endemic", IF(AND($J23>1,$J23<5), IF($J23=4, "Unknown", E23+F23), 0),"Not required") -> 1407125 | O23: 0 | P23: 0 | Q23: 0 | R23: 1 | S23: 0 | T23: T3 (ALB/MBD) | X23: 43281 | Y23: Johannesburg MM | AC23: =T3_R1!N23 -> 661130 | AF23: =_xlfn.XLOOKUP(X23,[1]COUNTRY_INFO!$Y$9:$Y$60,[1]COUNTRY_INFO!$J$9:$J$60) -> 2
A24: =IF(INTRO!$E$34<>0,INTRO!$E$34,"") -> South Africa | B24: Gauteng | C24: Sedibeng DM | D24: 980211 | E24: =IF(INTRO!$E$48="","",ROUND($D24*INTRO!$E$48,0)) -> 80377 | F24: =IF(INTRO!$E$49="","",ROUND($D24*INTRO!$E$49,0)) -> 187220 | G24: =IF(INTRO!$E$50="","",ROUND($D24*INTRO!$E$50,0)) -> 697910 | H24: 0 | I24: 0 | J24: 2 | K24: 1 | L24: 0 | M24: 0 | N24: =IF(INTRO!$E$42="Endemic", IF(AND($J24>1,$J24<5), IF($J24=4, "Unknown", E24+F24), 0),"Not required") -> 267597 | O24: 0 | P24: 0 | Q24: 0 | R24: 1 | S24: 0 | T24: T3 (ALB/MBD) | X24: 43282 | Y24: Sedibeng DM | AC24: =T3_R1!N24 -> 125729 | AF24: =_xlfn.XLOOKUP(X24,[1]COUNTRY_INFO!$Y$9:$Y$60,[1]COUNTRY_INFO!$J$9:$J$60) -> 2
A25: =IF(INTRO!$E$34<>0,INTRO!$E$34,"") -> South Africa | B25: Gauteng | C25: Tshwane MM | D25: 3422915 | E25: =IF(INTRO!$E$48="","",ROUND($D25*INTRO!$E$48,0)) -> 280679 | F25: =IF(INTRO!$E$49="","",ROUND($D25*INTRO!$E$49,0)) -> 653777 | G25: =IF(INTRO!$E$50="","",ROUND($D25*INTRO!$E$50,0)) -> 2437115 | H25: 0 | I25: 0 | J25: 2 | K25: 1 | L25: 0 | M25: 0 | N25: =IF(INTRO!$E$42="Endemic", IF(AND($J25>1,$J25<5), IF($J25=4, "Unknown", E25+F25), 0),"Not required") -> 934456 | O25: 0 | P25: 0 | Q25: 0 | R25: 1 | S25: 0 | T25: T3 (ALB/MBD) | X25: 43283 | Y25: Tshwane MM | AC25: =T3_R1!N25 -> 439049 | AF25: =_xlfn.XLOOKUP(X25,[1]COUNTRY_INFO!$Y$9:$Y$60,[1]COUNTRY_INFO!$J$9:$J$60) -> 2
A26: =IF(INTRO!$E$34<>0,INTRO!$E$34,"") -> South Africa | B26: Gauteng | C26: West Rand DM | D26: 920314 | E26: =IF(INTRO!$E$48="","",ROUND($D26*INTRO!$E$48,0)) -> 75466 | F26: =IF(INTRO!$E$49="","",ROUND($D26*INTRO!$E$49,0)) -> 175780 | G26: =IF(INTRO!$E$50="","",ROUND($D26*INTRO!$E$50,0)) -> 655264 | H26: 0 | I26: 0 | J26: 2 | K26: 1 | L26: 0 | M26: 0 | N26: =IF(INTRO!$E$42="Endemic", IF(AND($J26>1,$J26<5), IF($J26=4, "Unknown", E26+F26), 0),"Not required") -> 251246 | O26: 0 | P26: 0 | Q26: 0 | R26: 1 | S26: 0 | T26: T3 (ALB/MBD) | X26: 43284 | Y26: West Rand DM | AC26: =T3_R1!N26 -> 118046 | AF26: =_xlfn.XLOOKUP(X26,[1]COUNTRY_INFO!$Y$9:$Y$60,[1]COUNTRY_INFO!$J$9:$J$60) -> 4
A27: =IF(INTRO!$E$34<>0,INTRO!$E$34,"") -> South Africa | B27: KwaZulu-Natal | C27: Amajuba DM | D27: 551531 | E27: =IF(INTRO!$E$48="","",ROUND($D27*INTRO!$E$48,0)) -> 45226 | F27: =IF(INTRO!$E$49="","",ROUND($D27*INTRO!$E$49,0)) -> 105342 | G27: =IF(INTRO!$E$50="","",ROUND($D27*INTRO!$E$50,0)) -> 392690 | H27: 0 | I27: 0 | J27: 2 | K27: 1 | L27: 0 | M27: 0 | N27: =IF(INTRO!$E$42="Endemic", IF(AND($J27>1,$J27<5), IF($J27=4, "Unknown", E27+F27), 0),"Not required") -> 150568 | O27: 0 | P27: 0 | Q27: 0 | R27: 1 | S27: 0 | T27: T3 (ALB/MBD) | X27: 43285 | Y27: Amajuba DM | AC27: =T3_R1!N27 -> 128785 | AF27: =_xlfn.XLOOKUP(X27,[1]COUNTRY_INFO!$Y$9:$Y$60,[1]COUNTRY_INFO!$J$9:$J$60) -> 4
A28: =IF(INTRO!$E$34<>0,INTRO!$E$34,"") -> South Africa | B28: KwaZulu-Natal | C28: eThekwini MM | D28: 3715186 | E28: =IF(INTRO!$E$48="","",ROUND($D28*INTRO!$E$48,0)) -> 304645 | F28: =IF(INTRO!$E$49="","",ROUND($D28*INTRO!$E$49,0)) -> 709601 | G28: =IF(INTRO!$E$50="","",ROUND($D28*INTRO!$E$50,0)) -> 2645212 | H28: 0 | I28: 0 | J28: 2 | K28: 1 | L28: 0 | M28: 0 | N28: =IF(INTRO!$E$42="Endemic", IF(AND($J28>1,$J28<5), IF($J28=4, "Unknown", E28+F28), 0),"Not required") -> 1014246 | O28: 0 | P28: 0 | Q28: 0 | R28: 1 | S28: 0 | T28: T3 (ALB/MBD) | X28: 43293 | Y28: eThekwini MM | AC28: =T3_R1!N28 -> 408060 | AF28: =_xlfn.XLOOKUP(X28,[1]COUNTRY_INFO!$Y$9:$Y$60,[1]COUNTRY_INFO!$J$9:$J$60) -> 3
A29: =IF(INTRO!$E$34<>0,INTRO!$E$34,"") -> South Africa | B29: KwaZulu-Natal | C29: Harry Gwala DM | D29: 512138 | E29: =IF(INTRO!$E$48="","",ROUND($D29*INTRO!$E$48,0)) -> 41995 | F29: =IF(INTRO!$E$49="","",ROUND($D29*INTRO!$E$49,0)) -> 97818 | G29: =IF(INTRO!$E$50="","",ROUND($D29*INTRO!$E$50,0)) -> 364642 | H29: 0 | I29: 0 | J29: 2 | K29: 1 | L29: 0 | M29: 0 | N29: =IF(INTRO!$E$42="Endemic", IF(AND($J29>1,$J29<5), IF($J29=4, "Unknown", E29+F29), 0),"Not required") -> 139813 | O29: 0 | P29: 0 | Q29: 0 | R29: 1 | S29: 0 | T29: T3 (ALB/MBD) | X29: 43286 | Y29: Harry Gwala DM | AC29: =T3_R1!N29 -> 191540 | AF29: =_xlfn.XLOOKUP(X29,[1]COUNTRY_INFO!$Y$9:$Y$60,[1]COUNTRY_INFO!$J$9:$J$60) -> 3
A30: =IF(INTRO!$E$34<>0,INTRO!$E$34,"") -> South Africa | B30: KwaZulu-Natal | C30: iLembe DM | D30: 687459 | E30: =IF(INTRO!$E$48="","",ROUND($D30*INTRO!$E$48,0)) -> 56372 | F30: =IF(INTRO!$E$49="","",ROUND($D30*INTRO!$E$49,0)) -> 131305 | G30: =IF(INTRO!$E$50="","",ROUND($D30*INTRO!$E$50,0)) -> 489471 | H30: 0 | I30: 0 | J30: 2 | K30: 2 | L30: 0 | M30: 0 | N30: =IF(INTRO!$E$42="Endemic", IF(AND($J30>1,$J30<5), IF($J30=4, "Unknown", E30+F30), 0),"Not required") -> 187677 | O30: 0 | P30: 0 | Q30: 0 | R30: 1 | S30: 0 | T30: T3 (ALB/MBD) | X30: 43294 | Y30: iLembe DM | AC30: =T3_R1!N30 -> 124274 | AF30: =_xlfn.XLOOKUP(X30,[1]COUNTRY_INFO!$Y$9:$Y$60,[1]COUNTRY_INFO!$J$9:$J$60) -> 3
A31: =IF(INTRO!$E$34<>0,INTRO!$E$34,"") -> South Africa | B31: KwaZulu-Natal | C31: Ugu DM | D31: 791689 | E31: =IF(INTRO!$E$48="","",ROUND($D31*INTRO!$E$48,0)) -> 64918 | F31: =IF(INTRO!$E$49="","",ROUND($D31*INTRO!$E$49,0)) -> 151213 | G31: =IF(INTRO!$E$50="","",ROUND($D31*INTRO!$E$50,0)) -> 563683 | H31: 0 | I31: 0 | J31: 2 | K31: 2 | L31: 0 | M31: 0 | N31: =IF(INTRO!$E$42="Endemic", IF(AND($J31>1,$J31<5), IF($J31=4, "Unknown", E31+F31), 0),"Not required") -> 216131 | O31: 0 | P31: 0 | Q31: 0 | R31: 1 | S31: 0 | T31: T3 (ALB/MBD) | X31: 43287 | Y31: Ugu DM | AC31: =T3_R1!N31 -> 184175 | AF31: =_xlfn.XLOOKUP(X31,[1]COUNTRY_INFO!$Y$9:$Y$60,[1]COUNTRY_INFO!$J$9:$J$60) -> 3
A32: =IF(INTRO!$E$34<>0,INTRO!$E$34,"") -> South Africa | B32: KwaZulu-Natal | C32: uMgungundlovu DM | D32: 1147183 | E32: =IF(INTRO!$E$48="","",ROUND($D32*INTRO!$E$48,0)) -> 94069 | F32: =IF(INTRO!$E$49="","",ROUND($D32*INTRO!$E$49,0)) -> 219112 | G32: =IF(INTRO!$E$50="","",ROUND($D32*INTRO!$E$50,0)) -> 816794 | H32: 0 | I32: 0 | J32: 2 | K32: 2 | L32: 0 | M32: 0 | N32: =IF(INTRO!$E$42="Endemic", IF(AND($J32>1,$J32<5), IF($J32=4, "Unknown", E32+F32), 0),"Not required") -> 313181 | O32: 0 | P32: 0 | Q32: 0 | R32: 1 | S32: 0 | T32: T3 (ALB/MBD) | X32: 43295 | Y32: uMgungundlovu DM | AC32: =T3_R1!N32 -> 147226 | AF32: =_xlfn.XLOOKUP(X32,[1]COUNTRY_INFO!$Y$9:$Y$60,[1]COUNTRY_INFO!$J$9:$J$60) -> 2
A33: =IF(INTRO!$E$34<>0,INTRO!$E$34,"") -> South Africa | B33: KwaZulu-Natal | C33: Umkhanyakude DM | D33: 685558 | E33: =IF(INTRO!$E$48="","",ROUND($D33*INTRO!$E$48,0)) -> 56216 | F33: =IF(INTRO!$E$49="","",ROUND($D33*INTRO!$E$49,0)) -> 130942 | G33: =IF(INTRO!$E$50="","",ROUND($D33*INTRO!$E$50,0)) -> 488117 | H33: 0 | I33: 0 | J33: 2 | K33: 2 | L33: 0 | M33: 0 | N33: =IF(INTRO!$E$42="Endemic", IF(AND($J33>1,$J33<5), IF($J33=4, "Unknown", E33+F33), 0),"Not required") -> 187158 | O33: 0 | P33: 0 | Q33: 0 | R33: 1 | S33: 0 | T33: T3 (ALB/MBD) | X33: 43288 | Y33: Umkhanyakude DM | AC33: =T3_R1!N33 -> 111385 | AF33: =_xlfn.XLOOKUP(X33,[1]COUNTRY_INFO!$Y$9:$Y$60,[1]COUNTRY_INFO!$J$9:$J$60) -> 3
A34: =IF(INTRO!$E$34<>0,INTRO!$E$34,"") -> South Africa | B34: KwaZulu-Natal | C34: Umzinyathi DM | D34: 551706 | E34: =IF(INTRO!$E$48="","",ROUND($D34*INTRO!$E$48,0)) -> 45240 | F34: =IF(INTRO!$E$49="","",ROUND($D34*INTRO!$E$49,0)) -> 105376 | G34: =IF(INTRO!$E$50="","",ROUND($D34*INTRO!$E$50,0)) -> 392815 | H34: 0 | I34: 0 | J34: 2 | K34: 2 | L34: 0 | M34: 0 | N34: =IF(INTRO!$E$42="Endemic", IF(AND($J34>1,$J34<5), IF($J34=4, "Unknown", E34+F34), 0),"Not required") -> 150616 | O34: 0 | P34: 0 | Q34: 0 | R34: 1 | S34: 0 | T34: T3 (ALB/MBD) | X34: 43289 | Y34: Umzinyathi DM | AC34: =T3_R1!N34 -> 119800 | AF34: =_xlfn.XLOOKUP(X34,[1]COUNTRY_INFO!$Y$9:$Y$60,[1]COUNTRY_INFO!$J$9:$J$60) -> 1
A35: =IF(INTRO!$E$34<>0,INTRO!$E$34,"") -> South Africa | B35: KwaZulu-Natal | C35: Uthukela DM | D35: 734129 | E35: =IF(INTRO!$E$48="","",ROUND($D35*INTRO!$E$48,0)) -> 60199 | F35: =IF(INTRO!$E$49="","",ROUND($D35*INTRO!$E$49,0)) -> 140219 | G35: =IF(INTRO!$E$50="","",ROUND($D35*INTRO!$E$50,0)) -> 522700 | H35: 0 | I35: 0 | J35: 2 | K35: 1 | L35: 0 | M35: 0 | N35: =IF(INTRO!$E$42="Endemic", IF(AND($J35>1,$J35<5), IF($J35=4, "Unknown", E35+F35), 0),"Not required") -> 200418 | O35: 0 | P35: 0 | Q35: 0 | R35: 1 | S35: 0 | T35: T3 (ALB/MBD) | X35: 43290 | Y35: Uthukela DM | AC35: =T3_R1!N35 -> 96166 | AF35: =_xlfn.XLOOKUP(X35,[1]COUNTRY_INFO!$Y$9:$Y$60,[1]COUNTRY_INFO!$J$9:$J$60) -> 1
A36: =IF(INTRO!$E$34<>0,INTRO!$E$34,"") -> South Africa | B36: KwaZulu-Natal | C36: Uthungulu DM | D36: 1011242 | E36: =IF(INTRO!$E$48="","",ROUND($D36*INTRO!$E$48,0)) -> 82922 | F36: =IF(INTRO!$E$49="","",ROUND($D36*INTRO!$E$49,0)) -> 193147 | G36: =IF(INTRO!$E$50="","",ROUND($D36*INTRO!$E$50,0)) -> 720004 | H36: 0 | I36: 0 | J36: 2 | K36: 2 | L36: 0 | M36: 0 | N36: =IF(INTRO!$E$42="Endemic", IF(AND($J36>1,$J36<5), IF($J36=4, "Unknown", E36+F36), 0),"Not required") -> 276069 | O36: 0 | P36: 0 | Q36: 0 | R36: 1 | S36: 0 | T36: T3 (ALB/MBD) | X36: 43291 | Y36: Uthungulu DM | AC36: =T3_R1!N36 -> 135758 | AF36: =_xlfn.XLOOKUP(X36,[1]COUNTRY_INFO!$Y$9:$Y$60,[1]COUNTRY_INFO!$J$9:$J$60) -> 3
A37: =IF(INTRO!$E$34<>0,INTRO!$E$34,"") -> South Africa | B37: KwaZulu-Natal | C37: Zululand DM | D37: 891219 | E37: =IF(INTRO!$E$48="","",ROUND($D37*INTRO!$E$48,0)) -> 73080 | F37: =IF(INTRO!$E$49="","",ROUND($D37*INTRO!$E$49,0)) -> 170223 | G37: =IF(INTRO!$E$50="","",ROUND($D37*INTRO!$E$50,0)) -> 634548 | H37: 0 | I37: 0 | J37: 2 | K37: 2 | L37: 0 | M37: 0 | N37: =IF(INTRO!$E$42="Endemic", IF(AND($J37>1,$J37<5), IF($J37=4, "Unknown", E37+F37), 0),"Not required") -> 243303 | O37: 0 | P37: 0 | Q37: 0 | R37: 1 | S37: 0 | T37: T3 (ALB/MBD) | X37: 43292 | Y37: Zululand DM | AC37: =T3_R1!N37 -> 196696 | AF37: =_xlfn.XLOOKUP(X37,[1]COUNTRY_INFO!$Y$9:$Y$60,[1]COUNTRY_INFO!$J$9:$J$60) -> 4
A38: =IF(INTRO!$E$34<>0,INTRO!$E$34,"") -> South Africa | B38: Limpopo | C38: Capricorn DM | D38: 1356438 | E38: =IF(INTRO!$E$48="","",ROUND($D38*INTRO!$E$48,0)) -> 111228 | F38: =IF(INTRO!$E$49="","",ROUND($D38*INTRO!$E$49,0)) -> 259080 | G38: =IF(INTRO!$E$50="","",ROUND($D38*INTRO!$E$50,0)) -> 965784 | H38: 0 | I38: 0 | J38: 2 | K38: 1 | L38: 0 | M38: 0 | N38: =IF(INTRO!$E$42="Endemic", IF(AND($J38>1,$J38<5), IF($J38=4, "Unknown", E38+F38), 0),"Not required") -> 370308 | O38: 0 | P38: 0 | Q38: 0 | R38: 1 | S38: 0 | T38: T3 (ALB/MBD) | X38: 43296 | Y38: Capricorn DM | AC38: =T3_R1!N38 -> 199840 | AF38: =_xlfn.XLOOKUP(X38,[1]COUNTRY_INFO!$Y$9:$Y$60,[1]COUNTRY_INFO!$J$9:$J$60) -> 4
A39: =IF(INTRO!$E$34<>0,INTRO!$E$34,"") -> South Africa | B39: Limpopo | C39: Mopani DM | D39: 1190709 | E39: =IF(INTRO!$E$48="","",ROUND($D39*INTRO!$E$48,0)) -> 97638 | F39: =IF(INTRO!$E$49="","",ROUND($D39*INTRO!$E$49,0)) -> 227425 | G39: =IF(INTRO!$E$50="","",ROUND($D39*INTRO!$E$50,0)) -> 847785 | H39: 0 | I39: 0 | J39: 2 | K39: 1 | L39: 0 | M39: 0 | N39: =IF(INTRO!$E$42="Endemic", IF(AND($J39>1,$J39<5), IF($J39=4, "Unknown", E39+F39), 0),"Not required") -> 325063 | O39: 0 | P39: 0 | Q39: 0 | R39: 1 | S39: 0 | T39: T3 (ALB/MBD) | X39: 43297 | Y39: Mopani DM | AC39: =T3_R1!N39 -> 175423 | AF39: =_xlfn.XLOOKUP(X39,[1]COUNTRY_INFO!$Y$9:$Y$60,[1]COUNTRY_INFO!$J$9:$J$60) -> 4
A40: =IF(INTRO!$E$34<>0,INTRO!$E$34,"") -> South Africa | B40: Limpopo | C40: Sekhukhune DM | D40: 1201288 | E40: =IF(INTRO!$E$48="","",ROUND($D40*INTRO!$E$48,0)) -> 98506 | F40: =IF(INTRO!$E$49="","",ROUND($D40*INTRO!$E$49,0)) -> 229446 | G40: =IF(INTRO!$E$50="","",ROUND($D40*INTRO!$E$50,0)) -> 855317 | H40: 0 | I40: 0 | J40: 2 | K40: 1 | L40: 0 | M40: 0 | N40: =IF(INTRO!$E$42="Endemic", IF(AND($J40>1,$J40<5), IF($J40=4, "Unknown", E40+F40), 0),"Not required") -> 327952 | O40: 0 | P40: 0 | Q40: 0 | R40: 1 | S40: 0 | T40: T3 (ALB/MBD) | X40: 43298 | Y40: Sekhukhune DM | AC40: =T3_R1!N40 -> 176982 | AF40: =_xlfn.XLOOKUP(X40,[1]COUNTRY_INFO!$Y$9:$Y$60,[1]COUNTRY_INFO!$J$9:$J$60) -> 4
A41: =IF(INTRO!$E$34<>0,INTRO!$E$34,"") -> South Africa | B41: Limpopo | C41: Vhembe DM | D41: 1442768 | E41: =IF(INTRO!$E$48="","",ROUND($D41*INTRO!$E$48,0)) -> 118307 | F41: =IF(INTRO!$E$49="","",ROUND($D41*INTRO!$E$49,0)) -> 275569 | G41: =IF(INTRO!$E$50="","",ROUND($D41*INTRO!$E$50,0)) -> 1027251 | H41: 0 | I41: 0 | J41: 2 | K41: 1 | L41: 0 | M41: 0 | N41: =IF(INTRO!$E$42="Endemic", IF(AND($J41>1,$J41<5), IF($J41=4, "Unknown", E41+F41), 0),"Not required") -> 393876 | O41: 0 | P41: 0 | Q41: 0 | R41: 1 | S41: 0 | T41: T3 (ALB/MBD) | X41: 43299 | Y41: Vhembe DM | AC41: =T3_R1!N41 -> 212559 | AF41: =_xlfn.XLOOKUP(X41,[1]COUNTRY_INFO!$Y$9:$Y$60,[1]COUNTRY_INFO!$J$9:$J$60) -> 4
A42: =IF(INTRO!$E$34<>0,INTRO!$E$34,"") -> South Africa | B42: Limpopo | C42: Waterberg DM | D42: 775400 | E42: =IF(INTRO!$E$48="","",ROUND($D42*INTRO!$E$48,0)) -> 63583 | F42: =IF(INTRO!$E$49="","",ROUND($D42*INTRO!$E$49,0)) -> 148101 | G42: =IF(INTRO!$E$50="","",ROUND($D42*INTRO!$E$50,0)) -> 552085 | H42: 0 | I42: 0 | J42: 2 | K42: 1 | L42: 0 | M42: 0 | N42: =IF(INTRO!$E$42="Endemic", IF(AND($J42>1,$J42<5), IF($J42=4, "Unknown", E42+F42), 0),"Not required") -> 211684 | O42: 0 | P42: 0 | Q42: 0 | R42: 1 | S42: 0 | T42: T3 (ALB/MBD) | X42: 43300 | Y42: Waterberg DM | AC42: =T3_R1!N42 -> 114237 | AF42: =_xlfn.XLOOKUP(X42,[1]COUNTRY_INFO!$Y$9:$Y$60,[1]COUNTRY_INFO!$J$9:$J$60) -> 4
A43: =IF(INTRO!$E$34<>0,INTRO!$E$34,"") -> South Africa | B43: Mpumalanga | C43: Ehlanzeni DM | D43: 1848362 | E43: =IF(INTRO!$E$48="","",ROUND($D43*INTRO!$E$48,0)) -> 151566 | F43: =IF(INTRO!$E$49="","",ROUND($D43*INTRO!$E$49,0)) -> 353037 | G43: =IF(INTRO!$E$50="","",ROUND($D43*INTRO!$E$50,0)) -> 1316034 | H43: 0 | I43: 0 | J43: 2 | K43: 1 | L43: 0 | M43: 0 | N43: =IF(INTRO!$E$42="Endemic", IF(AND($J43>1,$J43<5), IF($J43=4, "Unknown", E43+F43), 0),"Not required") -> 504603 | O43: 0 | P43: 0 | Q43: 0 | R43: 1 | S43: 0 | T43: T3 (ALB/MBD) | X43: 43301 | Y43: Ehlanzeni DM | AC43: =T3_R1!N43 -> 290939 | AF43: =_xlfn.XLOOKUP(X43,[1]COUNTRY_INFO!$Y$9:$Y$60,[1]COUNTRY_INFO!$J$9:$J$60) -> 2
A44: =IF(INTRO!$E$34<>0,INTRO!$E$34,"") -> South Africa | B44: Mpumalanga | C44: G Sibande DM | D44: 1136130 | E44: =IF(INTRO!$E$48="","",ROUND($D44*INTRO!$E$48,0)) -> 93163 | F44: =IF(INTRO!$E$49="","",ROUND($D44*INTRO!$E$49,0)) -> 217001 | G44: =IF(INTRO!$E$50="","",ROUND($D44*INTRO!$E$50,0)) -> 808925 | H44: 0 | I44: 0 | J44: 2 | K44: 1 | L44: 0 | M44: 0 | N44: =IF(INTRO!$E$42="Endemic", IF(AND($J44>1,$J44<5), IF($J44=4, "Unknown", E44+F44), 0),"Not required") -> 310164 | O44: 0 | P44: 0 | Q44: 0 | R44: 1 | S44: 0 | T44: T3 (ALB/MBD) | X44: 43302 | Y44: G Sibande DM | AC44: =T3_R1!N44 -> 157382 | AF44: =_xlfn.XLOOKUP(X44,[1]COUNTRY_INFO!$Y$9:$Y$60,[1]COUNTRY_INFO!$J$9:$J$60) -> 2
A45: =IF(INTRO!$E$34<>0,INTRO!$E$34,"") -> South Africa | B45: Mpumalanga | C45: Nkangala DM | D45: 1485274 | E45: =IF(INTRO!$E$48="","",ROUND($D45*INTRO!$E$48,0)) -> 121792 | F45: =IF(INTRO!$E$49="","",ROUND($D45*INTRO!$E$49,0)) -> 283687 | G45: =IF(INTRO!$E$50="","",ROUND($D45*INTRO!$E$50,0)) -> 1057515 | H45: 0 | I45: 0 | J45: 2 | K45: 1 | L45: 0 | M45: 0 | N45: =IF(INTRO!$E$42="Endemic", IF(AND($J45>1,$J45<5), IF($J45=4, "Unknown", E45+F45), 0),"Not required") -> 405479 | O45: 0 | P45: 0 | Q45: 0 | R45: 1 | S45: 0 | T45: T3 (ALB/MBD) | X45: 43303 | Y45: Nkangala DM | AC45: =T3_R1!N45 -> 201779 | AF45: =_xlfn.XLOOKUP(X45,[1]COUNTRY_INFO!$Y$9:$Y$60,[1]COUNTRY_INFO!$J$9:$J$60) -> 2
A46: =IF(INTRO!$E$34<>0,INTRO!$E$34,"") -> South Africa | B46: North West | C46: Bojanala Platinum DM | D46: 1721771 | E46: =IF(INTRO!$E$48="","",ROUND($D46*INTRO!$E$48,0)) -> 141185 | F46: =IF(INTRO!$E$49="","",ROUND($D46*INTRO!$E$49,0)) -> 328858 | G46: =IF(INTRO!$E$50="","",ROUND($D46*INTRO!$E$50,0)) -> 1225901 | H46: 0 | I46: 0 | J46: 2 | K46: 1 | L46: 0 | M46: 0 | N46: =IF(INTRO!$E$42="Endemic", IF(AND($J46>1,$J46<5), IF($J46=4, "Unknown", E46+F46), 0),"Not required") -> 470043 | O46: 0 | P46: 0 | Q46: 0 | R46: 1 | S46: 0 | T46: T3 (ALB/MBD) | X46: 43304 | Y46: Bojanala Platinum DM | AC46: =T3_R1!N46 -> 269447 | AF46: =_xlfn.XLOOKUP(X46,[1]COUNTRY_INFO!$Y$9:$Y$60,[1]COUNTRY_INFO!$J$9:$J$60) -> 2
A47: =IF(INTRO!$E$34<>0,INTRO!$E$34,"") -> South Africa | B47: North West | C47: Dr K Kaunda DM | D47: 765465 | E47: =IF(INTRO!$E$48="","",ROUND($D47*INTRO!$E$48,0)) -> 62768 | F47: =IF(INTRO!$E$49="","",ROUND($D47*INTRO!$E$49,0)) -> 146204 | G47: =IF(INTRO!$E$50="","",ROUND($D47*INTRO!$E$50,0)) -> 545011 | H47: 0 | I47: 0 | J47: 2 | K47: 1 | L47: 0 | M47: 0 | N47: =IF(INTRO!$E$42="Endemic", IF(AND($J47>1,$J47<5), IF($J47=4, "Unknown", E47+F47), 0),"Not required") -> 208972 | O47: 0 | P47: 0 | Q47: 0 | R47: 1 | S47: 0 | T47: T3 (ALB/MBD) | X47: 43305 | Y47: Dr K Kaunda DM | AC47: =T3_R1!N47 -> 119792 | AF47: =_xlfn.XLOOKUP(X47,[1]COUNTRY_INFO!$Y$9:$Y$60,[1]COUNTRY_INFO!$J$9:$J$60) -> 2
A48: =IF(INTRO!$E$34<>0,INTRO!$E$34,"") -> South Africa | B48: North West | C48: Ngaka Modiri Molema DM | D48: 917157 | E48: =IF(INTRO!$E$48="","",ROUND($D48*INTRO!$E$48,0)) -> 75207 | F48: =IF(INTRO!$E$49="","",ROUND($D48*INTRO!$E$49,0)) -> 175177 | G48: =IF(INTRO!$E$50="","",ROUND($D48*INTRO!$E$50,0)) -> 653016 | H48: 0 | I48: 0 | J48: 2 | K48: 1 | L48: 0 | M48: 0 | N48: =IF(INTRO!$E$42="Endemic", IF(AND($J48>1,$J48<5), IF($J48=4, "Unknown", E48+F48), 0),"Not required") -> 250384 | O48: 0 | P48: 0 | Q48: 0 | R48: 1 | S48: 0 | T48: T3 (ALB/MBD) | X48: 43306 | Y48: Ngaka Modiri Molema DM | AC48: =T3_R1!N48 -> 143530 | AF48: =_xlfn.XLOOKUP(X48,[1]COUNTRY_INFO!$Y$9:$Y$60,[1]COUNTRY_INFO!$J$9:$J$60) -> 2
A49: =IF(INTRO!$E$34<>0,INTRO!$E$34,"") -> South Africa | B49: North West | C49: Ruth Segomotsi Mompati DM | D49: 503289 | E49: =IF(INTRO!$E$48="","",ROUND($D49*INTRO!$E$48,0)) -> 41270 | F49: =IF(INTRO!$E$49="","",ROUND($D49*INTRO!$E$49,0)) -> 96128 | G49: =IF(INTRO!$E$50="","",ROUND($D49*INTRO!$E$50,0)) -> 358342 | H49: 0 | I49: 0 | J49: 2 | K49: 1 | L49: 0 | M49: 0 | N49: =IF(INTRO!$E$42="Endemic", IF(AND($J49>1,$J49<5), IF($J49=4, "Unknown", E49+F49), 0),"Not required") -> 137398 | O49: 0 | P49: 0 | Q49: 0 | R49: 1 | S49: 0 | T49: T3 (ALB/MBD) | X49: 43307 | Y49: Ruth Segomotsi Mompati DM | AC49: =T3_R1!N49 -> 78762 | AF49: =_xlfn.XLOOKUP(X49,[1]COUNTRY_INFO!$Y$9:$Y$60,[1]COUNTRY_INFO!$J$9:$J$60) -> 2
A50: =IF(INTRO!$E$34<>0,INTRO!$E$34,"") -> South Africa | B50: Northern Cape | C50: Frances Baard DM | D50: 403289 | E50: =IF(INTRO!$E$48="","",ROUND($D50*INTRO!$E$48,0)) -> 33070 | F50: =IF(INTRO!$E$49="","",ROUND($D50*INTRO!$E$49,0)) -> 77028 | G50: =IF(INTRO!$E$50="","",ROUND($D50*INTRO!$E$50,0)) -> 287142 | H50: 0 | I50: 0 | J50: 2 | K50: 1 | L50: 0 | M50: 0 | N50: =IF(INTRO!$E$42="Endemic", IF(AND($J50>1,$J50<5), IF($J50=4, "Unknown", E50+F50), 0),"Not required") -> 110098 | O50: 0 | P50: 0 | Q50: 0 | R50: 1 | S50: 0 | T50: T3 (ALB/MBD) | X50: 43308 | Y50: Frances Baard DM | AC50: =T3_R1!N50 -> 56213 | AF50: =_xlfn.XLOOKUP(X50,[1]COUNTRY_INFO!$Y$9:$Y$60,[1]COUNTRY_INFO!$J$9:$J$60) -> 2
A51: =IF(INTRO!$E$34<>0,INTRO!$E$34,"") -> South Africa | B51: Northern Cape | C51: J T Gaetsewe DM | D51: 251313 | E51: =IF(INTRO!$E$48="","",ROUND($D51*INTRO!$E$48,0)) -> 20608 | F51: =IF(INTRO!$E$49="","",ROUND($D51*INTRO!$E$49,0)) -> 48001 | G51: =IF(INTRO!$E$50="","",ROUND($D51*INTRO!$E$50,0)) -> 178935 | H51: 0 | I51: 0 | J51: 2 | K51: 1 | L51: 0 | M51: 0 | N51: =IF(INTRO!$E$42="Endemic", IF(AND($J51>1,$J51<5), IF($J51=4, "Unknown", E51+F51), 0),"Not required") -> 68609 | O51: 0 | P51: 0 | Q51: 0 | R51: 1 | S51: 0 | T51: T3 (ALB/MBD) | X51: 43309 | Y51: J T Gaetsewe DM | AC51: =T3_R1!N51 -> 48515 | AF51: =_xlfn.XLOOKUP(X51,[1]COUNTRY_INFO!$Y$9:$Y$60,[1]COUNTRY_INFO!$J$9:$J$60) -> 4
A52: =IF(INTRO!$E$34<>0,INTRO!$E$34,"") -> South Africa | B52: Northern Cape | C52: Namakwa DM | D52: 125479 | E52: =IF(INTRO!$E$48="","",ROUND($D52*INTRO!$E$48,0)) -> 10289 | F52: =IF(INTRO!$E$49="","",ROUND($D52*INTRO!$E$49,0)) -> 23966 | G52: =IF(INTRO!$E$50="","",ROUND($D52*INTRO!$E$50,0)) -> 89341 | H52: 0 | I52: 0 | J52: 2 | K52: 1 | L52: 0 | M52: 0 | N52: =IF(INTRO!$E$42="Endemic", IF(AND($J52>1,$J52<5), IF($J52=4, "Unknown", E52+F52), 0),"Not required") -> 34255 | O52: 0 | P52: 0 | Q52: 0 | R52: 1 | S52: 0 | T52: T3 (ALB/MBD) | X52: 43310 | Y52: Namakwa DM | AC52: =T3_R1!N52 -> 16200 | AF52: =_xlfn.XLOOKUP(X52,[1]COUNTRY_INFO!$Y$9:$Y$60,[1]COUNTRY_INFO!$J$9:$J$60) -> 4
A53: =IF(INTRO!$E$34<>0,INTRO!$E$34,"") -> South Africa | B53: Northern Cape | C53: Pixley ka Seme DM | D53: 202747 | E53: =IF(INTRO!$E$48="","",ROUND($D53*INTRO!$E$48,0)) -> 16625 | F53: =IF(INTRO!$E$49="","",ROUND($D53*INTRO!$E$49,0)) -> 38725 | G53: =IF(INTRO!$E$50="","",ROUND($D53*INTRO!$E$50,0)) -> 144356 | H53: 0 | I53: 0 | J53: 2 | K53: 1 | L53: 0 | M53: 0 | N53: =IF(INTRO!$E$42="Endemic", IF(AND($J53>1,$J53<5), IF($J53=4, "Unknown", E53+F53), 0),"Not required") -> 55350 | O53: 0 | P53: 0 | Q53: 0 | R53: 1 | S53: 0 | T53: T3 (ALB/MBD) | X53: 43311 | Y53: Pixley ka Seme DM | AC53: =T3_R1!N53 -> 28110 | AF53: =_xlfn.XLOOKUP(X53,[1]COUNTRY_INFO!$Y$9:$Y$60,[1]COUNTRY_INFO!$J$9:$J$60) -> 4
A54: =IF(INTRO!$E$34<>0,INTRO!$E$34,"") -> South Africa | B54: Northern Cape | C54: ZF Mgcawu DM | D54: 264806 | E54: =IF(INTRO!$E$48="","",ROUND($D54*INTRO!$E$48,0)) -> 21714 | F54: =IF(INTRO!$E$49="","",ROUND($D54*INTRO!$E$49,0)) -> 50578 | G54: =IF(INTRO!$E$50="","",ROUND($D54*INTRO!$E$50,0)) -> 188542 | H54: 0 | I54: 0 | J54: 2 | K54: 1 | L54: 0 | M54: 0 | N54: =IF(INTRO!$E$42="Endemic", IF(AND($J54>1,$J54<5), IF($J54=4, "Unknown", E54+F54), 0),"Not required") -> 72292 | O54: 0 | P54: 0 | Q54: 0 | R54: 1 | S54: 0 | T54: T3 (ALB/MBD) | X54: 43312 | Y54: ZF Mgcawu DM | AC54: =T3_R1!N54 -> 36295 | AF54: =_xlfn.XLOOKUP(X54,[1]COUNTRY_INFO!$Y$9:$Y$60,[1]COUNTRY_INFO!$J$9:$J$60) -> 4
A55: =IF(INTRO!$E$34<>0,INTRO!$E$34,"") -> South Africa | B55: Western Cape | C55: Cape Town MM | D55: 4219468 | E55: =IF(INTRO!$E$48="","",ROUND($D55*INTRO!$E$48,0)) -> 345996 | F55: =IF(INTRO!$E$49="","",ROUND($D55*INTRO!$E$49,0)) -> 805918 | G55: =IF(INTRO!$E$50="","",ROUND($D55*INTRO!$E$50,0)) -> 3004261 | H55: 0 | I55: 0 | J55: 2 | K55: 1 | L55: 0 | M55: 0 | N55: =IF(INTRO!$E$42="Endemic", IF(AND($J55>1,$J55<5), IF($J55=4, "Unknown", E55+F55), 0),"Not required") -> 1151914 | O55: 0 | P55: 0 | Q55: 0 | R55: 1 | S55: 0 | T55: T3 (ALB/MBD) | X55: 43313 | Y55: Cape Town MM | AC55: =T3_R1!N55 -> 480130 | AF55: =_xlfn.XLOOKUP(X55,[1]COUNTRY_INFO!$Y$9:$Y$60,[1]COUNTRY_INFO!$J$9:$J$60) -> 3
A56: =IF(INTRO!$E$34<>0,INTRO!$E$34,"") -> South Africa | B56: Western Cape | C56: Cape Winelands DM | D56: 891963.34 | E56: =IF(INTRO!$E$48="","",ROUND($D56*INTRO!$E$48,0)) -> 73141 | F56: =IF(INTRO!$E$49="","",ROUND($D56*INTRO!$E$49,0)) -> 170365 | G56: =IF(INTRO!$E$50="","",ROUND($D56*INTRO!$E$50,0)) -> 635078 | H56: 0 | I56: 0 | J56: 2 | K56: 1 | L56: 0 | M56: 0 | N56: =IF(INTRO!$E$42="Endemic", IF(AND($J56>1,$J56<5), IF($J56=4, "Unknown", E56+F56), 0),"Not required") -> 243506 | O56: 0 | P56: 0 | Q56: 0 | R56: 1 | S56: 0 | T56: T3 (ALB/MBD) | X56: 43314 | Y56: Cape Winelands DM | AC56: =T3_R1!N56 -> 101496 | AF56: =_xlfn.XLOOKUP(X56,[1]COUNTRY_INFO!$Y$9:$Y$60,[1]COUNTRY_INFO!$J$9:$J$60) -> 2
A57: =IF(INTRO!$E$34<>0,INTRO!$E$34,"") -> South Africa | B57: Western Cape | C57: Central Karoo DM | D57: 77388 | E57: =IF(INTRO!$E$48="","",ROUND($D57*INTRO!$E$48,0)) -> 6346 | F57: =IF(INTRO!$E$49="","",ROUND($D57*INTRO!$E$49,0)) -> 14781 | G57: =IF(INTRO!$E$50="","",ROUND($D57*INTRO!$E$50,0)) -> 55100 | H57: 0 | I57: 0 | J57: 2 | K57: 1 | L57: 0 | M57: 0 | N57: =IF(INTRO!$E$42="Endemic", IF(AND($J57>1,$J57<5), IF($J57=4, "Unknown", E57+F57), 0),"Not required") -> 21127 | O57: 0 | P57: 0 | Q57: 0 | R57: 1 | S57: 0 | T57: T3 (ALB/MBD) | X57: 43315 | Y57: Central Karoo DM | AC57: =T3_R1!N57 -> 8806 | AF57: =_xlfn.XLOOKUP(X57,[1]COUNTRY_INFO!$Y$9:$Y$60,[1]COUNTRY_INFO!$J$9:$J$60) -> 4
A58: =IF(INTRO!$E$34<>0,INTRO!$E$34,"") -> South Africa | B58: Western Cape | C58: Eden DM | D58: 638848 | E58: =IF(INTRO!$E$48="","",ROUND($D58*INTRO!$E$48,0)) -> 52386 | F58: =IF(INTRO!$E$49="","",ROUND($D58*INTRO!$E$49,0)) -> 122020 | G58: =IF(INTRO!$E$50="","",ROUND($D58*INTRO!$E$50,0)) -> 454860 | H58: 0 | I58: 0 | J58: 2 | K58: 1 | L58: 0 | M58: 0 | N58: =IF(INTRO!$E$42="Endemic", IF(AND($J58>1,$J58<5), IF($J58=4, "Unknown", E58+F58), 0),"Not required") -> 174406 | O58: 0 | P58: 0 | Q58: 0 | R58: 1 | S58: 0 | T58: T3 (ALB/MBD) | X58: 43316 | Y58: Eden DM | AC58: =T3_R1!N58 -> 72694 | AF58: =_xlfn.XLOOKUP(X58,[1]COUNTRY_INFO!$Y$9:$Y$60,[1]COUNTRY_INFO!$J$9:$J$60) -> 3
A59: =IF(INTRO!$E$34<>0,INTRO!$E$34,"") -> South Africa | B59: Western Cape | C59: Overberg DM | D59: 301611 | E59: =IF(INTRO!$E$48="","",ROUND($D59*INTRO!$E$48,0)) -> 24732 | F59: =IF(INTRO!$E$49="","",ROUND($D59*INTRO!$E$49,0)) -> 57608 | G59: =IF(INTRO!$E$50="","",ROUND($D59*INTRO!$E$50,0)) -> 214747 | H59: 0 | I59: 0 | J59: 2 | K59: 1 | L59: 0 | M59: 0 | N59: =IF(INTRO!$E$42="Endemic", IF(AND($J59>1,$J59<5), IF($J59=4, "Unknown", E59+F59), 0),"Not required") -> 82340 | O59: 0 | P59: 0 | Q59: 0 | R59: 1 | S59: 0 | T59: T3 (ALB/MBD) | X59: 43317 | Y59: Overberg DM | AC59: =T3_R1!N59 -> 34320 | AF59: =_xlfn.XLOOKUP(X59,[1]COUNTRY_INFO!$Y$9:$Y$60,[1]COUNTRY_INFO!$J$9:$J$60) -> 2
A60: =IF(INTRO!$E$34<>0,INTRO!$E$34,"") -> South Africa | B60: Western Cape | C60: West Coast DM | D60: 461846 | E60: =IF(INTRO!$E$48="","",ROUND($D60*INTRO!$E$48,0)) -> 37871 | F60: =IF(INTRO!$E$49="","",ROUND($D60*INTRO!$E$49,0)) -> 88213 | G60: =IF(INTRO!$E$50="","",ROUND($D60*INTRO!$E$50,0)) -> 328834 | H60: 0 | I60: 0 | J60: 2 | K60: 1 | L60: 0 | M60: 0 | N60: =IF(INTRO!$E$42="Endemic", IF(AND($J60>1,$J60<5), IF($J60=4, "Unknown", E60+F60), 0),"Not required") -> 126084 | O60: 0 | P60: 0 | Q60: 0 | R60: 1 | S60: 0 | T60: T3 (ALB/MBD) | X60: 43318 | Y60: West Coast DM | AC60: =T3_R1!N60 -> 52554 | AF60: =_xlfn.XLOOKUP(X60,[1]COUNTRY_INFO!$Y$9:$Y$60,[1]COUNTRY_INFO!$J$9:$J$60) -> 4

Sheet MDA1 (hidden)
A1: MDA 1 - Ivermectin (IVM) and Albendazole (ALB)
A2: Administrative structure, population requiring PC by age group, population treated by age group and coverage
A4: TOTAL | G4: =SUM(G$9:G$1000) -> 0 | H4: =SUM(H$9:H$1000) -> 0 | I4: =SUM(I$9:I$1000) -> 0 | K4: =SUM(K$9:K$1000) -> 0 | L4: =SUM(L$9:L$1000) -> 0 | M4: =SUM(M$9:M$1000) -> 0 | O4: =IF(G4<>0, IF(K4/G4*100=0, "-", K4/G4*100), " ") ->  | P4: =IF(H4<>0, IF(L4/H4*100=0, "-", L4/H4*100), " ") ->  | Q4: =IF(I4<>0, IF(M4/I4*100=0, "-", M4/I4*100), " ") -> 
D6: PC implemented | E6: Date | F6: Population targeted for MDA 1 | J6: Population treated | N6: Programme coverage (%)
A7: Country | B7: Province/State | C7: District | F7: PreSAC | G7: SAC | H7: Adults | I7: Total | J7: PreSAC | K7: SAC | L7: Adults | M7: Total | N7: PreSAC | O7: SAC | P7: Adults | Q7: Total
A9: =IF(COUNTRY_INFO!A9=0," ",COUNTRY_INFO!A9) -> South Africa | B9: =IF(COUNTRY_INFO!B9=0," ",COUNTRY_INFO!B9) -> Eastern Cape | C9: =IF(COUNTRY_INFO!C9=0," ",COUNTRY_INFO!C9) -> A Nzo DM | D9: =IF(COUNTRY_INFO!$T$9:$T$1000="MDA1 (IVM+ALB)", COUNTRY_INFO!$T$9:$T$1000, " ") ->  | I9: =SUM(F9:H9) -> 0 | M9: =SUM(J9:L9) -> 0 | O9: =IF(G9<>0, IF(K9/G9*100=0, "-", K9/G9*100), " ") ->  | P9: =IF(H9<>0, IF(L9/H9*100=0, "-", L9/H9*100), " ") -> 
A10: =IF(COUNTRY_INFO!A10=0," ",COUNTRY_INFO!A10) -> South Africa | B10: =IF(COUNTRY_INFO!B10=0," ",COUNTRY_INFO!B10) -> Eastern Cape | C10: =IF(COUNTRY_INFO!C10=0," ",COUNTRY_INFO!C10) -> Amathole DM | D10: =IF(COUNTRY_INFO!$T$9:$T$1000="MDA1 (IVM+ALB)", COUNTRY_INFO!$T$9:$T$1000, " ") ->  | I10: =SUM(F10:H10) -> 0 | M10: =SUM(J10:L10) -> 0 | O10: =IF(G10<>0, IF(K10/G10*100=0, "-", K10/G10*100), " ") ->  | P10: =IF(H10<>0, IF(L10/H10*100=0, "-", L10/H10*100), " ") ->  | Q10: =IF(I10<>0, IF(M10/I10*100=0, "-", M10/I10*100), " ") -> 
A11: =IF(COUNTRY_INFO!A11=0," ",COUNTRY_INFO!A11) -> South Africa | B11: =IF(COUNTRY_INFO!B11=0," ",COUNTRY_INFO!B11) -> Eastern Cape | C11: =IF(COUNTRY_INFO!C11=0," ",COUNTRY_INFO!C11) -> Buffalo City MM | D11: =IF(COUNTRY_INFO!$T$9:$T$1000="MDA1 (IVM+ALB)", COUNTRY_INFO!$T$9:$T$1000, " ") ->  | I11: 0 | M11: 0
A12: =IF(COUNTRY_INFO!A12=0," ",COUNTRY_INFO!A12) -> South Africa | B12: =IF(COUNTRY_INFO!B12=0," ",COUNTRY_INFO!B12) -> Eastern Cape | C12: =IF(COUNTRY_INFO!C12=0," ",COUNTRY_INFO!C12) -> C Hani DM | D12: =IF(COUNTRY_INFO!$T$9:$T$1000="MDA1 (IVM+ALB)", COUNTRY_INFO!$T$9:$T$1000, " ") ->  | I12: 0 | M12: 0
A13: =IF(COUNTRY_INFO!A13=0," ",COUNTRY_INFO!A13) -> South Africa | B13: =IF(COUNTRY_INFO!B13=0," ",COUNTRY_INFO!B13) -> Eastern Cape | C13: =IF(COUNTRY_INFO!C13=0," ",COUNTRY_INFO!C13) -> Joe Gqabi DM | D13: =IF(COUNTRY_INFO!$T$9:$T$1000="MDA1 (IVM+ALB)", COUNTRY_INFO!$T$9:$T$1000, " ") ->  | I13: 0 | M13: 0
A14: =IF(COUNTRY_INFO!A14=0," ",COUNTRY_INFO!A14) -> South Africa | B14: =IF(COUNTRY_INFO!B14=0," ",COUNTRY_INFO!B14) -> Eastern Cape | C14: =IF(COUNTRY_INFO!C14=0," ",COUNTRY_INFO!C14) -> N Mandela Bay MM | D14: =IF(COUNTRY_INFO!$T$9:$T$1000="MDA1 (IVM+ALB)", COUNTRY_INFO!$T$9:$T$1000, " ") ->  | I14: 0 | M14: 0
A15: =IF(COUNTRY_INFO!A15=0," ",COUNTRY_INFO!A15) -> South Africa | B15: =IF(COUNTRY_INFO!B15=0," ",COUNTRY_INFO!B15) -> Eastern Cape | C15: =IF(COUNTRY_INFO!C15=0," ",COUNTRY_INFO!C15) -> O Tambo DM | D15: =IF(COUNTRY_INFO!$T$9:$T$1000="MDA1 (IVM+ALB)", COUNTRY_INFO!$T$9:$T$1000, " ") ->  | I15: 0 | M15: 0
A16: =IF(COUNTRY_INFO!A16=0," ",COUNTRY_INFO!A16) -> South Africa | B16: =IF(COUNTRY_INFO!B16=0," ",COUNTRY_INFO!B16) -> Eastern Cape | C16: =IF(COUNTRY_INFO!C16=0," ",COUNTRY_INFO!C16) -> Sarah Baartman DM | D16: =IF(COUNTRY_INFO!$T$9:$T$1000="MDA1 (IVM+ALB)", COUNTRY_INFO!$T$9:$T$1000, " ") ->  | I16: 0 | M16: 0
A17: =IF(COUNTRY_INFO!A17=0," ",COUNTRY_INFO!A17) -> South Africa | B17: =IF(COUNTRY_INFO!B17=0," ",COUNTRY_INFO!B17) -> Free State | C17: =IF(COUNTRY_INFO!C17=0," ",COUNTRY_INFO!C17) -> Fezile Dabi DM | D17: =IF(COUNTRY_INFO!$T$9:$T$1000="MDA1 (IVM+ALB)", COUNTRY_INFO!$T$9:$T$1000, " ") ->  | I17: 0 | M17: 0
A18: =IF(COUNTRY_INFO!A18=0," ",COUNTRY_INFO!A18) -> South Africa | B18: =IF(COUNTRY_INFO!B18=0," ",COUNTRY_INFO!B18) -> Free State | C18: =IF(COUNTRY_INFO!C18=0," ",COUNTRY_INFO!C18) -> Lejweleputswa DM | D18: =IF(COUNTRY_INFO!$T$9:$T$1000="MDA1 (IVM+ALB)", COUNTRY_INFO!$T$9:$T$1000, " ") ->  | I18: 0 | M18: 0
A19: =IF(COUNTRY_INFO!A19=0," ",COUNTRY_INFO!A19) -> South Africa | B19: =IF(COUNTRY_INFO!B19=0," ",COUNTRY_INFO!B19) -> Free State | C19: =IF(COUNTRY_INFO!C19=0," ",COUNTRY_INFO!C19) -> Mangaung MM | D19: =IF(COUNTRY_INFO!$T$9:$T$1000="MDA1 (IVM+ALB)", COUNTRY_INFO!$T$9:$T$1000, " ") ->  | I19: 0 | M19: 0
A20: =IF(COUNTRY_INFO!A20=0," ",COUNTRY_INFO!A20) -> South Africa | B20: =IF(COUNTRY_INFO!B20=0," ",COUNTRY_INFO!B20) -> Free State | C20: =IF(COUNTRY_INFO!C20=0," ",COUNTRY_INFO!C20) -> T Mofutsanyane DM | D20: =IF(COUNTRY_INFO!$T$9:$T$1000="MDA1 (IVM+ALB)", COUNTRY_INFO!$T$9:$T$1000, " ") ->  | I20: 0 | M20: 0
A21: =IF(COUNTRY_INFO!A21=0," ",COUNTRY_INFO!A21) -> South Africa | B21: =IF(COUNTRY_INFO!B21=0," ",COUNTRY_INFO!B21) -> Free State | C21: =IF(COUNTRY_INFO!C21=0," ",COUNTRY_INFO!C21) -> Xhariep DM | D21: =IF(COUNTRY_INFO!$T$9:$T$1000="MDA1 (IVM+ALB)", COUNTRY_INFO!$T$9:$T$1000, " ") ->  | I21: 0 | M21: 0
A22: =IF(COUNTRY_INFO!A22=0," ",COUNTRY_INFO!A22) -> South Africa | B22: =IF(COUNTRY_INFO!B22=0," ",COUNTRY_INFO!B22) -> Gauteng | C22: =IF(COUNTRY_INFO!C22=0," ",COUNTRY_INFO!C22) -> Ekurhuleni MM | D22: =IF(COUNTRY_INFO!$T$9:$T$1000="MDA1 (IVM+ALB)", COUNTRY_INFO!$T$9:$T$1000, " ") ->  | I22: 0 | M22: 0
A23: =IF(COUNTRY_INFO!A23=0," ",COUNTRY_INFO!A23) -> South Africa | B23: =IF(COUNTRY_INFO!B23=0," ",COUNTRY_INFO!B23) -> Gauteng | C23: =IF(COUNTRY_INFO!C23=0," ",COUNTRY_INFO!C23) -> Johannesburg MM | D23: =IF(COUNTRY_INFO!$T$9:$T$1000="MDA1 (IVM+ALB)", COUNTRY_INFO!$T$9:$T$1000, " ") ->  | I23: 0 | M23: 0
A24: =IF(COUNTRY_INFO!A24=0," ",COUNTRY_INFO!A24) -> South Africa | B24: =IF(COUNTRY_INFO!B24=0," ",COUNTRY_INFO!B24) -> Gauteng | C24: =IF(COUNTRY_INFO!C24=0," ",COUNTRY_INFO!C24) -> Sedibeng DM | D24: =IF(COUNTRY_INFO!$T$9:$T$1000="MDA1 (IVM+ALB)", COUNTRY_INFO!$T$9:$T$1000, " ") ->  | I24: 0 | M24: 0
A25: =IF(COUNTRY_INFO!A25=0," ",COUNTRY_INFO!A25) -> South Africa | B25: =IF(COUNTRY_INFO!B25=0," ",COUNTRY_INFO!B25) -> Gauteng | C25: =IF(COUNTRY_INFO!C25=0," ",COUNTRY_INFO!C25) -> Tshwane MM | D25: =IF(COUNTRY_INFO!$T$9:$T$1000="MDA1 (IVM+ALB)", COUNTRY_INFO!$T$9:$T$1000, " ") ->  | I25: 0 | M25: 0
A26: =IF(COUNTRY_INFO!A26=0," ",COUNTRY_INFO!A26) -> South Africa | B26: =IF(COUNTRY_INFO!B26=0," ",COUNTRY_INFO!B26) -> Gauteng | C26: =IF(COUNTRY_INFO!C26=0," ",COUNTRY_INFO!C26) -> West Rand DM | D26: =IF(COUNTRY_INFO!$T$9:$T$1000="MDA1 (IVM+ALB)", COUNTRY_INFO!$T$9:$T$1000, " ") ->  | I26: 0 | M26: 0
A27: =IF(COUNTRY_INFO!A27=0," ",COUNTRY_INFO!A27) -> South Africa | B27: =IF(COUNTRY_INFO!B27=0," ",COUNTRY_INFO!B27) -> KwaZulu-Natal | C27: =IF(COUNTRY_INFO!C27=0," ",COUNTRY_INFO!C27) -> Amajuba DM | D27: =IF(COUNTRY_INFO!$T$9:$T$1000="MDA1 (IVM+ALB)", COUNTRY_INFO!$T$9:$T$1000, " ") ->  | I27: 0 | M27: 0
A28: =IF(COUNTRY_INFO!A28=0," ",COUNTRY_INFO!A28) -> South Africa | B28: =IF(COUNTRY_INFO!B28=0," ",COUNTRY_INFO!B28) -> KwaZulu-Natal | C28: =IF(COUNTRY_INFO!C28=0," ",COUNTRY_INFO!C28) -> eThekwini MM | D28: =IF(COUNTRY_INFO!$T$9:$T$1000="MDA1 (IVM+ALB)", COUNTRY_INFO!$T$9:$T$1000, " ") ->  | I28: 0 | M28: 0
A29: =IF(COUNTRY_INFO!A29=0," ",COUNTRY_INFO!A29) -> South Africa | B29: =IF(COUNTRY_INFO!B29=0," ",COUNTRY_INFO!B29) -> KwaZulu-Natal | C29: =IF(COUNTRY_INFO!C29=0," ",COUNTRY_INFO!C29) -> Harry Gwala DM | D29: =IF(COUNTRY_INFO!$T$9:$T$1000="MDA1 (IVM+ALB)", COUNTRY_INFO!$T$9:$T$1000, " ") ->  | I29: 0 | M29: 0
A30: =IF(COUNTRY_INFO!A30=0," ",COUNTRY_INFO!A30) -> South Africa | B30: =IF(COUNTRY_INFO!B30=0," ",COUNTRY_INFO!B30) -> KwaZulu-Natal | C30: =IF(COUNTRY_INFO!C30=0," ",COUNTRY_INFO!C30) -> iLembe DM | D30: =IF(COUNTRY_INFO!$T$9:$T$1000="MDA1 (IVM+ALB)", COUNTRY_INFO!$T$9:$T$1000, " ") ->  | I30: 0 | M30: 0
A31: =IF(COUNTRY_INFO!A31=0," ",COUNTRY_INFO!A31) -> South Africa | B31: =IF(COUNTRY_INFO!B31=0," ",COUNTRY_INFO!B31) -> KwaZulu-Natal | C31: =IF(COUNTRY_INFO!C31=0," ",COUNTRY_INFO!C31) -> Ugu DM | D31: =IF(COUNTRY_INFO!$T$9:$T$1000="MDA1 (IVM+ALB)", COUNTRY_INFO!$T$9:$T$1000, " ") ->  | I31: 0 | M31: 0
A32: =IF(COUNTRY_INFO!A32=0," ",COUNTRY_INFO!A32) -> South Africa | B32: =IF(COUNTRY_INFO!B32=0," ",COUNTRY_INFO!B32) -> KwaZulu-Natal | C32: =IF(COUNTRY_INFO!C32=0," ",COUNTRY_INFO!C32) -> uMgungundlovu DM | D32: =IF(COUNTRY_INFO!$T$9:$T$1000="MDA1 (IVM+ALB)", COUNTRY_INFO!$T$9:$T$1000, " ") ->  | I32: 0 | M32: 0
A33: =IF(COUNTRY_INFO!A33=0," ",COUNTRY_INFO!A33) -> South Africa | B33: =IF(COUNTRY_INFO!B33=0," ",COUNTRY_INFO!B33) -> KwaZulu-Natal | C33: =IF(COUNTRY_INFO!C33=0," ",COUNTRY_INFO!C33) -> Umkhanyakude DM | D33: =IF(COUNTRY_INFO!$T$9:$T$1000="MDA1 (IVM+ALB)", COUNTRY_INFO!$T$9:$T$1000, " ") ->  | I33: 0 | M33: 0
A34: =IF(COUNTRY_INFO!A34=0," ",COUNTRY_INFO!A34) -> South Africa | B34: =IF(COUNTRY_INFO!B34=0," ",COUNTRY_INFO!B34) -> KwaZulu-Natal | C34: =IF(COUNTRY_INFO!C34=0," ",COUNTRY_INFO!C34) -> Umzinyathi DM | D34: =IF(COUNTRY_INFO!$T$9:$T$1000="MDA1 (IVM+ALB)", COUNTRY_INFO!$T$9:$T$1000, " ") ->  | I34: 0 | M34: 0
A35: =IF(COUNTRY_INFO!A35=0," ",COUNTRY_INFO!A35) -> South Africa | B35: =IF(COUNTRY_INFO!B35=0," ",COUNTRY_INFO!B35) -> KwaZulu-Natal | C35: =IF(COUNTRY_INFO!C35=0," ",COUNTRY_INFO!C35) -> Uthukela DM | D35: =IF(COUNTRY_INFO!$T$9:$T$1000="MDA1 (IVM+ALB)", COUNTRY_INFO!$T$9:$T$1000, " ") ->  | I35: 0 | M35: 0
A36: =IF(COUNTRY_INFO!A36=0," ",COUNTRY_INFO!A36) -> South Africa | B36: =IF(COUNTRY_INFO!B36=0," ",COUNTRY_INFO!B36) -> KwaZulu-Natal | C36: =IF(COUNTRY_INFO!C36=0," ",COUNTRY_INFO!C36) -> Uthungulu DM | D36: =IF(COUNTRY_INFO!$T$9:$T$1000="MDA1 (IVM+ALB)", COUNTRY_INFO!$T$9:$T$1000, " ") ->  | I36: 0 | M36: 0
A37: =IF(COUNTRY_INFO!A37=0," ",COUNTRY_INFO!A37) -> South Africa | B37: =IF(COUNTRY_INFO!B37=0," ",COUNTRY_INFO!B37) -> KwaZulu-Natal | C37: =IF(COUNTRY_INFO!C37=0," ",COUNTRY_INFO!C37) -> Zululand DM | D37: =IF(COUNTRY_INFO!$T$9:$T$1000="MDA1 (IVM+ALB)", COUNTRY_INFO!$T$9:$T$1000, " ") ->  | I37: 0 | M37: 0
A38: =IF(COUNTRY_INFO!A38=0," ",COUNTRY_INFO!A38) -> South Africa | B38: =IF(COUNTRY_INFO!B38=0," ",COUNTRY_INFO!B38) -> Limpopo | C38: =IF(COUNTRY_INFO!C38=0," ",COUNTRY_INFO!C38) -> Capricorn DM | D38: =IF(COUNTRY_INFO!$T$9:$T$1000="MDA1 (IVM+ALB)", COUNTRY_INFO!$T$9:$T$1000, " ") ->  | I38: 0 | M38: 0
A39: =IF(COUNTRY_INFO!A39=0," ",COUNTRY_INFO!A39) -> South Africa | B39: =IF(COUNTRY_INFO!B39=0," ",COUNTRY_INFO!B39) -> Limpopo | C39: =IF(COUNTRY_INFO!C39=0," ",COUNTRY_INFO!C39) -> Mopani DM | D39: =IF(COUNTRY_INFO!$T$9:$T$1000="MDA1 (IVM+ALB)", COUNTRY_INFO!$T$9:$T$1000, " ") ->  | I39: 0 | M39: 0
A40: =IF(COUNTRY_INFO!A40=0," ",COUNTRY_INFO!A40) -> South Africa | B40: =IF(COUNTRY_INFO!B40=0," ",COUNTRY_INFO!B40) -> Limpopo | C40: =IF(COUNTRY_INFO!C40=0," ",COUNTRY_INFO!C40) -> Sekhukhune DM | D40: =IF(COUNTRY_INFO!$T$9:$T$1000="MDA1 (IVM+ALB)", COUNTRY_INFO!$T$9:$T$1000, " ") ->  | I40: 0 | M40: 0
A41: =IF(COUNTRY_INFO!A41=0," ",COUNTRY_INFO!A41) -> South Africa | B41: =IF(COUNTRY_INFO!B41=0," ",COUNTRY_INFO!B41) -> Limpopo | C41: =IF(COUNTRY_INFO!C41=0," ",COUNTRY_INFO!C41) -> Vhembe DM | D41: =IF(COUNTRY_INFO!$T$9:$T$1000="MDA1 (IVM+ALB)", COUNTRY_INFO!$T$9:$T$1000, " ") ->  | I41: 0 | M41: 0
A42: =IF(COUNTRY_INFO!A42=0," ",COUNTRY_INFO!A42) -> South Africa | B42: =IF(COUNTRY_INFO!B42=0," ",COUNTRY_INFO!B42) -> Limpopo | C42: =IF(COUNTRY_INFO!C42=0," ",COUNTRY_INFO!C42) -> Waterberg DM | D42: =IF(COUNTRY_INFO!$T$9:$T$1000="MDA1 (IVM+ALB)", COUNTRY_INFO!$T$9:$T$1000, " ") ->  | I42: 0 | M42: 0
A43: =IF(COUNTRY_INFO!A43=0," ",COUNTRY_INFO!A43) -> South Africa | B43: =IF(COUNTRY_INFO!B43=0," ",COUNTRY_INFO!B43) -> Mpumalanga | C43: =IF(COUNTRY_INFO!C43=0," ",COUNTRY_INFO!C43) -> Ehlanzeni DM | D43: =IF(COUNTRY_INFO!$T$9:$T$1000="MDA1 (IVM+ALB)", COUNTRY_INFO!$T$9:$T$1000, " ") ->  | I43: 0 | M43: 0
A44: =IF(COUNTRY_INFO!A44=0," ",COUNTRY_INFO!A44) -> South Africa | B44: =IF(COUNTRY_INFO!B44=0," ",COUNTRY_INFO!B44) -> Mpumalanga | C44: =IF(COUNTRY_INFO!C44=0," ",COUNTRY_INFO!C44) -> G Sibande DM | D44: =IF(COUNTRY_INFO!$T$9:$T$1000="MDA1 (IVM+ALB)", COUNTRY_INFO!$T$9:$T$1000, " ") ->  | I44: 0 | M44: 0
A45: =IF(COUNTRY_INFO!A45=0," ",COUNTRY_INFO!A45) -> South Africa | B45: =IF(COUNTRY_INFO!B45=0," ",COUNTRY_INFO!B45) -> Mpumalanga | C45: =IF(COUNTRY_INFO!C45=0," ",COUNTRY_INFO!C45) -> Nkangala DM | D45: =IF(COUNTRY_INFO!$T$9:$T$1000="MDA1 (IVM+ALB)", COUNTRY_INFO!$T$9:$T$1000, " ") ->  | I45: 0 | M45: 0
A46: =IF(COUNTRY_INFO!A46=0," ",COUNTRY_INFO!A46) -> South Africa | B46: =IF(COUNTRY_INFO!B46=0," ",COUNTRY_INFO!B46) -> North West | C46: =IF(COUNTRY_INFO!C46=0," ",COUNTRY_INFO!C46) -> Bojanala Platinum DM | D46: =IF(COUNTRY_INFO!$T$9:$T$1000="MDA1 (IVM+ALB)", COUNTRY_INFO!$T$9:$T$1000, " ") ->  | I46: 0 | M46: 0
A47: =IF(COUNTRY_INFO!A47=0," ",COUNTRY_INFO!A47) -> South Africa | B47: =IF(COUNTRY_INFO!B47=0," ",COUNTRY_INFO!B47) -> North West | C47: =IF(COUNTRY_INFO!C47=0," ",COUNTRY_INFO!C47) -> Dr K Kaunda DM | D47: =IF(COUNTRY_INFO!$T$9:$T$1000="MDA1 (IVM+ALB)", COUNTRY_INFO!$T$9:$T$1000, " ") ->  | I47: 0 | M47: 0
A48: =IF(COUNTRY_INFO!A48=0," ",COUNTRY_INFO!A48) -> South Africa | B48: =IF(COUNTRY_INFO!B48=0," ",COUNTRY_INFO!B48) -> North West | C48: =IF(COUNTRY_INFO!C48=0," ",COUNTRY_INFO!C48) -> Ngaka Modiri Molema DM | D48: =IF(COUNTRY_INFO!$T$9:$T$1000="MDA1 (IVM+ALB)", COUNTRY_INFO!$T$9:$T$1000, " ") ->  | I48: 0 | M48: 0
A49: =IF(COUNTRY_INFO!A49=0," ",COUNTRY_INFO!A49) -> South Africa | B49: =IF(COUNTRY_INFO!B49=0," ",COUNTRY_INFO!B49) -> North West | C49: =IF(COUNTRY_INFO!C49=0," ",COUNTRY_INFO!C49) -> Ruth Segomotsi Mompati DM | D49: =IF(COUNTRY_INFO!$T$9:$T$1000="MDA1 (IVM+ALB)", COUNTRY_INFO!$T$9:$T$1000, " ") ->  | I49: 0 | M49: 0
A50: =IF(COUNTRY_INFO!A50=0," ",COUNTRY_INFO!A50) -> South Africa | B50: =IF(COUNTRY_INFO!B50=0," ",COUNTRY_INFO!B50) -> Northern Cape | C50: =IF(COUNTRY_INFO!C50=0," ",COUNTRY_INFO!C50) -> Frances Baard DM | D50: =IF(COUNTRY_INFO!$T$9:$T$1000="MDA1 (IVM+ALB)", COUNTRY_INFO!$T$9:$T$1000, " ") ->  | I50: 0 | M50: 0
A51: =IF(COUNTRY_INFO!A51=0," ",COUNTRY_INFO!A51) -> South Africa | B51: =IF(COUNTRY_INFO!B51=0," ",COUNTRY_INFO!B51) -> Northern Cape | C51: =IF(COUNTRY_INFO!C51=0," ",COUNTRY_INFO!C51) -> J T Gaetsewe DM | D51: =IF(COUNTRY_INFO!$T$9:$T$1000="MDA1 (IVM+ALB)", COUNTRY_INFO!$T$9:$T$1000, " ") ->  | I51: 0 | M51: 0
A52: =IF(COUNTRY_INFO!A52=0," ",COUNTRY_INFO!A52) -> South Africa | B52: =IF(COUNTRY_INFO!B52=0," ",COUNTRY_INFO!B52) -> Northern Cape | C52: =IF(COUNTRY_INFO!C52=0," ",COUNTRY_INFO!C52) -> Namakwa DM | D52: =IF(COUNTRY_INFO!$T$9:$T$1000="MDA1 (IVM+ALB)", COUNTRY_INFO!$T$9:$T$1000, " ") ->  | I52: 0 | M52: 0
A53: =IF(COUNTRY_INFO!A53=0," ",COUNTRY_INFO!A53) -> South Africa | B53: =IF(COUNTRY_INFO!B53=0," ",COUNTRY_INFO!B53) -> Northern Cape | C53: =IF(COUNTRY_INFO!C53=0," ",COUNTRY_INFO!C53) -> Pixley ka Seme DM | D53: =IF(COUNTRY_INFO!$T$9:$T$1000="MDA1 (IVM+ALB)", COUNTRY_INFO!$T$9:$T$1000, " ") ->  | I53: 0 | M53: 0
A54: =IF(COUNTRY_INFO!A54=0," ",COUNTRY_INFO!A54) -> South Africa | B54: =IF(COUNTRY_INFO!B54=0," ",COUNTRY_INFO!B54) -> Northern Cape | C54: =IF(COUNTRY_INFO!C54=0," ",COUNTRY_INFO!C54) -> ZF Mgcawu DM | D54: =IF(COUNTRY_INFO!$T$9:$T$1000="MDA1 (IVM+ALB)", COUNTRY_INFO!$T$9:$T$1000, " ") ->  | I54: 0 | M54: 0
A55: =IF(COUNTRY_INFO!A55=0," ",COUNTRY_INFO!A55) -> South Africa | B55: =IF(COUNTRY_INFO!B55=0," ",COUNTRY_INFO!B55) -> Western Cape | C55: =IF(COUNTRY_INFO!C55=0," ",COUNTRY_INFO!C55) -> Cape Town MM | D55: =IF(COUNTRY_INFO!$T$9:$T$1000="MDA1 (IVM+ALB)", COUNTRY_INFO!$T$9:$T$1000, " ") ->  | I55: 0 | M55: 0
A56: =IF(COUNTRY_INFO!A56=0," ",COUNTRY_INFO!A56) -> South Africa | B56: =IF(COUNTRY_INFO!B56=0," ",COUNTRY_INFO!B56) -> Western Cape | C56: =IF(COUNTRY_INFO!C56=0," ",COUNTRY_INFO!C56) -> Cape Winelands DM | D56: =IF(COUNTRY_INFO!$T$9:$T$1000="MDA1 (IVM+ALB)", COUNTRY_INFO!$T$9:$T$1000, " ") ->  | I56: 0 | M56: 0
A57: =IF(COUNTRY_INFO!A57=0," ",COUNTRY_INFO!A57) -> South Africa | B57: =IF(COUNTRY_INFO!B57=0," ",COUNTRY_INFO!B57) -> Western Cape | C57: =IF(COUNTRY_INFO!C57=0," ",COUNTRY_INFO!C57) -> Central Karoo DM | D57: =IF(COUNTRY_INFO!$T$9:$T$1000="MDA1 (IVM+ALB)", COUNTRY_INFO!$T$9:$T$1000, " ") ->  | I57: 0 | M57: 0
A58: =IF(COUNTRY_INFO!A58=0," ",COUNTRY_INFO!A58) -> South Africa | B58: =IF(COUNTRY_INFO!B58=0," ",COUNTRY_INFO!B58) -> Western Cape | C58: =IF(COUNTRY_INFO!C58=0," ",COUNTRY_INFO!C58) -> Eden DM | D58: =IF(COUNTRY_INFO!$T$9:$T$1000="MDA1 (IVM+ALB)", COUNTRY_INFO!$T$9:$T$1000, " ") ->  | I58: 0 | M58: 0
A59: =IF(COUNTRY_INFO!A59=0," ",COUNTRY_INFO!A59) -> South Africa | B59: =IF(COUNTRY_INFO!B59=0," ",COUNTRY_INFO!B59) -> Western Cape | C59: =IF(COUNTRY_INFO!C59=0," ",COUNTRY_INFO!C59) -> Overberg DM | D59: =IF(COUNTRY_INFO!$T$9:$T$1000="MDA1 (IVM+ALB)", COUNTRY_INFO!$T$9:$T$1000, " ") ->  | I59: 0 | M59: 0
A60: =IF(COUNTRY_INFO!A60=0," ",COUNTRY_INFO!A60) -> South Africa | B60: =IF(COUNTRY_INFO!B60=0," ",COUNTRY_INFO!B60) -> Western Cape | C60: =IF(COUNTRY_INFO!C60=0," ",COUNTRY_INFO!C60) -> West Coast DM | D60: =IF(COUNTRY_INFO!$T$9:$T$1000="MDA1 (IVM+ALB)", COUNTRY_INFO!$T$9:$T$1000, " ") ->  | I60: 0 | M60: 0

Sheet MDA2 (hidden)
A1: MDA 2 - Diethylcarbamazine citrate (DEC) + Albendazole (ALB)
A2: Administrative structure, population requiring PC by age group, population treated by age group and coverage
A4: TOTAL | F4: =SUM(F$9:F$1000) -> 0 | G4: =SUM(G$9:G$1000) -> 0 | H4: 0 | I4: 0 | J4: 0 | K4: 0 | L4: 0 | M4: 0 | N4: =IF(F4<>0, IF(J4/F4*100=0, "-", J4/F4*100), " ") ->  | O4: =IF(G4<>0, IF(K4/G4*100=0, "-", K4/G4*100), " ") ->  | P4: =IF(H4<>0, IF(L4/H4*100=0, "-", L4/H4*100), " ") ->  | Q4: =IF(I4<>0, IF(M4/I4*100=0, "-", M4/I4*100), " ") -> 
D6: PC implemented | E6: Date | F6: Population targeted for MDA 2 | J6: Population treated | N6: Programme coverage (%)
A7: Country | B7: Province/State | C7: District | F7: PreSAC | G7: SAC | H7: Adults | I7: Total | J7: PreSAC | K7: SAC | L7: Adults | M7: Total | N7: PreSAC | O7: SAC | P7: Adults | Q7: Total
A9: =IF(COUNTRY_INFO!A9=0," ",COUNTRY_INFO!A9) -> South Africa | B9: =IF(COUNTRY_INFO!B9=0," ",COUNTRY_INFO!B9) -> Eastern Cape | C9: =IF(COUNTRY_INFO!C9=0," ",COUNTRY_INFO!C9) -> A Nzo DM | D9: =IF(COUNTRY_INFO!$T$9:$T$1000="MDA2 (DEC+ALB)", COUNTRY_INFO!$T$9:$T$1000, " ") ->  | I9: =SUM(F9:H9) -> 0 | M9: =SUM(J9:L9) -> 0 | N9: =IF(F9<>0, IF(J9/F9*100=0, "-", J9/F9*100), " ") -> 
A10: =IF(COUNTRY_INFO!A10=0," ",COUNTRY_INFO!A10) -> South Africa | B10: =IF(COUNTRY_INFO!B10=0," ",COUNTRY_INFO!B10) -> Eastern Cape | C10: =IF(COUNTRY_INFO!C10=0," ",COUNTRY_INFO!C10) -> Amathole DM | D10: =IF(COUNTRY_INFO!$T$9:$T$1000="MDA2 (DEC+ALB)", COUNTRY_INFO!$T$9:$T$1000, " ") ->  | I10: =SUM(F10:H10) -> 0 | M10: =SUM(J10:L10) -> 0 | N10: =IF(F10<>0, IF(J10/F10*100=0, "-", J10/F10*100), " ") ->  | O10: =IF(G10<>0, IF(K10/G10*100=0, "-", K10/G10*100), " ") ->  | P10: =IF(H10<>0, IF(L10/H10*100=0, "-", L10/H10*100), " ") ->  | Q10: =IF(I10<>0, IF(M10/I10*100=0, "-", M10/I10*100), " ") -> 
A11: =IF(COUNTRY_INFO!A11=0," ",COUNTRY_INFO!A11) -> South Africa | B11: =IF(COUNTRY_INFO!B11=0," ",COUNTRY_INFO!B11) -> Eastern Cape | C11: =IF(COUNTRY_INFO!C11=0," ",COUNTRY_INFO!C11) -> Buffalo City MM | D11: =IF(COUNTRY_INFO!$T$9:$T$1000="MDA2 (DEC+ALB)", COUNTRY_INFO!$T$9:$T$1000, " ") ->  | I11: 0 | M11: 0
A12: =IF(COUNTRY_INFO!A12=0," ",COUNTRY_INFO!A12) -> South Africa | B12: =IF(COUNTRY_INFO!B12=0," ",COUNTRY_INFO!B12) -> Eastern Cape | C12: =IF(COUNTRY_INFO!C12=0," ",COUNTRY_INFO!C12) -> C Hani DM | D12: =IF(COUNTRY_INFO!$T$9:$T$1000="MDA2 (DEC+ALB)", COUNTRY_INFO!$T$9:$T$1000, " ") ->  | I12: 0 | M12: 0
A13: =IF(COUNTRY_INFO!A13=0," ",COUNTRY_INFO!A13) -> South Africa | B13: =IF(COUNTRY_INFO!B13=0," ",COUNTRY_INFO!B13) -> Eastern Cape | C13: =IF(COUNTRY_INFO!C13=0," ",COUNTRY_INFO!C13) -> Joe Gqabi DM | D13: =IF(COUNTRY_INFO!$T$9:$T$1000="MDA2 (DEC+ALB)", COUNTRY_INFO!$T$9:$T$1000, " ") ->  | I13: 0 | M13: 0
A14: =IF(COUNTRY_INFO!A14=0," ",COUNTRY_INFO!A14) -> South Africa | B14: =IF(COUNTRY_INFO!B14=0," ",COUNTRY_INFO!B14) -> Eastern Cape | C14: =IF(COUNTRY_INFO!C14=0," ",COUNTRY_INFO!C14) -> N Mandela Bay MM | D14: =IF(COUNTRY_INFO!$T$9:$T$1000="MDA2 (DEC+ALB)", COUNTRY_INFO!$T$9:$T$1000, " ") ->  | I14: 0 | M14: 0
A15: =IF(COUNTRY_INFO!A15=0," ",COUNTRY_INFO!A15) -> South Africa | B15: =IF(COUNTRY_INFO!B15=0," ",COUNTRY_INFO!B15) -> Eastern Cape | C15: =IF(COUNTRY_INFO!C15=0," ",COUNTRY_INFO!C15) -> O Tambo DM | D15: =IF(COUNTRY_INFO!$T$9:$T$1000="MDA2 (DEC+ALB)", COUNTRY_INFO!$T$9:$T$1000, " ") ->  | I15: 0 | M15: 0
A16: =IF(COUNTRY_INFO!A16=0," ",COUNTRY_INFO!A16) -> South Africa | B16: =IF(COUNTRY_INFO!B16=0," ",COUNTRY_INFO!B16) -> Eastern Cape | C16: =IF(COUNTRY_INFO!C16=0," ",COUNTRY_INFO!C16) -> Sarah Baartman DM | D16: =IF(COUNTRY_INFO!$T$9:$T$1000="MDA2 (DEC+ALB)", COUNTRY_INFO!$T$9:$T$1000, " ") ->  | I16: 0 | M16: 0
A17: =IF(COUNTRY_INFO!A17=0," ",COUNTRY_INFO!A17) -> South Africa | B17: =IF(COUNTRY_INFO!B17=0," ",COUNTRY_INFO!B17) -> Free State | C17: =IF(COUNTRY_INFO!C17=0," ",COUNTRY_INFO!C17) -> Fezile Dabi DM | D17: =IF(COUNTRY_INFO!$T$9:$T$1000="MDA2 (DEC+ALB)", COUNTRY_INFO!$T$9:$T$1000, " ") ->  | I17: 0 | M17: 0
A18: =IF(COUNTRY_INFO!A18=0," ",COUNTRY_INFO!A18) -> South Africa | B18: =IF(COUNTRY_INFO!B18=0," ",COUNTRY_INFO!B18) -> Free State | C18: =IF(COUNTRY_INFO!C18=0," ",COUNTRY_INFO!C18) -> Lejweleputswa DM | D18: =IF(COUNTRY_INFO!$T$9:$T$1000="MDA2 (DEC+ALB)", COUNTRY_INFO!$T$9:$T$1000, " ") ->  | I18: 0 | M18: 0
A19: =IF(COUNTRY_INFO!A19=0," ",COUNTRY_INFO!A19) -> South Africa | B19: =IF(COUNTRY_INFO!B19=0," ",COUNTRY_INFO!B19) -> Free State | C19: =IF(COUNTRY_INFO!C19=0," ",COUNTRY_INFO!C19) -> Mangaung MM | D19: =IF(COUNTRY_INFO!$T$9:$T$1000="MDA2 (DEC+ALB)", COUNTRY_INFO!$T$9:$T$1000, " ") ->  | I19: 0 | M19: 0
A20: =IF(COUNTRY_INFO!A20=0," ",COUNTRY_INFO!A20) -> South Africa | B20: =IF(COUNTRY_INFO!B20=0," ",COUNTRY_INFO!B20) -> Free State | C20: =IF(COUNTRY_INFO!C20=0," ",COUNTRY_INFO!C20) -> T Mofutsanyane DM | D20: =IF(COUNTRY_INFO!$T$9:$T$1000="MDA2 (DEC+ALB)", COUNTRY_INFO!$T$9:$T$1000, " ") ->  | I20: 0 | M20: 0
A21: =IF(COUNTRY_INFO!A21=0," ",COUNTRY_INFO!A21) -> South Africa | B21: =IF(COUNTRY_INFO!B21=0," ",COUNTRY_INFO!B21) -> Free State | C21: =IF(COUNTRY_INFO!C21=0," ",COUNTRY_INFO!C21) -> Xhariep DM | D21: =IF(COUNTRY_INFO!$T$9:$T$1000="MDA2 (DEC+ALB)", COUNTRY_INFO!$T$9:$T$1000, " ") ->  | I21: 0 | M21: 0
A22: =IF(COUNTRY_INFO!A22=0," ",COUNTRY_INFO!A22) -> South Africa | B22: =IF(COUNTRY_INFO!B22=0," ",COUNTRY_INFO!B22) -> Gauteng | C22: =IF(COUNTRY_INFO!C22=0," ",COUNTRY_INFO!C22) -> Ekurhuleni MM | D22: =IF(COUNTRY_INFO!$T$9:$T$1000="MDA2 (DEC+ALB)", COUNTRY_INFO!$T$9:$T$1000, " ") ->  | I22: 0 | M22: 0
A23: =IF(COUNTRY_INFO!A23=0," ",COUNTRY_INFO!A23) -> South Africa | B23: =IF(COUNTRY_INFO!B23=0," ",COUNTRY_INFO!B23) -> Gauteng | C23: =IF(COUNTRY_INFO!C23=0," ",COUNTRY_INFO!C23) -> Johannesburg MM | D23: =IF(COUNTRY_INFO!$T$9:$T$1000="MDA2 (DEC+ALB)", COUNTRY_INFO!$T$9:$T$1000, " ") ->  | I23: 0 | M23: 0
A24: =IF(COUNTRY_INFO!A24=0," ",COUNTRY_INFO!A24) -> South Africa | B24: =IF(COUNTRY_INFO!B24=0," ",COUNTRY_INFO!B24) -> Gauteng | C24: =IF(COUNTRY_INFO!C24=0," ",COUNTRY_INFO!C24) -> Sedibeng DM | D24: =IF(COUNTRY_INFO!$T$9:$T$1000="MDA2 (DEC+ALB)", COUNTRY_INFO!$T$9:$T$1000, " ") ->  | I24: 0 | M24: 0
A25: =IF(COUNTRY_INFO!A25=0," ",COUNTRY_INFO!A25) -> South Africa | B25: =IF(COUNTRY_INFO!B25=0," ",COUNTRY_INFO!B25) -> Gauteng | C25: =IF(COUNTRY_INFO!C25=0," ",COUNTRY_INFO!C25) -> Tshwane MM | D25: =IF(COUNTRY_INFO!$T$9:$T$1000="MDA2 (DEC+ALB)", COUNTRY_INFO!$T$9:$T$1000, " ") ->  | I25: 0 | M25: 0
A26: =IF(COUNTRY_INFO!A26=0," ",COUNTRY_INFO!A26) -> South Africa | B26: =IF(COUNTRY_INFO!B26=0," ",COUNTRY_INFO!B26) -> Gauteng | C26: =IF(COUNTRY_INFO!C26=0," ",COUNTRY_INFO!C26) -> West Rand DM | D26: =IF(COUNTRY_INFO!$T$9:$T$1000="MDA2 (DEC+ALB)", COUNTRY_INFO!$T$9:$T$1000, " ") ->  | I26: 0 | M26: 0
A27: =IF(COUNTRY_INFO!A27=0," ",COUNTRY_INFO!A27) -> South Africa | B27: =IF(COUNTRY_INFO!B27=0," ",COUNTRY_INFO!B27) -> KwaZulu-Natal | C27: =IF(COUNTRY_INFO!C27=0," ",COUNTRY_INFO!C27) -> Amajuba DM | D27: =IF(COUNTRY_INFO!$T$9:$T$1000="MDA2 (DEC+ALB)", COUNTRY_INFO!$T$9:$T$1000, " ") ->  | I27: 0 | M27: 0
A28: =IF(COUNTRY_INFO!A28=0," ",COUNTRY_INFO!A28) -> South Africa | B28: =IF(COUNTRY_INFO!B28=0," ",COUNTRY_INFO!B28) -> KwaZulu-Natal | C28: =IF(COUNTRY_INFO!C28=0," ",COUNTRY_INFO!C28) -> eThekwini MM | D28: =IF(COUNTRY_INFO!$T$9:$T$1000="MDA2 (DEC+ALB)", COUNTRY_INFO!$T$9:$T$1000, " ") ->  | I28: 0 | M28: 0
A29: =IF(COUNTRY_INFO!A29=0," ",COUNTRY_INFO!A29) -> South Africa | B29: =IF(COUNTRY_INFO!B29=0," ",COUNTRY_INFO!B29) -> KwaZulu-Natal | C29: =IF(COUNTRY_INFO!C29=0," ",COUNTRY_INFO!C29) -> Harry Gwala DM | D29: =IF(COUNTRY_INFO!$T$9:$T$1000="MDA2 (DEC+ALB)", COUNTRY_INFO!$T$9:$T$1000, " ") ->  | I29: 0 | M29: 0
A30: =IF(COUNTRY_INFO!A30=0," ",COUNTRY_INFO!A30) -> South Africa | B30: =IF(COUNTRY_INFO!B30=0," ",COUNTRY_INFO!B30) -> KwaZulu-Natal | C30: =IF(COUNTRY_INFO!C30=0," ",COUNTRY_INFO!C30) -> iLembe DM | D30: =IF(COUNTRY_INFO!$T$9:$T$1000="MDA2 (DEC+ALB)", COUNTRY_INFO!$T$9:$T$1000, " ") ->  | I30: 0 | M30: 0
A31: =IF(COUNTRY_INFO!A31=0," ",COUNTRY_INFO!A31) -> South Africa | B31: =IF(COUNTRY_INFO!B31=0," ",COUNTRY_INFO!B31) -> KwaZulu-Natal | C31: =IF(COUNTRY_INFO!C31=0," ",COUNTRY_INFO!C31) -> Ugu DM | D31: =IF(COUNTRY_INFO!$T$9:$T$1000="MDA2 (DEC+ALB)", COUNTRY_INFO!$T$9:$T$1000, " ") ->  | I31: 0 | M31: 0
A32: =IF(COUNTRY_INFO!A32=0," ",COUNTRY_INFO!A32) -> South Africa | B32: =IF(COUNTRY_INFO!B32=0," ",COUNTRY_INFO!B32) -> KwaZulu-Natal | C32: =IF(COUNTRY_INFO!C32=0," ",COUNTRY_INFO!C32) -> uMgungundlovu DM | D32: =IF(COUNTRY_INFO!$T$9:$T$1000="MDA2 (DEC+ALB)", COUNTRY_INFO!$T$9:$T$1000, " ") ->  | I32: 0 | M32: 0
A33: =IF(COUNTRY_INFO!A33=0," ",COUNTRY_INFO!A33) -> South Africa | B33: =IF(COUNTRY_INFO!B33=0," ",COUNTRY_INFO!B33) -> KwaZulu-Natal | C33: =IF(COUNTRY_INFO!C33=0," ",COUNTRY_INFO!C33) -> Umkhanyakude DM | D33: =IF(COUNTRY_INFO!$T$9:$T$1000="MDA2 (DEC+ALB)", COUNTRY_INFO!$T$9:$T$1000, " ") ->  | I33: 0 | M33: 0
A34: =IF(COUNTRY_INFO!A34=0," ",COUNTRY_INFO!A34) -> South Africa | B34: =IF(COUNTRY_INFO!B34=0," ",COUNTRY_INFO!B34) -> KwaZulu-Natal | C34: =IF(COUNTRY_INFO!C34=0," ",COUNTRY_INFO!C34) -> Umzinyathi DM | D34: =IF(COUNTRY_INFO!$T$9:$T$1000="MDA2 (DEC+ALB)", COUNTRY_INFO!$T$9:$T$1000, " ") ->  | I34: 0 | M34: 0
A35: =IF(COUNTRY_INFO!A35=0," ",COUNTRY_INFO!A35) -> South Africa | B35: =IF(COUNTRY_INFO!B35=0," ",COUNTRY_INFO!B35) -> KwaZulu-Natal | C35: =IF(COUNTRY_INFO!C35=0," ",COUNTRY_INFO!C35) -> Uthukela DM | D35: =IF(COUNTRY_INFO!$T$9:$T$1000="MDA2 (DEC+ALB)", COUNTRY_INFO!$T$9:$T$1000, " ") ->  | I35: 0 | M35: 0
A36: =IF(COUNTRY_INFO!A36=0," ",COUNTRY_INFO!A36) -> South Africa | B36: =IF(COUNTRY_INFO!B36=0," ",COUNTRY_INFO!B36) -> KwaZulu-Natal | C36: =IF(COUNTRY_INFO!C36=0," ",COUNTRY_INFO!C36) -> Uthungulu DM | D36: =IF(COUNTRY_INFO!$T$9:$T$1000="MDA2 (DEC+ALB)", COUNTRY_INFO!$T$9:$T$1000, " ") ->  | I36: 0 | M36: 0
A37: =IF(COUNTRY_INFO!A37=0," ",COUNTRY_INFO!A37) -> South Africa | B37: =IF(COUNTRY_INFO!B37=0," ",COUNTRY_INFO!B37) -> KwaZulu-Natal | C37: =IF(COUNTRY_INFO!C37=0," ",COUNTRY_INFO!C37) -> Zululand DM | D37: =IF(COUNTRY_INFO!$T$9:$T$1000="MDA2 (DEC+ALB)", COUNTRY_INFO!$T$9:$T$1000, " ") ->  | I37: 0 | M37: 0
A38: =IF(COUNTRY_INFO!A38=0," ",COUNTRY_INFO!A38) -> South Africa | B38: =IF(COUNTRY_INFO!B38=0," ",COUNTRY_INFO!B38) -> Limpopo | C38: =IF(COUNTRY_INFO!C38=0," ",COUNTRY_INFO!C38) -> Capricorn DM | D38: =IF(COUNTRY_INFO!$T$9:$T$1000="MDA2 (DEC+ALB)", COUNTRY_INFO!$T$9:$T$1000, " ") ->  | I38: 0 | M38: 0
A39: =IF(COUNTRY_INFO!A39=0," ",COUNTRY_INFO!A39) -> South Africa | B39: =IF(COUNTRY_INFO!B39=0," ",COUNTRY_INFO!B39) -> Limpopo | C39: =IF(COUNTRY_INFO!C39=0," ",COUNTRY_INFO!C39) -> Mopani DM | D39: =IF(COUNTRY_INFO!$T$9:$T$1000="MDA2 (DEC+ALB)", COUNTRY_INFO!$T$9:$T$1000, " ") ->  | I39: 0 | M39: 0
A40: =IF(COUNTRY_INFO!A40=0," ",COUNTRY_INFO!A40) -> South Africa | B40: =IF(COUNTRY_INFO!B40=0," ",COUNTRY_INFO!B40) -> Limpopo | C40: =IF(COUNTRY_INFO!C40=0," ",COUNTRY_INFO!C40) -> Sekhukhune DM | D40: =IF(COUNTRY_INFO!$T$9:$T$1000="MDA2 (DEC+ALB)", COUNTRY_INFO!$T$9:$T$1000, " ") ->  | I40: 0 | M40: 0
A41: =IF(COUNTRY_INFO!A41=0," ",COUNTRY_INFO!A41) -> South Africa | B41: =IF(COUNTRY_INFO!B41=0," ",COUNTRY_INFO!B41) -> Limpopo | C41: =IF(COUNTRY_INFO!C41=0," ",COUNTRY_INFO!C41) -> Vhembe DM | D41: =IF(COUNTRY_INFO!$T$9:$T$1000="MDA2 (DEC+ALB)", COUNTRY_INFO!$T$9:$T$1000, " ") ->  | I41: 0 | M41: 0
A42: =IF(COUNTRY_INFO!A42=0," ",COUNTRY_INFO!A42) -> South Africa | B42: =IF(COUNTRY_INFO!B42=0," ",COUNTRY_INFO!B42) -> Limpopo | C42: =IF(COUNTRY_INFO!C42=0," ",COUNTRY_INFO!C42) -> Waterberg DM | D42: =IF(COUNTRY_INFO!$T$9:$T$1000="MDA2 (DEC+ALB)", COUNTRY_INFO!$T$9:$T$1000, " ") ->  | I42: 0 | M42: 0
A43: =IF(COUNTRY_INFO!A43=0," ",COUNTRY_INFO!A43) -> South Africa | B43: =IF(COUNTRY_INFO!B43=0," ",COUNTRY_INFO!B43) -> Mpumalanga | C43: =IF(COUNTRY_INFO!C43=0," ",COUNTRY_INFO!C43) -> Ehlanzeni DM | D43: =IF(COUNTRY_INFO!$T$9:$T$1000="MDA2 (DEC+ALB)", COUNTRY_INFO!$T$9:$T$1000, " ") ->  | I43: 0 | M43: 0
A44: =IF(COUNTRY_INFO!A44=0," ",COUNTRY_INFO!A44) -> South Africa | B44: =IF(COUNTRY_INFO!B44=0," ",COUNTRY_INFO!B44) -> Mpumalanga | C44: =IF(COUNTRY_INFO!C44=0," ",COUNTRY_INFO!C44) -> G Sibande DM | D44: =IF(COUNTRY_INFO!$T$9:$T$1000="MDA2 (DEC+ALB)", COUNTRY_INFO!$T$9:$T$1000, " ") ->  | I44: 0 | M44: 0
A45: =IF(COUNTRY_INFO!A45=0," ",COUNTRY_INFO!A45) -> South Africa | B45: =IF(COUNTRY_INFO!B45=0," ",COUNTRY_INFO!B45) -> Mpumalanga | C45: =IF(COUNTRY_INFO!C45=0," ",COUNTRY_INFO!C45) -> Nkangala DM | D45: =IF(COUNTRY_INFO!$T$9:$T$1000="MDA2 (DEC+ALB)", COUNTRY_INFO!$T$9:$T$1000, " ") ->  | I45: 0 | M45: 0
A46: =IF(COUNTRY_INFO!A46=0," ",COUNTRY_INFO!A46) -> South Africa | B46: =IF(COUNTRY_INFO!B46=0," ",COUNTRY_INFO!B46) -> North West | C46: =IF(COUNTRY_INFO!C46=0," ",COUNTRY_INFO!C46) -> Bojanala Platinum DM | D46: =IF(COUNTRY_INFO!$T$9:$T$1000="MDA2 (DEC+ALB)", COUNTRY_INFO!$T$9:$T$1000, " ") ->  | I46: 0 | M46: 0
A47: =IF(COUNTRY_INFO!A47=0," ",COUNTRY_INFO!A47) -> South Africa | B47: =IF(COUNTRY_INFO!B47=0," ",COUNTRY_INFO!B47) -> North West | C47: =IF(COUNTRY_INFO!C47=0," ",COUNTRY_INFO!C47) -> Dr K Kaunda DM | D47: =IF(COUNTRY_INFO!$T$9:$T$1000="MDA2 (DEC+ALB)", COUNTRY_INFO!$T$9:$T$1000, " ") ->  | I47: 0 | M47: 0
A48: =IF(COUNTRY_INFO!A48=0," ",COUNTRY_INFO!A48) -> South Africa | B48: =IF(COUNTRY_INFO!B48=0," ",COUNTRY_INFO!B48) -> North West | C48: =IF(COUNTRY_INFO!C48=0," ",COUNTRY_INFO!C48) -> Ngaka Modiri Molema DM | D48: =IF(COUNTRY_INFO!$T$9:$T$1000="MDA2 (DEC+ALB)", COUNTRY_INFO!$T$9:$T$1000, " ") ->  | I48: 0 | M48: 0
A49: =IF(COUNTRY_INFO!A49=0," ",COUNTRY_INFO!A49) -> South Africa | B49: =IF(COUNTRY_INFO!B49=0," ",COUNTRY_INFO!B49) -> North West | C49: =IF(COUNTRY_INFO!C49=0," ",COUNTRY_INFO!C49) -> Ruth Segomotsi Mompati DM | D49: =IF(COUNTRY_INFO!$T$9:$T$1000="MDA2 (DEC+ALB)", COUNTRY_INFO!$T$9:$T$1000, " ") ->  | I49: 0 | M49: 0
A50: =IF(COUNTRY_INFO!A50=0," ",COUNTRY_INFO!A50) -> South Africa | B50: =IF(COUNTRY_INFO!B50=0," ",COUNTRY_INFO!B50) -> Northern Cape | C50: =IF(COUNTRY_INFO!C50=0," ",COUNTRY_INFO!C50) -> Frances Baard DM | D50: =IF(COUNTRY_INFO!$T$9:$T$1000="MDA2 (DEC+ALB)", COUNTRY_INFO!$T$9:$T$1000, " ") ->  | I50: 0 | M50: 0
A51: =IF(COUNTRY_INFO!A51=0," ",COUNTRY_INFO!A51) -> South Africa | B51: =IF(COUNTRY_INFO!B51=0," ",COUNTRY_INFO!B51) -> Northern Cape | C51: =IF(COUNTRY_INFO!C51=0," ",COUNTRY_INFO!C51) -> J T Gaetsewe DM | D51: =IF(COUNTRY_INFO!$T$9:$T$1000="MDA2 (DEC+ALB)", COUNTRY_INFO!$T$9:$T$1000, " ") ->  | I51: 0 | M51: 0
A52: =IF(COUNTRY_INFO!A52=0," ",COUNTRY_INFO!A52) -> South Africa | B52: =IF(COUNTRY_INFO!B52=0," ",COUNTRY_INFO!B52) -> Northern Cape | C52: =IF(COUNTRY_INFO!C52=0," ",COUNTRY_INFO!C52) -> Namakwa DM | D52: =IF(COUNTRY_INFO!$T$9:$T$1000="MDA2 (DEC+ALB)", COUNTRY_INFO!$T$9:$T$1000, " ") ->  | I52: 0 | M52: 0
A53: =IF(COUNTRY_INFO!A53=0," ",COUNTRY_INFO!A53) -> South Africa | B53: =IF(COUNTRY_INFO!B53=0," ",COUNTRY_INFO!B53) -> Northern Cape | C53: =IF(COUNTRY_INFO!C53=0," ",COUNTRY_INFO!C53) -> Pixley ka Seme DM | D53: =IF(COUNTRY_INFO!$T$9:$T$1000="MDA2 (DEC+ALB)", COUNTRY_INFO!$T$9:$T$1000, " ") ->  | I53: 0 | M53: 0
A54: =IF(COUNTRY_INFO!A54=0," ",COUNTRY_INFO!A54) -> South Africa | B54: =IF(COUNTRY_INFO!B54=0," ",COUNTRY_INFO!B54) -> Northern Cape | C54: =IF(COUNTRY_INFO!C54=0," ",COUNTRY_INFO!C54) -> ZF Mgcawu DM | D54: =IF(COUNTRY_INFO!$T$9:$T$1000="MDA2 (DEC+ALB)", COUNTRY_INFO!$T$9:$T$1000, " ") ->  | I54: 0 | M54: 0
A55: =IF(COUNTRY_INFO!A55=0," ",COUNTRY_INFO!A55) -> South Africa | B55: =IF(COUNTRY_INFO!B55=0," ",COUNTRY_INFO!B55) -> Western Cape | C55: =IF(COUNTRY_INFO!C55=0," ",COUNTRY_INFO!C55) -> Cape Town MM | D55: =IF(COUNTRY_INFO!$T$9:$T$1000="MDA2 (DEC+ALB)", COUNTRY_INFO!$T$9:$T$1000, " ") ->  | I55: 0 | M55: 0
A56: =IF(COUNTRY_INFO!A56=0," ",COUNTRY_INFO!A56) -> South Africa | B56: =IF(COUNTRY_INFO!B56=0," ",COUNTRY_INFO!B56) -> Western Cape | C56: =IF(COUNTRY_INFO!C56=0," ",COUNTRY_INFO!C56) -> Cape Winelands DM | D56: =IF(COUNTRY_INFO!$T$9:$T$1000="MDA2 (DEC+ALB)", COUNTRY_INFO!$T$9:$T$1000, " ") ->  | I56: 0 | M56: 0
A57: =IF(COUNTRY_INFO!A57=0," ",COUNTRY_INFO!A57) -> South Africa | B57: =IF(COUNTRY_INFO!B57=0," ",COUNTRY_INFO!B57) -> Western Cape | C57: =IF(COUNTRY_INFO!C57=0," ",COUNTRY_INFO!C57) -> Central Karoo DM | D57: =IF(COUNTRY_INFO!$T$9:$T$1000="MDA2 (DEC+ALB)", COUNTRY_INFO!$T$9:$T$1000, " ") ->  | I57: 0 | M57: 0
A58: =IF(COUNTRY_INFO!A58=0," ",COUNTRY_INFO!A58) -> South Africa | B58: =IF(COUNTRY_INFO!B58=0," ",COUNTRY_INFO!B58) -> Western Cape | C58: =IF(COUNTRY_INFO!C58=0," ",COUNTRY_INFO!C58) -> Eden DM | D58: =IF(COUNTRY_INFO!$T$9:$T$1000="MDA2 (DEC+ALB)", COUNTRY_INFO!$T$9:$T$1000, " ") ->  | I58: 0 | M58: 0
A59: =IF(COUNTRY_INFO!A59=0," ",COUNTRY_INFO!A59) -> South Africa | B59: =IF(COUNTRY_INFO!B59=0," ",COUNTRY_INFO!B59) -> Western Cape | C59: =IF(COUNTRY_INFO!C59=0," ",COUNTRY_INFO!C59) -> Overberg DM | D59: =IF(COUNTRY_INFO!$T$9:$T$1000="MDA2 (DEC+ALB)", COUNTRY_INFO!$T$9:$T$1000, " ") ->  | I59: 0 | M59: 0
A60: =IF(COUNTRY_INFO!A60=0," ",COUNTRY_INFO!A60) -> South Africa | B60: =IF(COUNTRY_INFO!B60=0," ",COUNTRY_INFO!B60) -> Western Cape | C60: =IF(COUNTRY_INFO!C60=0," ",COUNTRY_INFO!C60) -> West Coast DM | D60: =IF(COUNTRY_INFO!$T$9:$T$1000="MDA2 (DEC+ALB)", COUNTRY_INFO!$T$9:$T$1000, " ") ->  | I60: 0 | M60: 0

Sheet MDA3 (hidden)
A1: MDA 3 - Ivermectin (IVM)
A2: Administrative structure, population requiring PC by age group, population treated by age group and coverage
A4: TOTAL | F4: =SUM(F$9:F$1000) -> 0 | G4: 0 | H4: 0 | I4: 0 | J4: 0 | K4: 0 | L4: 0 | M4: 0 | N4: 0 | O4: 0 | P4: 0 | Q4: 0 | R4: =IF(F4<>0, IF(O4/F4*100=0, "-", O4/F4*100), " ") ->  | S4: =IF(G4<>0, IF(P4/G4*100=0, "-", P4/G4*100), " ") ->  | T4: =IF(H4<>0, IF(Q4/H4*100=0, "-", Q4/H4*100), " ") -> 
D6: PC implemented | E6: Date | F6: Population targeted for MDA 3 | I6: Population treated - 1st round | L6: Population treated - 2nd round | O6: Population treated | R6: Programme coverage (%)
A7: Country | B7: Province/State | C7: District | F7: SAC | G7: Adults | H7: Total | I7: SAC | J7: Adults | K7: Total | L7: SAC | M7: Adults | N7: Total | O7: SAC | P7: Adults | Q7: Total | R7: SAC | S7: Adults | T7: Total
A9: =IF(COUNTRY_INFO!A9=0," ",COUNTRY_INFO!A9) -> South Africa | B9: =IF(COUNTRY_INFO!B9=0," ",COUNTRY_INFO!B9) -> Eastern Cape | C9: =IF(COUNTRY_INFO!C9=0," ",COUNTRY_INFO!C9) -> A Nzo DM | D9: =IF(COUNTRY_INFO!$T$9:$T$1000="MDA3 (IVM)", COUNTRY_INFO!$T$9:$T$1000, " ") ->  | H9: =SUM(F9:G9) -> 0 | K9: =SUM(I9:J9) -> 0 | N9: =SUM(L9:M9) -> 0 | O9: =MAX(I9,L9) -> 0 | P9: 0 | Q9: =SUM(O9:P9) -> 0 | R9: =IF(F9<>0, IF(MAX(I9,L9)/F9*100=0, "-", MAX(I9,L9)/F9*100), " ") ->  | T9: =IF(H9<>0, IF((MAX(I9,L9)+MAX(J9,M9))/H9*100=0, "-",(MAX(I9,L9)+MAX(J9,M9))/H9*100), " ") -> 
A10: =IF(COUNTRY_INFO!A10=0," ",COUNTRY_INFO!A10) -> South Africa | B10: =IF(COUNTRY_INFO!B10=0," ",COUNTRY_INFO!B10) -> Eastern Cape | C10: =IF(COUNTRY_INFO!C10=0," ",COUNTRY_INFO!C10) -> Amathole DM | D10: =IF(COUNTRY_INFO!$T$9:$T$1000="MDA3 (IVM)", COUNTRY_INFO!$T$9:$T$1000, " ") ->  | H10: =SUM(F10:G10) -> 0 | K10: =SUM(I10:J10) -> 0 | N10: =SUM(L10:M10) -> 0 | O10: =MAX(I10,L10) -> 0 | P10: =MAX(J10,M10) -> 0 | Q10: =SUM(O10:P10) -> 0 | R10: =IF(F10<>0, IF(MAX(I10,L10)/F10*100=0, "-", MAX(I10,L10)/F10*100), " ") ->  | S10: =IF(G10<>0, IF(MAX(J10,M10)/G10*100=0, "-", MAX(J10,M10)/G10*100), " ") ->  | T10: =IF(H10<>0, IF((MAX(I10,L10)+MAX(J10,M10))/H10*100=0, "-",(MAX(I10,L10)+MAX(J10,M10))/H10*100), " ") -> 
A11: =IF(COUNTRY_INFO!A11=0," ",COUNTRY_INFO!A11) -> South Africa | B11: =IF(COUNTRY_INFO!B11=0," ",COUNTRY_INFO!B11) -> Eastern Cape | C11: =IF(COUNTRY_INFO!C11=0," ",COUNTRY_INFO!C11) -> Buffalo City MM | D11: =IF(COUNTRY_INFO!$T$9:$T$1000="MDA3 (IVM)", COUNTRY_INFO!$T$9:$T$1000, " ") ->  | H11: 0 | K11: 0 | N11: 0 | O11: 0 | P11: 0 | Q11: 0
A12: =IF(COUNTRY_INFO!A12=0," ",COUNTRY_INFO!A12) -> South Africa | B12: =IF(COUNTRY_INFO!B12=0," ",COUNTRY_INFO!B12) -> Eastern Cape | C12: =IF(COUNTRY_INFO!C12=0," ",COUNTRY_INFO!C12) -> C Hani DM | D12: =IF(COUNTRY_INFO!$T$9:$T$1000="MDA3 (IVM)", COUNTRY_INFO!$T$9:$T$1000, " ") ->  | H12: 0 | K12: 0 | N12: 0 | O12: 0 | P12: 0 | Q12: 0
A13: =IF(COUNTRY_INFO!A13=0," ",COUNTRY_INFO!A13) -> South Africa | B13: =IF(COUNTRY_INFO!B13=0," ",COUNTRY_INFO!B13) -> Eastern Cape | C13: =IF(COUNTRY_INFO!C13=0," ",COUNTRY_INFO!C13) -> Joe Gqabi DM | D13: =IF(COUNTRY_INFO!$T$9:$T$1000="MDA3 (IVM)", COUNTRY_INFO!$T$9:$T$1000, " ") ->  | H13: 0 | K13: 0 | N13: 0 | O13: 0 | P13: 0 | Q13: 0
A14: =IF(COUNTRY_INFO!A14=0," ",COUNTRY_INFO!A14) -> South Africa | B14: =IF(COUNTRY_INFO!B14=0," ",COUNTRY_INFO!B14) -> Eastern Cape | C14: =IF(COUNTRY_INFO!C14=0," ",COUNTRY_INFO!C14) -> N Mandela Bay MM | D14: =IF(COUNTRY_INFO!$T$9:$T$1000="MDA3 (IVM)", COUNTRY_INFO!$T$9:$T$1000, " ") ->  | H14: 0 | K14: 0 | N14: 0 | O14: 0 | P14: 0 | Q14: 0
A15: =IF(COUNTRY_INFO!A15=0," ",COUNTRY_INFO!A15) -> South Africa | B15: =IF(COUNTRY_INFO!B15=0," ",COUNTRY_INFO!B15) -> Eastern Cape | C15: =IF(COUNTRY_INFO!C15=0," ",COUNTRY_INFO!C15) -> O Tambo DM | D15: =IF(COUNTRY_INFO!$T$9:$T$1000="MDA3 (IVM)", COUNTRY_INFO!$T$9:$T$1000, " ") ->  | H15: 0 | K15: 0 | N15: 0 | O15: 0 | P15: 0 | Q15: 0
A16: =IF(COUNTRY_INFO!A16=0," ",COUNTRY_INFO!A16) -> South Africa | B16: =IF(COUNTRY_INFO!B16=0," ",COUNTRY_INFO!B16) -> Eastern Cape | C16: =IF(COUNTRY_INFO!C16=0," ",COUNTRY_INFO!C16) -> Sarah Baartman DM | D16: =IF(COUNTRY_INFO!$T$9:$T$1000="MDA3 (IVM)", COUNTRY_INFO!$T$9:$T$1000, " ") ->  | H16: 0 | K16: 0 | N16: 0 | O16: 0 | P16: 0 | Q16: 0
A17: =IF(COUNTRY_INFO!A17=0," ",COUNTRY_INFO!A17) -> South Africa | B17: =IF(COUNTRY_INFO!B17=0," ",COUNTRY_INFO!B17) -> Free State | C17: =IF(COUNTRY_INFO!C17=0," ",COUNTRY_INFO!C17) -> Fezile Dabi DM | D17: =IF(COUNTRY_INFO!$T$9:$T$1000="MDA3 (IVM)", COUNTRY_INFO!$T$9:$T$1000, " ") ->  | H17: 0 | K17: 0 | N17: 0 | O17: 0 | P17: 0 | Q17: 0
A18: =IF(COUNTRY_INFO!A18=0," ",COUNTRY_INFO!A18) -> South Africa | B18: =IF(COUNTRY_INFO!B18=0," ",COUNTRY_INFO!B18) -> Free State | C18: =IF(COUNTRY_INFO!C18=0," ",COUNTRY_INFO!C18) -> Lejweleputswa DM | D18: =IF(COUNTRY_INFO!$T$9:$T$1000="MDA3 (IVM)", COUNTRY_INFO!$T$9:$T$1000, " ") ->  | H18: 0 | K18: 0 | N18: 0 | O18: 0 | P18: 0 | Q18: 0
A19: =IF(COUNTRY_INFO!A19=0," ",COUNTRY_INFO!A19) -> South Africa | B19: =IF(COUNTRY_INFO!B19=0," ",COUNTRY_INFO!B19) -> Free State | C19: =IF(COUNTRY_INFO!C19=0," ",COUNTRY_INFO!C19) -> Mangaung MM | D19: =IF(COUNTRY_INFO!$T$9:$T$1000="MDA3 (IVM)", COUNTRY_INFO!$T$9:$T$1000, " ") ->  | H19: 0 | K19: 0 | N19: 0 | O19: 0 | P19: 0 | Q19: 0
A20: =IF(COUNTRY_INFO!A20=0," ",COUNTRY_INFO!A20) -> South Africa | B20: =IF(COUNTRY_INFO!B20=0," ",COUNTRY_INFO!B20) -> Free State | C20: =IF(COUNTRY_INFO!C20=0," ",COUNTRY_INFO!C20) -> T Mofutsanyane DM | D20: =IF(COUNTRY_INFO!$T$9:$T$1000="MDA3 (IVM)", COUNTRY_INFO!$T$9:$T$1000, " ") ->  | H20: 0 | K20: 0 | N20: 0 | O20: 0 | P20: 0 | Q20: 0
A21: =IF(COUNTRY_INFO!A21=0," ",COUNTRY_INFO!A21) -> South Africa | B21: =IF(COUNTRY_INFO!B21=0," ",COUNTRY_INFO!B21) -> Free State | C21: =IF(COUNTRY_INFO!C21=0," ",COUNTRY_INFO!C21) -> Xhariep DM | D21: =IF(COUNTRY_INFO!$T$9:$T$1000="MDA3 (IVM)", COUNTRY_INFO!$T$9:$T$1000, " ") ->  | H21: 0 | K21: 0 | N21: 0 | O21: 0 | P21: 0 | Q21: 0
A22: =IF(COUNTRY_INFO!A22=0," ",COUNTRY_INFO!A22) -> South Africa | B22: =IF(COUNTRY_INFO!B22=0," ",COUNTRY_INFO!B22) -> Gauteng | C22: =IF(COUNTRY_INFO!C22=0," ",COUNTRY_INFO!C22) -> Ekurhuleni MM | D22: =IF(COUNTRY_INFO!$T$9:$T$1000="MDA3 (IVM)", COUNTRY_INFO!$T$9:$T$1000, " ") ->  | H22: 0 | K22: 0 | N22: 0 | O22: 0 | P22: 0 | Q22: 0
A23: =IF(COUNTRY_INFO!A23=0," ",COUNTRY_INFO!A23) -> South Africa | B23: =IF(COUNTRY_INFO!B23=0," ",COUNTRY_INFO!B23) -> Gauteng | C23: =IF(COUNTRY_INFO!C23=0," ",COUNTRY_INFO!C23) -> Johannesburg MM | D23: =IF(COUNTRY_INFO!$T$9:$T$1000="MDA3 (IVM)", COUNTRY_INFO!$T$9:$T$1000, " ") ->  | H23: 0 | K23: 0 | N23: 0 | O23: 0 | P23: 0 | Q23: 0
A24: =IF(COUNTRY_INFO!A24=0," ",COUNTRY_INFO!A24) -> South Africa | B24: =IF(COUNTRY_INFO!B24=0," ",COUNTRY_INFO!B24) -> Gauteng | C24: =IF(COUNTRY_INFO!C24=0," ",COUNTRY_INFO!C24) -> Sedibeng DM | D24: =IF(COUNTRY_INFO!$T$9:$T$1000="MDA3 (IVM)", COUNTRY_INFO!$T$9:$T$1000, " ") ->  | H24: 0 | K24: 0 | N24: 0 | O24: 0 | P24: 0 | Q24: 0
A25: =IF(COUNTRY_INFO!A25=0," ",COUNTRY_INFO!A25) -> South Africa | B25: =IF(COUNTRY_INFO!B25=0," ",COUNTRY_INFO!B25) -> Gauteng | C25: =IF(COUNTRY_INFO!C25=0," ",COUNTRY_INFO!C25) -> Tshwane MM | D25: =IF(COUNTRY_INFO!$T$9:$T$1000="MDA3 (IVM)", COUNTRY_INFO!$T$9:$T$1000, " ") ->  | H25: 0 | K25: 0 | N25: 0 | O25: 0 | P25: 0 | Q25: 0
A26: =IF(COUNTRY_INFO!A26=0," ",COUNTRY_INFO!A26) -> South Africa | B26: =IF(COUNTRY_INFO!B26=0," ",COUNTRY_INFO!B26) -> Gauteng | C26: =IF(COUNTRY_INFO!C26=0," ",COUNTRY_INFO!C26) -> West Rand DM | D26: =IF(COUNTRY_INFO!$T$9:$T$1000="MDA3 (IVM)", COUNTRY_INFO!$T$9:$T$1000, " ") ->  | H26: 0 | K26: 0 | N26: 0 | O26: 0 | P26: 0 | Q26: 0
A27: =IF(COUNTRY_INFO!A27=0," ",COUNTRY_INFO!A27) -> South Africa | B27: =IF(COUNTRY_INFO!B27=0," ",COUNTRY_INFO!B27) -> KwaZulu-Natal | C27: =IF(COUNTRY_INFO!C27=0," ",COUNTRY_INFO!C27) -> Amajuba DM | D27: =IF(COUNTRY_INFO!$T$9:$T$1000="MDA3 (IVM)", COUNTRY_INFO!$T$9:$T$1000, " ") ->  | H27: 0 | K27: 0 | N27: 0 | O27: 0 | P27: 0 | Q27: 0
A28: =IF(COUNTRY_INFO!A28=0," ",COUNTRY_INFO!A28) -> South Africa | B28: =IF(COUNTRY_INFO!B28=0," ",COUNTRY_INFO!B28) -> KwaZulu-Natal | C28: =IF(COUNTRY_INFO!C28=0," ",COUNTRY_INFO!C28) -> eThekwini MM | D28: =IF(COUNTRY_INFO!$T$9:$T$1000="MDA3 (IVM)", COUNTRY_INFO!$T$9:$T$1000, " ") ->  | H28: 0 | K28: 0 | N28: 0 | O28: 0 | P28: 0 | Q28: 0
A29: =IF(COUNTRY_INFO!A29=0," ",COUNTRY_INFO!A29) -> South Africa | B29: =IF(COUNTRY_INFO!B29=0," ",COUNTRY_INFO!B29) -> KwaZulu-Natal | C29: =IF(COUNTRY_INFO!C29=0," ",COUNTRY_INFO!C29) -> Harry Gwala DM | D29: =IF(COUNTRY_INFO!$T$9:$T$1000="MDA3 (IVM)", COUNTRY_INFO!$T$9:$T$1000, " ") ->  | H29: 0 | K29: 0 | N29: 0 | O29: 0 | P29: 0 | Q29: 0
A30: =IF(COUNTRY_INFO!A30=0," ",COUNTRY_INFO!A30) -> South Africa | B30: =IF(COUNTRY_INFO!B30=0," ",COUNTRY_INFO!B30) -> KwaZulu-Natal | C30: =IF(COUNTRY_INFO!C30=0," ",COUNTRY_INFO!C30) -> iLembe DM | D30: =IF(COUNTRY_INFO!$T$9:$T$1000="MDA3 (IVM)", COUNTRY_INFO!$T$9:$T$1000, " ") ->  | H30: 0 | K30: 0 | N30: 0 | O30: 0 | P30: 0 | Q30: 0
A31: =IF(COUNTRY_INFO!A31=0," ",COUNTRY_INFO!A31) -> South Africa | B31: =IF(COUNTRY_INFO!B31=0," ",COUNTRY_INFO!B31) -> KwaZulu-Natal | C31: =IF(COUNTRY_INFO!C31=0," ",COUNTRY_INFO!C31) -> Ugu DM | D31: =IF(COUNTRY_INFO!$T$9:$T$1000="MDA3 (IVM)", COUNTRY_INFO!$T$9:$T$1000, " ") ->  | H31: 0 | K31: 0 | N31: 0 | O31: 0 | P31: 0 | Q31: 0
A32: =IF(COUNTRY_INFO!A32=0," ",COUNTRY_INFO!A32) -> South Africa | B32: =IF(COUNTRY_INFO!B32=0," ",COUNTRY_INFO!B32) -> KwaZulu-Natal | C32: =IF(COUNTRY_INFO!C32=0," ",COUNTRY_INFO!C32) -> uMgungundlovu DM | D32: =IF(COUNTRY_INFO!$T$9:$T$1000="MDA3 (IVM)", COUNTRY_INFO!$T$9:$T$1000, " ") ->  | H32: 0 | K32: 0 | N32: 0 | O32: 0 | P32: 0 | Q32: 0
A33: =IF(COUNTRY_INFO!A33=0," ",COUNTRY_INFO!A33) -> South Africa | B33: =IF(COUNTRY_INFO!B33=0," ",COUNTRY_INFO!B33) -> KwaZulu-Natal | C33: =IF(COUNTRY_INFO!C33=0," ",COUNTRY_INFO!C33) -> Umkhanyakude DM | D33: =IF(COUNTRY_INFO!$T$9:$T$1000="MDA3 (IVM)", COUNTRY_INFO!$T$9:$T$1000, " ") ->  | H33: 0 | K33: 0 | N33: 0 | O33: 0 | P33: 0 | Q33: 0
A34: =IF(COUNTRY_INFO!A34=0," ",COUNTRY_INFO!A34) -> South Africa | B34: =IF(COUNTRY_INFO!B34=0," ",COUNTRY_INFO!B34) -> KwaZulu-Natal | C34: =IF(COUNTRY_INFO!C34=0," ",COUNTRY_INFO!C34) -> Umzinyathi DM | D34: =IF(COUNTRY_INFO!$T$9:$T$1000="MDA3 (IVM)", COUNTRY_INFO!$T$9:$T$1000, " ") ->  | H34: 0 | K34: 0 | N34: 0 | O34: 0 | P34: 0 | Q34: 0
A35: =IF(COUNTRY_INFO!A35=0," ",COUNTRY_INFO!A35) -> South Africa | B35: =IF(COUNTRY_INFO!B35=0," ",COUNTRY_INFO!B35) -> KwaZulu-Natal | C35: =IF(COUNTRY_INFO!C35=0," ",COUNTRY_INFO!C35) -> Uthukela DM | D35: =IF(COUNTRY_INFO!$T$9:$T$1000="MDA3 (IVM)", COUNTRY_INFO!$T$9:$T$1000, " ") ->  | H35: 0 | K35: 0 | N35: 0 | O35: 0 | P35: 0 | Q35: 0
A36: =IF(COUNTRY_INFO!A36=0," ",COUNTRY_INFO!A36) -> South Africa | B36: =IF(COUNTRY_INFO!B36=0," ",COUNTRY_INFO!B36) -> KwaZulu-Natal | C36: =IF(COUNTRY_INFO!C36=0," ",COUNTRY_INFO!C36) -> Uthungulu DM | D36: =IF(COUNTRY_INFO!$T$9:$T$1000="MDA3 (IVM)", COUNTRY_INFO!$T$9:$T$1000, " ") ->  | H36: 0 | K36: 0 | N36: 0 | O36: 0 | P36: 0 | Q36: 0
A37: =IF(COUNTRY_INFO!A37=0," ",COUNTRY_INFO!A37) -> South Africa | B37: =IF(COUNTRY_INFO!B37=0," ",COUNTRY_INFO!B37) -> KwaZulu-Natal | C37: =IF(COUNTRY_INFO!C37=0," ",COUNTRY_INFO!C37) -> Zululand DM | D37: =IF(COUNTRY_INFO!$T$9:$T$1000="MDA3 (IVM)", COUNTRY_INFO!$T$9:$T$1000, " ") ->  | H37: 0 | K37: 0 | N37: 0 | O37: 0 | P37: 0 | Q37: 0
A38: =IF(COUNTRY_INFO!A38=0," ",COUNTRY_INFO!A38) -> South Africa | B38: =IF(COUNTRY_INFO!B38=0," ",COUNTRY_INFO!B38) -> Limpopo | C38: =IF(COUNTRY_INFO!C38=0," ",COUNTRY_INFO!C38) -> Capricorn DM | D38: =IF(COUNTRY_INFO!$T$9:$T$1000="MDA3 (IVM)", COUNTRY_INFO!$T$9:$T$1000, " ") ->  | H38: 0 | K38: 0 | N38: 0 | O38: 0 | P38: 0 | Q38: 0
A39: =IF(COUNTRY_INFO!A39=0," ",COUNTRY_INFO!A39) -> South Africa | B39: =IF(COUNTRY_INFO!B39=0," ",COUNTRY_INFO!B39) -> Limpopo | C39: =IF(COUNTRY_INFO!C39=0," ",COUNTRY_INFO!C39) -> Mopani DM | D39: =IF(COUNTRY_INFO!$T$9:$T$1000="MDA3 (IVM)", COUNTRY_INFO!$T$9:$T$1000, " ") ->  | H39: 0 | K39: 0 | N39: 0 | O39: 0 | P39: 0 | Q39: 0
A40: =IF(COUNTRY_INFO!A40=0," ",COUNTRY_INFO!A40) -> South Africa | B40: =IF(COUNTRY_INFO!B40=0," ",COUNTRY_INFO!B40) -> Limpopo | C40: =IF(COUNTRY_INFO!C40=0," ",COUNTRY_INFO!C40) -> Sekhukhune DM | D40: =IF(COUNTRY_INFO!$T$9:$T$1000="MDA3 (IVM)", COUNTRY_INFO!$T$9:$T$1000, " ") ->  | H40: 0 | K40: 0 | N40: 0 | O40: 0 | P40: 0 | Q40: 0
A41: =IF(COUNTRY_INFO!A41=0," ",COUNTRY_INFO!A41) -> South Africa | B41: =IF(COUNTRY_INFO!B41=0," ",COUNTRY_INFO!B41) -> Limpopo | C41: =IF(COUNTRY_INFO!C41=0," ",COUNTRY_INFO!C41) -> Vhembe DM | D41: =IF(COUNTRY_INFO!$T$9:$T$1000="MDA3 (IVM)", COUNTRY_INFO!$T$9:$T$1000, " ") ->  | H41: 0 | K41: 0 | N41: 0 | O41: 0 | P41: 0 | Q41: 0
A42: =IF(COUNTRY_INFO!A42=0," ",COUNTRY_INFO!A42) -> South Africa | B42: =IF(COUNTRY_INFO!B42=0," ",COUNTRY_INFO!B42) -> Limpopo | C42: =IF(COUNTRY_INFO!C42=0," ",COUNTRY_INFO!C42) -> Waterberg DM | D42: =IF(COUNTRY_INFO!$T$9:$T$1000="MDA3 (IVM)", COUNTRY_INFO!$T$9:$T$1000, " ") ->  | H42: 0 | K42: 0 | N42: 0 | O42: 0 | P42: 0 | Q42: 0
A43: =IF(COUNTRY_INFO!A43=0," ",COUNTRY_INFO!A43) -> South Africa | B43: =IF(COUNTRY_INFO!B43=0," ",COUNTRY_INFO!B43) -> Mpumalanga | C43: =IF(COUNTRY_INFO!C43=0," ",COUNTRY_INFO!C43) -> Ehlanzeni DM | D43: =IF(COUNTRY_INFO!$T$9:$T$1000="MDA3 (IVM)", COUNTRY_INFO!$T$9:$T$1000, " ") ->  | H43: 0 | K43: 0 | N43: 0 | O43: 0 | P43: 0 | Q43: 0
A44: =IF(COUNTRY_INFO!A44=0," ",COUNTRY_INFO!A44) -> South Africa | B44: =IF(COUNTRY_INFO!B44=0," ",COUNTRY_INFO!B44) -> Mpumalanga | C44: =IF(COUNTRY_INFO!C44=0," ",COUNTRY_INFO!C44) -> G Sibande DM | D44: =IF(COUNTRY_INFO!$T$9:$T$1000="MDA3 (IVM)", COUNTRY_INFO!$T$9:$T$1000, " ") ->  | H44: 0 | K44: 0 | N44: 0 | O44: 0 | P44: 0 | Q44: 0
A45: =IF(COUNTRY_INFO!A45=0," ",COUNTRY_INFO!A45) -> South Africa | B45: =IF(COUNTRY_INFO!B45=0," ",COUNTRY_INFO!B45) -> Mpumalanga | C45: =IF(COUNTRY_INFO!C45=0," ",COUNTRY_INFO!C45) -> Nkangala DM | D45: =IF(COUNTRY_INFO!$T$9:$T$1000="MDA3 (IVM)", COUNTRY_INFO!$T$9:$T$1000, " ") ->  | H45: 0 | K45: 0 | N45: 0 | O45: 0 | P45: 0 | Q45: 0
A46: =IF(COUNTRY_INFO!A46=0," ",COUNTRY_INFO!A46) -> South Africa | B46: =IF(COUNTRY_INFO!B46=0," ",COUNTRY_INFO!B46) -> North West | C46: =IF(COUNTRY_INFO!C46=0," ",COUNTRY_INFO!C46) -> Bojanala Platinum DM | D46: =IF(COUNTRY_INFO!$T$9:$T$1000="MDA3 (IVM)", COUNTRY_INFO!$T$9:$T$1000, " ") ->  | H46: 0 | K46: 0 | N46: 0 | O46: 0 | P46: 0 | Q46: 0
A47: =IF(COUNTRY_INFO!A47=0," ",COUNTRY_INFO!A47) -> South Africa | B47: =IF(COUNTRY_INFO!B47=0," ",COUNTRY_INFO!B47) -> North West | C47: =IF(COUNTRY_INFO!C47=0," ",COUNTRY_INFO!C47) -> Dr K Kaunda DM | D47: =IF(COUNTRY_INFO!$T$9:$T$1000="MDA3 (IVM)", COUNTRY_INFO!$T$9:$T$1000, " ") ->  | H47: 0 | K47: 0 | N47: 0 | O47: 0 | P47: 0 | Q47: 0
A48: =IF(COUNTRY_INFO!A48=0," ",COUNTRY_INFO!A48) -> South Africa | B48: =IF(COUNTRY_INFO!B48=0," ",COUNTRY_INFO!B48) -> North West | C48: =IF(COUNTRY_INFO!C48=0," ",COUNTRY_INFO!C48) -> Ngaka Modiri Molema DM | D48: =IF(COUNTRY_INFO!$T$9:$T$1000="MDA3 (IVM)", COUNTRY_INFO!$T$9:$T$1000, " ") ->  | H48: 0 | K48: 0 | N48: 0 | O48: 0 | P48: 0 | Q48: 0
A49: =IF(COUNTRY_INFO!A49=0," ",COUNTRY_INFO!A49) -> South Africa | B49: =IF(COUNTRY_INFO!B49=0," ",COUNTRY_INFO!B49) -> North West | C49: =IF(COUNTRY_INFO!C49=0," ",COUNTRY_INFO!C49) -> Ruth Segomotsi Mompati DM | D49: =IF(COUNTRY_INFO!$T$9:$T$1000="MDA3 (IVM)", COUNTRY_INFO!$T$9:$T$1000, " ") ->  | H49: 0 | K49: 0 | N49: 0 | O49: 0 | P49: 0 | Q49: 0
A50: =IF(COUNTRY_INFO!A50=0," ",COUNTRY_INFO!A50) -> South Africa | B50: =IF(COUNTRY_INFO!B50=0," ",COUNTRY_INFO!B50) -> Northern Cape | C50: =IF(COUNTRY_INFO!C50=0," ",COUNTRY_INFO!C50) -> Frances Baard DM | D50: =IF(COUNTRY_INFO!$T$9:$T$1000="MDA3 (IVM)", COUNTRY_INFO!$T$9:$T$1000, " ") ->  | H50: 0 | K50: 0 | N50: 0 | O50: 0 | P50: 0 | Q50: 0
A51: =IF(COUNTRY_INFO!A51=0," ",COUNTRY_INFO!A51) -> South Africa | B51: =IF(COUNTRY_INFO!B51=0," ",COUNTRY_INFO!B51) -> Northern Cape | C51: =IF(COUNTRY_INFO!C51=0," ",COUNTRY_INFO!C51) -> J T Gaetsewe DM | D51: =IF(COUNTRY_INFO!$T$9:$T$1000="MDA3 (IVM)", COUNTRY_INFO!$T$9:$T$1000, " ") ->  | H51: 0 | K51: 0 | N51: 0 | O51: 0 | P51: 0 | Q51: 0
A52: =IF(COUNTRY_INFO!A52=0," ",COUNTRY_INFO!A52) -> South Africa | B52: =IF(COUNTRY_INFO!B52=0," ",COUNTRY_INFO!B52) -> Northern Cape | C52: =IF(COUNTRY_INFO!C52=0," ",COUNTRY_INFO!C52) -> Namakwa DM | D52: =IF(COUNTRY_INFO!$T$9:$T$1000="MDA3 (IVM)", COUNTRY_INFO!$T$9:$T$1000, " ") ->  | H52: 0 | K52: 0 | N52: 0 | O52: 0 | P52: 0 | Q52: 0
A53: =IF(COUNTRY_INFO!A53=0," ",COUNTRY_INFO!A53) -> South Africa | B53: =IF(COUNTRY_INFO!B53=0," ",COUNTRY_INFO!B53) -> Northern Cape | C53: =IF(COUNTRY_INFO!C53=0," ",COUNTRY_INFO!C53) -> Pixley ka Seme DM | D53: =IF(COUNTRY_INFO!$T$9:$T$1000="MDA3 (IVM)", COUNTRY_INFO!$T$9:$T$1000, " ") ->  | H53: 0 | K53: 0 | N53: 0 | O53: 0 | P53: 0 | Q53: 0
A54: =IF(COUNTRY_INFO!A54=0," ",COUNTRY_INFO!A54) -> South Africa | B54: =IF(COUNTRY_INFO!B54=0," ",COUNTRY_INFO!B54) -> Northern Cape | C54: =IF(COUNTRY_INFO!C54=0," ",COUNTRY_INFO!C54) -> ZF Mgcawu DM | D54: =IF(COUNTRY_INFO!$T$9:$T$1000="MDA3 (IVM)", COUNTRY_INFO!$T$9:$T$1000, " ") ->  | H54: 0 | K54: 0 | N54: 0 | O54: 0 | P54: 0 | Q54: 0
A55: =IF(COUNTRY_INFO!A55=0," ",COUNTRY_INFO!A55) -> South Africa | B55: =IF(COUNTRY_INFO!B55=0," ",COUNTRY_INFO!B55) -> Western Cape | C55: =IF(COUNTRY_INFO!C55=0," ",COUNTRY_INFO!C55) -> Cape Town MM | D55: =IF(COUNTRY_INFO!$T$9:$T$1000="MDA3 (IVM)", COUNTRY_INFO!$T$9:$T$1000, " ") ->  | H55: 0 | K55: 0 | N55: 0 | O55: 0 | P55: 0 | Q55: 0
A56: =IF(COUNTRY_INFO!A56=0," ",COUNTRY_INFO!A56) -> South Africa | B56: =IF(COUNTRY_INFO!B56=0," ",COUNTRY_INFO!B56) -> Western Cape | C56: =IF(COUNTRY_INFO!C56=0," ",COUNTRY_INFO!C56) -> Cape Winelands DM | D56: =IF(COUNTRY_INFO!$T$9:$T$1000="MDA3 (IVM)", COUNTRY_INFO!$T$9:$T$1000, " ") ->  | H56: 0 | K56: 0 | N56: 0 | O56: 0 | P56: 0 | Q56: 0
A57: =IF(COUNTRY_INFO!A57=0," ",COUNTRY_INFO!A57) -> South Africa | B57: =IF(COUNTRY_INFO!B57=0," ",COUNTRY_INFO!B57) -> Western Cape | C57: =IF(COUNTRY_INFO!C57=0," ",COUNTRY_INFO!C57) -> Central Karoo DM | D57: =IF(COUNTRY_INFO!$T$9:$T$1000="MDA3 (IVM)", COUNTRY_INFO!$T$9:$T$1000, " ") ->  | H57: 0 | K57: 0 | N57: 0 | O57: 0 | P57: 0 | Q57: 0
A58: =IF(COUNTRY_INFO!A58=0," ",COUNTRY_INFO!A58) -> South Africa | B58: =IF(COUNTRY_INFO!B58=0," ",COUNTRY_INFO!B58) -> Western Cape | C58: =IF(COUNTRY_INFO!C58=0," ",COUNTRY_INFO!C58) -> Eden DM | D58: =IF(COUNTRY_INFO!$T$9:$T$1000="MDA3 (IVM)", COUNTRY_INFO!$T$9:$T$1000, " ") ->  | H58: 0 | K58: 0 | N58: 0 | O58: 0 | P58: 0 | Q58: 0
A59: =IF(COUNTRY_INFO!A59=0," ",COUNTRY_INFO!A59) -> South Africa | B59: =IF(COUNTRY_INFO!B59=0," ",COUNTRY_INFO!B59) -> Western Cape | C59: =IF(COUNTRY_INFO!C59=0," ",COUNTRY_INFO!C59) -> Overberg DM | D59: =IF(COUNTRY_INFO!$T$9:$T$1000="MDA3 (IVM)", COUNTRY_INFO!$T$9:$T$1000, " ") ->  | H59: 0 | K59: 0 | N59: 0 | O59: 0 | P59: 0 | Q59: 0
A60: =IF(COUNTRY_INFO!A60=0," ",COUNTRY_INFO!A60) -> South Africa | B60: =IF(COUNTRY_INFO!B60=0," ",COUNTRY_INFO!B60) -> Western Cape | C60: =IF(COUNTRY_INFO!C60=0," ",COUNTRY_INFO!C60) -> West Coast DM | D60: =IF(COUNTRY_INFO!$T$9:$T$1000="MDA3 (IVM)", COUNTRY_INFO!$T$9:$T$1000, " ") ->  | H60: 0 | K60: 0 | N60: 0 | O60: 0 | P60: 0 | Q60: 0

Sheet T1 (hidden)
A1: T 1 - Praziquantel (PZQ) and Albendazole (ALB) or Mebendazole (MBD)
A2: Administrative structure, population requiring PC by age group, population treated by age group and coverage
A4: TOTAL | G4: =SUM(G$9:G$1000) -> 0 | H4: 0 | I4: 0 | J4: 0 | K4: =SUM(K$9:K$1000) -> 0 | L4: 0 | M4: 0 | N4: 0 | O4: 0 | P4: =IF(G4<>0, IF(L4/G4*100=0, "-", L4/G4*100), " ") ->  | Q4: =IF(OR(I4<>0,H4<>0), IF(M4/MAX(H4,I4)*100=0, "-", M4/MAX(H4,I4)*100), " ") ->  | R4: =IF(J4<>0, IF(N4/J4*100=0, "-", N4/J4*100), " ") ->  | S4: =IF(K4<>0, IF(O4/K4*100=0, "-", O4/K4*100), " ") -> 
D6: PC implemented | E6: Medicine | F6: Date | G6: Population targeted for T1 | L6: Population treated | P6: Programme coverage (%)
A7: Country | B7: Province/State | C7: District | G7: PreSAC (ALB) | H7: SAC (ALB) | I7: SAC (PZQ) | J7: Adults (PZQ) | K7: Total | L7: PreSAC | M7: SAC | N7: Adults | O7: Total | P7: PreSAC | Q7: SAC | R7: Adults | S7: Total
A9: =IF(COUNTRY_INFO!A9=0," ",COUNTRY_INFO!A9) -> South Africa | B9: =IF(COUNTRY_INFO!B9=0," ",COUNTRY_INFO!B9) -> Eastern Cape | C9: =IF(COUNTRY_INFO!C9=0," ",COUNTRY_INFO!C9) -> A Nzo DM | D9: =IF(OR(COUNTRY_INFO!$T$9:$T$1000="T1 (PZQ+ALB/MBD)",COUNTRY_INFO!$U$9:$U$1000="T1 (PZQ+ALB/MBD)"), "T1 (PZQ+ALB/MBD)", " ") ->  | K9: =MAX(H9:I9)+G9+J9 -> 0 | O9: =SUM(L9:N9) -> 0 | P9: =IF(G9<>0, IF(L9/G9*100=0, "-", L9/G9*100), " ") ->  | Q9: =IF(OR(I9<>0,H9<>0), IF(M9/MAX(H9,I9)*100=0, "-", M9/MAX(H9,I9)*100), " ") ->  | R9: =IF(J9<>0, IF(N9/J9*100=0, "-", N9/J9*100), " ") -> 
A10: =IF(COUNTRY_INFO!A10=0," ",COUNTRY_INFO!A10) -> South Africa | B10: =IF(COUNTRY_INFO!B10=0," ",COUNTRY_INFO!B10) -> Eastern Cape | C10: =IF(COUNTRY_INFO!C10=0," ",COUNTRY_INFO!C10) -> Amathole DM | D10: =IF(OR(COUNTRY_INFO!$T$9:$T$1000="T1 (PZQ+ALB/MBD)",COUNTRY_INFO!$U$9:$U$1000="T1 (PZQ+ALB/MBD)"), "T1 (PZQ+ALB/MBD)", " ") ->  | K10: =MAX(H10:I10)+G10+J10 -> 0 | O10: =SUM(L10:N10) -> 0 | P10: =IF(G10<>0, IF(L10/G10*100=0, "-", L10/G10*100), " ") ->  | Q10: =IF(OR(I10<>0,H10<>0), IF(M10/MAX(H10,I10)*100=0, "-", M10/MAX(H10,I10)*100), " ") ->  | R10: =IF(J10<>0, IF(N10/J10*100=0, "-", N10/J10*100), " ") ->  | S10: =IF(K10<>0, IF(O10/K10*100=0, "-", O10/K10*100), " ") -> 
A11: =IF(COUNTRY_INFO!A11=0," ",COUNTRY_INFO!A11) -> South Africa | B11: =IF(COUNTRY_INFO!B11=0," ",COUNTRY_INFO!B11) -> Eastern Cape | C11: =IF(COUNTRY_INFO!C11=0," ",COUNTRY_INFO!C11) -> Buffalo City MM | D11: =IF(OR(COUNTRY_INFO!$T$9:$T$1000="T1 (PZQ+ALB/MBD)",COUNTRY_INFO!$U$9:$U$1000="T1 (PZQ+ALB/MBD)"), "T1 (PZQ+ALB/MBD)", " ") ->  | K11: 0 | O11: 0
A12: =IF(COUNTRY_INFO!A12=0," ",COUNTRY_INFO!A12) -> South Africa | B12: =IF(COUNTRY_INFO!B12=0," ",COUNTRY_INFO!B12) -> Eastern Cape | C12: =IF(COUNTRY_INFO!C12=0," ",COUNTRY_INFO!C12) -> C Hani DM | D12: =IF(OR(COUNTRY_INFO!$T$9:$T$1000="T1 (PZQ+ALB/MBD)",COUNTRY_INFO!$U$9:$U$1000="T1 (PZQ+ALB/MBD)"), "T1 (PZQ+ALB/MBD)", " ") ->  | K12: 0 | O12: 0
A13: =IF(COUNTRY_INFO!A13=0," ",COUNTRY_INFO!A13) -> South Africa | B13: =IF(COUNTRY_INFO!B13=0," ",COUNTRY_INFO!B13) -> Eastern Cape | C13: =IF(COUNTRY_INFO!C13=0," ",COUNTRY_INFO!C13) -> Joe Gqabi DM | D13: =IF(OR(COUNTRY_INFO!$T$9:$T$1000="T1 (PZQ+ALB/MBD)",COUNTRY_INFO!$U$9:$U$1000="T1 (PZQ+ALB/MBD)"), "T1 (PZQ+ALB/MBD)", " ") ->  | K13: 0 | O13: 0
A14: =IF(COUNTRY_INFO!A14=0," ",COUNTRY_INFO!A14) -> South Africa | B14: =IF(COUNTRY_INFO!B14=0," ",COUNTRY_INFO!B14) -> Eastern Cape | C14: =IF(COUNTRY_INFO!C14=0," ",COUNTRY_INFO!C14) -> N Mandela Bay MM | D14: =IF(OR(COUNTRY_INFO!$T$9:$T$1000="T1 (PZQ+ALB/MBD)",COUNTRY_INFO!$U$9:$U$1000="T1 (PZQ+ALB/MBD)"), "T1 (PZQ+ALB/MBD)", " ") ->  | K14: 0 | O14: 0
A15: =IF(COUNTRY_INFO!A15=0," ",COUNTRY_INFO!A15) -> South Africa | B15: =IF(COUNTRY_INFO!B15=0," ",COUNTRY_INFO!B15) -> Eastern Cape | C15: =IF(COUNTRY_INFO!C15=0," ",COUNTRY_INFO!C15) -> O Tambo DM | D15: =IF(OR(COUNTRY_INFO!$T$9:$T$1000="T1 (PZQ+ALB/MBD)",COUNTRY_INFO!$U$9:$U$1000="T1 (PZQ+ALB/MBD)"), "T1 (PZQ+ALB/MBD)", " ") ->  | K15: 0 | O15: 0
A16: =IF(COUNTRY_INFO!A16=0," ",COUNTRY_INFO!A16) -> South Africa | B16: =IF(COUNTRY_INFO!B16=0," ",COUNTRY_INFO!B16) -> Eastern Cape | C16: =IF(COUNTRY_INFO!C16=0," ",COUNTRY_INFO!C16) -> Sarah Baartman DM | D16: =IF(OR(COUNTRY_INFO!$T$9:$T$1000="T1 (PZQ+ALB/MBD)",COUNTRY_INFO!$U$9:$U$1000="T1 (PZQ+ALB/MBD)"), "T1 (PZQ+ALB/MBD)", " ") ->  | K16: 0 | O16: 0
A17: =IF(COUNTRY_INFO!A17=0," ",COUNTRY_INFO!A17) -> South Africa | B17: =IF(COUNTRY_INFO!B17=0," ",COUNTRY_INFO!B17) -> Free State | C17: =IF(COUNTRY_INFO!C17=0," ",COUNTRY_INFO!C17) -> Fezile Dabi DM | D17: =IF(OR(COUNTRY_INFO!$T$9:$T$1000="T1 (PZQ+ALB/MBD)",COUNTRY_INFO!$U$9:$U$1000="T1 (PZQ+ALB/MBD)"), "T1 (PZQ+ALB/MBD)", " ") ->  | K17: 0 | O17: 0
A18: =IF(COUNTRY_INFO!A18=0," ",COUNTRY_INFO!A18) -> South Africa | B18: =IF(COUNTRY_INFO!B18=0," ",COUNTRY_INFO!B18) -> Free State | C18: =IF(COUNTRY_INFO!C18=0," ",COUNTRY_INFO!C18) -> Lejweleputswa DM | D18: =IF(OR(COUNTRY_INFO!$T$9:$T$1000="T1 (PZQ+ALB/MBD)",COUNTRY_INFO!$U$9:$U$1000="T1 (PZQ+ALB/MBD)"), "T1 (PZQ+ALB/MBD)", " ") ->  | K18: 0 | O18: 0
A19: =IF(COUNTRY_INFO!A19=0," ",COUNTRY_INFO!A19) -> South Africa | B19: =IF(COUNTRY_INFO!B19=0," ",COUNTRY_INFO!B19) -> Free State | C19: =IF(COUNTRY_INFO!C19=0," ",COUNTRY_INFO!C19) -> Mangaung MM | D19: =IF(OR(COUNTRY_INFO!$T$9:$T$1000="T1 (PZQ+ALB/MBD)",COUNTRY_INFO!$U$9:$U$1000="T1 (PZQ+ALB/MBD)"), "T1 (PZQ+ALB/MBD)", " ") ->  | K19: 0 | O19: 0
A20: =IF(COUNTRY_INFO!A20=0," ",COUNTRY_INFO!A20) -> South Africa | B20: =IF(COUNTRY_INFO!B20=0," ",COUNTRY_INFO!B20) -> Free State | C20: =IF(COUNTRY_INFO!C20=0," ",COUNTRY_INFO!C20) -> T Mofutsanyane DM | D20: =IF(OR(COUNTRY_INFO!$T$9:$T$1000="T1 (PZQ+ALB/MBD)",COUNTRY_INFO!$U$9:$U$1000="T1 (PZQ+ALB/MBD)"), "T1 (PZQ+ALB/MBD)", " ") ->  | K20: 0 | O20: 0
A21: =IF(COUNTRY_INFO!A21=0," ",COUNTRY_INFO!A21) -> South Africa | B21: =IF(COUNTRY_INFO!B21=0," ",COUNTRY_INFO!B21) -> Free State | C21: =IF(COUNTRY_INFO!C21=0," ",COUNTRY_INFO!C21) -> Xhariep DM | D21: =IF(OR(COUNTRY_INFO!$T$9:$T$1000="T1 (PZQ+ALB/MBD)",COUNTRY_INFO!$U$9:$U$1000="T1 (PZQ+ALB/MBD)"), "T1 (PZQ+ALB/MBD)", " ") ->  | K21: 0 | O21: 0
A22: =IF(COUNTRY_INFO!A22=0," ",COUNTRY_INFO!A22) -> South Africa | B22: =IF(COUNTRY_INFO!B22=0," ",COUNTRY_INFO!B22) -> Gauteng | C22: =IF(COUNTRY_INFO!C22=0," ",COUNTRY_INFO!C22) -> Ekurhuleni MM | D22: =IF(OR(COUNTRY_INFO!$T$9:$T$1000="T1 (PZQ+ALB/MBD)",COUNTRY_INFO!$U$9:$U$1000="T1 (PZQ+ALB/MBD)"), "T1 (PZQ+ALB/MBD)", " ") ->  | K22: 0 | O22: 0
A23: =IF(COUNTRY_INFO!A23=0," ",COUNTRY_INFO!A23) -> South Africa | B23: =IF(COUNTRY_INFO!B23=0," ",COUNTRY_INFO!B23) -> Gauteng | C23: =IF(COUNTRY_INFO!C23=0," ",COUNTRY_INFO!C23) -> Johannesburg MM | D23: =IF(OR(COUNTRY_INFO!$T$9:$T$1000="T1 (PZQ+ALB/MBD)",COUNTRY_INFO!$U$9:$U$1000="T1 (PZQ+ALB/MBD)"), "T1 (PZQ+ALB/MBD)", " ") ->  | K23: 0 | O23: 0
A24: =IF(COUNTRY_INFO!A24=0," ",COUNTRY_INFO!A24) -> South Africa | B24: =IF(COUNTRY_INFO!B24=0," ",COUNTRY_INFO!B24) -> Gauteng | C24: =IF(COUNTRY_INFO!C24=0," ",COUNTRY_INFO!C24) -> Sedibeng DM | D24: =IF(OR(COUNTRY_INFO!$T$9:$T$1000="T1 (PZQ+ALB/MBD)",COUNTRY_INFO!$U$9:$U$1000="T1 (PZQ+ALB/MBD)"), "T1 (PZQ+ALB/MBD)", " ") ->  | K24: 0 | O24: 0
A25: =IF(COUNTRY_INFO!A25=0," ",COUNTRY_INFO!A25) -> South Africa | B25: =IF(COUNTRY_INFO!B25=0," ",COUNTRY_INFO!B25) -> Gauteng | C25: =IF(COUNTRY_INFO!C25=0," ",COUNTRY_INFO!C25) -> Tshwane MM | D25: =IF(OR(COUNTRY_INFO!$T$9:$T$1000="T1 (PZQ+ALB/MBD)",COUNTRY_INFO!$U$9:$U$1000="T1 (PZQ+ALB/MBD)"), "T1 (PZQ+ALB/MBD)", " ") ->  | K25: 0 | O25: 0
A26: =IF(COUNTRY_INFO!A26=0," ",COUNTRY_INFO!A26) -> South Africa | B26: =IF(COUNTRY_INFO!B26=0," ",COUNTRY_INFO!B26) -> Gauteng | C26: =IF(COUNTRY_INFO!C26=0," ",COUNTRY_INFO!C26) -> West Rand DM | D26: =IF(OR(COUNTRY_INFO!$T$9:$T$1000="T1 (PZQ+ALB/MBD)",COUNTRY_INFO!$U$9:$U$1000="T1 (PZQ+ALB/MBD)"), "T1 (PZQ+ALB/MBD)", " ") ->  | K26: 0 | O26: 0
A27: =IF(COUNTRY_INFO!A27=0," ",COUNTRY_INFO!A27) -> South Africa | B27: =IF(COUNTRY_INFO!B27=0," ",COUNTRY_INFO!B27) -> KwaZulu-Natal | C27: =IF(COUNTRY_INFO!C27=0," ",COUNTRY_INFO!C27) -> Amajuba DM | D27: =IF(OR(COUNTRY_INFO!$T$9:$T$1000="T1 (PZQ+ALB/MBD)",COUNTRY_INFO!$U$9:$U$1000="T1 (PZQ+ALB/MBD)"), "T1 (PZQ+ALB/MBD)", " ") ->  | K27: 0 | O27: 0
A28: =IF(COUNTRY_INFO!A28=0," ",COUNTRY_INFO!A28) -> South Africa | B28: =IF(COUNTRY_INFO!B28=0," ",COUNTRY_INFO!B28) -> KwaZulu-Natal | C28: =IF(COUNTRY_INFO!C28=0," ",COUNTRY_INFO!C28) -> eThekwini MM | D28: =IF(OR(COUNTRY_INFO!$T$9:$T$1000="T1 (PZQ+ALB/MBD)",COUNTRY_INFO!$U$9:$U$1000="T1 (PZQ+ALB/MBD)"), "T1 (PZQ+ALB/MBD)", " ") ->  | K28: 0 | O28: 0
A29: =IF(COUNTRY_INFO!A29=0," ",COUNTRY_INFO!A29) -> South Africa | B29: =IF(COUNTRY_INFO!B29=0," ",COUNTRY_INFO!B29) -> KwaZulu-Natal | C29: =IF(COUNTRY_INFO!C29=0," ",COUNTRY_INFO!C29) -> Harry Gwala DM | D29: =IF(OR(COUNTRY_INFO!$T$9:$T$1000="T1 (PZQ+ALB/MBD)",COUNTRY_INFO!$U$9:$U$1000="T1 (PZQ+ALB/MBD)"), "T1 (PZQ+ALB/MBD)", " ") ->  | K29: 0 | O29: 0
A30: =IF(COUNTRY_INFO!A30=0," ",COUNTRY_INFO!A30) -> South Africa | B30: =IF(COUNTRY_INFO!B30=0," ",COUNTRY_INFO!B30) -> KwaZulu-Natal | C30: =IF(COUNTRY_INFO!C30=0," ",COUNTRY_INFO!C30) -> iLembe DM | D30: =IF(OR(COUNTRY_INFO!$T$9:$T$1000="T1 (PZQ+ALB/MBD)",COUNTRY_INFO!$U$9:$U$1000="T1 (PZQ+ALB/MBD)"), "T1 (PZQ+ALB/MBD)", " ") ->  | K30: 0 | O30: 0
A31: =IF(COUNTRY_INFO!A31=0," ",COUNTRY_INFO!A31) -> South Africa | B31: =IF(COUNTRY_INFO!B31=0," ",COUNTRY_INFO!B31) -> KwaZulu-Natal | C31: =IF(COUNTRY_INFO!C31=0," ",COUNTRY_INFO!C31) -> Ugu DM | D31: =IF(OR(COUNTRY_INFO!$T$9:$T$1000="T1 (PZQ+ALB/MBD)",COUNTRY_INFO!$U$9:$U$1000="T1 (PZQ+ALB/MBD)"), "T1 (PZQ+ALB/MBD)", " ") ->  | K31: 0 | O31: 0
A32: =IF(COUNTRY_INFO!A32=0," ",COUNTRY_INFO!A32) -> South Africa | B32: =IF(COUNTRY_INFO!B32=0," ",COUNTRY_INFO!B32) -> KwaZulu-Natal | C32: =IF(COUNTRY_INFO!C32=0," ",COUNTRY_INFO!C32) -> uMgungundlovu DM | D32: =IF(OR(COUNTRY_INFO!$T$9:$T$1000="T1 (PZQ+ALB/MBD)",COUNTRY_INFO!$U$9:$U$1000="T1 (PZQ+ALB/MBD)"), "T1 (PZQ+ALB/MBD)", " ") ->  | K32: 0 | O32: 0
A33: =IF(COUNTRY_INFO!A33=0," ",COUNTRY_INFO!A33) -> South Africa | B33: =IF(COUNTRY_INFO!B33=0," ",COUNTRY_INFO!B33) -> KwaZulu-Natal | C33: =IF(COUNTRY_INFO!C33=0," ",COUNTRY_INFO!C33) -> Umkhanyakude DM | D33: =IF(OR(COUNTRY_INFO!$T$9:$T$1000="T1 (PZQ+ALB/MBD)",COUNTRY_INFO!$U$9:$U$1000="T1 (PZQ+ALB/MBD)"), "T1 (PZQ+ALB/MBD)", " ") ->  | K33: 0 | O33: 0
A34: =IF(COUNTRY_INFO!A34=0," ",COUNTRY_INFO!A34) -> South Africa | B34: =IF(COUNTRY_INFO!B34=0," ",COUNTRY_INFO!B34) -> KwaZulu-Natal | C34: =IF(COUNTRY_INFO!C34=0," ",COUNTRY_INFO!C34) -> Umzinyathi DM | D34: =IF(OR(COUNTRY_INFO!$T$9:$T$1000="T1 (PZQ+ALB/MBD)",COUNTRY_INFO!$U$9:$U$1000="T1 (PZQ+ALB/MBD)"), "T1 (PZQ+ALB/MBD)", " ") ->  | K34: 0 | O34: 0
A35: =IF(COUNTRY_INFO!A35=0," ",COUNTRY_INFO!A35) -> South Africa | B35: =IF(COUNTRY_INFO!B35=0," ",COUNTRY_INFO!B35) -> KwaZulu-Natal | C35: =IF(COUNTRY_INFO!C35=0," ",COUNTRY_INFO!C35) -> Uthukela DM | D35: =IF(OR(COUNTRY_INFO!$T$9:$T$1000="T1 (PZQ+ALB/MBD)",COUNTRY_INFO!$U$9:$U$1000="T1 (PZQ+ALB/MBD)"), "T1 (PZQ+ALB/MBD)", " ") ->  | K35: 0 | O35: 0
A36: =IF(COUNTRY_INFO!A36=0," ",COUNTRY_INFO!A36) -> South Africa | B36: =IF(COUNTRY_INFO!B36=0," ",COUNTRY_INFO!B36) -> KwaZulu-Natal | C36: =IF(COUNTRY_INFO!C36=0," ",COUNTRY_INFO!C36) -> Uthungulu DM | D36: =IF(OR(COUNTRY_INFO!$T$9:$T$1000="T1 (PZQ+ALB/MBD)",COUNTRY_INFO!$U$9:$U$1000="T1 (PZQ+ALB/MBD)"), "T1 (PZQ+ALB/MBD)", " ") ->  | K36: 0 | O36: 0
A37: =IF(COUNTRY_INFO!A37=0," ",COUNTRY_INFO!A37) -> South Africa | B37: =IF(COUNTRY_INFO!B37=0," ",COUNTRY_INFO!B37) -> KwaZulu-Natal | C37: =IF(COUNTRY_INFO!C37=0," ",COUNTRY_INFO!C37) -> Zululand DM | D37: =IF(OR(COUNTRY_INFO!$T$9:$T$1000="T1 (PZQ+ALB/MBD)",COUNTRY_INFO!$U$9:$U$1000="T1 (PZQ+ALB/MBD)"), "T1 (PZQ+ALB/MBD)", " ") ->  | K37: 0 | O37: 0
A38: =IF(COUNTRY_INFO!A38=0," ",COUNTRY_INFO!A38) -> South Africa | B38: =IF(COUNTRY_INFO!B38=0," ",COUNTRY_INFO!B38) -> Limpopo | C38: =IF(COUNTRY_INFO!C38=0," ",COUNTRY_INFO!C38) -> Capricorn DM | D38: =IF(OR(COUNTRY_INFO!$T$9:$T$1000="T1 (PZQ+ALB/MBD)",COUNTRY_INFO!$U$9:$U$1000="T1 (PZQ+ALB/MBD)"), "T1 (PZQ+ALB/MBD)", " ") ->  | K38: 0 | O38: 0
A39: =IF(COUNTRY_INFO!A39=0," ",COUNTRY_INFO!A39) -> South Africa | B39: =IF(COUNTRY_INFO!B39=0," ",COUNTRY_INFO!B39) -> Limpopo | C39: =IF(COUNTRY_INFO!C39=0," ",COUNTRY_INFO!C39) -> Mopani DM | D39: =IF(OR(COUNTRY_INFO!$T$9:$T$1000="T1 (PZQ+ALB/MBD)",COUNTRY_INFO!$U$9:$U$1000="T1 (PZQ+ALB/MBD)"), "T1 (PZQ+ALB/MBD)", " ") ->  | K39: 0 | O39: 0
A40: =IF(COUNTRY_INFO!A40=0," ",COUNTRY_INFO!A40) -> South Africa | B40: =IF(COUNTRY_INFO!B40=0," ",COUNTRY_INFO!B40) -> Limpopo | C40: =IF(COUNTRY_INFO!C40=0," ",COUNTRY_INFO!C40) -> Sekhukhune DM | D40: =IF(OR(COUNTRY_INFO!$T$9:$T$1000="T1 (PZQ+ALB/MBD)",COUNTRY_INFO!$U$9:$U$1000="T1 (PZQ+ALB/MBD)"), "T1 (PZQ+ALB/MBD)", " ") ->  | K40: 0 | O40: 0
A41: =IF(COUNTRY_INFO!A41=0," ",COUNTRY_INFO!A41) -> South Africa | B41: =IF(COUNTRY_INFO!B41=0," ",COUNTRY_INFO!B41) -> Limpopo | C41: =IF(COUNTRY_INFO!C41=0," ",COUNTRY_INFO!C41) -> Vhembe DM | D41: =IF(OR(COUNTRY_INFO!$T$9:$T$1000="T1 (PZQ+ALB/MBD)",COUNTRY_INFO!$U$9:$U$1000="T1 (PZQ+ALB/MBD)"), "T1 (PZQ+ALB/MBD)", " ") ->  | K41: 0 | O41: 0
A42: =IF(COUNTRY_INFO!A42=0," ",COUNTRY_INFO!A42) -> South Africa | B42: =IF(COUNTRY_INFO!B42=0," ",COUNTRY_INFO!B42) -> Limpopo | C42: =IF(COUNTRY_INFO!C42=0," ",COUNTRY_INFO!C42) -> Waterberg DM | D42: =IF(OR(COUNTRY_INFO!$T$9:$T$1000="T1 (PZQ+ALB/MBD)",COUNTRY_INFO!$U$9:$U$1000="T1 (PZQ+ALB/MBD)"), "T1 (PZQ+ALB/MBD)", " ") ->  | K42: 0 | O42: 0
A43: =IF(COUNTRY_INFO!A43=0," ",COUNTRY_INFO!A43) -> South Africa | B43: =IF(COUNTRY_INFO!B43=0," ",COUNTRY_INFO!B43) -> Mpumalanga | C43: =IF(COUNTRY_INFO!C43=0," ",COUNTRY_INFO!C43) -> Ehlanzeni DM | D43: =IF(OR(COUNTRY_INFO!$T$9:$T$1000="T1 (PZQ+ALB/MBD)",COUNTRY_INFO!$U$9:$U$1000="T1 (PZQ+ALB/MBD)"), "T1 (PZQ+ALB/MBD)", " ") ->  | K43: 0 | O43: 0
A44: =IF(COUNTRY_INFO!A44=0," ",COUNTRY_INFO!A44) -> South Africa | B44: =IF(COUNTRY_INFO!B44=0," ",COUNTRY_INFO!B44) -> Mpumalanga | C44: =IF(COUNTRY_INFO!C44=0," ",COUNTRY_INFO!C44) -> G Sibande DM | D44: =IF(OR(COUNTRY_INFO!$T$9:$T$1000="T1 (PZQ+ALB/MBD)",COUNTRY_INFO!$U$9:$U$1000="T1 (PZQ+ALB/MBD)"), "T1 (PZQ+ALB/MBD)", " ") ->  | K44: 0 | O44: 0
A45: =IF(COUNTRY_INFO!A45=0," ",COUNTRY_INFO!A45) -> South Africa | B45: =IF(COUNTRY_INFO!B45=0," ",COUNTRY_INFO!B45) -> Mpumalanga | C45: =IF(COUNTRY_INFO!C45=0," ",COUNTRY_INFO!C45) -> Nkangala DM | D45: =IF(OR(COUNTRY_INFO!$T$9:$T$1000="T1 (PZQ+ALB/MBD)",COUNTRY_INFO!$U$9:$U$1000="T1 (PZQ+ALB/MBD)"), "T1 (PZQ+ALB/MBD)", " ") ->  | K45: 0 | O45: 0
A46: =IF(COUNTRY_INFO!A46=0," ",COUNTRY_INFO!A46) -> South Africa | B46: =IF(COUNTRY_INFO!B46=0," ",COUNTRY_INFO!B46) -> North West | C46: =IF(COUNTRY_INFO!C46=0," ",COUNTRY_INFO!C46) -> Bojanala Platinum DM | D46: =IF(OR(COUNTRY_INFO!$T$9:$T$1000="T1 (PZQ+ALB/MBD)",COUNTRY_INFO!$U$9:$U$1000="T1 (PZQ+ALB/MBD)"), "T1 (PZQ+ALB/MBD)", " ") ->  | K46: 0 | O46: 0
A47: =IF(COUNTRY_INFO!A47=0," ",COUNTRY_INFO!A47) -> South Africa | B47: =IF(COUNTRY_INFO!B47=0," ",COUNTRY_INFO!B47) -> North West | C47: =IF(COUNTRY_INFO!C47=0," ",COUNTRY_INFO!C47) -> Dr K Kaunda DM | D47: =IF(OR(COUNTRY_INFO!$T$9:$T$1000="T1 (PZQ+ALB/MBD)",COUNTRY_INFO!$U$9:$U$1000="T1 (PZQ+ALB/MBD)"), "T1 (PZQ+ALB/MBD)", " ") ->  | K47: 0 | O47: 0
A48: =IF(COUNTRY_INFO!A48=0," ",COUNTRY_INFO!A48) -> South Africa | B48: =IF(COUNTRY_INFO!B48=0," ",COUNTRY_INFO!B48) -> North West | C48: =IF(COUNTRY_INFO!C48=0," ",COUNTRY_INFO!C48) -> Ngaka Modiri Molema DM | D48: =IF(OR(COUNTRY_INFO!$T$9:$T$1000="T1 (PZQ+ALB/MBD)",COUNTRY_INFO!$U$9:$U$1000="T1 (PZQ+ALB/MBD)"), "T1 (PZQ+ALB/MBD)", " ") ->  | K48: 0 | O48: 0
A49: =IF(COUNTRY_INFO!A49=0," ",COUNTRY_INFO!A49) -> South Africa | B49: =IF(COUNTRY_INFO!B49=0," ",COUNTRY_INFO!B49) -> North West | C49: =IF(COUNTRY_INFO!C49=0," ",COUNTRY_INFO!C49) -> Ruth Segomotsi Mompati DM | D49: =IF(OR(COUNTRY_INFO!$T$9:$T$1000="T1 (PZQ+ALB/MBD)",COUNTRY_INFO!$U$9:$U$1000="T1 (PZQ+ALB/MBD)"), "T1 (PZQ+ALB/MBD)", " ") ->  | K49: 0 | O49: 0
A50: =IF(COUNTRY_INFO!A50=0," ",COUNTRY_INFO!A50) -> South Africa | B50: =IF(COUNTRY_INFO!B50=0," ",COUNTRY_INFO!B50) -> Northern Cape | C50: =IF(COUNTRY_INFO!C50=0," ",COUNTRY_INFO!C50) -> Frances Baard DM | D50: =IF(OR(COUNTRY_INFO!$T$9:$T$1000="T1 (PZQ+ALB/MBD)",COUNTRY_INFO!$U$9:$U$1000="T1 (PZQ+ALB/MBD)"), "T1 (PZQ+ALB/MBD)", " ") ->  | K50: 0 | O50: 0
A51: =IF(COUNTRY_INFO!A51=0," ",COUNTRY_INFO!A51) -> South Africa | B51: =IF(COUNTRY_INFO!B51=0," ",COUNTRY_INFO!B51) -> Northern Cape | C51: =IF(COUNTRY_INFO!C51=0," ",COUNTRY_INFO!C51) -> J T Gaetsewe DM | D51: =IF(OR(COUNTRY_INFO!$T$9:$T$1000="T1 (PZQ+ALB/MBD)",COUNTRY_INFO!$U$9:$U$1000="T1 (PZQ+ALB/MBD)"), "T1 (PZQ+ALB/MBD)", " ") ->  | K51: 0 | O51: 0
A52: =IF(COUNTRY_INFO!A52=0," ",COUNTRY_INFO!A52) -> South Africa | B52: =IF(COUNTRY_INFO!B52=0," ",COUNTRY_INFO!B52) -> Northern Cape | C52: =IF(COUNTRY_INFO!C52=0," ",COUNTRY_INFO!C52) -> Namakwa DM | D52: =IF(OR(COUNTRY_INFO!$T$9:$T$1000="T1 (PZQ+ALB/MBD)",COUNTRY_INFO!$U$9:$U$1000="T1 (PZQ+ALB/MBD)"), "T1 (PZQ+ALB/MBD)", " ") ->  | K52: 0 | O52: 0
A53: =IF(COUNTRY_INFO!A53=0," ",COUNTRY_INFO!A53) -> South Africa | B53: =IF(COUNTRY_INFO!B53=0," ",COUNTRY_INFO!B53) -> Northern Cape | C53: =IF(COUNTRY_INFO!C53=0," ",COUNTRY_INFO!C53) -> Pixley ka Seme DM | D53: =IF(OR(COUNTRY_INFO!$T$9:$T$1000="T1 (PZQ+ALB/MBD)",COUNTRY_INFO!$U$9:$U$1000="T1 (PZQ+ALB/MBD)"), "T1 (PZQ+ALB/MBD)", " ") ->  | K53: 0 | O53: 0
A54: =IF(COUNTRY_INFO!A54=0," ",COUNTRY_INFO!A54) -> South Africa | B54: =IF(COUNTRY_INFO!B54=0," ",COUNTRY_INFO!B54) -> Northern Cape | C54: =IF(COUNTRY_INFO!C54=0," ",COUNTRY_INFO!C54) -> ZF Mgcawu DM | D54: =IF(OR(COUNTRY_INFO!$T$9:$T$1000="T1 (PZQ+ALB/MBD)",COUNTRY_INFO!$U$9:$U$1000="T1 (PZQ+ALB/MBD)"), "T1 (PZQ+ALB/MBD)", " ") ->  | K54: 0 | O54: 0
A55: =IF(COUNTRY_INFO!A55=0," ",COUNTRY_INFO!A55) -> South Africa | B55: =IF(COUNTRY_INFO!B55=0," ",COUNTRY_INFO!B55) -> Western Cape | C55: =IF(COUNTRY_INFO!C55=0," ",COUNTRY_INFO!C55) -> Cape Town MM | D55: =IF(OR(COUNTRY_INFO!$T$9:$T$1000="T1 (PZQ+ALB/MBD)",COUNTRY_INFO!$U$9:$U$1000="T1 (PZQ+ALB/MBD)"), "T1 (PZQ+ALB/MBD)", " ") ->  | K55: 0 | O55: 0
A56: =IF(COUNTRY_INFO!A56=0," ",COUNTRY_INFO!A56) -> South Africa | B56: =IF(COUNTRY_INFO!B56=0," ",COUNTRY_INFO!B56) -> Western Cape | C56: =IF(COUNTRY_INFO!C56=0," ",COUNTRY_INFO!C56) -> Cape Winelands DM | D56: =IF(OR(COUNTRY_INFO!$T$9:$T$1000="T1 (PZQ+ALB/MBD)",COUNTRY_INFO!$U$9:$U$1000="T1 (PZQ+ALB/MBD)"), "T1 (PZQ+ALB/MBD)", " ") ->  | K56: 0 | O56: 0
A57: =IF(COUNTRY_INFO!A57=0," ",COUNTRY_INFO!A57) -> South Africa | B57: =IF(COUNTRY_INFO!B57=0," ",COUNTRY_INFO!B57) -> Western Cape | C57: =IF(COUNTRY_INFO!C57=0," ",COUNTRY_INFO!C57) -> Central Karoo DM | D57: =IF(OR(COUNTRY_INFO!$T$9:$T$1000="T1 (PZQ+ALB/MBD)",COUNTRY_INFO!$U$9:$U$1000="T1 (PZQ+ALB/MBD)"), "T1 (PZQ+ALB/MBD)", " ") ->  | K57: 0 | O57: 0
A58: =IF(COUNTRY_INFO!A58=0," ",COUNTRY_INFO!A58) -> South Africa | B58: =IF(COUNTRY_INFO!B58=0," ",COUNTRY_INFO!B58) -> Western Cape | C58: =IF(COUNTRY_INFO!C58=0," ",COUNTRY_INFO!C58) -> Eden DM | D58: =IF(OR(COUNTRY_INFO!$T$9:$T$1000="T1 (PZQ+ALB/MBD)",COUNTRY_INFO!$U$9:$U$1000="T1 (PZQ+ALB/MBD)"), "T1 (PZQ+ALB/MBD)", " ") ->  | K58: 0 | O58: 0
A59: =IF(COUNTRY_INFO!A59=0," ",COUNTRY_INFO!A59) -> South Africa | B59: =IF(COUNTRY_INFO!B59=0," ",COUNTRY_INFO!B59) -> Western Cape | C59: =IF(COUNTRY_INFO!C59=0," ",COUNTRY_INFO!C59) -> Overberg DM | D59: =IF(OR(COUNTRY_INFO!$T$9:$T$1000="T1 (PZQ+ALB/MBD)",COUNTRY_INFO!$U$9:$U$1000="T1 (PZQ+ALB/MBD)"), "T1 (PZQ+ALB/MBD)", " ") ->  | K59: 0 | O59: 0
A60: =IF(COUNTRY_INFO!A60=0," ",COUNTRY_INFO!A60) -> South Africa | B60: =IF(COUNTRY_INFO!B60=0," ",COUNTRY_INFO!B60) -> Western Cape | C60: =IF(COUNTRY_INFO!C60=0," ",COUNTRY_INFO!C60) -> West Coast DM | D60: =IF(OR(COUNTRY_INFO!$T$9:$T$1000="T1 (PZQ+ALB/MBD)",COUNTRY_INFO!$U$9:$U$1000="T1 (PZQ+ALB/MBD)"), "T1 (PZQ+ALB/MBD)", " ") ->  | K60: 0 | O60: 0

Sheet T2 (hidden)
A1: T 2 - Praziquantel (PZQ)
A2: Administrative structure, population requiring PC by age group, population treated by age group and coverage
A4: TOTAL | F4: =SUM(F$9:F$1000) -> 0 | G4: 0 | H4: 0 | I4: 0 | J4: 0 | K4: 0 | L4: 0 | M4: 0 | N4: =IF(F4<>0, IF(J4/F4*100=0, "-", J4/F4*100), " ") ->  | O4: =IF(G4<>0, IF(K4/G4*100=0, "-", K4/G4*100), " ") ->  | P4: =IF(H4<>0, IF(L4/H4*100=0, "-", L4/H4*100), " ") ->  | Q4: =IF(I4<>0, IF(M4/I4*100=0, "-", M4/I4*100), " ") -> 
D6: PC implemented | E6: Date | F6: Population targeted for T2 | J6: Population treated | N6: Programme coverage (%)
A7: Country | B7: Province/State | C7: District | F7: PreSAC | G7: SAC | H7: Adults | I7: Total | J7: PreSAC | K7: SAC | L7: Adults | M7: Total | N7: PreSAC | O7: SAC | P7: Adults | Q7: Total
A9: =IF(COUNTRY_INFO!A9=0," ",COUNTRY_INFO!A9) -> South Africa | B9: =IF(COUNTRY_INFO!B9=0," ",COUNTRY_INFO!B9) -> Eastern Cape | C9: =IF(COUNTRY_INFO!C9=0," ",COUNTRY_INFO!C9) -> A Nzo DM | D9: =IF(OR(COUNTRY_INFO!$T$9:$T$1000="T2 (PZQ)",COUNTRY_INFO!$U$9:$U$1000="T2 (PZQ)"), "T2 (PZQ)", " ") ->  | I9: =SUM(F9:H9) -> 0 | M9: =SUM(J9:L9) -> 0 | N9: =IF(F9<>0, IF(J9/F9*100=0, "-", J9/F9*100), " ") -> 
A10: =IF(COUNTRY_INFO!A10=0," ",COUNTRY_INFO!A10) -> South Africa | B10: =IF(COUNTRY_INFO!B10=0," ",COUNTRY_INFO!B10) -> Eastern Cape | C10: =IF(COUNTRY_INFO!C10=0," ",COUNTRY_INFO!C10) -> Amathole DM | D10: =IF(OR(COUNTRY_INFO!$T$9:$T$1000="T2 (PZQ)",COUNTRY_INFO!$U$9:$U$1000="T2 (PZQ)"), "T2 (PZQ)", " ") ->  | I10: =SUM(F10:H10) -> 0 | M10: =SUM(J10:L10) -> 0 | N10: =IF(F10<>0, IF(J10/F10*100=0, "-", J10/F10*100), " ") ->  | O10: =IF(G10<>0, IF(K10/G10*100=0, "-", K10/G10*100), " ") ->  | P10: =IF(H10<>0, IF(L10/H10*100=0, "-", L10/H10*100), " ") ->  | Q10: =IF(I10<>0, IF(M10/I10*100=0, "-", M10/I10*100), " ") -> 
A11: =IF(COUNTRY_INFO!A11=0," ",COUNTRY_INFO!A11) -> South Africa | B11: =IF(COUNTRY_INFO!B11=0," ",COUNTRY_INFO!B11) -> Eastern Cape | C11: =IF(COUNTRY_INFO!C11=0," ",COUNTRY_INFO!C11) -> Buffalo City MM | D11: =IF(OR(COUNTRY_INFO!$T$9:$T$1000="T2 (PZQ)",COUNTRY_INFO!$U$9:$U$1000="T2 (PZQ)"), "T2 (PZQ)", " ") ->  | I11: 0 | M11: 0
A12: =IF(COUNTRY_INFO!A12=0," ",COUNTRY_INFO!A12) -> South Africa | B12: =IF(COUNTRY_INFO!B12=0," ",COUNTRY_INFO!B12) -> Eastern Cape | C12: =IF(COUNTRY_INFO!C12=0," ",COUNTRY_INFO!C12) -> C Hani DM | D12: =IF(OR(COUNTRY_INFO!$T$9:$T$1000="T2 (PZQ)",COUNTRY_INFO!$U$9:$U$1000="T2 (PZQ)"), "T2 (PZQ)", " ") ->  | I12: 0 | M12: 0
A13: =IF(COUNTRY_INFO!A13=0," ",COUNTRY_INFO!A13) -> South Africa | B13: =IF(COUNTRY_INFO!B13=0," ",COUNTRY_INFO!B13) -> Eastern Cape | C13: =IF(COUNTRY_INFO!C13=0," ",COUNTRY_INFO!C13) -> Joe Gqabi DM | D13: =IF(OR(COUNTRY_INFO!$T$9:$T$1000="T2 (PZQ)",COUNTRY_INFO!$U$9:$U$1000="T2 (PZQ)"), "T2 (PZQ)", " ") ->  | I13: 0 | M13: 0
A14: =IF(COUNTRY_INFO!A14=0," ",COUNTRY_INFO!A14) -> South Africa | B14: =IF(COUNTRY_INFO!B14=0," ",COUNTRY_INFO!B14) -> Eastern Cape | C14: =IF(COUNTRY_INFO!C14=0," ",COUNTRY_INFO!C14) -> N Mandela Bay MM | D14: =IF(OR(COUNTRY_INFO!$T$9:$T$1000="T2 (PZQ)",COUNTRY_INFO!$U$9:$U$1000="T2 (PZQ)"), "T2 (PZQ)", " ") ->  | I14: 0 | M14: 0
A15: =IF(COUNTRY_INFO!A15=0," ",COUNTRY_INFO!A15) -> South Africa | B15: =IF(COUNTRY_INFO!B15=0," ",COUNTRY_INFO!B15) -> Eastern Cape | C15: =IF(COUNTRY_INFO!C15=0," ",COUNTRY_INFO!C15) -> O Tambo DM | D15: =IF(OR(COUNTRY_INFO!$T$9:$T$1000="T2 (PZQ)",COUNTRY_INFO!$U$9:$U$1000="T2 (PZQ)"), "T2 (PZQ)", " ") ->  | I15: 0 | M15: 0
A16: =IF(COUNTRY_INFO!A16=0," ",COUNTRY_INFO!A16) -> South Africa | B16: =IF(COUNTRY_INFO!B16=0," ",COUNTRY_INFO!B16) -> Eastern Cape | C16: =IF(COUNTRY_INFO!C16=0," ",COUNTRY_INFO!C16) -> Sarah Baartman DM | D16: =IF(OR(COUNTRY_INFO!$T$9:$T$1000="T2 (PZQ)",COUNTRY_INFO!$U$9:$U$1000="T2 (PZQ)"), "T2 (PZQ)", " ") ->  | I16: 0 | M16: 0
A17: =IF(COUNTRY_INFO!A17=0," ",COUNTRY_INFO!A17) -> South Africa | B17: =IF(COUNTRY_INFO!B17=0," ",COUNTRY_INFO!B17) -> Free State | C17: =IF(COUNTRY_INFO!C17=0," ",COUNTRY_INFO!C17) -> Fezile Dabi DM | D17: =IF(OR(COUNTRY_INFO!$T$9:$T$1000="T2 (PZQ)",COUNTRY_INFO!$U$9:$U$1000="T2 (PZQ)"), "T2 (PZQ)", " ") ->  | I17: 0 | M17: 0
A18: =IF(COUNTRY_INFO!A18=0," ",COUNTRY_INFO!A18) -> South Africa | B18: =IF(COUNTRY_INFO!B18=0," ",COUNTRY_INFO!B18) -> Free State | C18: =IF(COUNTRY_INFO!C18=0," ",COUNTRY_INFO!C18) -> Lejweleputswa DM | D18: =IF(OR(COUNTRY_INFO!$T$9:$T$1000="T2 (PZQ)",COUNTRY_INFO!$U$9:$U$1000="T2 (PZQ)"), "T2 (PZQ)", " ") ->  | I18: 0 | M18: 0
A19: =IF(COUNTRY_INFO!A19=0," ",COUNTRY_INFO!A19) -> South Africa | B19: =IF(COUNTRY_INFO!B19=0," ",COUNTRY_INFO!B19) -> Free State | C19: =IF(COUNTRY_INFO!C19=0," ",COUNTRY_INFO!C19) -> Mangaung MM | D19: =IF(OR(COUNTRY_INFO!$T$9:$T$1000="T2 (PZQ)",COUNTRY_INFO!$U$9:$U$1000="T2 (PZQ)"), "T2 (PZQ)", " ") ->  | I19: 0 | M19: 0
A20: =IF(COUNTRY_INFO!A20=0," ",COUNTRY_INFO!A20) -> South Africa | B20: =IF(COUNTRY_INFO!B20=0," ",COUNTRY_INFO!B20) -> Free State | C20: =IF(COUNTRY_INFO!C20=0," ",COUNTRY_INFO!C20) -> T Mofutsanyane DM | D20: =IF(OR(COUNTRY_INFO!$T$9:$T$1000="T2 (PZQ)",COUNTRY_INFO!$U$9:$U$1000="T2 (PZQ)"), "T2 (PZQ)", " ") ->  | I20: 0 | M20: 0
A21: =IF(COUNTRY_INFO!A21=0," ",COUNTRY_INFO!A21) -> South Africa | B21: =IF(COUNTRY_INFO!B21=0," ",COUNTRY_INFO!B21) -> Free State | C21: =IF(COUNTRY_INFO!C21=0," ",COUNTRY_INFO!C21) -> Xhariep DM | D21: =IF(OR(COUNTRY_INFO!$T$9:$T$1000="T2 (PZQ)",COUNTRY_INFO!$U$9:$U$1000="T2 (PZQ)"), "T2 (PZQ)", " ") ->  | I21: 0 | M21: 0
A22: =IF(COUNTRY_INFO!A22=0," ",COUNTRY_INFO!A22) -> South Africa | B22: =IF(COUNTRY_INFO!B22=0," ",COUNTRY_INFO!B22) -> Gauteng | C22: =IF(COUNTRY_INFO!C22=0," ",COUNTRY_INFO!C22) -> Ekurhuleni MM | D22: =IF(OR(COUNTRY_INFO!$T$9:$T$1000="T2 (PZQ)",COUNTRY_INFO!$U$9:$U$1000="T2 (PZQ)"), "T2 (PZQ)", " ") ->  | I22: 0 | M22: 0
A23: =IF(COUNTRY_INFO!A23=0," ",COUNTRY_INFO!A23) -> South Africa | B23: =IF(COUNTRY_INFO!B23=0," ",COUNTRY_INFO!B23) -> Gauteng | C23: =IF(COUNTRY_INFO!C23=0," ",COUNTRY_INFO!C23) -> Johannesburg MM | D23: =IF(OR(COUNTRY_INFO!$T$9:$T$1000="T2 (PZQ)",COUNTRY_INFO!$U$9:$U$1000="T2 (PZQ)"), "T2 (PZQ)", " ") ->  | I23: 0 | M23: 0
A24: =IF(COUNTRY_INFO!A24=0," ",COUNTRY_INFO!A24) -> South Africa | B24: =IF(COUNTRY_INFO!B24=0," ",COUNTRY_INFO!B24) -> Gauteng | C24: =IF(COUNTRY_INFO!C24=0," ",COUNTRY_INFO!C24) -> Sedibeng DM | D24: =IF(OR(COUNTRY_INFO!$T$9:$T$1000="T2 (PZQ)",COUNTRY_INFO!$U$9:$U$1000="T2 (PZQ)"), "T2 (PZQ)", " ") ->  | I24: 0 | M24: 0
A25: =IF(COUNTRY_INFO!A25=0," ",COUNTRY_INFO!A25) -> South Africa | B25: =IF(COUNTRY_INFO!B25=0," ",COUNTRY_INFO!B25) -> Gauteng | C25: =IF(COUNTRY_INFO!C25=0," ",COUNTRY_INFO!C25) -> Tshwane MM | D25: =IF(OR(COUNTRY_INFO!$T$9:$T$1000="T2 (PZQ)",COUNTRY_INFO!$U$9:$U$1000="T2 (PZQ)"), "T2 (PZQ)", " ") ->  | I25: 0 | M25: 0
A26: =IF(COUNTRY_INFO!A26=0," ",COUNTRY_INFO!A26) -> South Africa | B26: =IF(COUNTRY_INFO!B26=0," ",COUNTRY_INFO!B26) -> Gauteng | C26: =IF(COUNTRY_INFO!C26=0," ",COUNTRY_INFO!C26) -> West Rand DM | D26: =IF(OR(COUNTRY_INFO!$T$9:$T$1000="T2 (PZQ)",COUNTRY_INFO!$U$9:$U$1000="T2 (PZQ)"), "T2 (PZQ)", " ") ->  | I26: 0 | M26: 0
A27: =IF(COUNTRY_INFO!A27=0," ",COUNTRY_INFO!A27) -> South Africa | B27: =IF(COUNTRY_INFO!B27=0," ",COUNTRY_INFO!B27) -> KwaZulu-Natal | C27: =IF(COUNTRY_INFO!C27=0," ",COUNTRY_INFO!C27) -> Amajuba DM | D27: =IF(OR(COUNTRY_INFO!$T$9:$T$1000="T2 (PZQ)",COUNTRY_INFO!$U$9:$U$1000="T2 (PZQ)"), "T2 (PZQ)", " ") ->  | I27: 0 | M27: 0
A28: =IF(COUNTRY_INFO!A28=0," ",COUNTRY_INFO!A28) -> South Africa | B28: =IF(COUNTRY_INFO!B28=0," ",COUNTRY_INFO!B28) -> KwaZulu-Natal | C28: =IF(COUNTRY_INFO!C28=0," ",COUNTRY_INFO!C28) -> eThekwini MM | D28: =IF(OR(COUNTRY_INFO!$T$9:$T$1000="T2 (PZQ)",COUNTRY_INFO!$U$9:$U$1000="T2 (PZQ)"), "T2 (PZQ)", " ") ->  | I28: 0 | M28: 0
A29: =IF(COUNTRY_INFO!A29=0," ",COUNTRY_INFO!A29) -> South Africa | B29: =IF(COUNTRY_INFO!B29=0," ",COUNTRY_INFO!B29) -> KwaZulu-Natal | C29: =IF(COUNTRY_INFO!C29=0," ",COUNTRY_INFO!C29) -> Harry Gwala DM | D29: =IF(OR(COUNTRY_INFO!$T$9:$T$1000="T2 (PZQ)",COUNTRY_INFO!$U$9:$U$1000="T2 (PZQ)"), "T2 (PZQ)", " ") ->  | I29: 0 | M29: 0
A30: =IF(COUNTRY_INFO!A30=0," ",COUNTRY_INFO!A30) -> South Africa | B30: =IF(COUNTRY_INFO!B30=0," ",COUNTRY_INFO!B30) -> KwaZulu-Natal | C30: =IF(COUNTRY_INFO!C30=0," ",COUNTRY_INFO!C30) -> iLembe DM | D30: =IF(OR(COUNTRY_INFO!$T$9:$T$1000="T2 (PZQ)",COUNTRY_INFO!$U$9:$U$1000="T2 (PZQ)"), "T2 (PZQ)", " ") ->  | I30: 0 | M30: 0
A31: =IF(COUNTRY_INFO!A31=0," ",COUNTRY_INFO!A31) -> South Africa | B31: =IF(COUNTRY_INFO!B31=0," ",COUNTRY_INFO!B31) -> KwaZulu-Natal | C31: =IF(COUNTRY_INFO!C31=0," ",COUNTRY_INFO!C31) -> Ugu DM | D31: =IF(OR(COUNTRY_INFO!$T$9:$T$1000="T2 (PZQ)",COUNTRY_INFO!$U$9:$U$1000="T2 (PZQ)"), "T2 (PZQ)", " ") ->  | I31: 0 | M31: 0
A32: =IF(COUNTRY_INFO!A32=0," ",COUNTRY_INFO!A32) -> South Africa | B32: =IF(COUNTRY_INFO!B32=0," ",COUNTRY_INFO!B32) -> KwaZulu-Natal | C32: =IF(COUNTRY_INFO!C32=0," ",COUNTRY_INFO!C32) -> uMgungundlovu DM | D32: =IF(OR(COUNTRY_INFO!$T$9:$T$1000="T2 (PZQ)",COUNTRY_INFO!$U$9:$U$1000="T2 (PZQ)"), "T2 (PZQ)", " ") ->  | I32: 0 | M32: 0
A33: =IF(COUNTRY_INFO!A33=0," ",COUNTRY_INFO!A33) -> South Africa | B33: =IF(COUNTRY_INFO!B33=0," ",COUNTRY_INFO!B33) -> KwaZulu-Natal | C33: =IF(COUNTRY_INFO!C33=0," ",COUNTRY_INFO!C33) -> Umkhanyakude DM | D33: =IF(OR(COUNTRY_INFO!$T$9:$T$1000="T2 (PZQ)",COUNTRY_INFO!$U$9:$U$1000="T2 (PZQ)"), "T2 (PZQ)", " ") ->  | I33: 0 | M33: 0
A34: =IF(COUNTRY_INFO!A34=0," ",COUNTRY_INFO!A34) -> South Africa | B34: =IF(COUNTRY_INFO!B34=0," ",COUNTRY_INFO!B34) -> KwaZulu-Natal | C34: =IF(COUNTRY_INFO!C34=0," ",COUNTRY_INFO!C34) -> Umzinyathi DM | D34: =IF(OR(COUNTRY_INFO!$T$9:$T$1000="T2 (PZQ)",COUNTRY_INFO!$U$9:$U$1000="T2 (PZQ)"), "T2 (PZQ)", " ") ->  | I34: 0 | M34: 0
A35: =IF(COUNTRY_INFO!A35=0," ",COUNTRY_INFO!A35) -> South Africa | B35: =IF(COUNTRY_INFO!B35=0," ",COUNTRY_INFO!B35) -> KwaZulu-Natal | C35: =IF(COUNTRY_INFO!C35=0," ",COUNTRY_INFO!C35) -> Uthukela DM | D35: =IF(OR(COUNTRY_INFO!$T$9:$T$1000="T2 (PZQ)",COUNTRY_INFO!$U$9:$U$1000="T2 (PZQ)"), "T2 (PZQ)", " ") ->  | I35: 0 | M35: 0
A36: =IF(COUNTRY_INFO!A36=0," ",COUNTRY_INFO!A36) -> South Africa | B36: =IF(COUNTRY_INFO!B36=0," ",COUNTRY_INFO!B36) -> KwaZulu-Natal | C36: =IF(COUNTRY_INFO!C36=0," ",COUNTRY_INFO!C36) -> Uthungulu DM | D36: =IF(OR(COUNTRY_INFO!$T$9:$T$1000="T2 (PZQ)",COUNTRY_INFO!$U$9:$U$1000="T2 (PZQ)"), "T2 (PZQ)", " ") ->  | I36: 0 | M36: 0
A37: =IF(COUNTRY_INFO!A37=0," ",COUNTRY_INFO!A37) -> South Africa | B37: =IF(COUNTRY_INFO!B37=0," ",COUNTRY_INFO!B37) -> KwaZulu-Natal | C37: =IF(COUNTRY_INFO!C37=0," ",COUNTRY_INFO!C37) -> Zululand DM | D37: =IF(OR(COUNTRY_INFO!$T$9:$T$1000="T2 (PZQ)",COUNTRY_INFO!$U$9:$U$1000="T2 (PZQ)"), "T2 (PZQ)", " ") ->  | I37: 0 | M37: 0
A38: =IF(COUNTRY_INFO!A38=0," ",COUNTRY_INFO!A38) -> South Africa | B38: =IF(COUNTRY_INFO!B38=0," ",COUNTRY_INFO!B38) -> Limpopo | C38: =IF(COUNTRY_INFO!C38=0," ",COUNTRY_INFO!C38) -> Capricorn DM | D38: =IF(OR(COUNTRY_INFO!$T$9:$T$1000="T2 (PZQ)",COUNTRY_INFO!$U$9:$U$1000="T2 (PZQ)"), "T2 (PZQ)", " ") ->  | I38: 0 | M38: 0
A39: =IF(COUNTRY_INFO!A39=0," ",COUNTRY_INFO!A39) -> South Africa | B39: =IF(COUNTRY_INFO!B39=0," ",COUNTRY_INFO!B39) -> Limpopo | C39: =IF(COUNTRY_INFO!C39=0," ",COUNTRY_INFO!C39) -> Mopani DM | D39: =IF(OR(COUNTRY_INFO!$T$9:$T$1000="T2 (PZQ)",COUNTRY_INFO!$U$9:$U$1000="T2 (PZQ)"), "T2 (PZQ)", " ") ->  | I39: 0 | M39: 0
A40: =IF(COUNTRY_INFO!A40=0," ",COUNTRY_INFO!A40) -> South Africa | B40: =IF(COUNTRY_INFO!B40=0," ",COUNTRY_INFO!B40) -> Limpopo | C40: =IF(COUNTRY_INFO!C40=0," ",COUNTRY_INFO!C40) -> Sekhukhune DM | D40: =IF(OR(COUNTRY_INFO!$T$9:$T$1000="T2 (PZQ)",COUNTRY_INFO!$U$9:$U$1000="T2 (PZQ)"), "T2 (PZQ)", " ") ->  | I40: 0 | M40: 0
A41: =IF(COUNTRY_INFO!A41=0," ",COUNTRY_INFO!A41) -> South Africa | B41: =IF(COUNTRY_INFO!B41=0," ",COUNTRY_INFO!B41) -> Limpopo | C41: =IF(COUNTRY_INFO!C41=0," ",COUNTRY_INFO!C41) -> Vhembe DM | D41: =IF(OR(COUNTRY_INFO!$T$9:$T$1000="T2 (PZQ)",COUNTRY_INFO!$U$9:$U$1000="T2 (PZQ)"), "T2 (PZQ)", " ") ->  | I41: 0 | M41: 0
A42: =IF(COUNTRY_INFO!A42=0," ",COUNTRY_INFO!A42) -> South Africa | B42: =IF(COUNTRY_INFO!B42=0," ",COUNTRY_INFO!B42) -> Limpopo | C42: =IF(COUNTRY_INFO!C42=0," ",COUNTRY_INFO!C42) -> Waterberg DM | D42: =IF(OR(COUNTRY_INFO!$T$9:$T$1000="T2 (PZQ)",COUNTRY_INFO!$U$9:$U$1000="T2 (PZQ)"), "T2 (PZQ)", " ") ->  | I42: 0 | M42: 0
A43: =IF(COUNTRY_INFO!A43=0," ",COUNTRY_INFO!A43) -> South Africa | B43: =IF(COUNTRY_INFO!B43=0," ",COUNTRY_INFO!B43) -> Mpumalanga | C43: =IF(COUNTRY_INFO!C43=0," ",COUNTRY_INFO!C43) -> Ehlanzeni DM | D43: =IF(OR(COUNTRY_INFO!$T$9:$T$1000="T2 (PZQ)",COUNTRY_INFO!$U$9:$U$1000="T2 (PZQ)"), "T2 (PZQ)", " ") ->  | I43: 0 | M43: 0
A44: =IF(COUNTRY_INFO!A44=0," ",COUNTRY_INFO!A44) -> South Africa | B44: =IF(COUNTRY_INFO!B44=0," ",COUNTRY_INFO!B44) -> Mpumalanga | C44: =IF(COUNTRY_INFO!C44=0," ",COUNTRY_INFO!C44) -> G Sibande DM | D44: =IF(OR(COUNTRY_INFO!$T$9:$T$1000="T2 (PZQ)",COUNTRY_INFO!$U$9:$U$1000="T2 (PZQ)"), "T2 (PZQ)", " ") ->  | I44: 0 | M44: 0
A45: =IF(COUNTRY_INFO!A45=0," ",COUNTRY_INFO!A45) -> South Africa | B45: =IF(COUNTRY_INFO!B45=0," ",COUNTRY_INFO!B45) -> Mpumalanga | C45: =IF(COUNTRY_INFO!C45=0," ",COUNTRY_INFO!C45) -> Nkangala DM | D45: =IF(OR(COUNTRY_INFO!$T$9:$T$1000="T2 (PZQ)",COUNTRY_INFO!$U$9:$U$1000="T2 (PZQ)"), "T2 (PZQ)", " ") ->  | I45: 0 | M45: 0
A46: =IF(COUNTRY_INFO!A46=0," ",COUNTRY_INFO!A46) -> South Africa | B46: =IF(COUNTRY_INFO!B46=0," ",COUNTRY_INFO!B46) -> North West | C46: =IF(COUNTRY_INFO!C46=0," ",COUNTRY_INFO!C46) -> Bojanala Platinum DM | D46: =IF(OR(COUNTRY_INFO!$T$9:$T$1000="T2 (PZQ)",COUNTRY_INFO!$U$9:$U$1000="T2 (PZQ)"), "T2 (PZQ)", " ") ->  | I46: 0 | M46: 0
A47: =IF(COUNTRY_INFO!A47=0," ",COUNTRY_INFO!A47) -> South Africa | B47: =IF(COUNTRY_INFO!B47=0," ",COUNTRY_INFO!B47) -> North West | C47: =IF(COUNTRY_INFO!C47=0," ",COUNTRY_INFO!C47) -> Dr K Kaunda DM | D47: =IF(OR(COUNTRY_INFO!$T$9:$T$1000="T2 (PZQ)",COUNTRY_INFO!$U$9:$U$1000="T2 (PZQ)"), "T2 (PZQ)", " ") ->  | I47: 0 | M47: 0
A48: =IF(COUNTRY_INFO!A48=0," ",COUNTRY_INFO!A48) -> South Africa | B48: =IF(COUNTRY_INFO!B48=0," ",COUNTRY_INFO!B48) -> North West | C48: =IF(COUNTRY_INFO!C48=0," ",COUNTRY_INFO!C48) -> Ngaka Modiri Molema DM | D48: =IF(OR(COUNTRY_INFO!$T$9:$T$1000="T2 (PZQ)",COUNTRY_INFO!$U$9:$U$1000="T2 (PZQ)"), "T2 (PZQ)", " ") ->  | I48: 0 | M48: 0
A49: =IF(COUNTRY_INFO!A49=0," ",COUNTRY_INFO!A49) -> South Africa | B49: =IF(COUNTRY_INFO!B49=0," ",COUNTRY_INFO!B49) -> North West | C49: =IF(COUNTRY_INFO!C49=0," ",COUNTRY_INFO!C49) -> Ruth Segomotsi Mompati DM | D49: =IF(OR(COUNTRY_INFO!$T$9:$T$1000="T2 (PZQ)",COUNTRY_INFO!$U$9:$U$1000="T2 (PZQ)"), "T2 (PZQ)", " ") ->  | I49: 0 | M49: 0
A50: =IF(COUNTRY_INFO!A50=0," ",COUNTRY_INFO!A50) -> South Africa | B50: =IF(COUNTRY_INFO!B50=0," ",COUNTRY_INFO!B50) -> Northern Cape | C50: =IF(COUNTRY_INFO!C50=0," ",COUNTRY_INFO!C50) -> Frances Baard DM | D50: =IF(OR(COUNTRY_INFO!$T$9:$T$1000="T2 (PZQ)",COUNTRY_INFO!$U$9:$U$1000="T2 (PZQ)"), "T2 (PZQ)", " ") ->  | I50: 0 | M50: 0
A51: =IF(COUNTRY_INFO!A51=0," ",COUNTRY_INFO!A51) -> South Africa | B51: =IF(COUNTRY_INFO!B51=0," ",COUNTRY_INFO!B51) -> Northern Cape | C51: =IF(COUNTRY_INFO!C51=0," ",COUNTRY_INFO!C51) -> J T Gaetsewe DM | D51: =IF(OR(COUNTRY_INFO!$T$9:$T$1000="T2 (PZQ)",COUNTRY_INFO!$U$9:$U$1000="T2 (PZQ)"), "T2 (PZQ)", " ") ->  | I51: 0 | M51: 0
A52: =IF(COUNTRY_INFO!A52=0," ",COUNTRY_INFO!A52) -> South Africa | B52: =IF(COUNTRY_INFO!B52=0," ",COUNTRY_INFO!B52) -> Northern Cape | C52: =IF(COUNTRY_INFO!C52=0," ",COUNTRY_INFO!C52) -> Namakwa DM | D52: =IF(OR(COUNTRY_INFO!$T$9:$T$1000="T2 (PZQ)",COUNTRY_INFO!$U$9:$U$1000="T2 (PZQ)"), "T2 (PZQ)", " ") ->  | I52: 0 | M52: 0
A53: =IF(COUNTRY_INFO!A53=0," ",COUNTRY_INFO!A53) -> South Africa | B53: =IF(COUNTRY_INFO!B53=0," ",COUNTRY_INFO!B53) -> Northern Cape | C53: =IF(COUNTRY_INFO!C53=0," ",COUNTRY_INFO!C53) -> Pixley ka Seme DM | D53: =IF(OR(COUNTRY_INFO!$T$9:$T$1000="T2 (PZQ)",COUNTRY_INFO!$U$9:$U$1000="T2 (PZQ)"), "T2 (PZQ)", " ") ->  | I53: 0 | M53: 0
A54: =IF(COUNTRY_INFO!A54=0," ",COUNTRY_INFO!A54) -> South Africa | B54: =IF(COUNTRY_INFO!B54=0," ",COUNTRY_INFO!B54) -> Northern Cape | C54: =IF(COUNTRY_INFO!C54=0," ",COUNTRY_INFO!C54) -> ZF Mgcawu DM | D54: =IF(OR(COUNTRY_INFO!$T$9:$T$1000="T2 (PZQ)",COUNTRY_INFO!$U$9:$U$1000="T2 (PZQ)"), "T2 (PZQ)", " ") ->  | I54: 0 | M54: 0
A55: =IF(COUNTRY_INFO!A55=0," ",COUNTRY_INFO!A55) -> South Africa | B55: =IF(COUNTRY_INFO!B55=0," ",COUNTRY_INFO!B55) -> Western Cape | C55: =IF(COUNTRY_INFO!C55=0," ",COUNTRY_INFO!C55) -> Cape Town MM | D55: =IF(OR(COUNTRY_INFO!$T$9:$T$1000="T2 (PZQ)",COUNTRY_INFO!$U$9:$U$1000="T2 (PZQ)"), "T2 (PZQ)", " ") ->  | I55: 0 | M55: 0
A56: =IF(COUNTRY_INFO!A56=0," ",COUNTRY_INFO!A56) -> South Africa | B56: =IF(COUNTRY_INFO!B56=0," ",COUNTRY_INFO!B56) -> Western Cape | C56: =IF(COUNTRY_INFO!C56=0," ",COUNTRY_INFO!C56) -> Cape Winelands DM | D56: =IF(OR(COUNTRY_INFO!$T$9:$T$1000="T2 (PZQ)",COUNTRY_INFO!$U$9:$U$1000="T2 (PZQ)"), "T2 (PZQ)", " ") ->  | I56: 0 | M56: 0
A57: =IF(COUNTRY_INFO!A57=0," ",COUNTRY_INFO!A57) -> South Africa | B57: =IF(COUNTRY_INFO!B57=0," ",COUNTRY_INFO!B57) -> Western Cape | C57: =IF(COUNTRY_INFO!C57=0," ",COUNTRY_INFO!C57) -> Central Karoo DM | D57: =IF(OR(COUNTRY_INFO!$T$9:$T$1000="T2 (PZQ)",COUNTRY_INFO!$U$9:$U$1000="T2 (PZQ)"), "T2 (PZQ)", " ") ->  | I57: 0 | M57: 0
A58: =IF(COUNTRY_INFO!A58=0," ",COUNTRY_INFO!A58) -> South Africa | B58: =IF(COUNTRY_INFO!B58=0," ",COUNTRY_INFO!B58) -> Western Cape | C58: =IF(COUNTRY_INFO!C58=0," ",COUNTRY_INFO!C58) -> Eden DM | D58: =IF(OR(COUNTRY_INFO!$T$9:$T$1000="T2 (PZQ)",COUNTRY_INFO!$U$9:$U$1000="T2 (PZQ)"), "T2 (PZQ)", " ") ->  | I58: 0 | M58: 0
A59: =IF(COUNTRY_INFO!A59=0," ",COUNTRY_INFO!A59) -> South Africa | B59: =IF(COUNTRY_INFO!B59=0," ",COUNTRY_INFO!B59) -> Western Cape | C59: =IF(COUNTRY_INFO!C59=0," ",COUNTRY_INFO!C59) -> Overberg DM | D59: =IF(OR(COUNTRY_INFO!$T$9:$T$1000="T2 (PZQ)",COUNTRY_INFO!$U$9:$U$1000="T2 (PZQ)"), "T2 (PZQ)", " ") ->  | I59: 0 | M59: 0
A60: =IF(COUNTRY_INFO!A60=0," ",COUNTRY_INFO!A60) -> South Africa | B60: =IF(COUNTRY_INFO!B60=0," ",COUNTRY_INFO!B60) -> Western Cape | C60: =IF(COUNTRY_INFO!C60=0," ",COUNTRY_INFO!C60) -> West Coast DM | D60: =IF(OR(COUNTRY_INFO!$T$9:$T$1000="T2 (PZQ)",COUNTRY_INFO!$U$9:$U$1000="T2 (PZQ)"), "T2 (PZQ)", " ") ->  | I60: 0 | M60: 0

Sheet T3_R1
A1: T 3 - Albendazole (ALB) or Mebendazole (MBD) - Round 1 | J1: 15681512 | K1: 1865691 | L1: 6497635
A2: Administrative structure, population requiring PC by age group, population treated by age group and coverage
U3: 41995 | V3: 97818
A4: TOTAL | G4: =SUM(G$9:G$1000) -> 3323023 | H4: 10971313 | I4: 0 | J4: 14294336 | K4: 1865694 | L4: 6497636 | M4: 0 | N4: 8363330 | O4: =IF(G4<>0, IF(K4/G4*100=0, "-", K4/G4*100), " ") -> 56.14448049 | P4: =IF(H4<>0, IF(L4/H4*100=0, "-", L4/H4*100), " ") -> 59.22386865 | Q4: =IF(I4<>0, IF(M4/I4*100=0, "-", M4/I4*100), " ") ->  | R4: =IF(J4<>0, IF(N4/J4*100=0, "-", N4/J4*100), " ") -> 58.50799925
D6: PC implemented | E6: Medicine | F6: Date | G6: Population targeted for T3 | K6: Population treated | O6: Programme coverage (%)
A7: Country | B7: Province/State | C7: District | G7: PreSAC | H7: SAC | I7: Adults | J7: Total | K7: PreSAC | L7: SAC | M7: Adults | N7: Total | O7: PreSAC | P7: SAC | Q7: Adults | R7: Total
A9: =IF(COUNTRY_INFO!A9=0," ",COUNTRY_INFO!A9) -> South Africa | B9: =IF(COUNTRY_INFO!B9=0," ",COUNTRY_INFO!B9) -> Eastern Cape | C9: =IF(COUNTRY_INFO!C9=0," ",COUNTRY_INFO!C9) -> A Nzo DM | D9: =IF(OR(COUNTRY_INFO!$T$9:$T$1000="T3 (ALB/MBD)",COUNTRY_INFO!$U$9:$U$1000="T3 (ALB/MBD)"), "T3 (ALB/MBD)", " ") -> T3 (ALB/MBD) | E9: MBD | F9: August | G9: 72333 | H9: 168483 | J9: =SUM(G9:I9) -> 240816 | K9: 33794 | L9: 127375 | N9: =SUM(K9:M9) -> 161169 | O9: =IF(G9<>0, IF(K9/G9*100=0, "-", K9/G9*100), " ") -> 46.72003097 | P9: 75.60109922 | R9: 66.92620092 | T9: 0.1248951049 | U9: 0.1248951998 | W9: 33794 | X9: 127375
A10: =IF(COUNTRY_INFO!A10=0," ",COUNTRY_INFO!A10) -> South Africa | B10: =IF(COUNTRY_INFO!B10=0," ",COUNTRY_INFO!B10) -> Eastern Cape | C10: =IF(COUNTRY_INFO!C10=0," ",COUNTRY_INFO!C10) -> Amathole DM | D10: =IF(OR(COUNTRY_INFO!$T$9:$T$1000="T3 (ALB/MBD)",COUNTRY_INFO!$U$9:$U$1000="T3 (ALB/MBD)"), "T3 (ALB/MBD)", " ") -> T3 (ALB/MBD) | E10: MBD | F10: August | G10: 77487 | H10: 180489 | J10: =SUM(G10:I10) -> 257976 | K10: 36202 | L10: 136452 | N10: =SUM(K10:M10) -> 172654 | O10: =IF(G10<>0, IF(K10/G10*100=0, "-", K10/G10*100), " ") -> 46.72009498 | P10: =IF(H10<>0, IF(L10/H10*100=0, "-", L10/H10*100), " ") -> 75.60128318 | Q10: =IF(I10<>0, IF(M10/I10*100=0, "-", M10/I10*100), " ") ->  | R10: =IF(J10<>0, IF(N10/J10*100=0, "-", N10/J10*100), " ") -> 66.92638075 | T10: 0.1337943538 | U10: 0.1337951586 | W10: 36202 | X10: 136452
A11: =IF(COUNTRY_INFO!A11=0," ",COUNTRY_INFO!A11) -> South Africa | B11: =IF(COUNTRY_INFO!B11=0," ",COUNTRY_INFO!B11) -> Eastern Cape | C11: =IF(COUNTRY_INFO!C11=0," ",COUNTRY_INFO!C11) -> Buffalo City MM | D11: =IF(OR(COUNTRY_INFO!$T$9:$T$1000="T3 (ALB/MBD)",COUNTRY_INFO!$U$9:$U$1000="T3 (ALB/MBD)"), "T3 (ALB/MBD)", " ") -> T3 (ALB/MBD) | E11: MBD | F11: August | G11: 65895 | H11: 153487 | J11: 219382 | K11: 30786 | L11: 116038 | N11: 146824 | O11: 46.71978147 | P11: 75.60119098 | R11: 66.92618355 | T11: 0.1137788138 | U11: 0.1137787761 | W11: 30786 | X11: 116038
A12: =IF(COUNTRY_INFO!A12=0," ",COUNTRY_INFO!A12) -> South Africa | B12: =IF(COUNTRY_INFO!B12=0," ",COUNTRY_INFO!B12) -> Eastern Cape | C12: =IF(COUNTRY_INFO!C12=0," ",COUNTRY_INFO!C12) -> C Hani DM | D12: =IF(OR(COUNTRY_INFO!$T$9:$T$1000="T3 (ALB/MBD)",COUNTRY_INFO!$U$9:$U$1000="T3 (ALB/MBD)"), "T3 (ALB/MBD)", " ") -> T3 (ALB/MBD) | E12: MBD | F12: August | G12: 69779 | H12: 162533 | J12: 232312 | K12: 32600 | L12: 122877 | N12: 155477 | O12: 46.7189269 | P12: 75.60126251 | R12: 66.92594442 | T12: 0.1204851938 | U12: 0.1204845088 | W12: 32600 | X12: 122877
A13: =IF(COUNTRY_INFO!A13=0," ",COUNTRY_INFO!A13) -> South Africa | B13: =IF(COUNTRY_INFO!B13=0," ",COUNTRY_INFO!B13) -> Eastern Cape | C13: =IF(COUNTRY_INFO!C13=0," ",COUNTRY_INFO!C13) -> Joe Gqabi DM | D13: =IF(OR(COUNTRY_INFO!$T$9:$T$1000="T3 (ALB/MBD)",COUNTRY_INFO!$U$9:$U$1000="T3 (ALB/MBD)"), "T3 (ALB/MBD)", " ") -> T3 (ALB/MBD) | E13: MBD | F13: August | G13: 30877 | H13: 71920 | J13: 102797 | K13: 14426 | L13: 54372 | N13: 68798 | O13: 46.72086019 | P13: 75.60066741 | R13: 66.92607761 | T13: 0.05331433998 | U13: 0.05331376321 | W13: 14426 | X13: 54372
A14: =IF(COUNTRY_INFO!A14=0," ",COUNTRY_INFO!A14) -> South Africa | B14: =IF(COUNTRY_INFO!B14=0," ",COUNTRY_INFO!B14) -> Eastern Cape | C14: =IF(COUNTRY_INFO!C14=0," ",COUNTRY_INFO!C14) -> N Mandela Bay MM | D14: =IF(OR(COUNTRY_INFO!$T$9:$T$1000="T3 (ALB/MBD)",COUNTRY_INFO!$U$9:$U$1000="T3 (ALB/MBD)"), "T3 (ALB/MBD)", " ") -> T3 (ALB/MBD) | E14: MBD | F14: August | G14: 103459 | H14: 240985 | J14: 344444 | K14: 48336 | L14: 182187 | N14: 230523 | O14: 46.7199567 | P14: 75.60097101 | R14: 66.92611861 | T14: 0.1786393853 | U14: 0.1786403953 | W14: 48336 | X14: 182187
A15: =IF(COUNTRY_INFO!A15=0," ",COUNTRY_INFO!A15) -> South Africa | B15: =IF(COUNTRY_INFO!B15=0," ",COUNTRY_INFO!B15) -> Eastern Cape | C15: =IF(COUNTRY_INFO!C15=0," ",COUNTRY_INFO!C15) -> O Tambo DM | D15: =IF(OR(COUNTRY_INFO!$T$9:$T$1000="T3 (ALB/MBD)",COUNTRY_INFO!$U$9:$U$1000="T3 (ALB/MBD)"), "T3 (ALB/MBD)", " ") -> T3 (ALB/MBD) | E15: MBD | F15: August | G15: 118905 | H15: 276961 | J15: 395866 | K15: 55552 | L15: 209386 | N15: 264938 | O15: 46.71965014 | P15: 75.60125794 | R15: 66.92618209 | T15: 0.2053095053 | U15: 0.2053091375 | W15: 55552 | X15: 209386
A16: =IF(COUNTRY_INFO!A16=0," ",COUNTRY_INFO!A16) -> South Africa | B16: =IF(COUNTRY_INFO!B16=0," ",COUNTRY_INFO!B16) -> Eastern Cape | C16: =IF(COUNTRY_INFO!C16=0," ",COUNTRY_INFO!C16) -> Sarah Baartman DM | D16: =IF(OR(COUNTRY_INFO!$T$9:$T$1000="T3 (ALB/MBD)",COUNTRY_INFO!$U$9:$U$1000="T3 (ALB/MBD)"), "T3 (ALB/MBD)", " ") -> T3 (ALB/MBD) | E16: MBD | F16: August | G16: 40415 | H16: 94137 | J16: 134552 | K16: 18882 | L16: 71169 | N16: 90051 | O16: 46.72027712 | P16: 75.60151694 | R16: 66.92654141 | T16: 0.06978330312 | U16: 0.06978306072 | W16: 18882 | X16: 71169
A17: =IF(COUNTRY_INFO!A17=0," ",COUNTRY_INFO!A17) -> South Africa | B17: =IF(COUNTRY_INFO!B17=0," ",COUNTRY_INFO!B17) -> Free State | C17: =IF(COUNTRY_INFO!C17=0," ",COUNTRY_INFO!C17) -> Fezile Dabi DM | D17: =IF(OR(COUNTRY_INFO!$T$9:$T$1000="T3 (ALB/MBD)",COUNTRY_INFO!$U$9:$U$1000="T3 (ALB/MBD)"), "T3 (ALB/MBD)", " ") -> T3 (ALB/MBD) | E17: MBD | F17: August | H17: 104853 | J17: 104853 | L17: 69750 | N17: 69750 | P17: 66.52170181 | R17: 66.52170181
A18: =IF(COUNTRY_INFO!A18=0," ",COUNTRY_INFO!A18) -> South Africa | B18: =IF(COUNTRY_INFO!B18=0," ",COUNTRY_INFO!B18) -> Free State | C18: =IF(COUNTRY_INFO!C18=0," ",COUNTRY_INFO!C18) -> Lejweleputswa DM | D18: =IF(OR(COUNTRY_INFO!$T$9:$T$1000="T3 (ALB/MBD)",COUNTRY_INFO!$U$9:$U$1000="T3 (ALB/MBD)"), "T3 (ALB/MBD)", " ") -> T3 (ALB/MBD) | E18: MBD | F18: August | H18: 120141 | J18: 120141 | L18: 66450 | N18: 66450 | P18: 55.31001074 | R18: 55.31001074
A19: =IF(COUNTRY_INFO!A19=0," ",COUNTRY_INFO!A19) -> South Africa | B19: =IF(COUNTRY_INFO!B19=0," ",COUNTRY_INFO!B19) -> Free State | C19: =IF(COUNTRY_INFO!C19=0," ",COUNTRY_INFO!C19) -> Mangaung MM | D19: =IF(OR(COUNTRY_INFO!$T$9:$T$1000="T3 (ALB/MBD)",COUNTRY_INFO!$U$9:$U$1000="T3 (ALB/MBD)"), "T3 (ALB/MBD)", " ") -> T3 (ALB/MBD) | E19: MBD | F19: August | H19: 160323 | J19: 160323 | L19: 104550 | N19: 104550 | P19: 65.21210307 | R19: 65.21210307
A20: =IF(COUNTRY_INFO!A20=0," ",COUNTRY_INFO!A20) -> South Africa | B20: =IF(COUNTRY_INFO!B20=0," ",COUNTRY_INFO!B20) -> Free State | C20: =IF(COUNTRY_INFO!C20=0," ",COUNTRY_INFO!C20) -> T Mofutsanyane DM | D20: =IF(OR(COUNTRY_INFO!$T$9:$T$1000="T3 (ALB/MBD)",COUNTRY_INFO!$U$9:$U$1000="T3 (ALB/MBD)"), "T3 (ALB/MBD)", " ") -> T3 (ALB/MBD) | E20: MBD | F20: August | H20: 143925 | J20: 143925 | L20: 97950 | N20: 97950 | P20: 68.05627931 | R20: 68.05627931
A21: =IF(COUNTRY_INFO!A21=0," ",COUNTRY_INFO!A21) -> South Africa | B21: =IF(COUNTRY_INFO!B21=0," ",COUNTRY_INFO!B21) -> Free State | C21: =IF(COUNTRY_INFO!C21=0," ",COUNTRY_INFO!C21) -> Xhariep DM | D21: =IF(OR(COUNTRY_INFO!$T$9:$T$1000="T3 (ALB/MBD)",COUNTRY_INFO!$U$9:$U$1000="T3 (ALB/MBD)"), "T3 (ALB/MBD)", " ") -> T3 (ALB/MBD) | E21: MBD | F21: August | H21: 27668 | J21: 27668 | L21: 18450 | N21: 18450 | P21: 66.68353332 | R21: 66.68353332
A22: =IF(COUNTRY_INFO!A22=0," ",COUNTRY_INFO!A22) -> South Africa | B22: =IF(COUNTRY_INFO!B22=0," ",COUNTRY_INFO!B22) -> Gauteng | C22: =IF(COUNTRY_INFO!C22=0," ",COUNTRY_INFO!C22) -> Ekurhuleni MM | D22: =IF(OR(COUNTRY_INFO!$T$9:$T$1000="T3 (ALB/MBD)",COUNTRY_INFO!$U$9:$U$1000="T3 (ALB/MBD)"), "T3 (ALB/MBD)", " ") -> T3 (ALB/MBD) | E22: MBD | F22: August | H22: 672945 | J22: 672945 | L22: 451922 | N22: 451922 | P22: 67.15585969 | R22: 67.15585969 | U22: 0.2516440468 | W22: 0 | X22: 451922
A23: =IF(COUNTRY_INFO!A23=0," ",COUNTRY_INFO!A23) -> South Africa | B23: =IF(COUNTRY_INFO!B23=0," ",COUNTRY_INFO!B23) -> Gauteng | C23: =IF(COUNTRY_INFO!C23=0," ",COUNTRY_INFO!C23) -> Johannesburg MM | D23: =IF(OR(COUNTRY_INFO!$T$9:$T$1000="T3 (ALB/MBD)",COUNTRY_INFO!$U$9:$U$1000="T3 (ALB/MBD)"), "T3 (ALB/MBD)", " ") -> T3 (ALB/MBD) | E23: MBD | F23: August | H23: 984472 | J23: 984472 | L23: 661130 | N23: 661130 | P23: 67.15579519 | R23: 67.15579519 | U23: 0.3681378389 | W23: 0 | X23: 661130
A24: =IF(COUNTRY_INFO!A24=0," ",COUNTRY_INFO!A24) -> South Africa | B24: =IF(COUNTRY_INFO!B24=0," ",COUNTRY_INFO!B24) -> Gauteng | C24: =IF(COUNTRY_INFO!C24=0," ",COUNTRY_INFO!C24) -> Sedibeng DM | D24: =IF(OR(COUNTRY_INFO!$T$9:$T$1000="T3 (ALB/MBD)",COUNTRY_INFO!$U$9:$U$1000="T3 (ALB/MBD)"), "T3 (ALB/MBD)", " ") -> T3 (ALB/MBD) | E24: MBD | F24: August | H24: 187220 | J24: 187220 | L24: 125729 | N24: 125729 | P24: 67.15575259 | R24: 67.15575259 | U24: 0.07000987961 | W24: 0 | X24: 125729
A25: =IF(COUNTRY_INFO!A25=0," ",COUNTRY_INFO!A25) -> South Africa | B25: =IF(COUNTRY_INFO!B25=0," ",COUNTRY_INFO!B25) -> Gauteng | C25: =IF(COUNTRY_INFO!C25=0," ",COUNTRY_INFO!C25) -> Tshwane MM | D25: =IF(OR(COUNTRY_INFO!$T$9:$T$1000="T3 (ALB/MBD)",COUNTRY_INFO!$U$9:$U$1000="T3 (ALB/MBD)"), "T3 (ALB/MBD)", " ") -> T3 (ALB/MBD) | E25: MBD | F25: August | H25: 653777 | J25: 653777 | L25: 439049 | N25: 439049 | P25: 67.1557733 | R25: 67.1557733 | U25: 0.2444762796 | W25: 0 | X25: 439049
A26: =IF(COUNTRY_INFO!A26=0," ",COUNTRY_INFO!A26) -> South Africa | B26: =IF(COUNTRY_INFO!B26=0," ",COUNTRY_INFO!B26) -> Gauteng | C26: =IF(COUNTRY_INFO!C26=0," ",COUNTRY_INFO!C26) -> West Rand DM | D26: =IF(OR(COUNTRY_INFO!$T$9:$T$1000="T3 (ALB/MBD)",COUNTRY_INFO!$U$9:$U$1000="T3 (ALB/MBD)"), "T3 (ALB/MBD)", " ") -> T3 (ALB/MBD) | E26: MBD | F26: August | H26: 175780 | J26: 175780 | L26: 118046 | N26: 118046 | P26: 67.15553533 | R26: 67.15553533 | U26: 0.06573195512 | W26: 0 | X26: 118046
A27: =IF(COUNTRY_INFO!A27=0," ",COUNTRY_INFO!A27) -> South Africa | B27: =IF(COUNTRY_INFO!B27=0," ",COUNTRY_INFO!B27) -> KwaZulu-Natal | C27: =IF(COUNTRY_INFO!C27=0," ",COUNTRY_INFO!C27) -> Amajuba DM | D27: =IF(OR(COUNTRY_INFO!$T$9:$T$1000="T3 (ALB/MBD)",COUNTRY_INFO!$U$9:$U$1000="T3 (ALB/MBD)"), "T3 (ALB/MBD)", " ") -> T3 (ALB/MBD) | E27: MBD | F27: August | G27: 45226 | H27: 105342 | J27: 150568 | K27: 22443 | L27: 106342 | N27: 128785 | O27: 49.62411003 | P27: 100.949289 | R27: 85.53278253 | T27: 0.04889921093 | W27: 22443
A28: =IF(COUNTRY_INFO!A28=0," ",COUNTRY_INFO!A28) -> South Africa | B28: =IF(COUNTRY_INFO!B28=0," ",COUNTRY_INFO!B28) -> KwaZulu-Natal | C28: =IF(COUNTRY_INFO!C28=0," ",COUNTRY_INFO!C28) -> eThekwini MM | D28: =IF(OR(COUNTRY_INFO!$T$9:$T$1000="T3 (ALB/MBD)",COUNTRY_INFO!$U$9:$U$1000="T3 (ALB/MBD)"), "T3 (ALB/MBD)", " ") -> T3 (ALB/MBD) | E28: MBD | F28: August | G28: 304645 | H28: 709601 | J28: 1014246 | K28: 151178 | L28: 256882 | N28: 408060 | O28: 49.62431683 | P28: 36.20090727 | R28: 40.23284292 | T28: 0.3293879652 | W28: 151178
A29: =IF(COUNTRY_INFO!A29=0," ",COUNTRY_INFO!A29) -> South Africa | B29: =IF(COUNTRY_INFO!B29=0," ",COUNTRY_INFO!B29) -> KwaZulu-Natal | C29: =IF(COUNTRY_INFO!C29=0," ",COUNTRY_INFO!C29) -> Harry Gwala DM | D29: =IF(OR(COUNTRY_INFO!$T$9:$T$1000="T3 (ALB/MBD)",COUNTRY_INFO!$U$9:$U$1000="T3 (ALB/MBD)"), "T3 (ALB/MBD)", " ") -> T3 (ALB/MBD) | E29: MBD | F29: August | G29: 41995 | H29: 97818 | J29: 139813 | K29: 20840 | L29: 170700 | N29: 191540 | O29: 49.62495535 | P29: 174.5077593 | R29: 136.9972749 | T29: 0.04540579231 | W29: 20840
A30: =IF(COUNTRY_INFO!A30=0," ",COUNTRY_INFO!A30) -> South Africa | B30: =IF(COUNTRY_INFO!B30=0," ",COUNTRY_INFO!B30) -> KwaZulu-Natal | C30: =IF(COUNTRY_INFO!C30=0," ",COUNTRY_INFO!C30) -> iLembe DM | D30: =IF(OR(COUNTRY_INFO!$T$9:$T$1000="T3 (ALB/MBD)",COUNTRY_INFO!$U$9:$U$1000="T3 (ALB/MBD)"), "T3 (ALB/MBD)", " ") -> T3 (ALB/MBD) | E30: MBD | F30: August | G30: 56372 | H30: 131305 | J30: 187677 | K30: 27974 | L30: 96300 | N30: 124274 | O30: 49.62392677 | P30: 73.34069533 | R30: 66.21695786 | T30: 0.06095047801 | W30: 27974
A31: =IF(COUNTRY_INFO!A31=0," ",COUNTRY_INFO!A31) -> South Africa | B31: =IF(COUNTRY_INFO!B31=0," ",COUNTRY_INFO!B31) -> KwaZulu-Natal | C31: =IF(COUNTRY_INFO!C31=0," ",COUNTRY_INFO!C31) -> Ugu DM | D31: =IF(OR(COUNTRY_INFO!$T$9:$T$1000="T3 (ALB/MBD)",COUNTRY_INFO!$U$9:$U$1000="T3 (ALB/MBD)"), "T3 (ALB/MBD)", " ") -> T3 (ALB/MBD) | E31: MBD | F31: August | G31: 64918 | H31: 151213 | J31: 216131 | K31: 32215 | L31: 151960 | N31: 184175 | O31: 49.62414122 | P31: 100.4940051 | R31: 85.21452267 | T31: 0.07019057566 | W31: 32215
A32: =IF(COUNTRY_INFO!A32=0," ",COUNTRY_INFO!A32) -> South Africa | B32: =IF(COUNTRY_INFO!B32=0," ",COUNTRY_INFO!B32) -> KwaZulu-Natal | C32: =IF(COUNTRY_INFO!C32=0," ",COUNTRY_INFO!C32) -> uMgungundlovu DM | D32: =IF(OR(COUNTRY_INFO!$T$9:$T$1000="T3 (ALB/MBD)",COUNTRY_INFO!$U$9:$U$1000="T3 (ALB/MBD)"), "T3 (ALB/MBD)", " ") -> T3 (ALB/MBD) | E32: MBD | F32: August | G32: 94069 | H32: 219112 | J32: 313181 | K32: 46681 | L32: 100545 | N32: 147226 | O32: 49.62421201 | P32: 45.88749133 | R32: 47.00987608 | T32: 0.101709191 | W32: 46681
A33: =IF(COUNTRY_INFO!A33=0," ",COUNTRY_INFO!A33) -> South Africa | B33: =IF(COUNTRY_INFO!B33=0," ",COUNTRY_INFO!B33) -> KwaZulu-Natal | C33: =IF(COUNTRY_INFO!C33=0," ",COUNTRY_INFO!C33) -> Umkhanyakude DM | D33: =IF(OR(COUNTRY_INFO!$T$9:$T$1000="T3 (ALB/MBD)",COUNTRY_INFO!$U$9:$U$1000="T3 (ALB/MBD)"), "T3 (ALB/MBD)", " ") -> T3 (ALB/MBD) | E33: MBD | F33: August | G33: 56216 | H33: 130942 | J33: 187158 | K33: 27897 | L33: 83488 | N33: 111385 | O33: 49.62466202 | P33: 63.75952712 | R33: 59.51388666 | T33: 0.06078180784 | W33: 27897
A34: =IF(COUNTRY_INFO!A34=0," ",COUNTRY_INFO!A34) -> South Africa | B34: =IF(COUNTRY_INFO!B34=0," ",COUNTRY_INFO!B34) -> KwaZulu-Natal | C34: =IF(COUNTRY_INFO!C34=0," ",COUNTRY_INFO!C34) -> Umzinyathi DM | D34: =IF(OR(COUNTRY_INFO!$T$9:$T$1000="T3 (ALB/MBD)",COUNTRY_INFO!$U$9:$U$1000="T3 (ALB/MBD)"), "T3 (ALB/MBD)", " ") -> T3 (ALB/MBD) | E34: MBD | F34: August | G34: 45240 | H34: 105376 | J34: 150616 | K34: 22450 | L34: 97350 | N34: 119800 | O34: 49.62422635 | P34: 92.38346493 | R34: 79.54002231 | T34: 0.04891434799 | W34: 22450
A35: =IF(COUNTRY_INFO!A35=0," ",COUNTRY_INFO!A35) -> South Africa | B35: =IF(COUNTRY_INFO!B35=0," ",COUNTRY_INFO!B35) -> KwaZulu-Natal | C35: =IF(COUNTRY_INFO!C35=0," ",COUNTRY_INFO!C35) -> Uthukela DM | D35: =IF(OR(COUNTRY_INFO!$T$9:$T$1000="T3 (ALB/MBD)",COUNTRY_INFO!$U$9:$U$1000="T3 (ALB/MBD)"), "T3 (ALB/MBD)", " ") -> T3 (ALB/MBD) | E35: MBD | F35: August | G35: 60199 | H35: 140219 | J35: 200418 | K35: 29873 | L35: 66293 | N35: 96166 | O35: 49.6237479 | P35: 47.27818627 | R35: 47.98271612 | T35: 0.06508830316 | W35: 29873
A36: =IF(COUNTRY_INFO!A36=0," ",COUNTRY_INFO!A36) -> South Africa | B36: =IF(COUNTRY_INFO!B36=0," ",COUNTRY_INFO!B36) -> KwaZulu-Natal | C36: =IF(COUNTRY_INFO!C36=0," ",COUNTRY_INFO!C36) -> Uthungulu DM | D36: =IF(OR(COUNTRY_INFO!$T$9:$T$1000="T3 (ALB/MBD)",COUNTRY_INFO!$U$9:$U$1000="T3 (ALB/MBD)"), "T3 (ALB/MBD)", " ") -> T3 (ALB/MBD) | E36: MBD | F36: August | G36: 82922 | H36: 193147 | J36: 276069 | K36: 41150 | L36: 94608 | N36: 135758 | O36: 49.62494875 | P36: 48.9823813 | R36: 49.17538731 | T36: 0.08965684271 | W36: 41150
A37: =IF(COUNTRY_INFO!A37=0," ",COUNTRY_INFO!A37) -> South Africa | B37: =IF(COUNTRY_INFO!B37=0," ",COUNTRY_INFO!B37) -> KwaZulu-Natal | C37: =IF(COUNTRY_INFO!C37=0," ",COUNTRY_INFO!C37) -> Zululand DM | D37: =IF(OR(COUNTRY_INFO!$T$9:$T$1000="T3 (ALB/MBD)",COUNTRY_INFO!$U$9:$U$1000="T3 (ALB/MBD)"), "T3 (ALB/MBD)", " ") -> T3 (ALB/MBD) | E37: MBD | F37: August | G37: 73080 | H37: 170223 | J37: 243303 | K37: 36266 | L37: 160430 | N37: 196696 | O37: 49.62506842 | P37: 94.2469584 | R37: 80.84405042 | T37: 0.07901548522 | W37: 36266
A38: =IF(COUNTRY_INFO!A38=0," ",COUNTRY_INFO!A38) -> South Africa | B38: =IF(COUNTRY_INFO!B38=0," ",COUNTRY_INFO!B38) -> Limpopo | C38: =IF(COUNTRY_INFO!C38=0," ",COUNTRY_INFO!C38) -> Capricorn DM | D38: =IF(OR(COUNTRY_INFO!$T$9:$T$1000="T3 (ALB/MBD)",COUNTRY_INFO!$U$9:$U$1000="T3 (ALB/MBD)"), "T3 (ALB/MBD)", " ") -> T3 (ALB/MBD) | E38: MBD | F38: August | G38: 111228 | H38: 259080 | J38: 370308 | K38: 60163 | L38: 139677 | N38: 199840 | O38: 54.08979753 | P38: 53.91269106 | R38: 53.96588786 | T38: 0.2273383177 | U38: 0.2273387381 | W38: 60163 | X38: 139677
A39: =IF(COUNTRY_INFO!A39=0," ",COUNTRY_INFO!A39) -> South Africa | B39: =IF(COUNTRY_INFO!B39=0," ",COUNTRY_INFO!B39) -> Limpopo | C39: =IF(COUNTRY_INFO!C39=0," ",COUNTRY_INFO!C39) -> Mopani DM | D39: =IF(OR(COUNTRY_INFO!$T$9:$T$1000="T3 (ALB/MBD)",COUNTRY_INFO!$U$9:$U$1000="T3 (ALB/MBD)"), "T3 (ALB/MBD)", " ") -> T3 (ALB/MBD) | E39: MBD | F39: August | G39: 97638 | H39: 227425 | J39: 325063 | K39: 52812 | L39: 122611 | N39: 175423 | O39: 54.08959626 | P39: 53.91271848 | R39: 53.96584662 | T39: 0.199561789 | U39: 0.1995619596 | W39: 52812 | X39: 122611
A40: =IF(COUNTRY_INFO!A40=0," ",COUNTRY_INFO!A40) -> South Africa | B40: =IF(COUNTRY_INFO!B40=0," ",COUNTRY_INFO!B40) -> Limpopo | C40: =IF(COUNTRY_INFO!C40=0," ",COUNTRY_INFO!C40) -> Sekhukhune DM | D40: =IF(OR(COUNTRY_INFO!$T$9:$T$1000="T3 (ALB/MBD)",COUNTRY_INFO!$U$9:$U$1000="T3 (ALB/MBD)"), "T3 (ALB/MBD)", " ") -> T3 (ALB/MBD) | E40: MBD | F40: August | G40: 98506 | H40: 229446 | J40: 327952 | K40: 53281 | L40: 123701 | N40: 176982 | O40: 54.08909102 | P40: 53.91290325 | R40: 53.96582427 | T40: 0.2013358896 | U40: 0.2013353562 | W40: 53281 | X40: 123701
A41: =IF(COUNTRY_INFO!A41=0," ",COUNTRY_INFO!A41) -> South Africa | B41: =IF(COUNTRY_INFO!B41=0," ",COUNTRY_INFO!B41) -> Limpopo | C41: =IF(COUNTRY_INFO!C41=0," ",COUNTRY_INFO!C41) -> Vhembe DM | D41: =IF(OR(COUNTRY_INFO!$T$9:$T$1000="T3 (ALB/MBD)",COUNTRY_INFO!$U$9:$U$1000="T3 (ALB/MBD)"), "T3 (ALB/MBD)", " ") -> T3 (ALB/MBD) | E41: MBD | F41: August | G41: 118307 | H41: 275569 | J41: 393876 | K41: 63992 | L41: 148567 | N41: 212559 | O41: 54.08978336 | P41: 53.91281312 | R41: 53.96596899 | T41: 0.2418070482 | U41: 0.2418075834 | W41: 63992 | X41: 148567
A42: =IF(COUNTRY_INFO!A42=0," ",COUNTRY_INFO!A42) -> South Africa | B42: =IF(COUNTRY_INFO!B42=0," ",COUNTRY_INFO!B42) -> Limpopo | C42: =IF(COUNTRY_INFO!C42=0," ",COUNTRY_INFO!C42) -> Waterberg DM | D42: =IF(OR(COUNTRY_INFO!$T$9:$T$1000="T3 (ALB/MBD)",COUNTRY_INFO!$U$9:$U$1000="T3 (ALB/MBD)"), "T3 (ALB/MBD)", " ") -> T3 (ALB/MBD) | E42: MBD | F42: August | G42: 63583 | H42: 148101 | J42: 211684 | K42: 34392 | L42: 79845 | N42: 114237 | O42: 54.0899297 | P42: 53.91253266 | R42: 53.96581697 | T42: 0.1299569556 | U42: 0.1299563627 | W42: 34392 | X42: 79845
A43: =IF(COUNTRY_INFO!A43=0," ",COUNTRY_INFO!A43) -> South Africa | B43: =IF(COUNTRY_INFO!B43=0," ",COUNTRY_INFO!B43) -> Mpumalanga | C43: =IF(COUNTRY_INFO!C43=0," ",COUNTRY_INFO!C43) -> Ehlanzeni DM | D43: =IF(OR(COUNTRY_INFO!$T$9:$T$1000="T3 (ALB/MBD)",COUNTRY_INFO!$U$9:$U$1000="T3 (ALB/MBD)"), "T3 (ALB/MBD)", " ") -> T3 (ALB/MBD) | E43: MBD | F43: August | G43: 151566 | H43: 353037 | J43: 504603 | K43: 180820 | L43: 110119 | N43: 290939 | O43: 119.3011625 | P43: 31.19191473 | R43: 57.65700957 | T43: 0.4135261008 | W43: 180820
A44: =IF(COUNTRY_INFO!A44=0," ",COUNTRY_INFO!A44) -> South Africa | B44: =IF(COUNTRY_INFO!B44=0," ",COUNTRY_INFO!B44) -> Mpumalanga | C44: =IF(COUNTRY_INFO!C44=0," ",COUNTRY_INFO!C44) -> G Sibande DM | D44: =IF(OR(COUNTRY_INFO!$T$9:$T$1000="T3 (ALB/MBD)",COUNTRY_INFO!$U$9:$U$1000="T3 (ALB/MBD)"), "T3 (ALB/MBD)", " ") -> T3 (ALB/MBD) | E44: MBD | F44: August | G44: 93163 | H44: 217001 | J44: 310164 | K44: 111145 | L44: 46237 | N44: 157382 | O44: 119.3016541 | P44: 21.30727508 | R44: 50.74154318 | T44: 0.2541818886 | W44: 111145
A45: =IF(COUNTRY_INFO!A45=0," ",COUNTRY_INFO!A45) -> South Africa | B45: =IF(COUNTRY_INFO!B45=0," ",COUNTRY_INFO!B45) -> Mpumalanga | C45: =IF(COUNTRY_INFO!C45=0," ",COUNTRY_INFO!C45) -> Nkangala DM | D45: =IF(OR(COUNTRY_INFO!$T$9:$T$1000="T3 (ALB/MBD)",COUNTRY_INFO!$U$9:$U$1000="T3 (ALB/MBD)"), "T3 (ALB/MBD)", " ") -> T3 (ALB/MBD) | E45: MBD | F45: August | G45: 121792 | H45: 283687 | J45: 405479 | K45: 145299 | L45: 56480 | N45: 201779 | O45: 119.3009393 | P45: 19.9092662 | R45: 49.76311967 | T45: 0.3322920106 | W45: 145299
A46: =IF(COUNTRY_INFO!A46=0," ",COUNTRY_INFO!A46) -> South Africa | B46: =IF(COUNTRY_INFO!B46=0," ",COUNTRY_INFO!B46) -> North West | C46: =IF(COUNTRY_INFO!C46=0," ",COUNTRY_INFO!C46) -> Bojanala Platinum DM | D46: =IF(OR(COUNTRY_INFO!$T$9:$T$1000="T3 (ALB/MBD)",COUNTRY_INFO!$U$9:$U$1000="T3 (ALB/MBD)"), "T3 (ALB/MBD)", " ") -> T3 (ALB/MBD) | E46: MBD | F46: August | G46: 141185 | H46: 328858 | J46: 470043 | K46: 26703 | L46: 242744 | N46: 269447 | O46: 18.91348231 | P46: 73.81422985 | R46: 57.32390441 | T46: 0.4406110539 | U46: 0.4406116562 | W46: 26703 | X46: 242744
A47: =IF(COUNTRY_INFO!A47=0," ",COUNTRY_INFO!A47) -> South Africa | B47: =IF(COUNTRY_INFO!B47=0," ",COUNTRY_INFO!B47) -> North West | C47: =IF(COUNTRY_INFO!C47=0," ",COUNTRY_INFO!C47) -> Dr K Kaunda DM | D47: =IF(OR(COUNTRY_INFO!$T$9:$T$1000="T3 (ALB/MBD)",COUNTRY_INFO!$U$9:$U$1000="T3 (ALB/MBD)"), "T3 (ALB/MBD)", " ") -> T3 (ALB/MBD) | E47: MBD | F47: August | G47: 62768 | H47: 146204 | J47: 208972 | K47: 11872 | L47: 107920 | N47: 119792 | O47: 18.91409635 | P47: 73.81466991 | R47: 57.32442624 | T47: 0.1958867771 | U47: 0.1958875459 | W47: 11872 | X47: 107920
A48: =IF(COUNTRY_INFO!A48=0," ",COUNTRY_INFO!A48) -> South Africa | B48: =IF(COUNTRY_INFO!B48=0," ",COUNTRY_INFO!B48) -> North West | C48: =IF(COUNTRY_INFO!C48=0," ",COUNTRY_INFO!C48) -> Ngaka Modiri Molema DM | D48: =IF(OR(COUNTRY_INFO!$T$9:$T$1000="T3 (ALB/MBD)",COUNTRY_INFO!$U$9:$U$1000="T3 (ALB/MBD)"), "T3 (ALB/MBD)", " ") -> T3 (ALB/MBD) | E48: MBD | F48: August | G48: 75207 | H48: 175177 | J48: 250384 | K48: 14224 | L48: 129306 | N48: 143530 | O48: 18.91313309 | P48: 73.81448478 | R48: 57.32395041 | T48: 0.2347064882 | U48: 0.2347062504 | W48: 14224 | X48: 129306
A49: =IF(COUNTRY_INFO!A49=0," ",COUNTRY_INFO!A49) -> South Africa | B49: =IF(COUNTRY_INFO!B49=0," ",COUNTRY_INFO!B49) -> North West | C49: =IF(COUNTRY_INFO!C49=0," ",COUNTRY_INFO!C49) -> Ruth Segomotsi Mompati DM | D49: =IF(OR(COUNTRY_INFO!$T$9:$T$1000="T3 (ALB/MBD)",COUNTRY_INFO!$U$9:$U$1000="T3 (ALB/MBD)"), "T3 (ALB/MBD)", " ") -> T3 (ALB/MBD) | E49: MBD | F49: August | G49: 41270 | H49: 96128 | J49: 137398 | K49: 7806 | L49: 70956 | N49: 78762 | O49: 18.91446571 | P49: 73.81408123 | R49: 57.32397851 | T49: 0.1287956808 | U49: 0.1287945475 | W49: 7806 | X49: 70956
A50: =IF(COUNTRY_INFO!A50=0," ",COUNTRY_INFO!A50) -> South Africa | B50: =IF(COUNTRY_INFO!B50=0," ",COUNTRY_INFO!B50) -> Northern Cape | C50: =IF(COUNTRY_INFO!C50=0," ",COUNTRY_INFO!C50) -> Frances Baard DM | D50: =IF(OR(COUNTRY_INFO!$T$9:$T$1000="T3 (ALB/MBD)",COUNTRY_INFO!$U$9:$U$1000="T3 (ALB/MBD)"), "T3 (ALB/MBD)", " ") -> T3 (ALB/MBD) | E50: MBD | F50: August | G50: 33070 | H50: 77028 | J50: 110098 | K50: 16619 | L50: 39594 | N50: 56213 | O50: =IF(G50<>0, IF(K50/G50*100=0, "-", K50/G50*100), " ") -> 50.25400665 | P50: 51.40208755 | R50: 51.05723991 | T50: 0.3232459484 | W50: 16619
A51: =IF(COUNTRY_INFO!A51=0," ",COUNTRY_INFO!A51) -> South Africa | B51: =IF(COUNTRY_INFO!B51=0," ",COUNTRY_INFO!B51) -> Northern Cape | C51: =IF(COUNTRY_INFO!C51=0," ",COUNTRY_INFO!C51) -> J T Gaetsewe DM | D51: =IF(OR(COUNTRY_INFO!$T$9:$T$1000="T3 (ALB/MBD)",COUNTRY_INFO!$U$9:$U$1000="T3 (ALB/MBD)"), "T3 (ALB/MBD)", " ") -> T3 (ALB/MBD) | E51: MBD | F51: August | G51: 20608 | H51: 48001 | J51: 68609 | K51: 10357 | L51: 38158 | N51: 48515 | O51: 50.25718168 | P51: 79.4941772 | R51: 70.71229722 | T51: 0.201434911 | W51: 10357
A52: =IF(COUNTRY_INFO!A52=0," ",COUNTRY_INFO!A52) -> South Africa | B52: =IF(COUNTRY_INFO!B52=0," ",COUNTRY_INFO!B52) -> Northern Cape | C52: =IF(COUNTRY_INFO!C52=0," ",COUNTRY_INFO!C52) -> Namakwa DM | D52: =IF(OR(COUNTRY_INFO!$T$9:$T$1000="T3 (ALB/MBD)",COUNTRY_INFO!$U$9:$U$1000="T3 (ALB/MBD)"), "T3 (ALB/MBD)", " ") -> T3 (ALB/MBD) | E52: MBD | F52: August | G52: 10289 | H52: 23966 | J52: 34255 | K52: 5171 | L52: 11029 | N52: 16200 | O52: 50.25755661 | P52: 46.01936076 | R52: 47.29236608 | T52: 0.1005708365 | W52: 5171
A53: =IF(COUNTRY_INFO!A53=0," ",COUNTRY_INFO!A53) -> South Africa | B53: =IF(COUNTRY_INFO!B53=0," ",COUNTRY_INFO!B53) -> Northern Cape | C53: =IF(COUNTRY_INFO!C53=0," ",COUNTRY_INFO!C53) -> Pixley ka Seme DM | D53: =IF(OR(COUNTRY_INFO!$T$9:$T$1000="T3 (ALB/MBD)",COUNTRY_INFO!$U$9:$U$1000="T3 (ALB/MBD)"), "T3 (ALB/MBD)", " ") -> T3 (ALB/MBD) | E53: MBD | F53: August | G53: 16625 | H53: 38725 | J53: 55350 | K53: 8355 | L53: 19755 | N53: 28110 | O53: 50.2556391 | P53: 51.01355713 | R53: 50.78590786 | T53: 0.162502688 | W53: 8355
A54: =IF(COUNTRY_INFO!A54=0," ",COUNTRY_INFO!A54) -> South Africa | B54: =IF(COUNTRY_INFO!B54=0," ",COUNTRY_INFO!B54) -> Northern Cape | C54: =IF(COUNTRY_INFO!C54=0," ",COUNTRY_INFO!C54) -> ZF Mgcawu DM | D54: =IF(OR(COUNTRY_INFO!$T$9:$T$1000="T3 (ALB/MBD)",COUNTRY_INFO!$U$9:$U$1000="T3 (ALB/MBD)"), "T3 (ALB/MBD)", " ") -> T3 (ALB/MBD) | E54: MBD | F54: August | G54: 21714 | H54: 50578 | J54: 72292 | K54: 10912 | L54: 25383 | N54: 36295 | O54: 50.25329281 | P54: 50.18585156 | R54: 50.20610856 | T54: 0.2122456161 | W54: 10912
A55: =IF(COUNTRY_INFO!A55=0," ",COUNTRY_INFO!A55) -> South Africa | B55: =IF(COUNTRY_INFO!B55=0," ",COUNTRY_INFO!B55) -> Western Cape | C55: =IF(COUNTRY_INFO!C55=0," ",COUNTRY_INFO!C55) -> Cape Town MM | D55: =IF(OR(COUNTRY_INFO!$T$9:$T$1000="T3 (ALB/MBD)",COUNTRY_INFO!$U$9:$U$1000="T3 (ALB/MBD)"), "T3 (ALB/MBD)", " ") -> T3 (ALB/MBD) | E55: MBD | F55: August | G55: 345996 | H55: 805918 | J55: 1151914 | K55: 206281 | L55: 273849 | N55: =SUM(K55:M55) -> 480130 | O55: =IF(G55<>0, IF(K55/G55*100=0, "-", K55/G55*100), " ") -> 59.61947537 | P55: 33.97975973 | R55: 41.681063 | T55: 0.640173774 | U55: 0.6401738018 | W55: 206281 | X55: 273849
A56: =IF(COUNTRY_INFO!A56=0," ",COUNTRY_INFO!A56) -> South Africa | B56: =IF(COUNTRY_INFO!B56=0," ",COUNTRY_INFO!B56) -> Western Cape | C56: =IF(COUNTRY_INFO!C56=0," ",COUNTRY_INFO!C56) -> Cape Winelands DM | D56: =IF(OR(COUNTRY_INFO!$T$9:$T$1000="T3 (ALB/MBD)",COUNTRY_INFO!$U$9:$U$1000="T3 (ALB/MBD)"), "T3 (ALB/MBD)", " ") -> T3 (ALB/MBD) | E56: MBD | F56: August | G56: 73141 | H56: 170365 | J56: 243506 | K56: 43606 | L56: 57890 | N56: 101496 | O56: 59.61909189 | P56: 33.97998415 | R56: 41.68110847 | T56: 0.1353280096 | U56: 0.1353279239 | W56: 43606 | X56: 57890
A57: =IF(COUNTRY_INFO!A57=0," ",COUNTRY_INFO!A57) -> South Africa | B57: =IF(COUNTRY_INFO!B57=0," ",COUNTRY_INFO!B57) -> Western Cape | C57: =IF(COUNTRY_INFO!C57=0," ",COUNTRY_INFO!C57) -> Central Karoo DM | D57: =IF(OR(COUNTRY_INFO!$T$9:$T$1000="T3 (ALB/MBD)",COUNTRY_INFO!$U$9:$U$1000="T3 (ALB/MBD)"), "T3 (ALB/MBD)", " ") -> T3 (ALB/MBD) | E57: MBD | F57: August | G57: 6346 | H57: 14781 | J57: 21127 | K57: 3783 | L57: 5023 | N57: 8806 | O57: 59.61235424 | P57: 33.98281578 | R57: 41.68126095 | T57: 0.01174158883 | U57: 0.011741156 | W57: 3783 | X57: 5023
A58: =IF(COUNTRY_INFO!A58=0," ",COUNTRY_INFO!A58) -> South Africa | B58: =IF(COUNTRY_INFO!B58=0," ",COUNTRY_INFO!B58) -> Western Cape | C58: =IF(COUNTRY_INFO!C58=0," ",COUNTRY_INFO!C58) -> Eden DM | D58: =IF(OR(COUNTRY_INFO!$T$9:$T$1000="T3 (ALB/MBD)",COUNTRY_INFO!$U$9:$U$1000="T3 (ALB/MBD)"), "T3 (ALB/MBD)", " ") -> T3 (ALB/MBD) | E58: MBD | F58: August | G58: 52386 | H58: 122020 | J58: 174406 | K58: 31232 | L58: 41462 | N58: 72694 | O58: 59.61898217 | P58: 33.97967546 | R58: 41.68090547 | T58: 0.09692639027 | U58: 0.09692550272 | W58: 31232 | X58: 41462
A59: =IF(COUNTRY_INFO!A59=0," ",COUNTRY_INFO!A59) -> South Africa | B59: =IF(COUNTRY_INFO!B59=0," ",COUNTRY_INFO!B59) -> Western Cape | C59: =IF(COUNTRY_INFO!C59=0," ",COUNTRY_INFO!C59) -> Overberg DM | D59: =IF(OR(COUNTRY_INFO!$T$9:$T$1000="T3 (ALB/MBD)",COUNTRY_INFO!$U$9:$U$1000="T3 (ALB/MBD)"), "T3 (ALB/MBD)", " ") -> T3 (ALB/MBD) | E59: MBD | F59: August | G59: 24732 | H59: 57608 | J59: 82340 | K59: 14745 | L59: 19575 | N59: 34320 | O59: 59.61911693 | P59: 33.9796556 | R59: 41.68083556 | T59: 0.04576000237 | U59: 0.04576040289 | W59: 14745 | X59: 19575
A60: =IF(COUNTRY_INFO!A60=0," ",COUNTRY_INFO!A60) -> South Africa | B60: =IF(COUNTRY_INFO!B60=0," ",COUNTRY_INFO!B60) -> Western Cape | C60: =IF(COUNTRY_INFO!C60=0," ",COUNTRY_INFO!C60) -> West Coast DM | D60: =IF(OR(COUNTRY_INFO!$T$9:$T$1000="T3 (ALB/MBD)",COUNTRY_INFO!$U$9:$U$1000="T3 (ALB/MBD)"), "T3 (ALB/MBD)", " ") -> T3 (ALB/MBD) | E60: MBD | F60: August | G60: 37871 | H60: 88213 | J60: 126084 | K60: 22579 | L60: 29975 | N60: 52554 | O60: 59.62081804 | P60: 33.98025234 | R60: 41.68173599 | T60: 0.07007023491 | U60: 0.07007121268 | W60: 22579 | X60: 29975

Sheet T3_R2
A1: T 3 - Albendazole (ALB) or Mebendazole (MBD) - Round 2
A2: Administrative structure, population requiring PC by age group, population treated by age group and coverage
A4: TOTAL | G4: =SUM(G$9:G$1000) -> 0 | H4: 0 | I4: 0 | J4: 0 | K4: 0 | L4: 0 | M4: 0 | N4: 0 | O4: =IF(G4<>0, IF(K4/G4*100=0, "-", K4/G4*100), " ") ->  | P4: =IF(H4<>0, IF(L4/H4*100=0, "-", L4/H4*100), " ") ->  | Q4: =IF(I4<>0, IF(M4/I4*100=0, "-", M4/I4*100), " ") ->  | R4: =IF(J4<>0, IF(N4/J4*100=0, "-", N4/J4*100), " ") -> 
D6: PC implemented | E6: Medicine | F6: Date | G6: Population targeted for T3 | K6: Population treated | O6: Programme coverage (%)
A7: Country | B7: Province/State | C7: District | G7: PreSAC | H7: SAC | I7: Adults | J7: Total | K7: PreSAC | L7: SAC | M7: Adults | N7: Total | O7: PreSAC | P7: SAC | Q7: Adults | R7: Total
A9: =IF(COUNTRY_INFO!A9=0," ",COUNTRY_INFO!A9) -> South Africa | B9: =IF(COUNTRY_INFO!B9=0," ",COUNTRY_INFO!B9) -> Eastern Cape | C9: =IF(COUNTRY_INFO!C9=0," ",COUNTRY_INFO!C9) -> A Nzo DM | D9: =IF(AND(COUNTRY_INFO!$T$9:$T$1000="T3 (ALB/MBD)",COUNTRY_INFO!$U$9:$U$1000="T3 (ALB/MBD)"), "T3 (ALB/MBD)", " ") ->  | J9: =SUM(G9:I9) -> 0 | N9: =SUM(K9:M9) -> 0 | O9: =IF(G9<>0, IF(K9/G9*100=0, "-", K9/G9*100), " ") -> 
A10: =IF(COUNTRY_INFO!A10=0," ",COUNTRY_INFO!A10) -> South Africa | B10: =IF(COUNTRY_INFO!B10=0," ",COUNTRY_INFO!B10) -> Eastern Cape | C10: =IF(COUNTRY_INFO!C10=0," ",COUNTRY_INFO!C10) -> Amathole DM | D10: =IF(AND(COUNTRY_INFO!$T$9:$T$1000="T3 (ALB/MBD)",COUNTRY_INFO!$U$9:$U$1000="T3 (ALB/MBD)"), "T3 (ALB/MBD)", " ") ->  | J10: =SUM(G10:I10) -> 0 | N10: =SUM(K10:M10) -> 0 | O10: =IF(G10<>0, IF(K10/G10*100=0, "-", K10/G10*100), " ") ->  | P10: =IF(H10<>0, IF(L10/H10*100=0, "-", L10/H10*100), " ") ->  | Q10: =IF(I10<>0, IF(M10/I10*100=0, "-", M10/I10*100), " ") ->  | R10: =IF(J10<>0, IF(N10/J10*100=0, "-", N10/J10*100), " ") -> 
A11: =IF(COUNTRY_INFO!A11=0," ",COUNTRY_INFO!A11) -> South Africa | B11: =IF(COUNTRY_INFO!B11=0," ",COUNTRY_INFO!B11) -> Eastern Cape | C11: =IF(COUNTRY_INFO!C11=0," ",COUNTRY_INFO!C11) -> Buffalo City MM | D11: =IF(AND(COUNTRY_INFO!$T$9:$T$1000="T3 (ALB/MBD)",COUNTRY_INFO!$U$9:$U$1000="T3 (ALB/MBD)"), "T3 (ALB/MBD)", " ") ->  | J11: 0 | N11: 0
A12: =IF(COUNTRY_INFO!A12=0," ",COUNTRY_INFO!A12) -> South Africa | B12: =IF(COUNTRY_INFO!B12=0," ",COUNTRY_INFO!B12) -> Eastern Cape | C12: =IF(COUNTRY_INFO!C12=0," ",COUNTRY_INFO!C12) -> C Hani DM | D12: =IF(AND(COUNTRY_INFO!$T$9:$T$1000="T3 (ALB/MBD)",COUNTRY_INFO!$U$9:$U$1000="T3 (ALB/MBD)"), "T3 (ALB/MBD)", " ") ->  | J12: 0 | N12: 0
A13: =IF(COUNTRY_INFO!A13=0," ",COUNTRY_INFO!A13) -> South Africa | B13: =IF(COUNTRY_INFO!B13=0," ",COUNTRY_INFO!B13) -> Eastern Cape | C13: =IF(COUNTRY_INFO!C13=0," ",COUNTRY_INFO!C13) -> Joe Gqabi DM | D13: =IF(AND(COUNTRY_INFO!$T$9:$T$1000="T3 (ALB/MBD)",COUNTRY_INFO!$U$9:$U$1000="T3 (ALB/MBD)"), "T3 (ALB/MBD)", " ") ->  | J13: 0 | N13: 0
A14: =IF(COUNTRY_INFO!A14=0," ",COUNTRY_INFO!A14) -> South Africa | B14: =IF(COUNTRY_INFO!B14=0," ",COUNTRY_INFO!B14) -> Eastern Cape | C14: =IF(COUNTRY_INFO!C14=0," ",COUNTRY_INFO!C14) -> N Mandela Bay MM | D14: =IF(AND(COUNTRY_INFO!$T$9:$T$1000="T3 (ALB/MBD)",COUNTRY_INFO!$U$9:$U$1000="T3 (ALB/MBD)"), "T3 (ALB/MBD)", " ") ->  | J14: 0 | N14: 0
A15: =IF(COUNTRY_INFO!A15=0," ",COUNTRY_INFO!A15) -> South Africa | B15: =IF(COUNTRY_INFO!B15=0," ",COUNTRY_INFO!B15) -> Eastern Cape | C15: =IF(COUNTRY_INFO!C15=0," ",COUNTRY_INFO!C15) -> O Tambo DM | D15: =IF(AND(COUNTRY_INFO!$T$9:$T$1000="T3 (ALB/MBD)",COUNTRY_INFO!$U$9:$U$1000="T3 (ALB/MBD)"), "T3 (ALB/MBD)", " ") ->  | J15: 0 | N15: 0
A16: =IF(COUNTRY_INFO!A16=0," ",COUNTRY_INFO!A16) -> South Africa | B16: =IF(COUNTRY_INFO!B16=0," ",COUNTRY_INFO!B16) -> Eastern Cape | C16: =IF(COUNTRY_INFO!C16=0," ",COUNTRY_INFO!C16) -> Sarah Baartman DM | D16: =IF(AND(COUNTRY_INFO!$T$9:$T$1000="T3 (ALB/MBD)",COUNTRY_INFO!$U$9:$U$1000="T3 (ALB/MBD)"), "T3 (ALB/MBD)", " ") ->  | J16: 0 | N16: 0
A17: =IF(COUNTRY_INFO!A17=0," ",COUNTRY_INFO!A17) -> South Africa | B17: =IF(COUNTRY_INFO!B17=0," ",COUNTRY_INFO!B17) -> Free State | C17: =IF(COUNTRY_INFO!C17=0," ",COUNTRY_INFO!C17) -> Fezile Dabi DM | D17: =IF(AND(COUNTRY_INFO!$T$9:$T$1000="T3 (ALB/MBD)",COUNTRY_INFO!$U$9:$U$1000="T3 (ALB/MBD)"), "T3 (ALB/MBD)", " ") ->  | J17: 0 | N17: 0
A18: =IF(COUNTRY_INFO!A18=0," ",COUNTRY_INFO!A18) -> South Africa | B18: =IF(COUNTRY_INFO!B18=0," ",COUNTRY_INFO!B18) -> Free State | C18: =IF(COUNTRY_INFO!C18=0," ",COUNTRY_INFO!C18) -> Lejweleputswa DM | D18: =IF(AND(COUNTRY_INFO!$T$9:$T$1000="T3 (ALB/MBD)",COUNTRY_INFO!$U$9:$U$1000="T3 (ALB/MBD)"), "T3 (ALB/MBD)", " ") ->  | J18: 0 | N18: 0
A19: =IF(COUNTRY_INFO!A19=0," ",COUNTRY_INFO!A19) -> South Africa | B19: =IF(COUNTRY_INFO!B19=0," ",COUNTRY_INFO!B19) -> Free State | C19: =IF(COUNTRY_INFO!C19=0," ",COUNTRY_INFO!C19) -> Mangaung MM | D19: =IF(AND(COUNTRY_INFO!$T$9:$T$1000="T3 (ALB/MBD)",COUNTRY_INFO!$U$9:$U$1000="T3 (ALB/MBD)"), "T3 (ALB/MBD)", " ") ->  | J19: 0 | N19: 0
A20: =IF(COUNTRY_INFO!A20=0," ",COUNTRY_INFO!A20) -> South Africa | B20: =IF(COUNTRY_INFO!B20=0," ",COUNTRY_INFO!B20) -> Free State | C20: =IF(COUNTRY_INFO!C20=0," ",COUNTRY_INFO!C20) -> T Mofutsanyane DM | D20: =IF(AND(COUNTRY_INFO!$T$9:$T$1000="T3 (ALB/MBD)",COUNTRY_INFO!$U$9:$U$1000="T3 (ALB/MBD)"), "T3 (ALB/MBD)", " ") ->  | J20: 0 | N20: 0
A21: =IF(COUNTRY_INFO!A21=0," ",COUNTRY_INFO!A21) -> South Africa | B21: =IF(COUNTRY_INFO!B21=0," ",COUNTRY_INFO!B21) -> Free State | C21: =IF(COUNTRY_INFO!C21=0," ",COUNTRY_INFO!C21) -> Xhariep DM | D21: =IF(AND(COUNTRY_INFO!$T$9:$T$1000="T3 (ALB/MBD)",COUNTRY_INFO!$U$9:$U$1000="T3 (ALB/MBD)"), "T3 (ALB/MBD)", " ") ->  | J21: 0 | N21: 0
A22: =IF(COUNTRY_INFO!A22=0," ",COUNTRY_INFO!A22) -> South Africa | B22: =IF(COUNTRY_INFO!B22=0," ",COUNTRY_INFO!B22) -> Gauteng | C22: =IF(COUNTRY_INFO!C22=0," ",COUNTRY_INFO!C22) -> Ekurhuleni MM | D22: =IF(AND(COUNTRY_INFO!$T$9:$T$1000="T3 (ALB/MBD)",COUNTRY_INFO!$U$9:$U$1000="T3 (ALB/MBD)"), "T3 (ALB/MBD)", " ") ->  | J22: 0 | N22: 0
A23: =IF(COUNTRY_INFO!A23=0," ",COUNTRY_INFO!A23) -> South Africa | B23: =IF(COUNTRY_INFO!B23=0," ",COUNTRY_INFO!B23) -> Gauteng | C23: =IF(COUNTRY_INFO!C23=0," ",COUNTRY_INFO!C23) -> Johannesburg MM | D23: =IF(AND(COUNTRY_INFO!$T$9:$T$1000="T3 (ALB/MBD)",COUNTRY_INFO!$U$9:$U$1000="T3 (ALB/MBD)"), "T3 (ALB/MBD)", " ") ->  | J23: 0 | N23: 0
A24: =IF(COUNTRY_INFO!A24=0," ",COUNTRY_INFO!A24) -> South Africa | B24: =IF(COUNTRY_INFO!B24=0," ",COUNTRY_INFO!B24) -> Gauteng | C24: =IF(COUNTRY_INFO!C24=0," ",COUNTRY_INFO!C24) -> Sedibeng DM | D24: =IF(AND(COUNTRY_INFO!$T$9:$T$1000="T3 (ALB/MBD)",COUNTRY_INFO!$U$9:$U$1000="T3 (ALB/MBD)"), "T3 (ALB/MBD)", " ") ->  | J24: 0 | N24: 0
A25: =IF(COUNTRY_INFO!A25=0," ",COUNTRY_INFO!A25) -> South Africa | B25: =IF(COUNTRY_INFO!B25=0," ",COUNTRY_INFO!B25) -> Gauteng | C25: =IF(COUNTRY_INFO!C25=0," ",COUNTRY_INFO!C25) -> Tshwane MM | D25: =IF(AND(COUNTRY_INFO!$T$9:$T$1000="T3 (ALB/MBD)",COUNTRY_INFO!$U$9:$U$1000="T3 (ALB/MBD)"), "T3 (ALB/MBD)", " ") ->  | J25: 0 | N25: 0
A26: =IF(COUNTRY_INFO!A26=0," ",COUNTRY_INFO!A26) -> South Africa | B26: =IF(COUNTRY_INFO!B26=0," ",COUNTRY_INFO!B26) -> Gauteng | C26: =IF(COUNTRY_INFO!C26=0," ",COUNTRY_INFO!C26) -> West Rand DM | D26: =IF(AND(COUNTRY_INFO!$T$9:$T$1000="T3 (ALB/MBD)",COUNTRY_INFO!$U$9:$U$1000="T3 (ALB/MBD)"), "T3 (ALB/MBD)", " ") ->  | J26: 0 | N26: 0
A27: =IF(COUNTRY_INFO!A27=0," ",COUNTRY_INFO!A27) -> South Africa | B27: =IF(COUNTRY_INFO!B27=0," ",COUNTRY_INFO!B27) -> KwaZulu-Natal | C27: =IF(COUNTRY_INFO!C27=0," ",COUNTRY_INFO!C27) -> Amajuba DM | D27: =IF(AND(COUNTRY_INFO!$T$9:$T$1000="T3 (ALB/MBD)",COUNTRY_INFO!$U$9:$U$1000="T3 (ALB/MBD)"), "T3 (ALB/MBD)", " ") ->  | J27: 0 | N27: 0
A28: =IF(COUNTRY_INFO!A28=0," ",COUNTRY_INFO!A28) -> South Africa | B28: =IF(COUNTRY_INFO!B28=0," ",COUNTRY_INFO!B28) -> KwaZulu-Natal | C28: =IF(COUNTRY_INFO!C28=0," ",COUNTRY_INFO!C28) -> eThekwini MM | D28: =IF(AND(COUNTRY_INFO!$T$9:$T$1000="T3 (ALB/MBD)",COUNTRY_INFO!$U$9:$U$1000="T3 (ALB/MBD)"), "T3 (ALB/MBD)", " ") ->  | J28: 0 | N28: 0
A29: =IF(COUNTRY_INFO!A29=0," ",COUNTRY_INFO!A29) -> South Africa | B29: =IF(COUNTRY_INFO!B29=0," ",COUNTRY_INFO!B29) -> KwaZulu-Natal | C29: =IF(COUNTRY_INFO!C29=0," ",COUNTRY_INFO!C29) -> Harry Gwala DM | D29: =IF(AND(COUNTRY_INFO!$T$9:$T$1000="T3 (ALB/MBD)",COUNTRY_INFO!$U$9:$U$1000="T3 (ALB/MBD)"), "T3 (ALB/MBD)", " ") ->  | J29: 0 | N29: 0
A30: =IF(COUNTRY_INFO!A30=0," ",COUNTRY_INFO!A30) -> South Africa | B30: =IF(COUNTRY_INFO!B30=0," ",COUNTRY_INFO!B30) -> KwaZulu-Natal | C30: =IF(COUNTRY_INFO!C30=0," ",COUNTRY_INFO!C30) -> iLembe DM | D30: =IF(AND(COUNTRY_INFO!$T$9:$T$1000="T3 (ALB/MBD)",COUNTRY_INFO!$U$9:$U$1000="T3 (ALB/MBD)"), "T3 (ALB/MBD)", " ") ->  | J30: 0 | N30: 0
A31: =IF(COUNTRY_INFO!A31=0," ",COUNTRY_INFO!A31) -> South Africa | B31: =IF(COUNTRY_INFO!B31=0," ",COUNTRY_INFO!B31) -> KwaZulu-Natal | C31: =IF(COUNTRY_INFO!C31=0," ",COUNTRY_INFO!C31) -> Ugu DM | D31: =IF(AND(COUNTRY_INFO!$T$9:$T$1000="T3 (ALB/MBD)",COUNTRY_INFO!$U$9:$U$1000="T3 (ALB/MBD)"), "T3 (ALB/MBD)", " ") ->  | J31: 0 | N31: 0
A32: =IF(COUNTRY_INFO!A32=0," ",COUNTRY_INFO!A32) -> South Africa | B32: =IF(COUNTRY_INFO!B32=0," ",COUNTRY_INFO!B32) -> KwaZulu-Natal | C32: =IF(COUNTRY_INFO!C32=0," ",COUNTRY_INFO!C32) -> uMgungundlovu DM | D32: =IF(AND(COUNTRY_INFO!$T$9:$T$1000="T3 (ALB/MBD)",COUNTRY_INFO!$U$9:$U$1000="T3 (ALB/MBD)"), "T3 (ALB/MBD)", " ") ->  | J32: 0 | N32: 0
A33: =IF(COUNTRY_INFO!A33=0," ",COUNTRY_INFO!A33) -> South Africa | B33: =IF(COUNTRY_INFO!B33=0," ",COUNTRY_INFO!B33) -> KwaZulu-Natal | C33: =IF(COUNTRY_INFO!C33=0," ",COUNTRY_INFO!C33) -> Umkhanyakude DM | D33: =IF(AND(COUNTRY_INFO!$T$9:$T$1000="T3 (ALB/MBD)",COUNTRY_INFO!$U$9:$U$1000="T3 (ALB/MBD)"), "T3 (ALB/MBD)", " ") ->  | J33: 0 | N33: 0
A34: =IF(COUNTRY_INFO!A34=0," ",COUNTRY_INFO!A34) -> South Africa | B34: =IF(COUNTRY_INFO!B34=0," ",COUNTRY_INFO!B34) -> KwaZulu-Natal | C34: =IF(COUNTRY_INFO!C34=0," ",COUNTRY_INFO!C34) -> Umzinyathi DM | D34: =IF(AND(COUNTRY_INFO!$T$9:$T$1000="T3 (ALB/MBD)",COUNTRY_INFO!$U$9:$U$1000="T3 (ALB/MBD)"), "T3 (ALB/MBD)", " ") ->  | J34: 0 | N34: 0
A35: =IF(COUNTRY_INFO!A35=0," ",COUNTRY_INFO!A35) -> South Africa | B35: =IF(COUNTRY_INFO!B35=0," ",COUNTRY_INFO!B35) -> KwaZulu-Natal | C35: =IF(COUNTRY_INFO!C35=0," ",COUNTRY_INFO!C35) -> Uthukela DM | D35: =IF(AND(COUNTRY_INFO!$T$9:$T$1000="T3 (ALB/MBD)",COUNTRY_INFO!$U$9:$U$1000="T3 (ALB/MBD)"), "T3 (ALB/MBD)", " ") ->  | J35: 0 | N35: 0
A36: =IF(COUNTRY_INFO!A36=0," ",COUNTRY_INFO!A36) -> South Africa | B36: =IF(COUNTRY_INFO!B36=0," ",COUNTRY_INFO!B36) -> KwaZulu-Natal | C36: =IF(COUNTRY_INFO!C36=0," ",COUNTRY_INFO!C36) -> Uthungulu DM | D36: =IF(AND(COUNTRY_INFO!$T$9:$T$1000="T3 (ALB/MBD)",COUNTRY_INFO!$U$9:$U$1000="T3 (ALB/MBD)"), "T3 (ALB/MBD)", " ") ->  | J36: 0 | N36: 0
A37: =IF(COUNTRY_INFO!A37=0," ",COUNTRY_INFO!A37) -> South Africa | B37: =IF(COUNTRY_INFO!B37=0," ",COUNTRY_INFO!B37) -> KwaZulu-Natal | C37: =IF(COUNTRY_INFO!C37=0," ",COUNTRY_INFO!C37) -> Zululand DM | D37: =IF(AND(COUNTRY_INFO!$T$9:$T$1000="T3 (ALB/MBD)",COUNTRY_INFO!$U$9:$U$1000="T3 (ALB/MBD)"), "T3 (ALB/MBD)", " ") ->  | J37: 0 | N37: 0
A38: =IF(COUNTRY_INFO!A38=0," ",COUNTRY_INFO!A38) -> South Africa | B38: =IF(COUNTRY_INFO!B38=0," ",COUNTRY_INFO!B38) -> Limpopo | C38: =IF(COUNTRY_INFO!C38=0," ",COUNTRY_INFO!C38) -> Capricorn DM | D38: =IF(AND(COUNTRY_INFO!$T$9:$T$1000="T3 (ALB/MBD)",COUNTRY_INFO!$U$9:$U$1000="T3 (ALB/MBD)"), "T3 (ALB/MBD)", " ") ->  | J38: 0 | N38: 0
A39: =IF(COUNTRY_INFO!A39=0," ",COUNTRY_INFO!A39) -> South Africa | B39: =IF(COUNTRY_INFO!B39=0," ",COUNTRY_INFO!B39) -> Limpopo | C39: =IF(COUNTRY_INFO!C39=0," ",COUNTRY_INFO!C39) -> Mopani DM | D39: =IF(AND(COUNTRY_INFO!$T$9:$T$1000="T3 (ALB/MBD)",COUNTRY_INFO!$U$9:$U$1000="T3 (ALB/MBD)"), "T3 (ALB/MBD)", " ") ->  | J39: 0 | N39: 0
A40: =IF(COUNTRY_INFO!A40=0," ",COUNTRY_INFO!A40) -> South Africa | B40: =IF(COUNTRY_INFO!B40=0," ",COUNTRY_INFO!B40) -> Limpopo | C40: =IF(COUNTRY_INFO!C40=0," ",COUNTRY_INFO!C40) -> Sekhukhune DM | D40: =IF(AND(COUNTRY_INFO!$T$9:$T$1000="T3 (ALB/MBD)",COUNTRY_INFO!$U$9:$U$1000="T3 (ALB/MBD)"), "T3 (ALB/MBD)", " ") ->  | J40: 0 | N40: 0
A41: =IF(COUNTRY_INFO!A41=0," ",COUNTRY_INFO!A41) -> South Africa | B41: =IF(COUNTRY_INFO!B41=0," ",COUNTRY_INFO!B41) -> Limpopo | C41: =IF(COUNTRY_INFO!C41=0," ",COUNTRY_INFO!C41) -> Vhembe DM | D41: =IF(AND(COUNTRY_INFO!$T$9:$T$1000="T3 (ALB/MBD)",COUNTRY_INFO!$U$9:$U$1000="T3 (ALB/MBD)"), "T3 (ALB/MBD)", " ") ->  | J41: 0 | N41: 0
A42: =IF(COUNTRY_INFO!A42=0," ",COUNTRY_INFO!A42) -> South Africa | B42: =IF(COUNTRY_INFO!B42=0," ",COUNTRY_INFO!B42) -> Limpopo | C42: =IF(COUNTRY_INFO!C42=0," ",COUNTRY_INFO!C42) -> Waterberg DM | D42: =IF(AND(COUNTRY_INFO!$T$9:$T$1000="T3 (ALB/MBD)",COUNTRY_INFO!$U$9:$U$1000="T3 (ALB/MBD)"), "T3 (ALB/MBD)", " ") ->  | J42: 0 | N42: 0
A43: =IF(COUNTRY_INFO!A43=0," ",COUNTRY_INFO!A43) -> South Africa | B43: =IF(COUNTRY_INFO!B43=0," ",COUNTRY_INFO!B43) -> Mpumalanga | C43: =IF(COUNTRY_INFO!C43=0," ",COUNTRY_INFO!C43) -> Ehlanzeni DM | D43: =IF(AND(COUNTRY_INFO!$T$9:$T$1000="T3 (ALB/MBD)",COUNTRY_INFO!$U$9:$U$1000="T3 (ALB/MBD)"), "T3 (ALB/MBD)", " ") ->  | J43: 0 | N43: 0
A44: =IF(COUNTRY_INFO!A44=0," ",COUNTRY_INFO!A44) -> South Africa | B44: =IF(COUNTRY_INFO!B44=0," ",COUNTRY_INFO!B44) -> Mpumalanga | C44: =IF(COUNTRY_INFO!C44=0," ",COUNTRY_INFO!C44) -> G Sibande DM | D44: =IF(AND(COUNTRY_INFO!$T$9:$T$1000="T3 (ALB/MBD)",COUNTRY_INFO!$U$9:$U$1000="T3 (ALB/MBD)"), "T3 (ALB/MBD)", " ") ->  | J44: 0 | N44: 0
A45: =IF(COUNTRY_INFO!A45=0," ",COUNTRY_INFO!A45) -> South Africa | B45: =IF(COUNTRY_INFO!B45=0," ",COUNTRY_INFO!B45) -> Mpumalanga | C45: =IF(COUNTRY_INFO!C45=0," ",COUNTRY_INFO!C45) -> Nkangala DM | D45: =IF(AND(COUNTRY_INFO!$T$9:$T$1000="T3 (ALB/MBD)",COUNTRY_INFO!$U$9:$U$1000="T3 (ALB/MBD)"), "T3 (ALB/MBD)", " ") ->  | J45: 0 | N45: 0
A46: =IF(COUNTRY_INFO!A46=0," ",COUNTRY_INFO!A46) -> South Africa | B46: =IF(COUNTRY_INFO!B46=0," ",COUNTRY_INFO!B46) -> North West | C46: =IF(COUNTRY_INFO!C46=0," ",COUNTRY_INFO!C46) -> Bojanala Platinum DM | D46: =IF(AND(COUNTRY_INFO!$T$9:$T$1000="T3 (ALB/MBD)",COUNTRY_INFO!$U$9:$U$1000="T3 (ALB/MBD)"), "T3 (ALB/MBD)", " ") ->  | J46: 0 | N46: 0
A47: =IF(COUNTRY_INFO!A47=0," ",COUNTRY_INFO!A47) -> South Africa | B47: =IF(COUNTRY_INFO!B47=0," ",COUNTRY_INFO!B47) -> North West | C47: =IF(COUNTRY_INFO!C47=0," ",COUNTRY_INFO!C47) -> Dr K Kaunda DM | D47: =IF(AND(COUNTRY_INFO!$T$9:$T$1000="T3 (ALB/MBD)",COUNTRY_INFO!$U$9:$U$1000="T3 (ALB/MBD)"), "T3 (ALB/MBD)", " ") ->  | J47: 0 | N47: 0
A48: =IF(COUNTRY_INFO!A48=0," ",COUNTRY_INFO!A48) -> South Africa | B48: =IF(COUNTRY_INFO!B48=0," ",COUNTRY_INFO!B48) -> North West | C48: =IF(COUNTRY_INFO!C48=0," ",COUNTRY_INFO!C48) -> Ngaka Modiri Molema DM | D48: =IF(AND(COUNTRY_INFO!$T$9:$T$1000="T3 (ALB/MBD)",COUNTRY_INFO!$U$9:$U$1000="T3 (ALB/MBD)"), "T3 (ALB/MBD)", " ") ->  | J48: 0 | N48: 0
A49: =IF(COUNTRY_INFO!A49=0," ",COUNTRY_INFO!A49) -> South Africa | B49: =IF(COUNTRY_INFO!B49=0," ",COUNTRY_INFO!B49) -> North West | C49: =IF(COUNTRY_INFO!C49=0," ",COUNTRY_INFO!C49) -> Ruth Segomotsi Mompati DM | D49: =IF(AND(COUNTRY_INFO!$T$9:$T$1000="T3 (ALB/MBD)",COUNTRY_INFO!$U$9:$U$1000="T3 (ALB/MBD)"), "T3 (ALB/MBD)", " ") ->  | J49: 0 | N49: 0
A50: =IF(COUNTRY_INFO!A50=0," ",COUNTRY_INFO!A50) -> South Africa | B50: =IF(COUNTRY_INFO!B50=0," ",COUNTRY_INFO!B50) -> Northern Cape | C50: =IF(COUNTRY_INFO!C50=0," ",COUNTRY_INFO!C50) -> Frances Baard DM | D50: =IF(AND(COUNTRY_INFO!$T$9:$T$1000="T3 (ALB/MBD)",COUNTRY_INFO!$U$9:$U$1000="T3 (ALB/MBD)"), "T3 (ALB/MBD)", " ") ->  | J50: 0 | N50: 0
A51: =IF(COUNTRY_INFO!A51=0," ",COUNTRY_INFO!A51) -> South Africa | B51: =IF(COUNTRY_INFO!B51=0," ",COUNTRY_INFO!B51) -> Northern Cape | C51: =IF(COUNTRY_INFO!C51=0," ",COUNTRY_INFO!C51) -> J T Gaetsewe DM | D51: =IF(AND(COUNTRY_INFO!$T$9:$T$1000="T3 (ALB/MBD)",COUNTRY_INFO!$U$9:$U$1000="T3 (ALB/MBD)"), "T3 (ALB/MBD)", " ") ->  | J51: 0 | N51: 0
A52: =IF(COUNTRY_INFO!A52=0," ",COUNTRY_INFO!A52) -> South Africa | B52: =IF(COUNTRY_INFO!B52=0," ",COUNTRY_INFO!B52) -> Northern Cape | C52: =IF(COUNTRY_INFO!C52=0," ",COUNTRY_INFO!C52) -> Namakwa DM | D52: =IF(AND(COUNTRY_INFO!$T$9:$T$1000="T3 (ALB/MBD)",COUNTRY_INFO!$U$9:$U$1000="T3 (ALB/MBD)"), "T3 (ALB/MBD)", " ") ->  | J52: 0 | N52: 0
A53: =IF(COUNTRY_INFO!A53=0," ",COUNTRY_INFO!A53) -> South Africa | B53: =IF(COUNTRY_INFO!B53=0," ",COUNTRY_INFO!B53) -> Northern Cape | C53: =IF(COUNTRY_INFO!C53=0," ",COUNTRY_INFO!C53) -> Pixley ka Seme DM | D53: =IF(AND(COUNTRY_INFO!$T$9:$T$1000="T3 (ALB/MBD)",COUNTRY_INFO!$U$9:$U$1000="T3 (ALB/MBD)"), "T3 (ALB/MBD)", " ") ->  | J53: 0 | N53: 0
A54: =IF(COUNTRY_INFO!A54=0," ",COUNTRY_INFO!A54) -> South Africa | B54: =IF(COUNTRY_INFO!B54=0," ",COUNTRY_INFO!B54) -> Northern Cape | C54: =IF(COUNTRY_INFO!C54=0," ",COUNTRY_INFO!C54) -> ZF Mgcawu DM | D54: =IF(AND(COUNTRY_INFO!$T$9:$T$1000="T3 (ALB/MBD)",COUNTRY_INFO!$U$9:$U$1000="T3 (ALB/MBD)"), "T3 (ALB/MBD)", " ") ->  | J54: 0 | N54: 0
A55: =IF(COUNTRY_INFO!A55=0," ",COUNTRY_INFO!A55) -> South Africa | B55: =IF(COUNTRY_INFO!B55=0," ",COUNTRY_INFO!B55) -> Western Cape | C55: =IF(COUNTRY_INFO!C55=0," ",COUNTRY_INFO!C55) -> Cape Town MM | D55: =IF(AND(COUNTRY_INFO!$T$9:$T$1000="T3 (ALB/MBD)",COUNTRY_INFO!$U$9:$U$1000="T3 (ALB/MBD)"), "T3 (ALB/MBD)", " ") ->  | J55: 0 | N55: 0
A56: =IF(COUNTRY_INFO!A56=0," ",COUNTRY_INFO!A56) -> South Africa | B56: =IF(COUNTRY_INFO!B56=0," ",COUNTRY_INFO!B56) -> Western Cape | C56: =IF(COUNTRY_INFO!C56=0," ",COUNTRY_INFO!C56) -> Cape Winelands DM | D56: =IF(AND(COUNTRY_INFO!$T$9:$T$1000="T3 (ALB/MBD)",COUNTRY_INFO!$U$9:$U$1000="T3 (ALB/MBD)"), "T3 (ALB/MBD)", " ") ->  | J56: 0 | N56: 0
A57: =IF(COUNTRY_INFO!A57=0," ",COUNTRY_INFO!A57) -> South Africa | B57: =IF(COUNTRY_INFO!B57=0," ",COUNTRY_INFO!B57) -> Western Cape | C57: =IF(COUNTRY_INFO!C57=0," ",COUNTRY_INFO!C57) -> Central Karoo DM | D57: =IF(AND(COUNTRY_INFO!$T$9:$T$1000="T3 (ALB/MBD)",COUNTRY_INFO!$U$9:$U$1000="T3 (ALB/MBD)"), "T3 (ALB/MBD)", " ") ->  | J57: 0 | N57: 0
A58: =IF(COUNTRY_INFO!A58=0," ",COUNTRY_INFO!A58) -> South Africa | B58: =IF(COUNTRY_INFO!B58=0," ",COUNTRY_INFO!B58) -> Western Cape | C58: =IF(COUNTRY_INFO!C58=0," ",COUNTRY_INFO!C58) -> Eden DM | D58: =IF(AND(COUNTRY_INFO!$T$9:$T$1000="T3 (ALB/MBD)",COUNTRY_INFO!$U$9:$U$1000="T3 (ALB/MBD)"), "T3 (ALB/MBD)", " ") ->  | J58: 0 | N58: 0
A59: =IF(COUNTRY_INFO!A59=0," ",COUNTRY_INFO!A59) -> South Africa | B59: =IF(COUNTRY_INFO!B59=0," ",COUNTRY_INFO!B59) -> Western Cape | C59: =IF(COUNTRY_INFO!C59=0," ",COUNTRY_INFO!C59) -> Overberg DM | D59: =IF(AND(COUNTRY_INFO!$T$9:$T$1000="T3 (ALB/MBD)",COUNTRY_INFO!$U$9:$U$1000="T3 (ALB/MBD)"), "T3 (ALB/MBD)", " ") ->  | J59: 0 | N59: 0
A60: =IF(COUNTRY_INFO!A60=0," ",COUNTRY_INFO!A60) -> South Africa | B60: =IF(COUNTRY_INFO!B60=0," ",COUNTRY_INFO!B60) -> Western Cape | C60: =IF(COUNTRY_INFO!C60=0," ",COUNTRY_INFO!C60) -> West Coast DM | D60: =IF(AND(COUNTRY_INFO!$T$9:$T$1000="T3 (ALB/MBD)",COUNTRY_INFO!$U$9:$U$1000="T3 (ALB/MBD)"), "T3 (ALB/MBD)", " ") ->  | J60: 0 | N60: 0

Sheet DISTRICT
A1: Number of individuals treated
A2: Administrative structure, population treated by age group and gender
A4: TOTAL | D4: =SUM(D$9:D$1000) -> 0 | E4: =SUM(E$9:E$1000) -> 0 | F4: =SUM(F$9:F$1000) -> 0 | G4: =SUM(G$9:G$1000) -> 0 | H4: =SUM(H$9:H$1000) -> 0 | I4: =IF(D4>0, IF(H4/D4*100<>0, H4/D4*100, "-"),0) -> 0 | J4: =SUM(J$9:J$1000) -> 0 | K4: =SUM(K$9:K$1000) -> 0 | L4: =SUM(L$9:L$1000) -> 0 | M4: =SUM(M$9:M$1000) -> 0 | N4: =SUM(N$9:N$1000) -> 0 | O4: =IF(J4>0, IF(N4/J4*100<>0, N4/J4*100, "-"),0) -> 0 | P4: =SUM(P$9:P$1000) -> 15681512 | Q4: =SUM(Q$9:Q$1000) -> 0 | R4: =SUM(R$9:R$1000) -> 0 | S4: =SUM(S$9:S$1000) -> 8363330 | T4: =SUM(T$9:T$1000) -> 1794951 | V4: 6423007 | X4: =SUM(X$9:X$1000) -> 8217958 | Y4: =IF(P4>0, IF(X4/P4*100<>0, X4/P4*100, "-"),0) -> 52.40539305 | Z4: =SUM(Z$9:Z$1000) -> 0 | AA4: 0 | AB4: 0 | AC4: 0 | AD4: 0 | AF4: 0 | AH4: 0 | AI4: =IF(Z4>0, IF(AH4/Z4*100<>0, AH4/Z4*100, "-"),0) -> 0
D6: Population requiring PC for LF | E6: Population treated for lymphatic filariasis | J6: Population requiring PC for ONCHO | K6: Population treated for onchocerciasis | P6: Population requiring PC for STH | Q6: Population treated for STH | Z6: Population requiring PC for SCH | AA6: Population treated for schistosomiasis | AP6: =SUM(AP9:AP1000) -> 0 | AQ6: 4710199 | AR6: 10971313 | AS6: 0 | AT6: =SUM(AT9:AT1000) -> 15681512 | AU6: =COUNTIF(AU9:AU1000,"Y") -> 52 | AV6: =SUM(AV9:AV1000) -> 1865694 | AW6: 6497636 | AX6: 0 | AY6: =SUM(AY9:AY1000) -> 8363330 | AZ6: 1794951 | BA6: 6423007 | BB6: 0 | BC6: 8217958 | BD6: =IF(AT6<>0,BC6/AT6,0) -> 0.5240539305
A7: Country | B7: Province/State | C7: District | E7: Male | F7: Female | G7: Total treated | H7: Total in need treated | I7: (%) | K7: Male | L7: Female | M7: Total treated | N7: Total in need treated | O7: (%) | Q7: Male | R7: Female | S7: Total treated | T7: PreSAC in need treated | U7: PreSAC (%) | V7: SAC in need treated | W7: SAC (%) | X7: Total in need treated | Y7: (%) | AA7: Male | AB7: Female | AC7: Total treated | AD7: SAC in need treated | AE7: SAC (%) | AF7: Adults in need treated | AG7: Adults (%) | AH7: Total in need treated | AI7: (%) | AK7: LF | AL7: ONCHO | AM7: STH | AN7: SCH-SAC | AO7: SCH_Adults | AP7: <1 | AQ7: PreSAC | AR7: SAC | AS7: Adults | AT7: Total | AU7: Dis | AV7: PreSAC | AW7: SAC | AX7: Adults | AY7: Total | AZ7: PreSAC | BA7: SAC | BB7: Adults | BC7: Total | BD7: Coverage
A9: =IF(COUNTRY_INFO!A9=0," ",COUNTRY_INFO!A9) -> South Africa | B9: =IF(COUNTRY_INFO!B9=0," ",COUNTRY_INFO!B9) -> Eastern Cape | C9: =IF(COUNTRY_INFO!C9=0," ",COUNTRY_INFO!C9) -> A Nzo DM | D9: =COUNTRY_INFO!L9 -> 0 | G9: =MAX('MDA1'!M9,'MDA2'!M9) -> 0 | H9: =IF(AND(COUNTRY_INFO!H9>0,COUNTRY_INFO!H9<4),IF(D9>MAX('MDA1'!M9,'MDA2'!M9),MAX('MDA1'!M9,'MDA2'!M9),D9),0) -> 0 | I9: =IF(AND(COUNTRY_INFO!H9>0,COUNTRY_INFO!H9<4), IF(G9/D9*100<>0, IF(G9/D9*100>100,100,G9/D9*100), "-"),0) -> 0 | J9: =COUNTRY_INFO!M9 -> 0 | M9: =MAX('MDA1'!M9,MAX('MDA3'!I9,'MDA3'!L9)+MAX('MDA3'!J9,'MDA3'!M9)) -> 0 | N9: =IF(AND(COUNTRY_INFO!I9>0,COUNTRY_INFO!I9<4),IF(J9>MAX('MDA1'!M9,MAX('MDA3'!I9,'MDA3'!L9)+MAX('MDA3'!J9,'MDA3'!M9)),MAX('MDA1'!M9,MAX('MDA3'!I9,'MDA3'!L9)+MAX('MDA3'!J9,'MDA3'!M9)),J9),0) -> 0 | O9: =IF(AND(COUNTRY_INFO!I9>0,COUNTRY_INFO!I9<4), IF(M9/J9*100<>0, IF(M9/J9*100>100,100,M9/J9*100), "-"),0) -> 0 | P9: =COUNTRY_INFO!N9 -> 240816 | S9: =SUM(MAX('MDA2'!J9, 'T1'!L9, MAX(T3_R1!K9, T3_R2!K9)), MAX('MDA1'!K9, 'MDA2'!K9, 'T1'!M9, MAX(T3_R1!L9, T3_R2!L9)), MAX('MDA1'!L9, 'MDA2'!L9, 'T1'!N9, MAX(T3_R1!M9, T3_R2!M9))) -> 161169 | T9: =IF(AND(COUNTRY_INFO!J9>1,COUNTRY_INFO!J9<4),IF(COUNTRY_INFO!E9>MAX('MDA2'!J9,'T1'!L9,MAX(T3_R1!K9,T3_R2!K9)),MAX('MDA2'!J9,'T1'!L9,MAX(T3_R1!K9,T3_R2!K9)),COUNTRY_INFO!E9),0) -> 33794 | U9: =IF(AND(COUNTRY_INFO!J9>1,COUNTRY_INFO!J9<4), IF(T9/COUNTRY_INFO!E9*100<>0, IF(T9/COUNTRY_INFO!E9*100>100,100,T9/COUNTRY_INFO!E9*100), "-"),0) -> 46.72003097 | V9: =IF(AND(COUNTRY_INFO!J9>1,COUNTRY_INFO!J9<4),IF(COUNTRY_INFO!F9>MAX('MDA1'!K9,'MDA2'!K9,'T1'!M9,MAX(T3_R1!L9,T3_R2!L9)),MAX('MDA1'!K9,'MDA2'!K9,'T1'!M9,MAX(T3_R1!L9,T3_R2!L9)),COUNTRY_INFO!F9),0) -> 127375 | W9: =IF(AND(COUNTRY_INFO!J9>1,COUNTRY_INFO!J9<4), IF(V9/COUNTRY_INFO!F9*100<>0, IF(V9/COUNTRY_INFO!F9*100>100,100,V9/COUNTRY_INFO!F9*100), "-"),0) -> 75.60109922 | X9: =SUM(T9,V9) -> 161169 | Y9: =IF(AND(COUNTRY_INFO!J9>1,COUNTRY_INFO!J9<4), IF(S9/P9*100<>0, IF(X9/P9*100>100,100,X9/P9*100), "-"),0) -> 66.92620092 | Z9: =COUNTRY_INFO!O9 -> 0 | AC9: =MAX('T1'!L9,'T2'!J9)+MAX('T1'!M9,'T2'!K9)+MAX('T1'!N9,'T2'!L9) -> 0 | AD9: =IF(COUNTRY_INFO!K9=1,IF(COUNTRY_INFO!F9*0.33>MAX('T1'!M9,'T2'!K9),MAX('T1'!M9,'T2'!K9),COUNTRY_INFO!F9*0.33),IF(COUNTRY_INFO!K9=2,IF(COUNTRY_INFO!F9*0.5>MAX('T1'!M9,'T2'!K9),MAX('T1'!M9,'T2'!K9),COUNTRY_INFO!F9*0.5),IF(COUNTRY_INFO!K9=3,IF(COUNTRY_INFO!F9>MAX('T1'!M9,'T2'!K9),MAX('T1'!M9,'T2'!K9),COUNTRY_INFO!F9),0))) -> 0 | AE9: =IF(AND(COUNTRY_INFO!K9>0,COUNTRY_INFO!K9<4),IF(Z9>0,IF(COUNTRY_INFO!K9=1, AD9/(COUNTRY_INFO!F9*0.33)*100, IF(COUNTRY_INFO!K9=2, AD9/(COUNTRY_INFO!F9*0.5)*100, IF(COUNTRY_INFO!K9=3, AD9/COUNTRY_INFO!F9*100))),"-"),0) -> - | AF9: =IF(COUNTRY_INFO!K9=2,IF(COUNTRY_INFO!G9*0.2>MAX('T1'!N9,'T2'!L9),MAX('T1'!N9,'T2'!L9),COUNTRY_INFO!G9*0.2),IF(COUNTRY_INFO!K9=3,IF(COUNTRY_INFO!G9>MAX('T1'!N9,'T2'!L9),MAX('T1'!N9,'T2'!L9),COUNTRY_INFO!G9),0)) -> 0 | AG9: =IF(AND(COUNTRY_INFO!K9>0,COUNTRY_INFO!K9<4),IF(Z9>0,IF(COUNTRY_INFO!K9=1, 0, IF(COUNTRY_INFO!K9=2, AF9/(COUNTRY_INFO!G9*0.2)*100, IF(COUNTRY_INFO!K9=3, AF9/COUNTRY_INFO!G9*100))),"-"),0) -> - | AH9: =SUM(AD9,AF9) -> 0 | AI9: =IF(AND(COUNTRY_INFO!K9>0,COUNTRY_INFO!K9<4), IF(AC9/Z9*100<>0, IF(AH9/Z9*100>100,100,AH9/Z9*100), "-"),0) ->  | AK9: =IF(AND(D9<>0, D9<>"Unknown",D9<>"Stopped",D9<>"Not required"),D9/COUNTRY_INFO!D9, 0) -> 0 | AL9: =IF(AND(J9<>0,J9<>"Unknown",J9<>"Stopped",J9<>"Not required"),J9/COUNTRY_INFO!D9, 0) -> 0 | AM9: =IF(AND(P9<>0,P9<>"Unknown",P9<>"Not required"),P9/(COUNTRY_INFO!E9+COUNTRY_INFO!F9), 0) -> 1 | AN9: =IF(AND(Z9<>0,Z9<>"Unknown",Z9<>"Not required"),IF(COUNTRY_INFO!K9=1,1,IF(COUNTRY_INFO!K9=2,0.5*COUNTRY_INFO!F9/(0.5*COUNTRY_INFO!F9+0.2*COUNTRY_INFO!G9),IF(COUNTRY_INFO!K9=3,COUNTRY_INFO!F9/(COUNTRY_INFO!F9+COUNTRY_INFO!G9)))),0) -> 0 | AO9: =IF(AND(Z9<>0,Z9<>"Unknown",Z9<>"Not required"),IF(COUNTRY_INFO!K9=1,0,IF(COUNTRY_INFO!K9=2,0.2*COUNTRY_INFO!G9/(0.5*COUNTRY_INFO!F9+0.2*COUNTRY_INFO!G9),IF(COUNTRY_INFO!K9=3,COUNTRY_INFO!G9/(COUNTRY_INFO!F9+COUNTRY_INFO!G9)))),0) -> 0 | AP9: =MAX(COUNTRY_INFO!D9*AK9*PROFILE!$G$7,COUNTRY_INFO!D9*AL9*PROFILE!$G$7) -> 0 | AQ9: =MAX(COUNTRY_INFO!D9*AK9*PROFILE!$G$8,COUNTRY_INFO!D9*AL9*PROFILE!$G$8,COUNTRY_INFO!D9*AM9*PROFILE!$G$8) -> 72332.97076 | AR9: =MAX(COUNTRY_INFO!D9*AK9*PROFILE!$G$9,COUNTRY_INFO!D9*AL9*PROFILE!$G$9,COUNTRY_INFO!D9*AM9*PROFILE!$G$9,IF(AND(DISTRICT!Z9<>"Unknown",Z9<>"Not required"),COUNTRY_INFO!O9*DISTRICT!AN9,0)) -> 168482.8311 | AS9: =MAX(COUNTRY_INFO!D9*AK9*PROFILE!$G$10,COUNTRY_INFO!D9*AL9*PROFILE!$G$10,IF(AND(DISTRICT!Z9<>"Unknown",Z9<>"Not required"),COUNTRY_INFO!O9*DISTRICT!AO9,0)) -> 0 | AT9: =SUM(AP9:AS9) -> 240815.8018 | AU9: =IF(COUNTIFS(AK9:AN9,">0")=0,0, IF(COUNTIFS(AK9:AN9,">0")<=IF(AND(OR(D9>=0,D9="Not required",D9="Unknown",D9="Stopped"),D9>0,H9>0),1,0)+IF(AND(OR(J9>=0,J9="Not required",J9="Unknown",J9="Stopped"),J9>0,N9>0),1,0)+IF(AND(OR(P9>=0,P9="Not required",P9="Unknown"),P9>0,X9>0),1,0)+IF(AND(OR(Z9>=0,Z9="Not required",Z9="Unknown"),Z9>0,AH9>0),1,0),"Y",0)) -> Y | AV9: =MAX('MDA2'!J9,'T1'!L9,'T2'!J9,T3_R1!K9,T3_R2!K9) -> 33794 | AW9: =MAX('MDA1'!K9,'MDA2'!K9,'MDA3'!I9,'MDA3'!L9,'T1'!M9,'T2'!K9,T3_R1!L9,T3_R2!L9) -> 127375 | AX9: =MAX('MDA1'!L9,'MDA2'!L9,'MDA3'!J9,'MDA3'!M9,'T1'!N9,'T2'!L9,T3_R1!M9,T3_R2!M9) -> 0 | AY9: =SUM(AV9:AX9) -> 161169 | AZ9: =MAX('MDA2'!J9,T9) -> 33794 | BA9: =MAX('MDA1'!K9,'MDA2'!K9,'MDA3'!I9,'MDA3'!L9,V9,AD9) -> 127375 | BB9: =MAX('MDA1'!L9,'MDA2'!L9,'MDA3'!J9,'MDA3'!M9,AF9) -> 0 | BC9: =IF(AT9<SUM(AZ9:BB9), AT9,SUM(AZ9:BB9)) -> 161169 | BD9: =IF(AT9<>0,BC9/AT9*100,0) -> 66.92625599
A10: =IF(COUNTRY_INFO!A10=0," ",COUNTRY_INFO!A10) -> South Africa | B10: =IF(COUNTRY_INFO!B10=0," ",COUNTRY_INFO!B10) -> Eastern Cape | C10: =IF(COUNTRY_INFO!C10=0," ",COUNTRY_INFO!C10) -> Amathole DM | D10: =COUNTRY_INFO!L10 -> 0 | G10: =MAX('MDA1'!M10,'MDA2'!M10) -> 0 | H10: =IF(AND(COUNTRY_INFO!H10>0,COUNTRY_INFO!H10<4),IF(D10>MAX('MDA1'!M10,'MDA2'!M10),MAX('MDA1'!M10,'MDA2'!M10),D10),0) -> 0 | I10: =IF(AND(COUNTRY_INFO!H10>0,COUNTRY_INFO!H10<4), IF(G10/D10*100<>0, IF(G10/D10*100>100,100,G10/D10*100), "-"),0) -> 0 | J10: =COUNTRY_INFO!M10 -> 0 | M10: =MAX('MDA1'!M10,MAX('MDA3'!I10,'MDA3'!L10)+MAX('MDA3'!J10,'MDA3'!M10)) -> 0 | N10: =IF(AND(COUNTRY_INFO!I10>0,COUNTRY_INFO!I10<4),IF(J10>MAX('MDA1'!M10,MAX('MDA3'!I10,'MDA3'!L10)+MAX('MDA3'!J10,'MDA3'!M10)),MAX('MDA1'!M10,MAX('MDA3'!I10,'MDA3'!L10)+MAX('MDA3'!J10,'MDA3'!M10)),J10),0) -> 0 | O10: =IF(AND(COUNTRY_INFO!I10>0,COUNTRY_INFO!I10<4), IF(M10/J10*100<>0, IF(M10/J10*100>100,100,M10/J10*100), "-"),0) -> 0 | P10: =COUNTRY_INFO!N10 -> 257976 | S10: =SUM(MAX('MDA2'!J10, 'T1'!L10, MAX(T3_R1!K10, T3_R2!K10)), MAX('MDA1'!K10, 'MDA2'!K10, 'T1'!M10, MAX(T3_R1!L10, T3_R2!L10)), MAX('MDA1'!L10, 'MDA2'!L10, 'T1'!N10, MAX(T3_R1!M10, T3_R2!M10))) -> 172654 | T10: =IF(AND(COUNTRY_INFO!J10>1,COUNTRY_INFO!J10<4),IF(COUNTRY_INFO!E10>MAX('MDA2'!J10,'T1'!L10,MAX(T3_R1!K10,T3_R2!K10)),MAX('MDA2'!J10,'T1'!L10,MAX(T3_R1!K10,T3_R2!K10)),COUNTRY_INFO!E10),0) -> 36202 | U10: =IF(AND(COUNTRY_INFO!J10>1,COUNTRY_INFO!J10<4), IF(T10/COUNTRY_INFO!E10*100<>0, IF(T10/COUNTRY_INFO!E10*100>100,100,T10/COUNTRY_INFO!E10*100), "-"),0) -> 46.72009498 | V10: =IF(AND(COUNTRY_INFO!J10>1,COUNTRY_INFO!J10<4),IF(COUNTRY_INFO!F10>MAX('MDA1'!K10,'MDA2'!K10,'T1'!M10,MAX(T3_R1!L10,T3_R2!L10)),MAX('MDA1'!K10,'MDA2'!K10,'T1'!M10,MAX(T3_R1!L10,T3_R2!L10)),COUNTRY_INFO!F10),0) -> 136452 | W10: =IF(AND(COUNTRY_INFO!J10>1,COUNTRY_INFO!J10<4), IF(V10/COUNTRY_INFO!F10*100<>0, IF(V10/COUNTRY_INFO!F10*100>100,100,V10/COUNTRY_INFO!F10*100), "-"),0) -> 75.60128318 | X10: =SUM(T10,V10) -> 172654 | Y10: =IF(AND(COUNTRY_INFO!J10>1,COUNTRY_INFO!J10<4), IF(S10/P10*100<>0, IF(X10/P10*100>100,100,X10/P10*100), "-"),0) -> 66.92638075 | Z10: =COUNTRY_INFO!O10 -> 0 | AC10: =MAX('T1'!L10,'T2'!J10)+MAX('T1'!M10,'T2'!K10)+MAX('T1'!N10,'T2'!L10) -> 0 | AD10: =IF(COUNTRY_INFO!K10=1,IF(COUNTRY_INFO!F10*0.33>MAX('T1'!M10,'T2'!K10),MAX('T1'!M10,'T2'!K10),COUNTRY_INFO!F10*0.33),IF(COUNTRY_INFO!K10=2,IF(COUNTRY_INFO!F10*0.5>MAX('T1'!M10,'T2'!K10),MAX('T1'!M10,'T2'!K10),COUNTRY_INFO!F10*0.5),IF(COUNTRY_INFO!K10=3,IF(COUNTRY_INFO!F10>MAX('T1'!M10,'T2'!K10),MAX('T1'!M10,'T2'!K10),COUNTRY_INFO!F10),0))) -> 0 | AE10: =IF(AND(COUNTRY_INFO!K10>0,COUNTRY_INFO!K10<4),IF(Z10>0,IF(COUNTRY_INFO!K10=1, AD10/(COUNTRY_INFO!F10*0.33)*100, IF(COUNTRY_INFO!K10=2, AD10/(COUNTRY_INFO!F10*0.5)*100, IF(COUNTRY_INFO!K10=3, AD10/COUNTRY_INFO!F10*100))),"-"),0) -> - | AF10: =IF(COUNTRY_INFO!K10=2,IF(COUNTRY_INFO!G10*0.2>MAX('T1'!N10,'T2'!L10),MAX('T1'!N10,'T2'!L10),COUNTRY_INFO!G10*0.2),IF(COUNTRY_INFO!K10=3,IF(COUNTRY_INFO!G10>MAX('T1'!N10,'T2'!L10),MAX('T1'!N10,'T2'!L10),COUNTRY_INFO!G10),0)) -> 0 | AG10: =IF(AND(COUNTRY_INFO!K10>0,COUNTRY_INFO!K10<4),IF(Z10>0,IF(COUNTRY_INFO!K10=1, 0, IF(COUNTRY_INFO!K10=2, AF10/(COUNTRY_INFO!G10*0.2)*100, IF(COUNTRY_INFO!K10=3, AF10/COUNTRY_INFO!G10*100))),"-"),0) -> - | AH10: =SUM(AD10,AF10) -> 0 | AI10: =IF(AND(COUNTRY_INFO!K10>0,COUNTRY_INFO!K10<4), IF(AC10/Z10*100<>0, IF(AH10/Z10*100>100,100,AH10/Z10*100), "-"),0) ->  | AK10: =IF(AND(D10<>0, D10<>"Unknown",D10<>"Stopped",D10<>"Not required"),D10/COUNTRY_INFO!D10, 0) -> 0 | AL10: =IF(AND(J10<>0,J10<>"Unknown",J10<>"Stopped",J10<>"Not required"),J10/COUNTRY_INFO!D10, 0) -> 0 | AM10: =IF(AND(P10<>0,P10<>"Unknown",P10<>"Not required"),P10/(COUNTRY_INFO!E10+COUNTRY_INFO!F10), 0) -> 1 | AN10: =IF(AND(Z10<>0,Z10<>"Unknown",Z10<>"Not required"),IF(COUNTRY_INFO!K10=1,1,IF(COUNTRY_INFO!K10=2,0.5*COUNTRY_INFO!F10/(0.5*COUNTRY_INFO!F10+0.2*COUNTRY_INFO!G10),IF(COUNTRY_INFO!K10=3,COUNTRY_INFO!F10/(COUNTRY_INFO!F10+COUNTRY_INFO!G10)))),0) -> 0 | AO10: =IF(AND(Z10<>0,Z10<>"Unknown",Z10<>"Not required"),IF(COUNTRY_INFO!K10=1,0,IF(COUNTRY_INFO!K10=2,0.2*COUNTRY_INFO!G10/(0.5*COUNTRY_INFO!F10+0.2*COUNTRY_INFO!G10),IF(COUNTRY_INFO!K10=3,COUNTRY_INFO!G10/(COUNTRY_INFO!F10+COUNTRY_INFO!G10)))),0) -> 0 | AP10: =MAX(COUNTRY_INFO!D10*AK10*PROFILE!$G$7,COUNTRY_INFO!D10*AL10*PROFILE!$G$7) -> 0 | AQ10: =MAX(COUNTRY_INFO!D10*AK10*PROFILE!$G$8,COUNTRY_INFO!D10*AL10*PROFILE!$G$8,COUNTRY_INFO!D10*AM10*PROFILE!$G$8) -> 77487.3291 | AR10: =MAX(COUNTRY_INFO!D10*AK10*PROFILE!$G$9,COUNTRY_INFO!D10*AL10*PROFILE!$G$9,COUNTRY_INFO!D10*AM10*PROFILE!$G$9,IF(AND(DISTRICT!Z10<>"Unknown",Z10<>"Not required"),COUNTRY_INFO!O10*DISTRICT!AN10,0)) -> 180488.7099 | AS10: =MAX(COUNTRY_INFO!D10*AK10*PROFILE!$G$10,COUNTRY_INFO!D10*AL10*PROFILE!$G$10,IF(AND(DISTRICT!Z10<>"Unknown",Z10<>"Not required"),COUNTRY_INFO!O10*DISTRICT!AO10,0)) -> 0 | AT10: =SUM(AP10:AS10) -> 257976.039 | AU10: Y | AV10: =MAX('MDA2'!J10,'T1'!L10,'T2'!J10,T3_R1!K10,T3_R2!K10) -> 36202 | AW10: =MAX('MDA1'!K10,'MDA2'!K10,'MDA3'!I10,'MDA3'!L10,'T1'!M10,'T2'!K10,T3_R1!L10,T3_R2!L10) -> 136452 | AX10: =MAX('MDA1'!L10,'MDA2'!L10,'MDA3'!J10,'MDA3'!M10,'T1'!N10,'T2'!L10,T3_R1!M10,T3_R2!M10) -> 0 | AY10: =SUM(AV10:AX10) -> 172654 | AZ10: =MAX('MDA2'!J10,T10) -> 36202 | BA10: =MAX('MDA1'!K10,'MDA2'!K10,'MDA3'!I10,'MDA3'!L10,V10,AD10) -> 136452 | BB10: =MAX('MDA1'!L10,'MDA2'!L10,'MDA3'!J10,'MDA3'!M10,AF10) -> 0 | BC10: 172654 | BD10: 66.92637062
A11: =IF(COUNTRY_INFO!A11=0," ",COUNTRY_INFO!A11) -> South Africa | B11: =IF(COUNTRY_INFO!B11=0," ",COUNTRY_INFO!B11) -> Eastern Cape | C11: =IF(COUNTRY_INFO!C11=0," ",COUNTRY_INFO!C11) -> Buffalo City MM | D11: =COUNTRY_INFO!L11 -> 0 | G11: =MAX('MDA1'!M11,'MDA2'!M11) -> 0 | H11: =IF(AND(COUNTRY_INFO!H11>0,COUNTRY_INFO!H11<4),IF(D11>MAX('MDA1'!M11,'MDA2'!M11),MAX('MDA1'!M11,'MDA2'!M11),D11),0) -> 0 | I11: =IF(AND(COUNTRY_INFO!H11>0,COUNTRY_INFO!H11<4), IF(G11/D11*100<>0, IF(G11/D11*100>100,100,G11/D11*100), "-"),0) -> 0 | J11: =COUNTRY_INFO!M11 -> 0 | M11: =MAX('MDA1'!M11,MAX('MDA3'!I11,'MDA3'!L11)+MAX('MDA3'!J11,'MDA3'!M11)) -> 0 | N11: =IF(AND(COUNTRY_INFO!I11>0,COUNTRY_INFO!I11<4),IF(J11>MAX('MDA1'!M11,MAX('MDA3'!I11,'MDA3'!L11)+MAX('MDA3'!J11,'MDA3'!M11)),MAX('MDA1'!M11,MAX('MDA3'!I11,'MDA3'!L11)+MAX('MDA3'!J11,'MDA3'!M11)),J11),0) -> 0 | O11: =IF(AND(COUNTRY_INFO!I11>0,COUNTRY_INFO!I11<4), IF(M11/J11*100<>0, IF(M11/J11*100>100,100,M11/J11*100), "-"),0) -> 0 | P11: =COUNTRY_INFO!N11 -> 219382 | S11: =SUM(MAX('MDA2'!J11, 'T1'!L11, MAX(T3_R1!K11, T3_R2!K11)), MAX('MDA1'!K11, 'MDA2'!K11, 'T1'!M11, MAX(T3_R1!L11, T3_R2!L11)), MAX('MDA1'!L11, 'MDA2'!L11, 'T1'!N11, MAX(T3_R1!M11, T3_R2!M11))) -> 146824 | T11: =IF(AND(COUNTRY_INFO!J11>1,COUNTRY_INFO!J11<4),IF(COUNTRY_INFO!E11>MAX('MDA2'!J11,'T1'!L11,MAX(T3_R1!K11,T3_R2!K11)),MAX('MDA2'!J11,'T1'!L11,MAX(T3_R1!K11,T3_R2!K11)),COUNTRY_INFO!E11),0) -> 30786 | U11: =IF(AND(COUNTRY_INFO!J11>1,COUNTRY_INFO!J11<4), IF(T11/COUNTRY_INFO!E11*100<>0, IF(T11/COUNTRY_INFO!E11*100>100,100,T11/COUNTRY_INFO!E11*100), "-"),0) -> 46.71978147 | V11: =IF(AND(COUNTRY_INFO!J11>1,COUNTRY_INFO!J11<4),IF(COUNTRY_INFO!F11>MAX('MDA1'!K11,'MDA2'!K11,'T1'!M11,MAX(T3_R1!L11,T3_R2!L11)),MAX('MDA1'!K11,'MDA2'!K11,'T1'!M11,MAX(T3_R1!L11,T3_R2!L11)),COUNTRY_INFO!F11),0) -> 116038 | W11: =IF(AND(COUNTRY_INFO!J11>1,COUNTRY_INFO!J11<4), IF(V11/COUNTRY_INFO!F11*100<>0, IF(V11/COUNTRY_INFO!F11*100>100,100,V11/COUNTRY_INFO!F11*100), "-"),0) -> 75.60119098 | X11: 146824 | Y11: =IF(AND(COUNTRY_INFO!J11>1,COUNTRY_INFO!J11<4), IF(S11/P11*100<>0, IF(X11/P11*100>100,100,X11/P11*100), "-"),0) -> 66.92618355 | Z11: =COUNTRY_INFO!O11 -> 0 | AC11: =MAX('T1'!L11,'T2'!J11)+MAX('T1'!M11,'T2'!K11)+MAX('T1'!N11,'T2'!L11) -> 0 | AD11: =IF(COUNTRY_INFO!K11=1,IF(COUNTRY_INFO!F11*0.33>MAX('T1'!M11,'T2'!K11),MAX('T1'!M11,'T2'!K11),COUNTRY_INFO!F11*0.33),IF(COUNTRY_INFO!K11=2,IF(COUNTRY_INFO!F11*0.5>MAX('T1'!M11,'T2'!K11),MAX('T1'!M11,'T2'!K11),COUNTRY_INFO!F11*0.5),IF(COUNTRY_INFO!K11=3,IF(COUNTRY_INFO!F11>MAX('T1'!M11,'T2'!K11),MAX('T1'!M11,'T2'!K11),COUNTRY_INFO!F11),0))) -> 0 | AE11: =IF(AND(COUNTRY_INFO!K11>0,COUNTRY_INFO!K11<4),IF(Z11>0,IF(COUNTRY_INFO!K11=1, AD11/(COUNTRY_INFO!F11*0.33)*100, IF(COUNTRY_INFO!K11=2, AD11/(COUNTRY_INFO!F11*0.5)*100, IF(COUNTRY_INFO!K11=3, AD11/COUNTRY_INFO!F11*100))),"-"),0) -> - | AF11: =IF(COUNTRY_INFO!K11=2,IF(COUNTRY_INFO!G11*0.2>MAX('T1'!N11,'T2'!L11),MAX('T1'!N11,'T2'!L11),COUNTRY_INFO!G11*0.2),IF(COUNTRY_INFO!K11=3,IF(COUNTRY_INFO!G11>MAX('T1'!N11,'T2'!L11),MAX('T1'!N11,'T2'!L11),COUNTRY_INFO!G11),0)) -> 0 | AG11: =IF(AND(COUNTRY_INFO!K11>0,COUNTRY_INFO!K11<4),IF(Z11>0,IF(COUNTRY_INFO!K11=1, 0, IF(COUNTRY_INFO!K11=2, AF11/(COUNTRY_INFO!G11*0.2)*100, IF(COUNTRY_INFO!K11=3, AF11/COUNTRY_INFO!G11*100))),"-"),0) -> - | AH11: 0 | AI11: =IF(AND(COUNTRY_INFO!K11>0,COUNTRY_INFO!K11<4), IF(AC11/Z11*100<>0, IF(AH11/Z11*100>100,100,AH11/Z11*100), "-"),0) ->  | AK11: =IF(AND(D11<>0, D11<>"Unknown",D11<>"Stopped",D11<>"Not required"),D11/COUNTRY_INFO!D11, 0) -> 0 | AL11: =IF(AND(J11<>0,J11<>"Unknown",J11<>"Stopped",J11<>"Not required"),J11/COUNTRY_INFO!D11, 0) -> 0 | AM11: =IF(AND(P11<>0,P11<>"Unknown",P11<>"Not required"),P11/(COUNTRY_INFO!E11+COUNTRY_INFO!F11), 0) -> 1 | AN11: =IF(AND(Z11<>0,Z11<>"Unknown",Z11<>"Not required"),IF(COUNTRY_INFO!K11=1,1,IF(COUNTRY_INFO!K11=2,0.5*COUNTRY_INFO!F11/(0.5*COUNTRY_INFO!F11+0.2*COUNTRY_INFO!G11),IF(COUNTRY_INFO!K11=3,COUNTRY_INFO!F11/(COUNTRY_INFO!F11+COUNTRY_INFO!G11)))),0) -> 0 | AO11: =IF(AND(Z11<>0,Z11<>"Unknown",Z11<>"Not required"),IF(COUNTRY_INFO!K11=1,0,IF(COUNTRY_INFO!K11=2,0.2*COUNTRY_INFO!G11/(0.5*COUNTRY_INFO!F11+0.2*COUNTRY_INFO!G11),IF(COUNTRY_INFO!K11=3,COUNTRY_INFO!G11/(COUNTRY_INFO!F11+COUNTRY_INFO!G11)))),0) -> 0 | AP11: =MAX(COUNTRY_INFO!D11*AK11*PROFILE!$G$7,COUNTRY_INFO!D11*AL11*PROFILE!$G$7) -> 0 | AQ11: =MAX(COUNTRY_INFO!D11*AK11*PROFILE!$G$8,COUNTRY_INFO!D11*AL11*PROFILE!$G$8,COUNTRY_INFO!D11*AM11*PROFILE!$G$8) -> 65895.06585 | AR11: =MAX(COUNTRY_INFO!D11*AK11*PROFILE!$G$9,COUNTRY_INFO!D11*AL11*PROFILE!$G$9,COUNTRY_INFO!D11*AM11*PROFILE!$G$9,IF(AND(DISTRICT!Z11<>"Unknown",Z11<>"Not required"),COUNTRY_INFO!O11*DISTRICT!AN11,0)) -> 153487.229 | AS11: =MAX(COUNTRY_INFO!D11*AK11*PROFILE!$G$10,COUNTRY_INFO!D11*AL11*PROFILE!$G$10,IF(AND(DISTRICT!Z11<>"Unknown",Z11<>"Not required"),COUNTRY_INFO!O11*DISTRICT!AO11,0)) -> 0 | AT11: 219382.2949 | AU11: Y | AV11: =MAX('MDA2'!J11,'T1'!L11,'T2'!J11,T3_R1!K11,T3_R2!K11) -> 30786 | AW11: =MAX('MDA1'!K11,'MDA2'!K11,'MDA3'!I11,'MDA3'!L11,'T1'!M11,'T2'!K11,T3_R1!L11,T3_R2!L11) -> 116038 | AX11: =MAX('MDA1'!L11,'MDA2'!L11,'MDA3'!J11,'MDA3'!M11,'T1'!N11,'T2'!L11,T3_R1!M11,T3_R2!M11) -> 0 | AY11: 146824 | AZ11: =MAX('MDA2'!J11,T11) -> 30786 | BA11: =MAX('MDA1'!K11,'MDA2'!K11,'MDA3'!I11,'MDA3'!L11,V11,AD11) -> 116038 | BB11: =MAX('MDA1'!L11,'MDA2'!L11,'MDA3'!J11,'MDA3'!M11,AF11) -> 0 | BC11: 146824 | BD11: 66.9260936
A12: =IF(COUNTRY_INFO!A12=0," ",COUNTRY_INFO!A12) -> South Africa | B12: =IF(COUNTRY_INFO!B12=0," ",COUNTRY_INFO!B12) -> Eastern Cape | C12: =IF(COUNTRY_INFO!C12=0," ",COUNTRY_INFO!C12) -> C Hani DM | D12: =COUNTRY_INFO!L12 -> 0 | G12: =MAX('MDA1'!M12,'MDA2'!M12) -> 0 | H12: =IF(AND(COUNTRY_INFO!H12>0,COUNTRY_INFO!H12<4),IF(D12>MAX('MDA1'!M12,'MDA2'!M12),MAX('MDA1'!M12,'MDA2'!M12),D12),0) -> 0 | I12: =IF(AND(COUNTRY_INFO!H12>0,COUNTRY_INFO!H12<4), IF(G12/D12*100<>0, IF(G12/D12*100>100,100,G12/D12*100), "-"),0) -> 0 | J12: =COUNTRY_INFO!M12 -> 0 | M12: =MAX('MDA1'!M12,MAX('MDA3'!I12,'MDA3'!L12)+MAX('MDA3'!J12,'MDA3'!M12)) -> 0 | N12: =IF(AND(COUNTRY_INFO!I12>0,COUNTRY_INFO!I12<4),IF(J12>MAX('MDA1'!M12,MAX('MDA3'!I12,'MDA3'!L12)+MAX('MDA3'!J12,'MDA3'!M12)),MAX('MDA1'!M12,MAX('MDA3'!I12,'MDA3'!L12)+MAX('MDA3'!J12,'MDA3'!M12)),J12),0) -> 0 | O12: =IF(AND(COUNTRY_INFO!I12>0,COUNTRY_INFO!I12<4), IF(M12/J12*100<>0, IF(M12/J12*100>100,100,M12/J12*100), "-"),0) -> 0 | P12: =COUNTRY_INFO!N12 -> 232312 | S12: =SUM(MAX('MDA2'!J12, 'T1'!L12, MAX(T3_R1!K12, T3_R2!K12)), MAX('MDA1'!K12, 'MDA2'!K12, 'T1'!M12, MAX(T3_R1!L12, T3_R2!L12)), MAX('MDA1'!L12, 'MDA2'!L12, 'T1'!N12, MAX(T3_R1!M12, T3_R2!M12))) -> 155477 | T12: =IF(AND(COUNTRY_INFO!J12>1,COUNTRY_INFO!J12<4),IF(COUNTRY_INFO!E12>MAX('MDA2'!J12,'T1'!L12,MAX(T3_R1!K12,T3_R2!K12)),MAX('MDA2'!J12,'T1'!L12,MAX(T3_R1!K12,T3_R2!K12)),COUNTRY_INFO!E12),0) -> 32600 | U12: =IF(AND(COUNTRY_INFO!J12>1,COUNTRY_INFO!J12<4), IF(T12/COUNTRY_INFO!E12*100<>0, IF(T12/COUNTRY_INFO!E12*100>100,100,T12/COUNTRY_INFO!E12*100), "-"),0) -> 46.7189269 | V12: =IF(AND(COUNTRY_INFO!J12>1,COUNTRY_INFO!J12<4),IF(COUNTRY_INFO!F12>MAX('MDA1'!K12,'MDA2'!K12,'T1'!M12,MAX(T3_R1!L12,T3_R2!L12)),MAX('MDA1'!K12,'MDA2'!K12,'T1'!M12,MAX(T3_R1!L12,T3_R2!L12)),COUNTRY_INFO!F12),0) -> 122877 | W12: =IF(AND(COUNTRY_INFO!J12>1,COUNTRY_INFO!J12<4), IF(V12/COUNTRY_INFO!F12*100<>0, IF(V12/COUNTRY_INFO!F12*100>100,100,V12/COUNTRY_INFO!F12*100), "-"),0) -> 75.60126251 | X12: 155477 | Y12: =IF(AND(COUNTRY_INFO!J12>1,COUNTRY_INFO!J12<4), IF(S12/P12*100<>0, IF(X12/P12*100>100,100,X12/P12*100), "-"),0) -> 66.92594442 | Z12: =COUNTRY_INFO!O12 -> 0 | AC12: =MAX('T1'!L12,'T2'!J12)+MAX('T1'!M12,'T2'!K12)+MAX('T1'!N12,'T2'!L12) -> 0 | AD12: =IF(COUNTRY_INFO!K12=1,IF(COUNTRY_INFO!F12*0.33>MAX('T1'!M12,'T2'!K12),MAX('T1'!M12,'T2'!K12),COUNTRY_INFO!F12*0.33),IF(COUNTRY_INFO!K12=2,IF(COUNTRY_INFO!F12*0.5>MAX('T1'!M12,'T2'!K12),MAX('T1'!M12,'T2'!K12),COUNTRY_INFO!F12*0.5),IF(COUNTRY_INFO!K12=3,IF(COUNTRY_INFO!F12>MAX('T1'!M12,'T2'!K12),MAX('T1'!M12,'T2'!K12),COUNTRY_INFO!F12),0))) -> 0 | AE12: =IF(AND(COUNTRY_INFO!K12>0,COUNTRY_INFO!K12<4),IF(Z12>0,IF(COUNTRY_INFO!K12=1, AD12/(COUNTRY_INFO!F12*0.33)*100, IF(COUNTRY_INFO!K12=2, AD12/(COUNTRY_INFO!F12*0.5)*100, IF(COUNTRY_INFO!K12=3, AD12/COUNTRY_INFO!F12*100))),"-"),0) -> - | AF12: =IF(COUNTRY_INFO!K12=2,IF(COUNTRY_INFO!G12*0.2>MAX('T1'!N12,'T2'!L12),MAX('T1'!N12,'T2'!L12),COUNTRY_INFO!G12*0.2),IF(COUNTRY_INFO!K12=3,IF(COUNTRY_INFO!G12>MAX('T1'!N12,'T2'!L12),MAX('T1'!N12,'T2'!L12),COUNTRY_INFO!G12),0)) -> 0 | AG12: =IF(AND(COUNTRY_INFO!K12>0,COUNTRY_INFO!K12<4),IF(Z12>0,IF(COUNTRY_INFO!K12=1, 0, IF(COUNTRY_INFO!K12=2, AF12/(COUNTRY_INFO!G12*0.2)*100, IF(COUNTRY_INFO!K12=3, AF12/COUNTRY_INFO!G12*100))),"-"),0) -> - | AH12: 0 | AI12: =IF(AND(COUNTRY_INFO!K12>0,COUNTRY_INFO!K12<4), IF(AC12/Z12*100<>0, IF(AH12/Z12*100>100,100,AH12/Z12*100), "-"),0) ->  | AK12: =IF(AND(D12<>0, D12<>"Unknown",D12<>"Stopped",D12<>"Not required"),D12/COUNTRY_INFO!D12, 0) -> 0 | AL12: =IF(AND(J12<>0,J12<>"Unknown",J12<>"Stopped",J12<>"Not required"),J12/COUNTRY_INFO!D12, 0) -> 0 | AM12: =IF(AND(P12<>0,P12<>"Unknown",P12<>"Not required"),P12/(COUNTRY_INFO!E12+COUNTRY_INFO!F12), 0) -> 1 | AN12: =IF(AND(Z12<>0,Z12<>"Unknown",Z12<>"Not required"),IF(COUNTRY_INFO!K12=1,1,IF(COUNTRY_INFO!K12=2,0.5*COUNTRY_INFO!F12/(0.5*COUNTRY_INFO!F12+0.2*COUNTRY_INFO!G12),IF(COUNTRY_INFO!K12=3,COUNTRY_INFO!F12/(COUNTRY_INFO!F12+COUNTRY_INFO!G12)))),0) -> 0 | AO12: =IF(AND(Z12<>0,Z12<>"Unknown",Z12<>"Not required"),IF(COUNTRY_INFO!K12=1,0,IF(COUNTRY_INFO!K12=2,0.2*COUNTRY_INFO!G12/(0.5*COUNTRY_INFO!F12+0.2*COUNTRY_INFO!G12),IF(COUNTRY_INFO!K12=3,COUNTRY_INFO!G12/(COUNTRY_INFO!F12+COUNTRY_INFO!G12)))),0) -> 0 | AP12: =MAX(COUNTRY_INFO!D12*AK12*PROFILE!$G$7,COUNTRY_INFO!D12*AL12*PROFILE!$G$7) -> 0 | AQ12: =MAX(COUNTRY_INFO!D12*AK12*PROFILE!$G$8,COUNTRY_INFO!D12*AL12*PROFILE!$G$8,COUNTRY_INFO!D12*AM12*PROFILE!$G$8) -> 69778.75161 | AR12: =MAX(COUNTRY_INFO!D12*AK12*PROFILE!$G$9,COUNTRY_INFO!D12*AL12*PROFILE!$G$9,COUNTRY_INFO!D12*AM12*PROFILE!$G$9,IF(AND(DISTRICT!Z12<>"Unknown",Z12<>"Not required"),COUNTRY_INFO!O12*DISTRICT!AN12,0)) -> 162533.3717 | AS12: =MAX(COUNTRY_INFO!D12*AK12*PROFILE!$G$10,COUNTRY_INFO!D12*AL12*PROFILE!$G$10,IF(AND(DISTRICT!Z12<>"Unknown",Z12<>"Not required"),COUNTRY_INFO!O12*DISTRICT!AO12,0)) -> 0 | AT12: 232312.1233 | AU12: Y | AV12: =MAX('MDA2'!J12,'T1'!L12,'T2'!J12,T3_R1!K12,T3_R2!K12) -> 32600 | AW12: =MAX('MDA1'!K12,'MDA2'!K12,'MDA3'!I12,'MDA3'!L12,'T1'!M12,'T2'!K12,T3_R1!L12,T3_R2!L12) -> 122877 | AX12: =MAX('MDA1'!L12,'MDA2'!L12,'MDA3'!J12,'MDA3'!M12,'T1'!N12,'T2'!L12,T3_R1!M12,T3_R2!M12) -> 0 | AY12: 155477 | AZ12: =MAX('MDA2'!J12,T12) -> 32600 | BA12: =MAX('MDA1'!K12,'MDA2'!K12,'MDA3'!I12,'MDA3'!L12,V12,AD12) -> 122877 | BB12: =MAX('MDA1'!L12,'MDA2'!L12,'MDA3'!J12,'MDA3'!M12,AF12) -> 0 | BC12: 155477 | BD12: 66.92590891
A13: =IF(COUNTRY_INFO!A13=0," ",COUNTRY_INFO!A13) -> South Africa | B13: =IF(COUNTRY_INFO!B13=0," ",COUNTRY_INFO!B13) -> Eastern Cape | C13: =IF(COUNTRY_INFO!C13=0," ",COUNTRY_INFO!C13) -> Joe Gqabi DM | D13: =COUNTRY_INFO!L13 -> 0 | G13: =MAX('MDA1'!M13,'MDA2'!M13) -> 0 | H13: =IF(AND(COUNTRY_INFO!H13>0,COUNTRY_INFO!H13<4),IF(D13>MAX('MDA1'!M13,'MDA2'!M13),MAX('MDA1'!M13,'MDA2'!M13),D13),0) -> 0 | I13: =IF(AND(COUNTRY_INFO!H13>0,COUNTRY_INFO!H13<4), IF(G13/D13*100<>0, IF(G13/D13*100>100,100,G13/D13*100), "-"),0) -> 0 | J13: =COUNTRY_INFO!M13 -> 0 | M13: =MAX('MDA1'!M13,MAX('MDA3'!I13,'MDA3'!L13)+MAX('MDA3'!J13,'MDA3'!M13)) -> 0 | N13: =IF(AND(COUNTRY_INFO!I13>0,COUNTRY_INFO!I13<4),IF(J13>MAX('MDA1'!M13,MAX('MDA3'!I13,'MDA3'!L13)+MAX('MDA3'!J13,'MDA3'!M13)),MAX('MDA1'!M13,MAX('MDA3'!I13,'MDA3'!L13)+MAX('MDA3'!J13,'MDA3'!M13)),J13),0) -> 0 | O13: =IF(AND(COUNTRY_INFO!I13>0,COUNTRY_INFO!I13<4), IF(M13/J13*100<>0, IF(M13/J13*100>100,100,M13/J13*100), "-"),0) -> 0 | P13: =COUNTRY_INFO!N13 -> 102797 | S13: =SUM(MAX('MDA2'!J13, 'T1'!L13, MAX(T3_R1!K13, T3_R2!K13)), MAX('MDA1'!K13, 'MDA2'!K13, 'T1'!M13, MAX(T3_R1!L13, T3_R2!L13)), MAX('MDA1'!L13, 'MDA2'!L13, 'T1'!N13, MAX(T3_R1!M13, T3_R2!M13))) -> 68798 | T13: =IF(AND(COUNTRY_INFO!J13>1,COUNTRY_INFO!J13<4),IF(COUNTRY_INFO!E13>MAX('MDA2'!J13,'T1'!L13,MAX(T3_R1!K13,T3_R2!K13)),MAX('MDA2'!J13,'T1'!L13,MAX(T3_R1!K13,T3_R2!K13)),COUNTRY_INFO!E13),0) -> 14426 | U13: =IF(AND(COUNTRY_INFO!J13>1,COUNTRY_INFO!J13<4), IF(T13/COUNTRY_INFO!E13*100<>0, IF(T13/COUNTRY_INFO!E13*100>100,100,T13/COUNTRY_INFO!E13*100), "-"),0) -> 46.72086019 | V13: =IF(AND(COUNTRY_INFO!J13>1,COUNTRY_INFO!J13<4),IF(COUNTRY_INFO!F13>MAX('MDA1'!K13,'MDA2'!K13,'T1'!M13,MAX(T3_R1!L13,T3_R2!L13)),MAX('MDA1'!K13,'MDA2'!K13,'T1'!M13,MAX(T3_R1!L13,T3_R2!L13)),COUNTRY_INFO!F13),0) -> 54372 | W13: =IF(AND(COUNTRY_INFO!J13>1,COUNTRY_INFO!J13<4), IF(V13/COUNTRY_INFO!F13*100<>0, IF(V13/COUNTRY_INFO!F13*100>100,100,V13/COUNTRY_INFO!F13*100), "-"),0) -> 75.60066741 | X13: 68798 | Y13: =IF(AND(COUNTRY_INFO!J13>1,COUNTRY_INFO!J13<4), IF(S13/P13*100<>0, IF(X13/P13*100>100,100,X13/P13*100), "-"),0) -> 66.92607761 | Z13: =COUNTRY_INFO!O13 -> 0 | AC13: =MAX('T1'!L13,'T2'!J13)+MAX('T1'!M13,'T2'!K13)+MAX('T1'!N13,'T2'!L13) -> 0 | AD13: =IF(COUNTRY_INFO!K13=1,IF(COUNTRY_INFO!F13*0.33>MAX('T1'!M13,'T2'!K13),MAX('T1'!M13,'T2'!K13),COUNTRY_INFO!F13*0.33),IF(COUNTRY_INFO!K13=2,IF(COUNTRY_INFO!F13*0.5>MAX('T1'!M13,'T2'!K13),MAX('T1'!M13,'T2'!K13),COUNTRY_INFO!F13*0.5),IF(COUNTRY_INFO!K13=3,IF(COUNTRY_INFO!F13>MAX('T1'!M13,'T2'!K13),MAX('T1'!M13,'T2'!K13),COUNTRY_INFO!F13),0))) -> 0 | AE13: =IF(AND(COUNTRY_INFO!K13>0,COUNTRY_INFO!K13<4),IF(Z13>0,IF(COUNTRY_INFO!K13=1, AD13/(COUNTRY_INFO!F13*0.33)*100, IF(COUNTRY_INFO!K13=2, AD13/(COUNTRY_INFO!F13*0.5)*100, IF(COUNTRY_INFO!K13=3, AD13/COUNTRY_INFO!F13*100))),"-"),0) -> - | AF13: =IF(COUNTRY_INFO!K13=2,IF(COUNTRY_INFO!G13*0.2>MAX('T1'!N13,'T2'!L13),MAX('T1'!N13,'T2'!L13),COUNTRY_INFO!G13*0.2),IF(COUNTRY_INFO!K13=3,IF(COUNTRY_INFO!G13>MAX('T1'!N13,'T2'!L13),MAX('T1'!N13,'T2'!L13),COUNTRY_INFO!G13),0)) -> 0 | AG13: =IF(AND(COUNTRY_INFO!K13>0,COUNTRY_INFO!K13<4),IF(Z13>0,IF(COUNTRY_INFO!K13=1, 0, IF(COUNTRY_INFO!K13=2, AF13/(COUNTRY_INFO!G13*0.2)*100, IF(COUNTRY_INFO!K13=3, AF13/COUNTRY_INFO!G13*100))),"-"),0) -> - | AH13: 0 | AI13: =IF(AND(COUNTRY_INFO!K13>0,COUNTRY_INFO!K13<4), IF(AC13/Z13*100<>0, IF(AH13/Z13*100>100,100,AH13/Z13*100), "-"),0) ->  | AK13: =IF(AND(D13<>0, D13<>"Unknown",D13<>"Stopped",D13<>"Not required"),D13/COUNTRY_INFO!D13, 0) -> 0 | AL13: =IF(AND(J13<>0,J13<>"Unknown",J13<>"Stopped",J13<>"Not required"),J13/COUNTRY_INFO!D13, 0) -> 0 | AM13: =IF(AND(P13<>0,P13<>"Unknown",P13<>"Not required"),P13/(COUNTRY_INFO!E13+COUNTRY_INFO!F13), 0) -> 1 | AN13: =IF(AND(Z13<>0,Z13<>"Unknown",Z13<>"Not required"),IF(COUNTRY_INFO!K13=1,1,IF(COUNTRY_INFO!K13=2,0.5*COUNTRY_INFO!F13/(0.5*COUNTRY_INFO!F13+0.2*COUNTRY_INFO!G13),IF(COUNTRY_INFO!K13=3,COUNTRY_INFO!F13/(COUNTRY_INFO!F13+COUNTRY_INFO!G13)))),0) -> 0 | AO13: =IF(AND(Z13<>0,Z13<>"Unknown",Z13<>"Not required"),IF(COUNTRY_INFO!K13=1,0,IF(COUNTRY_INFO!K13=2,0.2*COUNTRY_INFO!G13/(0.5*COUNTRY_INFO!F13+0.2*COUNTRY_INFO!G13),IF(COUNTRY_INFO!K13=3,COUNTRY_INFO!G13/(COUNTRY_INFO!F13+COUNTRY_INFO!G13)))),0) -> 0 | AP13: =MAX(COUNTRY_INFO!D13*AK13*PROFILE!$G$7,COUNTRY_INFO!D13*AL13*PROFILE!$G$7) -> 0 | AQ13: =MAX(COUNTRY_INFO!D13*AK13*PROFILE!$G$8,COUNTRY_INFO!D13*AL13*PROFILE!$G$8,COUNTRY_INFO!D13*AM13*PROFILE!$G$8) -> 30876.70399 | AR13: =MAX(COUNTRY_INFO!D13*AK13*PROFILE!$G$9,COUNTRY_INFO!D13*AL13*PROFILE!$G$9,COUNTRY_INFO!D13*AM13*PROFILE!$G$9,IF(AND(DISTRICT!Z13<>"Unknown",Z13<>"Not required"),COUNTRY_INFO!O13*DISTRICT!AN13,0)) -> 71920.10016 | AS13: =MAX(COUNTRY_INFO!D13*AK13*PROFILE!$G$10,COUNTRY_INFO!D13*AL13*PROFILE!$G$10,IF(AND(DISTRICT!Z13<>"Unknown",Z13<>"Not required"),COUNTRY_INFO!O13*DISTRICT!AO13,0)) -> 0 | AT13: 102796.8041 | AU13: Y | AV13: =MAX('MDA2'!J13,'T1'!L13,'T2'!J13,T3_R1!K13,T3_R2!K13) -> 14426 | AW13: =MAX('MDA1'!K13,'MDA2'!K13,'MDA3'!I13,'MDA3'!L13,'T1'!M13,'T2'!K13,T3_R1!L13,T3_R2!L13) -> 54372 | AX13: =MAX('MDA1'!L13,'MDA2'!L13,'MDA3'!J13,'MDA3'!M13,'T1'!N13,'T2'!L13,T3_R1!M13,T3_R2!M13) -> 0 | AY13: 68798 | AZ13: =MAX('MDA2'!J13,T13) -> 14426 | BA13: =MAX('MDA1'!K13,'MDA2'!K13,'MDA3'!I13,'MDA3'!L13,V13,AD13) -> 54372 | BB13: =MAX('MDA1'!L13,'MDA2'!L13,'MDA3'!J13,'MDA3'!M13,AF13) -> 0 | BC13: 68798 | BD13: 66.92620512
A14: =IF(COUNTRY_INFO!A14=0," ",COUNTRY_INFO!A14) -> South Africa | B14: =IF(COUNTRY_INFO!B14=0," ",COUNTRY_INFO!B14) -> Eastern Cape | C14: =IF(COUNTRY_INFO!C14=0," ",COUNTRY_INFO!C14) -> N Mandela Bay MM | D14: =COUNTRY_INFO!L14 -> 0 | G14: =MAX('MDA1'!M14,'MDA2'!M14) -> 0 | H14: =IF(AND(COUNTRY_INFO!H14>0,COUNTRY_INFO!H14<4),IF(D14>MAX('MDA1'!M14,'MDA2'!M14),MAX('MDA1'!M14,'MDA2'!M14),D14),0) -> 0 | I14: =IF(AND(COUNTRY_INFO!H14>0,COUNTRY_INFO!H14<4), IF(G14/D14*100<>0, IF(G14/D14*100>100,100,G14/D14*100), "-"),0) -> 0 | J14: =COUNTRY_INFO!M14 -> 0 | M14: =MAX('MDA1'!M14,MAX('MDA3'!I14,'MDA3'!L14)+MAX('MDA3'!J14,'MDA3'!M14)) -> 0 | N14: =IF(AND(COUNTRY_INFO!I14>0,COUNTRY_INFO!I14<4),IF(J14>MAX('MDA1'!M14,MAX('MDA3'!I14,'MDA3'!L14)+MAX('MDA3'!J14,'MDA3'!M14)),MAX('MDA1'!M14,MAX('MDA3'!I14,'MDA3'!L14)+MAX('MDA3'!J14,'MDA3'!M14)),J14),0) -> 0 | O14: =IF(AND(COUNTRY_INFO!I14>0,COUNTRY_INFO!I14<4), IF(M14/J14*100<>0, IF(M14/J14*100>100,100,M14/J14*100), "-"),0) -> 0 | P14: =COUNTRY_INFO!N14 -> 344444 | S14: =SUM(MAX('MDA2'!J14, 'T1'!L14, MAX(T3_R1!K14, T3_R2!K14)), MAX('MDA1'!K14, 'MDA2'!K14, 'T1'!M14, MAX(T3_R1!L14, T3_R2!L14)), MAX('MDA1'!L14, 'MDA2'!L14, 'T1'!N14, MAX(T3_R1!M14, T3_R2!M14))) -> 230523 | T14: =IF(AND(COUNTRY_INFO!J14>1,COUNTRY_INFO!J14<4),IF(COUNTRY_INFO!E14>MAX('MDA2'!J14,'T1'!L14,MAX(T3_R1!K14,T3_R2!K14)),MAX('MDA2'!J14,'T1'!L14,MAX(T3_R1!K14,T3_R2!K14)),COUNTRY_INFO!E14),0) -> 48336 | U14: =IF(AND(COUNTRY_INFO!J14>1,COUNTRY_INFO!J14<4), IF(T14/COUNTRY_INFO!E14*100<>0, IF(T14/COUNTRY_INFO!E14*100>100,100,T14/COUNTRY_INFO!E14*100), "-"),0) -> 46.7199567 | V14: =IF(AND(COUNTRY_INFO!J14>1,COUNTRY_INFO!J14<4),IF(COUNTRY_INFO!F14>MAX('MDA1'!K14,'MDA2'!K14,'T1'!M14,MAX(T3_R1!L14,T3_R2!L14)),MAX('MDA1'!K14,'MDA2'!K14,'T1'!M14,MAX(T3_R1!L14,T3_R2!L14)),COUNTRY_INFO!F14),0) -> 182187 | W14: =IF(AND(COUNTRY_INFO!J14>1,COUNTRY_INFO!J14<4), IF(V14/COUNTRY_INFO!F14*100<>0, IF(V14/COUNTRY_INFO!F14*100>100,100,V14/COUNTRY_INFO!F14*100), "-"),0) -> 75.60097101 | X14: 230523 | Y14: =IF(AND(COUNTRY_INFO!J14>1,COUNTRY_INFO!J14<4), IF(S14/P14*100<>0, IF(X14/P14*100>100,100,X14/P14*100), "-"),0) -> 66.92611861 | Z14: =COUNTRY_INFO!O14 -> 0 | AC14: =MAX('T1'!L14,'T2'!J14)+MAX('T1'!M14,'T2'!K14)+MAX('T1'!N14,'T2'!L14) -> 0 | AD14: =IF(COUNTRY_INFO!K14=1,IF(COUNTRY_INFO!F14*0.33>MAX('T1'!M14,'T2'!K14),MAX('T1'!M14,'T2'!K14),COUNTRY_INFO!F14*0.33),IF(COUNTRY_INFO!K14=2,IF(COUNTRY_INFO!F14*0.5>MAX('T1'!M14,'T2'!K14),MAX('T1'!M14,'T2'!K14),COUNTRY_INFO!F14*0.5),IF(COUNTRY_INFO!K14=3,IF(COUNTRY_INFO!F14>MAX('T1'!M14,'T2'!K14),MAX('T1'!M14,'T2'!K14),COUNTRY_INFO!F14),0))) -> 0 | AE14: =IF(AND(COUNTRY_INFO!K14>0,COUNTRY_INFO!K14<4),IF(Z14>0,IF(COUNTRY_INFO!K14=1, AD14/(COUNTRY_INFO!F14*0.33)*100, IF(COUNTRY_INFO!K14=2, AD14/(COUNTRY_INFO!F14*0.5)*100, IF(COUNTRY_INFO!K14=3, AD14/COUNTRY_INFO!F14*100))),"-"),0) -> - | AF14: =IF(COUNTRY_INFO!K14=2,IF(COUNTRY_INFO!G14*0.2>MAX('T1'!N14,'T2'!L14),MAX('T1'!N14,'T2'!L14),COUNTRY_INFO!G14*0.2),IF(COUNTRY_INFO!K14=3,IF(COUNTRY_INFO!G14>MAX('T1'!N14,'T2'!L14),MAX('T1'!N14,'T2'!L14),COUNTRY_INFO!G14),0)) -> 0 | AG14: =IF(AND(COUNTRY_INFO!K14>0,COUNTRY_INFO!K14<4),IF(Z14>0,IF(COUNTRY_INFO!K14=1, 0, IF(COUNTRY_INFO!K14=2, AF14/(COUNTRY_INFO!G14*0.2)*100, IF(COUNTRY_INFO!K14=3, AF14/COUNTRY_INFO!G14*100))),"-"),0) -> - | AH14: 0 | AI14: =IF(AND(COUNTRY_INFO!K14>0,COUNTRY_INFO!K14<4), IF(AC14/Z14*100<>0, IF(AH14/Z14*100>100,100,AH14/Z14*100), "-"),0) ->  | AK14: =IF(AND(D14<>0, D14<>"Unknown",D14<>"Stopped",D14<>"Not required"),D14/COUNTRY_INFO!D14, 0) -> 0 | AL14: =IF(AND(J14<>0,J14<>"Unknown",J14<>"Stopped",J14<>"Not required"),J14/COUNTRY_INFO!D14, 0) -> 0 | AM14: =IF(AND(P14<>0,P14<>"Unknown",P14<>"Not required"),P14/(COUNTRY_INFO!E14+COUNTRY_INFO!F14), 0) -> 1 | AN14: =IF(AND(Z14<>0,Z14<>"Unknown",Z14<>"Not required"),IF(COUNTRY_INFO!K14=1,1,IF(COUNTRY_INFO!K14=2,0.5*COUNTRY_INFO!F14/(0.5*COUNTRY_INFO!F14+0.2*COUNTRY_INFO!G14),IF(COUNTRY_INFO!K14=3,COUNTRY_INFO!F14/(COUNTRY_INFO!F14+COUNTRY_INFO!G14)))),0) -> 0 | AO14: =IF(AND(Z14<>0,Z14<>"Unknown",Z14<>"Not required"),IF(COUNTRY_INFO!K14=1,0,IF(COUNTRY_INFO!K14=2,0.2*COUNTRY_INFO!G14/(0.5*COUNTRY_INFO!F14+0.2*COUNTRY_INFO!G14),IF(COUNTRY_INFO!K14=3,COUNTRY_INFO!G14/(COUNTRY_INFO!F14+COUNTRY_INFO!G14)))),0) -> 0 | AP14: =MAX(COUNTRY_INFO!D14*AK14*PROFILE!$G$7,COUNTRY_INFO!D14*AL14*PROFILE!$G$7) -> 0 | AQ14: =MAX(COUNTRY_INFO!D14*AK14*PROFILE!$G$8,COUNTRY_INFO!D14*AL14*PROFILE!$G$8,COUNTRY_INFO!D14*AM14*PROFILE!$G$8) -> 103459.3649 | AR14: =MAX(COUNTRY_INFO!D14*AK14*PROFILE!$G$9,COUNTRY_INFO!D14*AL14*PROFILE!$G$9,COUNTRY_INFO!D14*AM14*PROFILE!$G$9,IF(AND(DISTRICT!Z14<>"Unknown",Z14<>"Not required"),COUNTRY_INFO!O14*DISTRICT!AN14,0)) -> 240984.5263 | AS14: =MAX(COUNTRY_INFO!D14*AK14*PROFILE!$G$10,COUNTRY_INFO!D14*AL14*PROFILE!$G$10,IF(AND(DISTRICT!Z14<>"Unknown",Z14<>"Not required"),COUNTRY_INFO!O14*DISTRICT!AO14,0)) -> 0 | AT14: 344443.8911 | AU14: Y | AV14: =MAX('MDA2'!J14,'T1'!L14,'T2'!J14,T3_R1!K14,T3_R2!K14) -> 48336 | AW14: =MAX('MDA1'!K14,'MDA2'!K14,'MDA3'!I14,'MDA3'!L14,'T1'!M14,'T2'!K14,T3_R1!L14,T3_R2!L14) -> 182187 | AX14: =MAX('MDA1'!L14,'MDA2'!L14,'MDA3'!J14,'MDA3'!M14,'T1'!N14,'T2'!L14,T3_R1!M14,T3_R2!M14) -> 0 | AY14: 230523 | AZ14: =MAX('MDA2'!J14,T14) -> 48336 | BA14: =MAX('MDA1'!K14,'MDA2'!K14,'MDA3'!I14,'MDA3'!L14,V14,AD14) -> 182187 | BB14: =MAX('MDA1'!L14,'MDA2'!L14,'MDA3'!J14,'MDA3'!M14,AF14) -> 0 | BC14: 230523 | BD14: 66.92613976
A15: =IF(COUNTRY_INFO!A15=0," ",COUNTRY_INFO!A15) -> South Africa | B15: =IF(COUNTRY_INFO!B15=0," ",COUNTRY_INFO!B15) -> Eastern Cape | C15: =IF(COUNTRY_INFO!C15=0," ",COUNTRY_INFO!C15) -> O Tambo DM | D15: =COUNTRY_INFO!L15 -> 0 | G15: =MAX('MDA1'!M15,'MDA2'!M15) -> 0 | H15: =IF(AND(COUNTRY_INFO!H15>0,COUNTRY_INFO!H15<4),IF(D15>MAX('MDA1'!M15,'MDA2'!M15),MAX('MDA1'!M15,'MDA2'!M15),D15),0) -> 0 | I15: =IF(AND(COUNTRY_INFO!H15>0,COUNTRY_INFO!H15<4), IF(G15/D15*100<>0, IF(G15/D15*100>100,100,G15/D15*100), "-"),0) -> 0 | J15: =COUNTRY_INFO!M15 -> 0 | M15: =MAX('MDA1'!M15,MAX('MDA3'!I15,'MDA3'!L15)+MAX('MDA3'!J15,'MDA3'!M15)) -> 0 | N15: =IF(AND(COUNTRY_INFO!I15>0,COUNTRY_INFO!I15<4),IF(J15>MAX('MDA1'!M15,MAX('MDA3'!I15,'MDA3'!L15)+MAX('MDA3'!J15,'MDA3'!M15)),MAX('MDA1'!M15,MAX('MDA3'!I15,'MDA3'!L15)+MAX('MDA3'!J15,'MDA3'!M15)),J15),0) -> 0 | O15: =IF(AND(COUNTRY_INFO!I15>0,COUNTRY_INFO!I15<4), IF(M15/J15*100<>0, IF(M15/J15*100>100,100,M15/J15*100), "-"),0) -> 0 | P15: =COUNTRY_INFO!N15 -> 395866 | S15: =SUM(MAX('MDA2'!J15, 'T1'!L15, MAX(T3_R1!K15, T3_R2!K15)), MAX('MDA1'!K15, 'MDA2'!K15, 'T1'!M15, MAX(T3_R1!L15, T3_R2!L15)), MAX('MDA1'!L15, 'MDA2'!L15, 'T1'!N15, MAX(T3_R1!M15, T3_R2!M15))) -> 264938 | T15: =IF(AND(COUNTRY_INFO!J15>1,COUNTRY_INFO!J15<4),IF(COUNTRY_INFO!E15>MAX('MDA2'!J15,'T1'!L15,MAX(T3_R1!K15,T3_R2!K15)),MAX('MDA2'!J15,'T1'!L15,MAX(T3_R1!K15,T3_R2!K15)),COUNTRY_INFO!E15),0) -> 55552 | U15: =IF(AND(COUNTRY_INFO!J15>1,COUNTRY_INFO!J15<4), IF(T15/COUNTRY_INFO!E15*100<>0, IF(T15/COUNTRY_INFO!E15*100>100,100,T15/COUNTRY_INFO!E15*100), "-"),0) -> 46.71965014 | V15: =IF(AND(COUNTRY_INFO!J15>1,COUNTRY_INFO!J15<4),IF(COUNTRY_INFO!F15>MAX('MDA1'!K15,'MDA2'!K15,'T1'!M15,MAX(T3_R1!L15,T3_R2!L15)),MAX('MDA1'!K15,'MDA2'!K15,'T1'!M15,MAX(T3_R1!L15,T3_R2!L15)),COUNTRY_INFO!F15),0) -> 209386 | W15: =IF(AND(COUNTRY_INFO!J15>1,COUNTRY_INFO!J15<4), IF(V15/COUNTRY_INFO!F15*100<>0, IF(V15/COUNTRY_INFO!F15*100>100,100,V15/COUNTRY_INFO!F15*100), "-"),0) -> 75.60125794 | X15: 264938 | Y15: =IF(AND(COUNTRY_INFO!J15>1,COUNTRY_INFO!J15<4), IF(S15/P15*100<>0, IF(X15/P15*100>100,100,X15/P15*100), "-"),0) -> 66.92618209 | Z15: =COUNTRY_INFO!O15 -> 0 | AC15: =MAX('T1'!L15,'T2'!J15)+MAX('T1'!M15,'T2'!K15)+MAX('T1'!N15,'T2'!L15) -> 0 | AD15: =IF(COUNTRY_INFO!K15=1,IF(COUNTRY_INFO!F15*0.33>MAX('T1'!M15,'T2'!K15),MAX('T1'!M15,'T2'!K15),COUNTRY_INFO!F15*0.33),IF(COUNTRY_INFO!K15=2,IF(COUNTRY_INFO!F15*0.5>MAX('T1'!M15,'T2'!K15),MAX('T1'!M15,'T2'!K15),COUNTRY_INFO!F15*0.5),IF(COUNTRY_INFO!K15=3,IF(COUNTRY_INFO!F15>MAX('T1'!M15,'T2'!K15),MAX('T1'!M15,'T2'!K15),COUNTRY_INFO!F15),0))) -> 0 | AE15: =IF(AND(COUNTRY_INFO!K15>0,COUNTRY_INFO!K15<4),IF(Z15>0,IF(COUNTRY_INFO!K15=1, AD15/(COUNTRY_INFO!F15*0.33)*100, IF(COUNTRY_INFO!K15=2, AD15/(COUNTRY_INFO!F15*0.5)*100, IF(COUNTRY_INFO!K15=3, AD15/COUNTRY_INFO!F15*100))),"-"),0) -> - | AF15: =IF(COUNTRY_INFO!K15=2,IF(COUNTRY_INFO!G15*0.2>MAX('T1'!N15,'T2'!L15),MAX('T1'!N15,'T2'!L15),COUNTRY_INFO!G15*0.2),IF(COUNTRY_INFO!K15=3,IF(COUNTRY_INFO!G15>MAX('T1'!N15,'T2'!L15),MAX('T1'!N15,'T2'!L15),COUNTRY_INFO!G15),0)) -> 0 | AG15: =IF(AND(COUNTRY_INFO!K15>0,COUNTRY_INFO!K15<4),IF(Z15>0,IF(COUNTRY_INFO!K15=1, 0, IF(COUNTRY_INFO!K15=2, AF15/(COUNTRY_INFO!G15*0.2)*100, IF(COUNTRY_INFO!K15=3, AF15/COUNTRY_INFO!G15*100))),"-"),0) -> - | AH15: 0 | AI15: =IF(AND(COUNTRY_INFO!K15>0,COUNTRY_INFO!K15<4), IF(AC15/Z15*100<>0, IF(AH15/Z15*100>100,100,AH15/Z15*100), "-"),0) ->  | AK15: =IF(AND(D15<>0, D15<>"Unknown",D15<>"Stopped",D15<>"Not required"),D15/COUNTRY_INFO!D15, 0) -> 0 | AL15: =IF(AND(J15<>0,J15<>"Unknown",J15<>"Stopped",J15<>"Not required"),J15/COUNTRY_INFO!D15, 0) -> 0 | AM15: =IF(AND(P15<>0,P15<>"Unknown",P15<>"Not required"),P15/(COUNTRY_INFO!E15+COUNTRY_INFO!F15), 0) -> 1 | AN15: =IF(AND(Z15<>0,Z15<>"Unknown",Z15<>"Not required"),IF(COUNTRY_INFO!K15=1,1,IF(COUNTRY_INFO!K15=2,0.5*COUNTRY_INFO!F15/(0.5*COUNTRY_INFO!F15+0.2*COUNTRY_INFO!G15),IF(COUNTRY_INFO!K15=3,COUNTRY_INFO!F15/(COUNTRY_INFO!F15+COUNTRY_INFO!G15)))),0) -> 0 | AO15: =IF(AND(Z15<>0,Z15<>"Unknown",Z15<>"Not required"),IF(COUNTRY_INFO!K15=1,0,IF(COUNTRY_INFO!K15=2,0.2*COUNTRY_INFO!G15/(0.5*COUNTRY_INFO!F15+0.2*COUNTRY_INFO!G15),IF(COUNTRY_INFO!K15=3,COUNTRY_INFO!G15/(COUNTRY_INFO!F15+COUNTRY_INFO!G15)))),0) -> 0 | AP15: =MAX(COUNTRY_INFO!D15*AK15*PROFILE!$G$7,COUNTRY_INFO!D15*AL15*PROFILE!$G$7) -> 0 | AQ15: =MAX(COUNTRY_INFO!D15*AK15*PROFILE!$G$8,COUNTRY_INFO!D15*AL15*PROFILE!$G$8,COUNTRY_INFO!D15*AM15*PROFILE!$G$8) -> 118904.6459 | AR15: =MAX(COUNTRY_INFO!D15*AK15*PROFILE!$G$9,COUNTRY_INFO!D15*AL15*PROFILE!$G$9,COUNTRY_INFO!D15*AM15*PROFILE!$G$9,IF(AND(DISTRICT!Z15<>"Unknown",Z15<>"Not required"),COUNTRY_INFO!O15*DISTRICT!AN15,0)) -> 276960.7159 | AS15: =MAX(COUNTRY_INFO!D15*AK15*PROFILE!$G$10,COUNTRY_INFO!D15*AL15*PROFILE!$G$10,IF(AND(DISTRICT!Z15<>"Unknown",Z15<>"Not required"),COUNTRY_INFO!O15*DISTRICT!AO15,0)) -> 0 | AT15: 395865.3617 | AU15: Y | AV15: =MAX('MDA2'!J15,'T1'!L15,'T2'!J15,T3_R1!K15,T3_R2!K15) -> 55552 | AW15: =MAX('MDA1'!K15,'MDA2'!K15,'MDA3'!I15,'MDA3'!L15,'T1'!M15,'T2'!K15,T3_R1!L15,T3_R2!L15) -> 209386 | AX15: =MAX('MDA1'!L15,'MDA2'!L15,'MDA3'!J15,'MDA3'!M15,'T1'!N15,'T2'!L15,T3_R1!M15,T3_R2!M15) -> 0 | AY15: 264938 | AZ15: =MAX('MDA2'!J15,T15) -> 55552 | BA15: =MAX('MDA1'!K15,'MDA2'!K15,'MDA3'!I15,'MDA3'!L15,V15,AD15) -> 209386 | BB15: =MAX('MDA1'!L15,'MDA2'!L15,'MDA3'!J15,'MDA3'!M15,AF15) -> 0 | BC15: 264938 | BD15: 66.92629
A16: =IF(COUNTRY_INFO!A16=0," ",COUNTRY_INFO!A16) -> South Africa | B16: =IF(COUNTRY_INFO!B16=0," ",COUNTRY_INFO!B16) -> Eastern Cape | C16: =IF(COUNTRY_INFO!C16=0," ",COUNTRY_INFO!C16) -> Sarah Baartman DM | D16: =COUNTRY_INFO!L16 -> 0 | G16: =MAX('MDA1'!M16,'MDA2'!M16) -> 0 | H16: =IF(AND(COUNTRY_INFO!H16>0,COUNTRY_INFO!H16<4),IF(D16>MAX('MDA1'!M16,'MDA2'!M16),MAX('MDA1'!M16,'MDA2'!M16),D16),0) -> 0 | I16: =IF(AND(COUNTRY_INFO!H16>0,COUNTRY_INFO!H16<4), IF(G16/D16*100<>0, IF(G16/D16*100>100,100,G16/D16*100), "-"),0) -> 0 | J16: =COUNTRY_INFO!M16 -> 0 | M16: =MAX('MDA1'!M16,MAX('MDA3'!I16,'MDA3'!L16)+MAX('MDA3'!J16,'MDA3'!M16)) -> 0 | N16: =IF(AND(COUNTRY_INFO!I16>0,COUNTRY_INFO!I16<4),IF(J16>MAX('MDA1'!M16,MAX('MDA3'!I16,'MDA3'!L16)+MAX('MDA3'!J16,'MDA3'!M16)),MAX('MDA1'!M16,MAX('MDA3'!I16,'MDA3'!L16)+MAX('MDA3'!J16,'MDA3'!M16)),J16),0) -> 0 | O16: =IF(AND(COUNTRY_INFO!I16>0,COUNTRY_INFO!I16<4), IF(M16/J16*100<>0, IF(M16/J16*100>100,100,M16/J16*100), "-"),0) -> 0 | P16: =COUNTRY_INFO!N16 -> 134552 | S16: =SUM(MAX('MDA2'!J16, 'T1'!L16, MAX(T3_R1!K16, T3_R2!K16)), MAX('MDA1'!K16, 'MDA2'!K16, 'T1'!M16, MAX(T3_R1!L16, T3_R2!L16)), MAX('MDA1'!L16, 'MDA2'!L16, 'T1'!N16, MAX(T3_R1!M16, T3_R2!M16))) -> 90051 | T16: =IF(AND(COUNTRY_INFO!J16>1,COUNTRY_INFO!J16<4),IF(COUNTRY_INFO!E16>MAX('MDA2'!J16,'T1'!L16,MAX(T3_R1!K16,T3_R2!K16)),MAX('MDA2'!J16,'T1'!L16,MAX(T3_R1!K16,T3_R2!K16)),COUNTRY_INFO!E16),0) -> 18882 | U16: =IF(AND(COUNTRY_INFO!J16>1,COUNTRY_INFO!J16<4), IF(T16/COUNTRY_INFO!E16*100<>0, IF(T16/COUNTRY_INFO!E16*100>100,100,T16/COUNTRY_INFO!E16*100), "-"),0) -> 46.72027712 | V16: =IF(AND(COUNTRY_INFO!J16>1,COUNTRY_INFO!J16<4),IF(COUNTRY_INFO!F16>MAX('MDA1'!K16,'MDA2'!K16,'T1'!M16,MAX(T3_R1!L16,T3_R2!L16)),MAX('MDA1'!K16,'MDA2'!K16,'T1'!M16,MAX(T3_R1!L16,T3_R2!L16)),COUNTRY_INFO!F16),0) -> 71169 | W16: =IF(AND(COUNTRY_INFO!J16>1,COUNTRY_INFO!J16<4), IF(V16/COUNTRY_INFO!F16*100<>0, IF(V16/COUNTRY_INFO!F16*100>100,100,V16/COUNTRY_INFO!F16*100), "-"),0) -> 75.60151694 | X16: 90051 | Y16: =IF(AND(COUNTRY_INFO!J16>1,COUNTRY_INFO!J16<4), IF(S16/P16*100<>0, IF(X16/P16*100>100,100,X16/P16*100), "-"),0) -> 66.92654141 | Z16: =COUNTRY_INFO!O16 -> 0 | AC16: =MAX('T1'!L16,'T2'!J16)+MAX('T1'!M16,'T2'!K16)+MAX('T1'!N16,'T2'!L16) -> 0 | AD16: =IF(COUNTRY_INFO!K16=1,IF(COUNTRY_INFO!F16*0.33>MAX('T1'!M16,'T2'!K16),MAX('T1'!M16,'T2'!K16),COUNTRY_INFO!F16*0.33),IF(COUNTRY_INFO!K16=2,IF(COUNTRY_INFO!F16*0.5>MAX('T1'!M16,'T2'!K16),MAX('T1'!M16,'T2'!K16),COUNTRY_INFO!F16*0.5),IF(COUNTRY_INFO!K16=3,IF(COUNTRY_INFO!F16>MAX('T1'!M16,'T2'!K16),MAX('T1'!M16,'T2'!K16),COUNTRY_INFO!F16),0))) -> 0 | AE16: =IF(AND(COUNTRY_INFO!K16>0,COUNTRY_INFO!K16<4),IF(Z16>0,IF(COUNTRY_INFO!K16=1, AD16/(COUNTRY_INFO!F16*0.33)*100, IF(COUNTRY_INFO!K16=2, AD16/(COUNTRY_INFO!F16*0.5)*100, IF(COUNTRY_INFO!K16=3, AD16/COUNTRY_INFO!F16*100))),"-"),0) -> - | AF16: =IF(COUNTRY_INFO!K16=2,IF(COUNTRY_INFO!G16*0.2>MAX('T1'!N16,'T2'!L16),MAX('T1'!N16,'T2'!L16),COUNTRY_INFO!G16*0.2),IF(COUNTRY_INFO!K16=3,IF(COUNTRY_INFO!G16>MAX('T1'!N16,'T2'!L16),MAX('T1'!N16,'T2'!L16),COUNTRY_INFO!G16),0)) -> 0 | AG16: =IF(AND(COUNTRY_INFO!K16>0,COUNTRY_INFO!K16<4),IF(Z16>0,IF(COUNTRY_INFO!K16=1, 0, IF(COUNTRY_INFO!K16=2, AF16/(COUNTRY_INFO!G16*0.2)*100, IF(COUNTRY_INFO!K16=3, AF16/COUNTRY_INFO!G16*100))),"-"),0) -> - | AH16: 0 | AI16: =IF(AND(COUNTRY_INFO!K16>0,COUNTRY_INFO!K16<4), IF(AC16/Z16*100<>0, IF(AH16/Z16*100>100,100,AH16/Z16*100), "-"),0) ->  | AK16: =IF(AND(D16<>0, D16<>"Unknown",D16<>"Stopped",D16<>"Not required"),D16/COUNTRY_INFO!D16, 0) -> 0 | AL16: =IF(AND(J16<>0,J16<>"Unknown",J16<>"Stopped",J16<>"Not required"),J16/COUNTRY_INFO!D16, 0) -> 0 | AM16: =IF(AND(P16<>0,P16<>"Unknown",P16<>"Not required"),P16/(COUNTRY_INFO!E16+COUNTRY_INFO!F16), 0) -> 1 | AN16: =IF(AND(Z16<>0,Z16<>"Unknown",Z16<>"Not required"),IF(COUNTRY_INFO!K16=1,1,IF(COUNTRY_INFO!K16=2,0.5*COUNTRY_INFO!F16/(0.5*COUNTRY_INFO!F16+0.2*COUNTRY_INFO!G16),IF(COUNTRY_INFO!K16=3,COUNTRY_INFO!F16/(COUNTRY_INFO!F16+COUNTRY_INFO!G16)))),0) -> 0 | AO16: =IF(AND(Z16<>0,Z16<>"Unknown",Z16<>"Not required"),IF(COUNTRY_INFO!K16=1,0,IF(COUNTRY_INFO!K16=2,0.2*COUNTRY_INFO!G16/(0.5*COUNTRY_INFO!F16+0.2*COUNTRY_INFO!G16),IF(COUNTRY_INFO!K16=3,COUNTRY_INFO!G16/(COUNTRY_INFO!F16+COUNTRY_INFO!G16)))),0) -> 0 | AP16: =MAX(COUNTRY_INFO!D16*AK16*PROFILE!$G$7,COUNTRY_INFO!D16*AL16*PROFILE!$G$7) -> 0 | AQ16: =MAX(COUNTRY_INFO!D16*AK16*PROFILE!$G$8,COUNTRY_INFO!D16*AL16*PROFILE!$G$8,COUNTRY_INFO!D16*AM16*PROFILE!$G$8) -> 40414.94831 | AR16: =MAX(COUNTRY_INFO!D16*AK16*PROFILE!$G$9,COUNTRY_INFO!D16*AL16*PROFILE!$G$9,COUNTRY_INFO!D16*AM16*PROFILE!$G$9,IF(AND(DISTRICT!Z16<>"Unknown",Z16<>"Not required"),COUNTRY_INFO!O16*DISTRICT!AN16,0)) -> 94137.22175 | AS16: =MAX(COUNTRY_INFO!D16*AK16*PROFILE!$G$10,COUNTRY_INFO!D16*AL16*PROFILE!$G$10,IF(AND(DISTRICT!Z16<>"Unknown",Z16<>"Not required"),COUNTRY_INFO!O16*DISTRICT!AO16,0)) -> 0 | AT16: 134552.1701 | AU16: Y | AV16: =MAX('MDA2'!J16,'T1'!L16,'T2'!J16,T3_R1!K16,T3_R2!K16) -> 18882 | AW16: =MAX('MDA1'!K16,'MDA2'!K16,'MDA3'!I16,'MDA3'!L16,'T1'!M16,'T2'!K16,T3_R1!L16,T3_R2!L16) -> 71169 | AX16: =MAX('MDA1'!L16,'MDA2'!L16,'MDA3'!J16,'MDA3'!M16,'T1'!N16,'T2'!L16,T3_R1!M16,T3_R2!M16) -> 0 | AY16: 90051 | AZ16: =MAX('MDA2'!J16,T16) -> 18882 | BA16: =MAX('MDA1'!K16,'MDA2'!K16,'MDA3'!I16,'MDA3'!L16,V16,AD16) -> 71169 | BB16: =MAX('MDA1'!L16,'MDA2'!L16,'MDA3'!J16,'MDA3'!M16,AF16) -> 0 | BC16: 90051 | BD16: 66.92645682
A17: =IF(COUNTRY_INFO!A17=0," ",COUNTRY_INFO!A17) -> South Africa | B17: =IF(COUNTRY_INFO!B17=0," ",COUNTRY_INFO!B17) -> Free State | C17: =IF(COUNTRY_INFO!C17=0," ",COUNTRY_INFO!C17) -> Fezile Dabi DM | D17: =COUNTRY_INFO!L17 -> 0 | G17: =MAX('MDA1'!M17,'MDA2'!M17) -> 0 | H17: =IF(AND(COUNTRY_INFO!H17>0,COUNTRY_INFO!H17<4),IF(D17>MAX('MDA1'!M17,'MDA2'!M17),MAX('MDA1'!M17,'MDA2'!M17),D17),0) -> 0 | I17: =IF(AND(COUNTRY_INFO!H17>0,COUNTRY_INFO!H17<4), IF(G17/D17*100<>0, IF(G17/D17*100>100,100,G17/D17*100), "-"),0) -> 0 | J17: =COUNTRY_INFO!M17 -> 0 | M17: =MAX('MDA1'!M17,MAX('MDA3'!I17,'MDA3'!L17)+MAX('MDA3'!J17,'MDA3'!M17)) -> 0 | N17: =IF(AND(COUNTRY_INFO!I17>0,COUNTRY_INFO!I17<4),IF(J17>MAX('MDA1'!M17,MAX('MDA3'!I17,'MDA3'!L17)+MAX('MDA3'!J17,'MDA3'!M17)),MAX('MDA1'!M17,MAX('MDA3'!I17,'MDA3'!L17)+MAX('MDA3'!J17,'MDA3'!M17)),J17),0) -> 0 | O17: =IF(AND(COUNTRY_INFO!I17>0,COUNTRY_INFO!I17<4), IF(M17/J17*100<>0, IF(M17/J17*100>100,100,M17/J17*100), "-"),0) -> 0 | P17: =COUNTRY_INFO!N17 -> 149868 | S17: =SUM(MAX('MDA2'!J17, 'T1'!L17, MAX(T3_R1!K17, T3_R2!K17)), MAX('MDA1'!K17, 'MDA2'!K17, 'T1'!M17, MAX(T3_R1!L17, T3_R2!L17)), MAX('MDA1'!L17, 'MDA2'!L17, 'T1'!N17, MAX(T3_R1!M17, T3_R2!M17))) -> 69750 | T17: =IF(AND(COUNTRY_INFO!J17>1,COUNTRY_INFO!J17<4),IF(COUNTRY_INFO!E17>MAX('MDA2'!J17,'T1'!L17,MAX(T3_R1!K17,T3_R2!K17)),MAX('MDA2'!J17,'T1'!L17,MAX(T3_R1!K17,T3_R2!K17)),COUNTRY_INFO!E17),0) -> 0 | U17: =IF(AND(COUNTRY_INFO!J17>1,COUNTRY_INFO!J17<4), IF(T17/COUNTRY_INFO!E17*100<>0, IF(T17/COUNTRY_INFO!E17*100>100,100,T17/COUNTRY_INFO!E17*100), "-"),0) -> - | V17: =IF(AND(COUNTRY_INFO!J17>1,COUNTRY_INFO!J17<4),IF(COUNTRY_INFO!F17>MAX('MDA1'!K17,'MDA2'!K17,'T1'!M17,MAX(T3_R1!L17,T3_R2!L17)),MAX('MDA1'!K17,'MDA2'!K17,'T1'!M17,MAX(T3_R1!L17,T3_R2!L17)),COUNTRY_INFO!F17),0) -> 69750 | W17: =IF(AND(COUNTRY_INFO!J17>1,COUNTRY_INFO!J17<4), IF(V17/COUNTRY_INFO!F17*100<>0, IF(V17/COUNTRY_INFO!F17*100>100,100,V17/COUNTRY_INFO!F17*100), "-"),0) -> 66.52170181 | X17: 69750 | Y17: =IF(AND(COUNTRY_INFO!J17>1,COUNTRY_INFO!J17<4), IF(S17/P17*100<>0, IF(X17/P17*100>100,100,X17/P17*100), "-"),0) -> 46.54095604 | Z17: =COUNTRY_INFO!O17 -> 0 | AC17: =MAX('T1'!L17,'T2'!J17)+MAX('T1'!M17,'T2'!K17)+MAX('T1'!N17,'T2'!L17) -> 0 | AD17: =IF(COUNTRY_INFO!K17=1,IF(COUNTRY_INFO!F17*0.33>MAX('T1'!M17,'T2'!K17),MAX('T1'!M17,'T2'!K17),COUNTRY_INFO!F17*0.33),IF(COUNTRY_INFO!K17=2,IF(COUNTRY_INFO!F17*0.5>MAX('T1'!M17,'T2'!K17),MAX('T1'!M17,'T2'!K17),COUNTRY_INFO!F17*0.5),IF(COUNTRY_INFO!K17=3,IF(COUNTRY_INFO!F17>MAX('T1'!M17,'T2'!K17),MAX('T1'!M17,'T2'!K17),COUNTRY_INFO!F17),0))) -> 0 | AE17: =IF(AND(COUNTRY_INFO!K17>0,COUNTRY_INFO!K17<4),IF(Z17>0,IF(COUNTRY_INFO!K17=1, AD17/(COUNTRY_INFO!F17*0.33)*100, IF(COUNTRY_INFO!K17=2, AD17/(COUNTRY_INFO!F17*0.5)*100, IF(COUNTRY_INFO!K17=3, AD17/COUNTRY_INFO!F17*100))),"-"),0) -> - | AF17: =IF(COUNTRY_INFO!K17=2,IF(COUNTRY_INFO!G17*0.2>MAX('T1'!N17,'T2'!L17),MAX('T1'!N17,'T2'!L17),COUNTRY_INFO!G17*0.2),IF(COUNTRY_INFO!K17=3,IF(COUNTRY_INFO!G17>MAX('T1'!N17,'T2'!L17),MAX('T1'!N17,'T2'!L17),COUNTRY_INFO!G17),0)) -> 0 | AG17: =IF(AND(COUNTRY_INFO!K17>0,COUNTRY_INFO!K17<4),IF(Z17>0,IF(COUNTRY_INFO!K17=1, 0, IF(COUNTRY_INFO!K17=2, AF17/(COUNTRY_INFO!G17*0.2)*100, IF(COUNTRY_INFO!K17=3, AF17/COUNTRY_INFO!G17*100))),"-"),0) -> - | AH17: 0 | AI17: =IF(AND(COUNTRY_INFO!K17>0,COUNTRY_INFO!K17<4), IF(AC17/Z17*100<>0, IF(AH17/Z17*100>100,100,AH17/Z17*100), "-"),0) ->  | AK17: =IF(AND(D17<>0, D17<>"Unknown",D17<>"Stopped",D17<>"Not required"),D17/COUNTRY_INFO!D17, 0) -> 0 | AL17: =IF(AND(J17<>0,J17<>"Unknown",J17<>"Stopped",J17<>"Not required"),J17/COUNTRY_INFO!D17, 0) -> 0 | AM17: =IF(AND(P17<>0,P17<>"Unknown",P17<>"Not required"),P17/(COUNTRY_INFO!E17+COUNTRY_INFO!F17), 0) -> 1 | AN17: =IF(AND(Z17<>0,Z17<>"Unknown",Z17<>"Not required"),IF(COUNTRY_INFO!K17=1,1,IF(COUNTRY_INFO!K17=2,0.5*COUNTRY_INFO!F17/(0.5*COUNTRY_INFO!F17+0.2*COUNTRY_INFO!G17),IF(COUNTRY_INFO!K17=3,COUNTRY_INFO!F17/(COUNTRY_INFO!F17+COUNTRY_INFO!G17)))),0) -> 0 | AO17: =IF(AND(Z17<>0,Z17<>"Unknown",Z17<>"Not required"),IF(COUNTRY_INFO!K17=1,0,IF(COUNTRY_INFO!K17=2,0.2*COUNTRY_INFO!G17/(0.5*COUNTRY_INFO!F17+0.2*COUNTRY_INFO!G17),IF(COUNTRY_INFO!K17=3,COUNTRY_INFO!G17/(COUNTRY_INFO!F17+COUNTRY_INFO!G17)))),0) -> 0 | AP17: =MAX(COUNTRY_INFO!D17*AK17*PROFILE!$G$7,COUNTRY_INFO!D17*AL17*PROFILE!$G$7) -> 0 | AQ17: =MAX(COUNTRY_INFO!D17*AK17*PROFILE!$G$8,COUNTRY_INFO!D17*AL17*PROFILE!$G$8,COUNTRY_INFO!D17*AM17*PROFILE!$G$8) -> 45015.47839 | AR17: =MAX(COUNTRY_INFO!D17*AK17*PROFILE!$G$9,COUNTRY_INFO!D17*AL17*PROFILE!$G$9,COUNTRY_INFO!D17*AM17*PROFILE!$G$9,IF(AND(DISTRICT!Z17<>"Unknown",Z17<>"Not required"),COUNTRY_INFO!O17*DISTRICT!AN17,0)) -> 104853.0865 | AS17: =MAX(COUNTRY_INFO!D17*AK17*PROFILE!$G$10,COUNTRY_INFO!D17*AL17*PROFILE!$G$10,IF(AND(DISTRICT!Z17<>"Unknown",Z17<>"Not required"),COUNTRY_INFO!O17*DISTRICT!AO17,0)) -> 0 | AT17: 149868.5649 | AU17: Y | AV17: =MAX('MDA2'!J17,'T1'!L17,'T2'!J17,T3_R1!K17,T3_R2!K17) -> 0 | AW17: =MAX('MDA1'!K17,'MDA2'!K17,'MDA3'!I17,'MDA3'!L17,'T1'!M17,'T2'!K17,T3_R1!L17,T3_R2!L17) -> 69750 | AX17: =MAX('MDA1'!L17,'MDA2'!L17,'MDA3'!J17,'MDA3'!M17,'T1'!N17,'T2'!L17,T3_R1!M17,T3_R2!M17) -> 0 | AY17: 69750 | AZ17: =MAX('MDA2'!J17,T17) -> 0 | BA17: =MAX('MDA1'!K17,'MDA2'!K17,'MDA3'!I17,'MDA3'!L17,V17,AD17) -> 69750 | BB17: =MAX('MDA1'!L17,'MDA2'!L17,'MDA3'!J17,'MDA3'!M17,AF17) -> 0 | BC17: 69750 | BD17: 46.54078061
A18: =IF(COUNTRY_INFO!A18=0," ",COUNTRY_INFO!A18) -> South Africa | B18: =IF(COUNTRY_INFO!B18=0," ",COUNTRY_INFO!B18) -> Free State | C18: =IF(COUNTRY_INFO!C18=0," ",COUNTRY_INFO!C18) -> Lejweleputswa DM | D18: =COUNTRY_INFO!L18 -> 0 | G18: =MAX('MDA1'!M18,'MDA2'!M18) -> 0 | H18: =IF(AND(COUNTRY_INFO!H18>0,COUNTRY_INFO!H18<4),IF(D18>MAX('MDA1'!M18,'MDA2'!M18),MAX('MDA1'!M18,'MDA2'!M18),D18),0) -> 0 | I18: =IF(AND(COUNTRY_INFO!H18>0,COUNTRY_INFO!H18<4), IF(G18/D18*100<>0, IF(G18/D18*100>100,100,G18/D18*100), "-"),0) -> 0 | J18: =COUNTRY_INFO!M18 -> 0 | M18: =MAX('MDA1'!M18,MAX('MDA3'!I18,'MDA3'!L18)+MAX('MDA3'!J18,'MDA3'!M18)) -> 0 | N18: =IF(AND(COUNTRY_INFO!I18>0,COUNTRY_INFO!I18<4),IF(J18>MAX('MDA1'!M18,MAX('MDA3'!I18,'MDA3'!L18)+MAX('MDA3'!J18,'MDA3'!M18)),MAX('MDA1'!M18,MAX('MDA3'!I18,'MDA3'!L18)+MAX('MDA3'!J18,'MDA3'!M18)),J18),0) -> 0 | O18: =IF(AND(COUNTRY_INFO!I18>0,COUNTRY_INFO!I18<4), IF(M18/J18*100<>0, IF(M18/J18*100>100,100,M18/J18*100), "-"),0) -> 0 | P18: =COUNTRY_INFO!N18 -> 171720 | S18: =SUM(MAX('MDA2'!J18, 'T1'!L18, MAX(T3_R1!K18, T3_R2!K18)), MAX('MDA1'!K18, 'MDA2'!K18, 'T1'!M18, MAX(T3_R1!L18, T3_R2!L18)), MAX('MDA1'!L18, 'MDA2'!L18, 'T1'!N18, MAX(T3_R1!M18, T3_R2!M18))) -> 66450 | T18: =IF(AND(COUNTRY_INFO!J18>1,COUNTRY_INFO!J18<4),IF(COUNTRY_INFO!E18>MAX('MDA2'!J18,'T1'!L18,MAX(T3_R1!K18,T3_R2!K18)),MAX('MDA2'!J18,'T1'!L18,MAX(T3_R1!K18,T3_R2!K18)),COUNTRY_INFO!E18),0) -> 0 | U18: =IF(AND(COUNTRY_INFO!J18>1,COUNTRY_INFO!J18<4), IF(T18/COUNTRY_INFO!E18*100<>0, IF(T18/COUNTRY_INFO!E18*100>100,100,T18/COUNTRY_INFO!E18*100), "-"),0) -> - | V18: =IF(AND(COUNTRY_INFO!J18>1,COUNTRY_INFO!J18<4),IF(COUNTRY_INFO!F18>MAX('MDA1'!K18,'MDA2'!K18,'T1'!M18,MAX(T3_R1!L18,T3_R2!L18)),MAX('MDA1'!K18,'MDA2'!K18,'T1'!M18,MAX(T3_R1!L18,T3_R2!L18)),COUNTRY_INFO!F18),0) -> 66450 | W18: =IF(AND(COUNTRY_INFO!J18>1,COUNTRY_INFO!J18<4), IF(V18/COUNTRY_INFO!F18*100<>0, IF(V18/COUNTRY_INFO!F18*100>100,100,V18/COUNTRY_INFO!F18*100), "-"),0) -> 55.31001074 | X18: 66450 | Y18: =IF(AND(COUNTRY_INFO!J18>1,COUNTRY_INFO!J18<4), IF(S18/P18*100<>0, IF(X18/P18*100>100,100,X18/P18*100), "-"),0) -> 38.69671558 | Z18: =COUNTRY_INFO!O18 -> 0 | AC18: =MAX('T1'!L18,'T2'!J18)+MAX('T1'!M18,'T2'!K18)+MAX('T1'!N18,'T2'!L18) -> 0 | AD18: =IF(COUNTRY_INFO!K18=1,IF(COUNTRY_INFO!F18*0.33>MAX('T1'!M18,'T2'!K18),MAX('T1'!M18,'T2'!K18),COUNTRY_INFO!F18*0.33),IF(COUNTRY_INFO!K18=2,IF(COUNTRY_INFO!F18*0.5>MAX('T1'!M18,'T2'!K18),MAX('T1'!M18,'T2'!K18),COUNTRY_INFO!F18*0.5),IF(COUNTRY_INFO!K18=3,IF(COUNTRY_INFO!F18>MAX('T1'!M18,'T2'!K18),MAX('T1'!M18,'T2'!K18),COUNTRY_INFO!F18),0))) -> 0 | AE18: =IF(AND(COUNTRY_INFO!K18>0,COUNTRY_INFO!K18<4),IF(Z18>0,IF(COUNTRY_INFO!K18=1, AD18/(COUNTRY_INFO!F18*0.33)*100, IF(COUNTRY_INFO!K18=2, AD18/(COUNTRY_INFO!F18*0.5)*100, IF(COUNTRY_INFO!K18=3, AD18/COUNTRY_INFO!F18*100))),"-"),0) -> - | AF18: =IF(COUNTRY_INFO!K18=2,IF(COUNTRY_INFO!G18*0.2>MAX('T1'!N18,'T2'!L18),MAX('T1'!N18,'T2'!L18),COUNTRY_INFO!G18*0.2),IF(COUNTRY_INFO!K18=3,IF(COUNTRY_INFO!G18>MAX('T1'!N18,'T2'!L18),MAX('T1'!N18,'T2'!L18),COUNTRY_INFO!G18),0)) -> 0 | AG18: =IF(AND(COUNTRY_INFO!K18>0,COUNTRY_INFO!K18<4),IF(Z18>0,IF(COUNTRY_INFO!K18=1, 0, IF(COUNTRY_INFO!K18=2, AF18/(COUNTRY_INFO!G18*0.2)*100, IF(COUNTRY_INFO!K18=3, AF18/COUNTRY_INFO!G18*100))),"-"),0) -> - | AH18: 0 | AI18: =IF(AND(COUNTRY_INFO!K18>0,COUNTRY_INFO!K18<4), IF(AC18/Z18*100<>0, IF(AH18/Z18*100>100,100,AH18/Z18*100), "-"),0) ->  | AK18: =IF(AND(D18<>0, D18<>"Unknown",D18<>"Stopped",D18<>"Not required"),D18/COUNTRY_INFO!D18, 0) -> 0 | AL18: =IF(AND(J18<>0,J18<>"Unknown",J18<>"Stopped",J18<>"Not required"),J18/COUNTRY_INFO!D18, 0) -> 0 | AM18: =IF(AND(P18<>0,P18<>"Unknown",P18<>"Not required"),P18/(COUNTRY_INFO!E18+COUNTRY_INFO!F18), 0) -> 1 | AN18: =IF(AND(Z18<>0,Z18<>"Unknown",Z18<>"Not required"),IF(COUNTRY_INFO!K18=1,1,IF(COUNTRY_INFO!K18=2,0.5*COUNTRY_INFO!F18/(0.5*COUNTRY_INFO!F18+0.2*COUNTRY_INFO!G18),IF(COUNTRY_INFO!K18=3,COUNTRY_INFO!F18/(COUNTRY_INFO!F18+COUNTRY_INFO!G18)))),0) -> 0 | AO18: =IF(AND(Z18<>0,Z18<>"Unknown",Z18<>"Not required"),IF(COUNTRY_INFO!K18=1,0,IF(COUNTRY_INFO!K18=2,0.2*COUNTRY_INFO!G18/(0.5*COUNTRY_INFO!F18+0.2*COUNTRY_INFO!G18),IF(COUNTRY_INFO!K18=3,COUNTRY_INFO!G18/(COUNTRY_INFO!F18+COUNTRY_INFO!G18)))),0) -> 0 | AP18: =MAX(COUNTRY_INFO!D18*AK18*PROFILE!$G$7,COUNTRY_INFO!D18*AL18*PROFILE!$G$7) -> 0 | AQ18: =MAX(COUNTRY_INFO!D18*AK18*PROFILE!$G$8,COUNTRY_INFO!D18*AL18*PROFILE!$G$8,COUNTRY_INFO!D18*AM18*PROFILE!$G$8) -> 51578.76136 | AR18: =MAX(COUNTRY_INFO!D18*AK18*PROFILE!$G$9,COUNTRY_INFO!D18*AL18*PROFILE!$G$9,COUNTRY_INFO!D18*AM18*PROFILE!$G$9,IF(AND(DISTRICT!Z18<>"Unknown",Z18<>"Not required"),COUNTRY_INFO!O18*DISTRICT!AN18,0)) -> 120140.7276 | AS18: =MAX(COUNTRY_INFO!D18*AK18*PROFILE!$G$10,COUNTRY_INFO!D18*AL18*PROFILE!$G$10,IF(AND(DISTRICT!Z18<>"Unknown",Z18<>"Not required"),COUNTRY_INFO!O18*DISTRICT!AO18,0)) -> 0 | AT18: 171719.489 | AU18: Y | AV18: =MAX('MDA2'!J18,'T1'!L18,'T2'!J18,T3_R1!K18,T3_R2!K18) -> 0 | AW18: =MAX('MDA1'!K18,'MDA2'!K18,'MDA3'!I18,'MDA3'!L18,'T1'!M18,'T2'!K18,T3_R1!L18,T3_R2!L18) -> 66450 | AX18: =MAX('MDA1'!L18,'MDA2'!L18,'MDA3'!J18,'MDA3'!M18,'T1'!N18,'T2'!L18,T3_R1!M18,T3_R2!M18) -> 0 | AY18: 66450 | AZ18: =MAX('MDA2'!J18,T18) -> 0 | BA18: =MAX('MDA1'!K18,'MDA2'!K18,'MDA3'!I18,'MDA3'!L18,V18,AD18) -> 66450 | BB18: =MAX('MDA1'!L18,'MDA2'!L18,'MDA3'!J18,'MDA3'!M18,AF18) -> 0 | BC18: 66450 | BD18: 38.69683074
A19: =IF(COUNTRY_INFO!A19=0," ",COUNTRY_INFO!A19) -> South Africa | B19: =IF(COUNTRY_INFO!B19=0," ",COUNTRY_INFO!B19) -> Free State | C19: =IF(COUNTRY_INFO!C19=0," ",COUNTRY_INFO!C19) -> Mangaung MM | D19: =COUNTRY_INFO!L19 -> 0 | G19: =MAX('MDA1'!M19,'MDA2'!M19) -> 0 | H19: =IF(AND(COUNTRY_INFO!H19>0,COUNTRY_INFO!H19<4),IF(D19>MAX('MDA1'!M19,'MDA2'!M19),MAX('MDA1'!M19,'MDA2'!M19),D19),0) -> 0 | I19: =IF(AND(COUNTRY_INFO!H19>0,COUNTRY_INFO!H19<4), IF(G19/D19*100<>0, IF(G19/D19*100>100,100,G19/D19*100), "-"),0) -> 0 | J19: =COUNTRY_INFO!M19 -> 0 | M19: =MAX('MDA1'!M19,MAX('MDA3'!I19,'MDA3'!L19)+MAX('MDA3'!J19,'MDA3'!M19)) -> 0 | N19: =IF(AND(COUNTRY_INFO!I19>0,COUNTRY_INFO!I19<4),IF(J19>MAX('MDA1'!M19,MAX('MDA3'!I19,'MDA3'!L19)+MAX('MDA3'!J19,'MDA3'!M19)),MAX('MDA1'!M19,MAX('MDA3'!I19,'MDA3'!L19)+MAX('MDA3'!J19,'MDA3'!M19)),J19),0) -> 0 | O19: =IF(AND(COUNTRY_INFO!I19>0,COUNTRY_INFO!I19<4), IF(M19/J19*100<>0, IF(M19/J19*100>100,100,M19/J19*100), "-"),0) -> 0 | P19: =COUNTRY_INFO!N19 -> 229153 | S19: =SUM(MAX('MDA2'!J19, 'T1'!L19, MAX(T3_R1!K19, T3_R2!K19)), MAX('MDA1'!K19, 'MDA2'!K19, 'T1'!M19, MAX(T3_R1!L19, T3_R2!L19)), MAX('MDA1'!L19, 'MDA2'!L19, 'T1'!N19, MAX(T3_R1!M19, T3_R2!M19))) -> 104550 | T19: =IF(AND(COUNTRY_INFO!J19>1,COUNTRY_INFO!J19<4),IF(COUNTRY_INFO!E19>MAX('MDA2'!J19,'T1'!L19,MAX(T3_R1!K19,T3_R2!K19)),MAX('MDA2'!J19,'T1'!L19,MAX(T3_R1!K19,T3_R2!K19)),COUNTRY_INFO!E19),0) -> 0 | U19: =IF(AND(COUNTRY_INFO!J19>1,COUNTRY_INFO!J19<4), IF(T19/COUNTRY_INFO!E19*100<>0, IF(T19/COUNTRY_INFO!E19*100>100,100,T19/COUNTRY_INFO!E19*100), "-"),0) -> - | V19: =IF(AND(COUNTRY_INFO!J19>1,COUNTRY_INFO!J19<4),IF(COUNTRY_INFO!F19>MAX('MDA1'!K19,'MDA2'!K19,'T1'!M19,MAX(T3_R1!L19,T3_R2!L19)),MAX('MDA1'!K19,'MDA2'!K19,'T1'!M19,MAX(T3_R1!L19,T3_R2!L19)),COUNTRY_INFO!F19),0) -> 104550 | W19: =IF(AND(COUNTRY_INFO!J19>1,COUNTRY_INFO!J19<4), IF(V19/COUNTRY_INFO!F19*100<>0, IF(V19/COUNTRY_INFO!F19*100>100,100,V19/COUNTRY_INFO!F19*100), "-"),0) -> 65.21210307 | X19: 104550 | Y19: =IF(AND(COUNTRY_INFO!J19>1,COUNTRY_INFO!J19<4), IF(S19/P19*100<>0, IF(X19/P19*100>100,100,X19/P19*100), "-"),0) -> 45.62453906 | Z19: =COUNTRY_INFO!O19 -> 0 | AC19: =MAX('T1'!L19,'T2'!J19)+MAX('T1'!M19,'T2'!K19)+MAX('T1'!N19,'T2'!L19) -> 0 | AD19: =IF(COUNTRY_INFO!K19=1,IF(COUNTRY_INFO!F19*0.33>MAX('T1'!M19,'T2'!K19),MAX('T1'!M19,'T2'!K19),COUNTRY_INFO!F19*0.33),IF(COUNTRY_INFO!K19=2,IF(COUNTRY_INFO!F19*0.5>MAX('T1'!M19,'T2'!K19),MAX('T1'!M19,'T2'!K19),COUNTRY_INFO!F19*0.5),IF(COUNTRY_INFO!K19=3,IF(COUNTRY_INFO!F19>MAX('T1'!M19,'T2'!K19),MAX('T1'!M19,'T2'!K19),COUNTRY_INFO!F19),0))) -> 0 | AE19: =IF(AND(COUNTRY_INFO!K19>0,COUNTRY_INFO!K19<4),IF(Z19>0,IF(COUNTRY_INFO!K19=1, AD19/(COUNTRY_INFO!F19*0.33)*100, IF(COUNTRY_INFO!K19=2, AD19/(COUNTRY_INFO!F19*0.5)*100, IF(COUNTRY_INFO!K19=3, AD19/COUNTRY_INFO!F19*100))),"-"),0) -> - | AF19: =IF(COUNTRY_INFO!K19=2,IF(COUNTRY_INFO!G19*0.2>MAX('T1'!N19,'T2'!L19),MAX('T1'!N19,'T2'!L19),COUNTRY_INFO!G19*0.2),IF(COUNTRY_INFO!K19=3,IF(COUNTRY_INFO!G19>MAX('T1'!N19,'T2'!L19),MAX('T1'!N19,'T2'!L19),COUNTRY_INFO!G19),0)) -> 0 | AG19: =IF(AND(COUNTRY_INFO!K19>0,COUNTRY_INFO!K19<4),IF(Z19>0,IF(COUNTRY_INFO!K19=1, 0, IF(COUNTRY_INFO!K19=2, AF19/(COUNTRY_INFO!G19*0.2)*100, IF(COUNTRY_INFO!K19=3, AF19/COUNTRY_INFO!G19*100))),"-"),0) -> - | AH19: 0 | AI19: =IF(AND(COUNTRY_INFO!K19>0,COUNTRY_INFO!K19<4), IF(AC19/Z19*100<>0, IF(AH19/Z19*100>100,100,AH19/Z19*100), "-"),0) ->  | AK19: =IF(AND(D19<>0, D19<>"Unknown",D19<>"Stopped",D19<>"Not required"),D19/COUNTRY_INFO!D19, 0) -> 0 | AL19: =IF(AND(J19<>0,J19<>"Unknown",J19<>"Stopped",J19<>"Not required"),J19/COUNTRY_INFO!D19, 0) -> 0 | AM19: =IF(AND(P19<>0,P19<>"Unknown",P19<>"Not required"),P19/(COUNTRY_INFO!E19+COUNTRY_INFO!F19), 0) -> 1 | AN19: =IF(AND(Z19<>0,Z19<>"Unknown",Z19<>"Not required"),IF(COUNTRY_INFO!K19=1,1,IF(COUNTRY_INFO!K19=2,0.5*COUNTRY_INFO!F19/(0.5*COUNTRY_INFO!F19+0.2*COUNTRY_INFO!G19),IF(COUNTRY_INFO!K19=3,COUNTRY_INFO!F19/(COUNTRY_INFO!F19+COUNTRY_INFO!G19)))),0) -> 0 | AO19: =IF(AND(Z19<>0,Z19<>"Unknown",Z19<>"Not required"),IF(COUNTRY_INFO!K19=1,0,IF(COUNTRY_INFO!K19=2,0.2*COUNTRY_INFO!G19/(0.5*COUNTRY_INFO!F19+0.2*COUNTRY_INFO!G19),IF(COUNTRY_INFO!K19=3,COUNTRY_INFO!G19/(COUNTRY_INFO!F19+COUNTRY_INFO!G19)))),0) -> 0 | AP19: =MAX(COUNTRY_INFO!D19*AK19*PROFILE!$G$7,COUNTRY_INFO!D19*AL19*PROFILE!$G$7) -> 0 | AQ19: =MAX(COUNTRY_INFO!D19*AK19*PROFILE!$G$8,COUNTRY_INFO!D19*AL19*PROFILE!$G$8,COUNTRY_INFO!D19*AM19*PROFILE!$G$8) -> 68829.76518 | AR19: =MAX(COUNTRY_INFO!D19*AK19*PROFILE!$G$9,COUNTRY_INFO!D19*AL19*PROFILE!$G$9,COUNTRY_INFO!D19*AM19*PROFILE!$G$9,IF(AND(DISTRICT!Z19<>"Unknown",Z19<>"Not required"),COUNTRY_INFO!O19*DISTRICT!AN19,0)) -> 160322.9285 | AS19: =MAX(COUNTRY_INFO!D19*AK19*PROFILE!$G$10,COUNTRY_INFO!D19*AL19*PROFILE!$G$10,IF(AND(DISTRICT!Z19<>"Unknown",Z19<>"Not required"),COUNTRY_INFO!O19*DISTRICT!AO19,0)) -> 0 | AT19: 229152.6937 | AU19: Y | AV19: =MAX('MDA2'!J19,'T1'!L19,'T2'!J19,T3_R1!K19,T3_R2!K19) -> 0 | AW19: =MAX('MDA1'!K19,'MDA2'!K19,'MDA3'!I19,'MDA3'!L19,'T1'!M19,'T2'!K19,T3_R1!L19,T3_R2!L19) -> 104550 | AX19: =MAX('MDA1'!L19,'MDA2'!L19,'MDA3'!J19,'MDA3'!M19,'T1'!N19,'T2'!L19,T3_R1!M19,T3_R2!M19) -> 0 | AY19: 104550 | AZ19: =MAX('MDA2'!J19,T19) -> 0 | BA19: =MAX('MDA1'!K19,'MDA2'!K19,'MDA3'!I19,'MDA3'!L19,V19,AD19) -> 104550 | BB19: =MAX('MDA1'!L19,'MDA2'!L19,'MDA3'!J19,'MDA3'!M19,AF19) -> 0 | BC19: 104550 | BD19: 45.62460005
A20: =IF(COUNTRY_INFO!A20=0," ",COUNTRY_INFO!A20) -> South Africa | B20: =IF(COUNTRY_INFO!B20=0," ",COUNTRY_INFO!B20) -> Free State | C20: =IF(COUNTRY_INFO!C20=0," ",COUNTRY_INFO!C20) -> T Mofutsanyane DM | D20: =COUNTRY_INFO!L20 -> 0 | G20: =MAX('MDA1'!M20,'MDA2'!M20) -> 0 | H20: =IF(AND(COUNTRY_INFO!H20>0,COUNTRY_INFO!H20<4),IF(D20>MAX('MDA1'!M20,'MDA2'!M20),MAX('MDA1'!M20,'MDA2'!M20),D20),0) -> 0 | I20: =IF(AND(COUNTRY_INFO!H20>0,COUNTRY_INFO!H20<4), IF(G20/D20*100<>0, IF(G20/D20*100>100,100,G20/D20*100), "-"),0) -> 0 | J20: =COUNTRY_INFO!M20 -> 0 | M20: =MAX('MDA1'!M20,MAX('MDA3'!I20,'MDA3'!L20)+MAX('MDA3'!J20,'MDA3'!M20)) -> 0 | N20: =IF(AND(COUNTRY_INFO!I20>0,COUNTRY_INFO!I20<4),IF(J20>MAX('MDA1'!M20,MAX('MDA3'!I20,'MDA3'!L20)+MAX('MDA3'!J20,'MDA3'!M20)),MAX('MDA1'!M20,MAX('MDA3'!I20,'MDA3'!L20)+MAX('MDA3'!J20,'MDA3'!M20)),J20),0) -> 0 | O20: =IF(AND(COUNTRY_INFO!I20>0,COUNTRY_INFO!I20<4), IF(M20/J20*100<>0, IF(M20/J20*100>100,100,M20/J20*100), "-"),0) -> 0 | P20: =COUNTRY_INFO!N20 -> 205715 | S20: =SUM(MAX('MDA2'!J20, 'T1'!L20, MAX(T3_R1!K20, T3_R2!K20)), MAX('MDA1'!K20, 'MDA2'!K20, 'T1'!M20, MAX(T3_R1!L20, T3_R2!L20)), MAX('MDA1'!L20, 'MDA2'!L20, 'T1'!N20, MAX(T3_R1!M20, T3_R2!M20))) -> 97950 | T20: =IF(AND(COUNTRY_INFO!J20>1,COUNTRY_INFO!J20<4),IF(COUNTRY_INFO!E20>MAX('MDA2'!J20,'T1'!L20,MAX(T3_R1!K20,T3_R2!K20)),MAX('MDA2'!J20,'T1'!L20,MAX(T3_R1!K20,T3_R2!K20)),COUNTRY_INFO!E20),0) -> 0 | U20: =IF(AND(COUNTRY_INFO!J20>1,COUNTRY_INFO!J20<4), IF(T20/COUNTRY_INFO!E20*100<>0, IF(T20/COUNTRY_INFO!E20*100>100,100,T20/COUNTRY_INFO!E20*100), "-"),0) -> - | V20: =IF(AND(COUNTRY_INFO!J20>1,COUNTRY_INFO!J20<4),IF(COUNTRY_INFO!F20>MAX('MDA1'!K20,'MDA2'!K20,'T1'!M20,MAX(T3_R1!L20,T3_R2!L20)),MAX('MDA1'!K20,'MDA2'!K20,'T1'!M20,MAX(T3_R1!L20,T3_R2!L20)),COUNTRY_INFO!F20),0) -> 97950 | W20: =IF(AND(COUNTRY_INFO!J20>1,COUNTRY_INFO!J20<4), IF(V20/COUNTRY_INFO!F20*100<>0, IF(V20/COUNTRY_INFO!F20*100>100,100,V20/COUNTRY_INFO!F20*100), "-"),0) -> 68.05627931 | X20: 97950 | Y20: =IF(AND(COUNTRY_INFO!J20>1,COUNTRY_INFO!J20<4), IF(S20/P20*100<>0, IF(X20/P20*100>100,100,X20/P20*100), "-"),0) -> 47.61441801 | Z20: =COUNTRY_INFO!O20 -> 0 | AC20: =MAX('T1'!L20,'T2'!J20)+MAX('T1'!M20,'T2'!K20)+MAX('T1'!N20,'T2'!L20) -> 0 | AD20: =IF(COUNTRY_INFO!K20=1,IF(COUNTRY_INFO!F20*0.33>MAX('T1'!M20,'T2'!K20),MAX('T1'!M20,'T2'!K20),COUNTRY_INFO!F20*0.33),IF(COUNTRY_INFO!K20=2,IF(COUNTRY_INFO!F20*0.5>MAX('T1'!M20,'T2'!K20),MAX('T1'!M20,'T2'!K20),COUNTRY_INFO!F20*0.5),IF(COUNTRY_INFO!K20=3,IF(COUNTRY_INFO!F20>MAX('T1'!M20,'T2'!K20),MAX('T1'!M20,'T2'!K20),COUNTRY_INFO!F20),0))) -> 0 | AE20: =IF(AND(COUNTRY_INFO!K20>0,COUNTRY_INFO!K20<4),IF(Z20>0,IF(COUNTRY_INFO!K20=1, AD20/(COUNTRY_INFO!F20*0.33)*100, IF(COUNTRY_INFO!K20=2, AD20/(COUNTRY_INFO!F20*0.5)*100, IF(COUNTRY_INFO!K20=3, AD20/COUNTRY_INFO!F20*100))),"-"),0) -> - | AF20: =IF(COUNTRY_INFO!K20=2,IF(COUNTRY_INFO!G20*0.2>MAX('T1'!N20,'T2'!L20),MAX('T1'!N20,'T2'!L20),COUNTRY_INFO!G20*0.2),IF(COUNTRY_INFO!K20=3,IF(COUNTRY_INFO!G20>MAX('T1'!N20,'T2'!L20),MAX('T1'!N20,'T2'!L20),COUNTRY_INFO!G20),0)) -> 0 | AG20: =IF(AND(COUNTRY_INFO!K20>0,COUNTRY_INFO!K20<4),IF(Z20>0,IF(COUNTRY_INFO!K20=1, 0, IF(COUNTRY_INFO!K20=2, AF20/(COUNTRY_INFO!G20*0.2)*100, IF(COUNTRY_INFO!K20=3, AF20/COUNTRY_INFO!G20*100))),"-"),0) -> - | AH20: 0 | AI20: =IF(AND(COUNTRY_INFO!K20>0,COUNTRY_INFO!K20<4), IF(AC20/Z20*100<>0, IF(AH20/Z20*100>100,100,AH20/Z20*100), "-"),0) ->  | AK20: =IF(AND(D20<>0, D20<>"Unknown",D20<>"Stopped",D20<>"Not required"),D20/COUNTRY_INFO!D20, 0) -> 0 | AL20: =IF(AND(J20<>0,J20<>"Unknown",J20<>"Stopped",J20<>"Not required"),J20/COUNTRY_INFO!D20, 0) -> 0 | AM20: =IF(AND(P20<>0,P20<>"Unknown",P20<>"Not required"),P20/(COUNTRY_INFO!E20+COUNTRY_INFO!F20), 0) -> 1 | AN20: =IF(AND(Z20<>0,Z20<>"Unknown",Z20<>"Not required"),IF(COUNTRY_INFO!K20=1,1,IF(COUNTRY_INFO!K20=2,0.5*COUNTRY_INFO!F20/(0.5*COUNTRY_INFO!F20+0.2*COUNTRY_INFO!G20),IF(COUNTRY_INFO!K20=3,COUNTRY_INFO!F20/(COUNTRY_INFO!F20+COUNTRY_INFO!G20)))),0) -> 0 | AO20: =IF(AND(Z20<>0,Z20<>"Unknown",Z20<>"Not required"),IF(COUNTRY_INFO!K20=1,0,IF(COUNTRY_INFO!K20=2,0.2*COUNTRY_INFO!G20/(0.5*COUNTRY_INFO!F20+0.2*COUNTRY_INFO!G20),IF(COUNTRY_INFO!K20=3,COUNTRY_INFO!G20/(COUNTRY_INFO!F20+COUNTRY_INFO!G20)))),0) -> 0 | AP20: =MAX(COUNTRY_INFO!D20*AK20*PROFILE!$G$7,COUNTRY_INFO!D20*AL20*PROFILE!$G$7) -> 0 | AQ20: =MAX(COUNTRY_INFO!D20*AK20*PROFILE!$G$8,COUNTRY_INFO!D20*AL20*PROFILE!$G$8,COUNTRY_INFO!D20*AM20*PROFILE!$G$8) -> 61789.96851 | AR20: =MAX(COUNTRY_INFO!D20*AK20*PROFILE!$G$9,COUNTRY_INFO!D20*AL20*PROFILE!$G$9,COUNTRY_INFO!D20*AM20*PROFILE!$G$9,IF(AND(DISTRICT!Z20<>"Unknown",Z20<>"Not required"),COUNTRY_INFO!O20*DISTRICT!AN20,0)) -> 143925.3596 | AS20: =MAX(COUNTRY_INFO!D20*AK20*PROFILE!$G$10,COUNTRY_INFO!D20*AL20*PROFILE!$G$10,IF(AND(DISTRICT!Z20<>"Unknown",Z20<>"Not required"),COUNTRY_INFO!O20*DISTRICT!AO20,0)) -> 0 | AT20: 205715.3281 | AU20: Y | AV20: =MAX('MDA2'!J20,'T1'!L20,'T2'!J20,T3_R1!K20,T3_R2!K20) -> 0 | AW20: =MAX('MDA1'!K20,'MDA2'!K20,'MDA3'!I20,'MDA3'!L20,'T1'!M20,'T2'!K20,T3_R1!L20,T3_R2!L20) -> 97950 | AX20: =MAX('MDA1'!L20,'MDA2'!L20,'MDA3'!J20,'MDA3'!M20,'T1'!N20,'T2'!L20,T3_R1!M20,T3_R2!M20) -> 0 | AY20: 97950 | AZ20: =MAX('MDA2'!J20,T20) -> 0 | BA20: =MAX('MDA1'!K20,'MDA2'!K20,'MDA3'!I20,'MDA3'!L20,V20,AD20) -> 97950 | BB20: =MAX('MDA1'!L20,'MDA2'!L20,'MDA3'!J20,'MDA3'!M20,AF20) -> 0 | BC20: 97950 | BD20: 47.61434207
A21: =IF(COUNTRY_INFO!A21=0," ",COUNTRY_INFO!A21) -> South Africa | B21: =IF(COUNTRY_INFO!B21=0," ",COUNTRY_INFO!B21) -> Free State | C21: =IF(COUNTRY_INFO!C21=0," ",COUNTRY_INFO!C21) -> Xhariep DM | D21: =COUNTRY_INFO!L21 -> 0 | G21: =MAX('MDA1'!M21,'MDA2'!M21) -> 0 | H21: =IF(AND(COUNTRY_INFO!H21>0,COUNTRY_INFO!H21<4),IF(D21>MAX('MDA1'!M21,'MDA2'!M21),MAX('MDA1'!M21,'MDA2'!M21),D21),0) -> 0 | I21: =IF(AND(COUNTRY_INFO!H21>0,COUNTRY_INFO!H21<4), IF(G21/D21*100<>0, IF(G21/D21*100>100,100,G21/D21*100), "-"),0) -> 0 | J21: =COUNTRY_INFO!M21 -> 0 | M21: =MAX('MDA1'!M21,MAX('MDA3'!I21,'MDA3'!L21)+MAX('MDA3'!J21,'MDA3'!M21)) -> 0 | N21: =IF(AND(COUNTRY_INFO!I21>0,COUNTRY_INFO!I21<4),IF(J21>MAX('MDA1'!M21,MAX('MDA3'!I21,'MDA3'!L21)+MAX('MDA3'!J21,'MDA3'!M21)),MAX('MDA1'!M21,MAX('MDA3'!I21,'MDA3'!L21)+MAX('MDA3'!J21,'MDA3'!M21)),J21),0) -> 0 | O21: =IF(AND(COUNTRY_INFO!I21>0,COUNTRY_INFO!I21<4), IF(M21/J21*100<>0, IF(M21/J21*100>100,100,M21/J21*100), "-"),0) -> 0 | P21: =COUNTRY_INFO!N21 -> 39547 | S21: =SUM(MAX('MDA2'!J21, 'T1'!L21, MAX(T3_R1!K21, T3_R2!K21)), MAX('MDA1'!K21, 'MDA2'!K21, 'T1'!M21, MAX(T3_R1!L21, T3_R2!L21)), MAX('MDA1'!L21, 'MDA2'!L21, 'T1'!N21, MAX(T3_R1!M21, T3_R2!M21))) -> 18450 | T21: =IF(AND(COUNTRY_INFO!J21>1,COUNTRY_INFO!J21<4),IF(COUNTRY_INFO!E21>MAX('MDA2'!J21,'T1'!L21,MAX(T3_R1!K21,T3_R2!K21)),MAX('MDA2'!J21,'T1'!L21,MAX(T3_R1!K21,T3_R2!K21)),COUNTRY_INFO!E21),0) -> 0 | U21: =IF(AND(COUNTRY_INFO!J21>1,COUNTRY_INFO!J21<4), IF(T21/COUNTRY_INFO!E21*100<>0, IF(T21/COUNTRY_INFO!E21*100>100,100,T21/COUNTRY_INFO!E21*100), "-"),0) -> - | V21: =IF(AND(COUNTRY_INFO!J21>1,COUNTRY_INFO!J21<4),IF(COUNTRY_INFO!F21>MAX('MDA1'!K21,'MDA2'!K21,'T1'!M21,MAX(T3_R1!L21,T3_R2!L21)),MAX('MDA1'!K21,'MDA2'!K21,'T1'!M21,MAX(T3_R1!L21,T3_R2!L21)),COUNTRY_INFO!F21),0) -> 18450 | W21: =IF(AND(COUNTRY_INFO!J21>1,COUNTRY_INFO!J21<4), IF(V21/COUNTRY_INFO!F21*100<>0, IF(V21/COUNTRY_INFO!F21*100>100,100,V21/COUNTRY_INFO!F21*100), "-"),0) -> 66.68353332 | X21: 18450 | Y21: =IF(AND(COUNTRY_INFO!J21>1,COUNTRY_INFO!J21<4), IF(S21/P21*100<>0, IF(X21/P21*100>100,100,X21/P21*100), "-"),0) -> 46.65334918 | Z21: =COUNTRY_INFO!O21 -> 0 | AC21: =MAX('T1'!L21,'T2'!J21)+MAX('T1'!M21,'T2'!K21)+MAX('T1'!N21,'T2'!L21) -> 0 | AD21: =IF(COUNTRY_INFO!K21=1,IF(COUNTRY_INFO!F21*0.33>MAX('T1'!M21,'T2'!K21),MAX('T1'!M21,'T2'!K21),COUNTRY_INFO!F21*0.33),IF(COUNTRY_INFO!K21=2,IF(COUNTRY_INFO!F21*0.5>MAX('T1'!M21,'T2'!K21),MAX('T1'!M21,'T2'!K21),COUNTRY_INFO!F21*0.5),IF(COUNTRY_INFO!K21=3,IF(COUNTRY_INFO!F21>MAX('T1'!M21,'T2'!K21),MAX('T1'!M21,'T2'!K21),COUNTRY_INFO!F21),0))) -> 0 | AE21: =IF(AND(COUNTRY_INFO!K21>0,COUNTRY_INFO!K21<4),IF(Z21>0,IF(COUNTRY_INFO!K21=1, AD21/(COUNTRY_INFO!F21*0.33)*100, IF(COUNTRY_INFO!K21=2, AD21/(COUNTRY_INFO!F21*0.5)*100, IF(COUNTRY_INFO!K21=3, AD21/COUNTRY_INFO!F21*100))),"-"),0) -> - | AF21: =IF(COUNTRY_INFO!K21=2,IF(COUNTRY_INFO!G21*0.2>MAX('T1'!N21,'T2'!L21),MAX('T1'!N21,'T2'!L21),COUNTRY_INFO!G21*0.2),IF(COUNTRY_INFO!K21=3,IF(COUNTRY_INFO!G21>MAX('T1'!N21,'T2'!L21),MAX('T1'!N21,'T2'!L21),COUNTRY_INFO!G21),0)) -> 0 | AG21: =IF(AND(COUNTRY_INFO!K21>0,COUNTRY_INFO!K21<4),IF(Z21>0,IF(COUNTRY_INFO!K21=1, 0, IF(COUNTRY_INFO!K21=2, AF21/(COUNTRY_INFO!G21*0.2)*100, IF(COUNTRY_INFO!K21=3, AF21/COUNTRY_INFO!G21*100))),"-"),0) -> - | AH21: 0 | AI21: =IF(AND(COUNTRY_INFO!K21>0,COUNTRY_INFO!K21<4), IF(AC21/Z21*100<>0, IF(AH21/Z21*100>100,100,AH21/Z21*100), "-"),0) ->  | AK21: =IF(AND(D21<>0, D21<>"Unknown",D21<>"Stopped",D21<>"Not required"),D21/COUNTRY_INFO!D21, 0) -> 0 | AL21: =IF(AND(J21<>0,J21<>"Unknown",J21<>"Stopped",J21<>"Not required"),J21/COUNTRY_INFO!D21, 0) -> 0 | AM21: =IF(AND(P21<>0,P21<>"Unknown",P21<>"Not required"),P21/(COUNTRY_INFO!E21+COUNTRY_INFO!F21), 0) -> 1 | AN21: =IF(AND(Z21<>0,Z21<>"Unknown",Z21<>"Not required"),IF(COUNTRY_INFO!K21=1,1,IF(COUNTRY_INFO!K21=2,0.5*COUNTRY_INFO!F21/(0.5*COUNTRY_INFO!F21+0.2*COUNTRY_INFO!G21),IF(COUNTRY_INFO!K21=3,COUNTRY_INFO!F21/(COUNTRY_INFO!F21+COUNTRY_INFO!G21)))),0) -> 0 | AO21: =IF(AND(Z21<>0,Z21<>"Unknown",Z21<>"Not required"),IF(COUNTRY_INFO!K21=1,0,IF(COUNTRY_INFO!K21=2,0.2*COUNTRY_INFO!G21/(0.5*COUNTRY_INFO!F21+0.2*COUNTRY_INFO!G21),IF(COUNTRY_INFO!K21=3,COUNTRY_INFO!G21/(COUNTRY_INFO!F21+COUNTRY_INFO!G21)))),0) -> 0 | AP21: =MAX(COUNTRY_INFO!D21*AK21*PROFILE!$G$7,COUNTRY_INFO!D21*AL21*PROFILE!$G$7) -> 0 | AQ21: =MAX(COUNTRY_INFO!D21*AK21*PROFILE!$G$8,COUNTRY_INFO!D21*AL21*PROFILE!$G$8,COUNTRY_INFO!D21*AM21*PROFILE!$G$8) -> 11878.60738 | AR21: =MAX(COUNTRY_INFO!D21*AK21*PROFILE!$G$9,COUNTRY_INFO!D21*AL21*PROFILE!$G$9,COUNTRY_INFO!D21*AM21*PROFILE!$G$9,IF(AND(DISTRICT!Z21<>"Unknown",Z21<>"Not required"),COUNTRY_INFO!O21*DISTRICT!AN21,0)) -> 27668.45298 | AS21: =MAX(COUNTRY_INFO!D21*AK21*PROFILE!$G$10,COUNTRY_INFO!D21*AL21*PROFILE!$G$10,IF(AND(DISTRICT!Z21<>"Unknown",Z21<>"Not required"),COUNTRY_INFO!O21*DISTRICT!AO21,0)) -> 0 | AT21: 39547.06036 | AU21: Y | AV21: =MAX('MDA2'!J21,'T1'!L21,'T2'!J21,T3_R1!K21,T3_R2!K21) -> 0 | AW21: =MAX('MDA1'!K21,'MDA2'!K21,'MDA3'!I21,'MDA3'!L21,'T1'!M21,'T2'!K21,T3_R1!L21,T3_R2!L21) -> 18450 | AX21: =MAX('MDA1'!L21,'MDA2'!L21,'MDA3'!J21,'MDA3'!M21,'T1'!N21,'T2'!L21,T3_R1!M21,T3_R2!M21) -> 0 | AY21: 18450 | AZ21: =MAX('MDA2'!J21,T21) -> 0 | BA21: =MAX('MDA1'!K21,'MDA2'!K21,'MDA3'!I21,'MDA3'!L21,V21,AD21) -> 18450 | BB21: =MAX('MDA1'!L21,'MDA2'!L21,'MDA3'!J21,'MDA3'!M21,AF21) -> 0 | BC21: 18450 | BD21: 46.65327797
A22: =IF(COUNTRY_INFO!A22=0," ",COUNTRY_INFO!A22) -> South Africa | B22: =IF(COUNTRY_INFO!B22=0," ",COUNTRY_INFO!B22) -> Gauteng | C22: =IF(COUNTRY_INFO!C22=0," ",COUNTRY_INFO!C22) -> Ekurhuleni MM | D22: =COUNTRY_INFO!L22 -> 0 | G22: =MAX('MDA1'!M22,'MDA2'!M22) -> 0 | H22: =IF(AND(COUNTRY_INFO!H22>0,COUNTRY_INFO!H22<4),IF(D22>MAX('MDA1'!M22,'MDA2'!M22),MAX('MDA1'!M22,'MDA2'!M22),D22),0) -> 0 | I22: =IF(AND(COUNTRY_INFO!H22>0,COUNTRY_INFO!H22<4), IF(G22/D22*100<>0, IF(G22/D22*100>100,100,G22/D22*100), "-"),0) -> 0 | J22: =COUNTRY_INFO!M22 -> 0 | M22: =MAX('MDA1'!M22,MAX('MDA3'!I22,'MDA3'!L22)+MAX('MDA3'!J22,'MDA3'!M22)) -> 0 | N22: =IF(AND(COUNTRY_INFO!I22>0,COUNTRY_INFO!I22<4),IF(J22>MAX('MDA1'!M22,MAX('MDA3'!I22,'MDA3'!L22)+MAX('MDA3'!J22,'MDA3'!M22)),MAX('MDA1'!M22,MAX('MDA3'!I22,'MDA3'!L22)+MAX('MDA3'!J22,'MDA3'!M22)),J22),0) -> 0 | O22: =IF(AND(COUNTRY_INFO!I22>0,COUNTRY_INFO!I22<4), IF(M22/J22*100<>0, IF(M22/J22*100>100,100,M22/J22*100), "-"),0) -> 0 | P22: =COUNTRY_INFO!N22 -> 961853 | S22: =SUM(MAX('MDA2'!J22, 'T1'!L22, MAX(T3_R1!K22, T3_R2!K22)), MAX('MDA1'!K22, 'MDA2'!K22, 'T1'!M22, MAX(T3_R1!L22, T3_R2!L22)), MAX('MDA1'!L22, 'MDA2'!L22, 'T1'!N22, MAX(T3_R1!M22, T3_R2!M22))) -> 451922 | T22: =IF(AND(COUNTRY_INFO!J22>1,COUNTRY_INFO!J22<4),IF(COUNTRY_INFO!E22>MAX('MDA2'!J22,'T1'!L22,MAX(T3_R1!K22,T3_R2!K22)),MAX('MDA2'!J22,'T1'!L22,MAX(T3_R1!K22,T3_R2!K22)),COUNTRY_INFO!E22),0) -> 0 | U22: =IF(AND(COUNTRY_INFO!J22>1,COUNTRY_INFO!J22<4), IF(T22/COUNTRY_INFO!E22*100<>0, IF(T22/COUNTRY_INFO!E22*100>100,100,T22/COUNTRY_INFO!E22*100), "-"),0) -> - | V22: =IF(AND(COUNTRY_INFO!J22>1,COUNTRY_INFO!J22<4),IF(COUNTRY_INFO!F22>MAX('MDA1'!K22,'MDA2'!K22,'T1'!M22,MAX(T3_R1!L22,T3_R2!L22)),MAX('MDA1'!K22,'MDA2'!K22,'T1'!M22,MAX(T3_R1!L22,T3_R2!L22)),COUNTRY_INFO!F22),0) -> 451922 | W22: =IF(AND(COUNTRY_INFO!J22>1,COUNTRY_INFO!J22<4), IF(V22/COUNTRY_INFO!F22*100<>0, IF(V22/COUNTRY_INFO!F22*100>100,100,V22/COUNTRY_INFO!F22*100), "-"),0) -> 67.15585969 | X22: 451922 | Y22: =IF(AND(COUNTRY_INFO!J22>1,COUNTRY_INFO!J22<4), IF(S22/P22*100<>0, IF(X22/P22*100>100,100,X22/P22*100), "-"),0) -> 46.98451842 | Z22: =COUNTRY_INFO!O22 -> 0 | AC22: =MAX('T1'!L22,'T2'!J22)+MAX('T1'!M22,'T2'!K22)+MAX('T1'!N22,'T2'!L22) -> 0 | AD22: =IF(COUNTRY_INFO!K22=1,IF(COUNTRY_INFO!F22*0.33>MAX('T1'!M22,'T2'!K22),MAX('T1'!M22,'T2'!K22),COUNTRY_INFO!F22*0.33),IF(COUNTRY_INFO!K22=2,IF(COUNTRY_INFO!F22*0.5>MAX('T1'!M22,'T2'!K22),MAX('T1'!M22,'T2'!K22),COUNTRY_INFO!F22*0.5),IF(COUNTRY_INFO!K22=3,IF(COUNTRY_INFO!F22>MAX('T1'!M22,'T2'!K22),MAX('T1'!M22,'T2'!K22),COUNTRY_INFO!F22),0))) -> 0 | AE22: =IF(AND(COUNTRY_INFO!K22>0,COUNTRY_INFO!K22<4),IF(Z22>0,IF(COUNTRY_INFO!K22=1, AD22/(COUNTRY_INFO!F22*0.33)*100, IF(COUNTRY_INFO!K22=2, AD22/(COUNTRY_INFO!F22*0.5)*100, IF(COUNTRY_INFO!K22=3, AD22/COUNTRY_INFO!F22*100))),"-"),0) -> - | AF22: =IF(COUNTRY_INFO!K22=2,IF(COUNTRY_INFO!G22*0.2>MAX('T1'!N22,'T2'!L22),MAX('T1'!N22,'T2'!L22),COUNTRY_INFO!G22*0.2),IF(COUNTRY_INFO!K22=3,IF(COUNTRY_INFO!G22>MAX('T1'!N22,'T2'!L22),MAX('T1'!N22,'T2'!L22),COUNTRY_INFO!G22),0)) -> 0 | AG22: =IF(AND(COUNTRY_INFO!K22>0,COUNTRY_INFO!K22<4),IF(Z22>0,IF(COUNTRY_INFO!K22=1, 0, IF(COUNTRY_INFO!K22=2, AF22/(COUNTRY_INFO!G22*0.2)*100, IF(COUNTRY_INFO!K22=3, AF22/COUNTRY_INFO!G22*100))),"-"),0) -> - | AH22: 0 | AI22: =IF(AND(COUNTRY_INFO!K22>0,COUNTRY_INFO!K22<4), IF(AC22/Z22*100<>0, IF(AH22/Z22*100>100,100,AH22/Z22*100), "-"),0) ->  | AK22: =IF(AND(D22<>0, D22<>"Unknown",D22<>"Stopped",D22<>"Not required"),D22/COUNTRY_INFO!D22, 0) -> 0 | AL22: =IF(AND(J22<>0,J22<>"Unknown",J22<>"Stopped",J22<>"Not required"),J22/COUNTRY_INFO!D22, 0) -> 0 | AM22: =IF(AND(P22<>0,P22<>"Unknown",P22<>"Not required"),P22/(COUNTRY_INFO!E22+COUNTRY_INFO!F22), 0) -> 1 | AN22: =IF(AND(Z22<>0,Z22<>"Unknown",Z22<>"Not required"),IF(COUNTRY_INFO!K22=1,1,IF(COUNTRY_INFO!K22=2,0.5*COUNTRY_INFO!F22/(0.5*COUNTRY_INFO!F22+0.2*COUNTRY_INFO!G22),IF(COUNTRY_INFO!K22=3,COUNTRY_INFO!F22/(COUNTRY_INFO!F22+COUNTRY_INFO!G22)))),0) -> 0 | AO22: =IF(AND(Z22<>0,Z22<>"Unknown",Z22<>"Not required"),IF(COUNTRY_INFO!K22=1,0,IF(COUNTRY_INFO!K22=2,0.2*COUNTRY_INFO!G22/(0.5*COUNTRY_INFO!F22+0.2*COUNTRY_INFO!G22),IF(COUNTRY_INFO!K22=3,COUNTRY_INFO!G22/(COUNTRY_INFO!F22+COUNTRY_INFO!G22)))),0) -> 0 | AP22: =MAX(COUNTRY_INFO!D22*AK22*PROFILE!$G$7,COUNTRY_INFO!D22*AL22*PROFILE!$G$7) -> 0 | AQ22: =MAX(COUNTRY_INFO!D22*AK22*PROFILE!$G$8,COUNTRY_INFO!D22*AL22*PROFILE!$G$8,COUNTRY_INFO!D22*AM22*PROFILE!$G$8) -> 288908.2709 | AR22: =MAX(COUNTRY_INFO!D22*AK22*PROFILE!$G$9,COUNTRY_INFO!D22*AL22*PROFILE!$G$9,COUNTRY_INFO!D22*AM22*PROFILE!$G$9,IF(AND(DISTRICT!Z22<>"Unknown",Z22<>"Not required"),COUNTRY_INFO!O22*DISTRICT!AN22,0)) -> 672944.6183 | AS22: =MAX(COUNTRY_INFO!D22*AK22*PROFILE!$G$10,COUNTRY_INFO!D22*AL22*PROFILE!$G$10,IF(AND(DISTRICT!Z22<>"Unknown",Z22<>"Not required"),COUNTRY_INFO!O22*DISTRICT!AO22,0)) -> 0 | AT22: 961852.8891 | AU22: Y | AV22: =MAX('MDA2'!J22,'T1'!L22,'T2'!J22,T3_R1!K22,T3_R2!K22) -> 0 | AW22: =MAX('MDA1'!K22,'MDA2'!K22,'MDA3'!I22,'MDA3'!L22,'T1'!M22,'T2'!K22,T3_R1!L22,T3_R2!L22) -> 451922 | AX22: =MAX('MDA1'!L22,'MDA2'!L22,'MDA3'!J22,'MDA3'!M22,'T1'!N22,'T2'!L22,T3_R1!M22,T3_R2!M22) -> 0 | AY22: 451922 | AZ22: =MAX('MDA2'!J22,T22) -> 0 | BA22: =MAX('MDA1'!K22,'MDA2'!K22,'MDA3'!I22,'MDA3'!L22,V22,AD22) -> 451922 | BB22: =MAX('MDA1'!L22,'MDA2'!L22,'MDA3'!J22,'MDA3'!M22,AF22) -> 0 | BC22: 451922 | BD22: 46.98452384
A23: =IF(COUNTRY_INFO!A23=0," ",COUNTRY_INFO!A23) -> South Africa | B23: =IF(COUNTRY_INFO!B23=0," ",COUNTRY_INFO!B23) -> Gauteng | C23: =IF(COUNTRY_INFO!C23=0," ",COUNTRY_INFO!C23) -> Johannesburg MM | D23: =COUNTRY_INFO!L23 -> 0 | G23: =MAX('MDA1'!M23,'MDA2'!M23) -> 0 | H23: =IF(AND(COUNTRY_INFO!H23>0,COUNTRY_INFO!H23<4),IF(D23>MAX('MDA1'!M23,'MDA2'!M23),MAX('MDA1'!M23,'MDA2'!M23),D23),0) -> 0 | I23: =IF(AND(COUNTRY_INFO!H23>0,COUNTRY_INFO!H23<4), IF(G23/D23*100<>0, IF(G23/D23*100>100,100,G23/D23*100), "-"),0) -> 0 | J23: =COUNTRY_INFO!M23 -> 0 | M23: =MAX('MDA1'!M23,MAX('MDA3'!I23,'MDA3'!L23)+MAX('MDA3'!J23,'MDA3'!M23)) -> 0 | N23: =IF(AND(COUNTRY_INFO!I23>0,COUNTRY_INFO!I23<4),IF(J23>MAX('MDA1'!M23,MAX('MDA3'!I23,'MDA3'!L23)+MAX('MDA3'!J23,'MDA3'!M23)),MAX('MDA1'!M23,MAX('MDA3'!I23,'MDA3'!L23)+MAX('MDA3'!J23,'MDA3'!M23)),J23),0) -> 0 | O23: =IF(AND(COUNTRY_INFO!I23>0,COUNTRY_INFO!I23<4), IF(M23/J23*100<>0, IF(M23/J23*100>100,100,M23/J23*100), "-"),0) -> 0 | P23: =COUNTRY_INFO!N23 -> 1407125 | S23: =SUM(MAX('MDA2'!J23, 'T1'!L23, MAX(T3_R1!K23, T3_R2!K23)), MAX('MDA1'!K23, 'MDA2'!K23, 'T1'!M23, MAX(T3_R1!L23, T3_R2!L23)), MAX('MDA1'!L23, 'MDA2'!L23, 'T1'!N23, MAX(T3_R1!M23, T3_R2!M23))) -> 661130 | T23: =IF(AND(COUNTRY_INFO!J23>1,COUNTRY_INFO!J23<4),IF(COUNTRY_INFO!E23>MAX('MDA2'!J23,'T1'!L23,MAX(T3_R1!K23,T3_R2!K23)),MAX('MDA2'!J23,'T1'!L23,MAX(T3_R1!K23,T3_R2!K23)),COUNTRY_INFO!E23),0) -> 0 | U23: =IF(AND(COUNTRY_INFO!J23>1,COUNTRY_INFO!J23<4), IF(T23/COUNTRY_INFO!E23*100<>0, IF(T23/COUNTRY_INFO!E23*100>100,100,T23/COUNTRY_INFO!E23*100), "-"),0) -> - | V23: =IF(AND(COUNTRY_INFO!J23>1,COUNTRY_INFO!J23<4),IF(COUNTRY_INFO!F23>MAX('MDA1'!K23,'MDA2'!K23,'T1'!M23,MAX(T3_R1!L23,T3_R2!L23)),MAX('MDA1'!K23,'MDA2'!K23,'T1'!M23,MAX(T3_R1!L23,T3_R2!L23)),COUNTRY_INFO!F23),0) -> 661130 | W23: =IF(AND(COUNTRY_INFO!J23>1,COUNTRY_INFO!J23<4), IF(V23/COUNTRY_INFO!F23*100<>0, IF(V23/COUNTRY_INFO!F23*100>100,100,V23/COUNTRY_INFO!F23*100), "-"),0) -> 67.15579519 | X23: 661130 | Y23: =IF(AND(COUNTRY_INFO!J23>1,COUNTRY_INFO!J23<4), IF(S23/P23*100<>0, IF(X23/P23*100>100,100,X23/P23*100), "-"),0) -> 46.98445412 | Z23: =COUNTRY_INFO!O23 -> 0 | AC23: =MAX('T1'!L23,'T2'!J23)+MAX('T1'!M23,'T2'!K23)+MAX('T1'!N23,'T2'!L23) -> 0 | AD23: =IF(COUNTRY_INFO!K23=1,IF(COUNTRY_INFO!F23*0.33>MAX('T1'!M23,'T2'!K23),MAX('T1'!M23,'T2'!K23),COUNTRY_INFO!F23*0.33),IF(COUNTRY_INFO!K23=2,IF(COUNTRY_INFO!F23*0.5>MAX('T1'!M23,'T2'!K23),MAX('T1'!M23,'T2'!K23),COUNTRY_INFO!F23*0.5),IF(COUNTRY_INFO!K23=3,IF(COUNTRY_INFO!F23>MAX('T1'!M23,'T2'!K23),MAX('T1'!M23,'T2'!K23),COUNTRY_INFO!F23),0))) -> 0 | AE23: =IF(AND(COUNTRY_INFO!K23>0,COUNTRY_INFO!K23<4),IF(Z23>0,IF(COUNTRY_INFO!K23=1, AD23/(COUNTRY_INFO!F23*0.33)*100, IF(COUNTRY_INFO!K23=2, AD23/(COUNTRY_INFO!F23*0.5)*100, IF(COUNTRY_INFO!K23=3, AD23/COUNTRY_INFO!F23*100))),"-"),0) -> - | AF23: =IF(COUNTRY_INFO!K23=2,IF(COUNTRY_INFO!G23*0.2>MAX('T1'!N23,'T2'!L23),MAX('T1'!N23,'T2'!L23),COUNTRY_INFO!G23*0.2),IF(COUNTRY_INFO!K23=3,IF(COUNTRY_INFO!G23>MAX('T1'!N23,'T2'!L23),MAX('T1'!N23,'T2'!L23),COUNTRY_INFO!G23),0)) -> 0 | AG23: =IF(AND(COUNTRY_INFO!K23>0,COUNTRY_INFO!K23<4),IF(Z23>0,IF(COUNTRY_INFO!K23=1, 0, IF(COUNTRY_INFO!K23=2, AF23/(COUNTRY_INFO!G23*0.2)*100, IF(COUNTRY_INFO!K23=3, AF23/COUNTRY_INFO!G23*100))),"-"),0) -> - | AH23: 0 | AI23: =IF(AND(COUNTRY_INFO!K23>0,COUNTRY_INFO!K23<4), IF(AC23/Z23*100<>0, IF(AH23/Z23*100>100,100,AH23/Z23*100), "-"),0) ->  | AK23: =IF(AND(D23<>0, D23<>"Unknown",D23<>"Stopped",D23<>"Not required"),D23/COUNTRY_INFO!D23, 0) -> 0 | AL23: =IF(AND(J23<>0,J23<>"Unknown",J23<>"Stopped",J23<>"Not required"),J23/COUNTRY_INFO!D23, 0) -> 0 | AM23: =IF(AND(P23<>0,P23<>"Unknown",P23<>"Not required"),P23/(COUNTRY_INFO!E23+COUNTRY_INFO!F23), 0) -> 1 | AN23: =IF(AND(Z23<>0,Z23<>"Unknown",Z23<>"Not required"),IF(COUNTRY_INFO!K23=1,1,IF(COUNTRY_INFO!K23=2,0.5*COUNTRY_INFO!F23/(0.5*COUNTRY_INFO!F23+0.2*COUNTRY_INFO!G23),IF(COUNTRY_INFO!K23=3,COUNTRY_INFO!F23/(COUNTRY_INFO!F23+COUNTRY_INFO!G23)))),0) -> 0 | AO23: =IF(AND(Z23<>0,Z23<>"Unknown",Z23<>"Not required"),IF(COUNTRY_INFO!K23=1,0,IF(COUNTRY_INFO!K23=2,0.2*COUNTRY_INFO!G23/(0.5*COUNTRY_INFO!F23+0.2*COUNTRY_INFO!G23),IF(COUNTRY_INFO!K23=3,COUNTRY_INFO!G23/(COUNTRY_INFO!F23+COUNTRY_INFO!G23)))),0) -> 0 | AP23: =MAX(COUNTRY_INFO!D23*AK23*PROFILE!$G$7,COUNTRY_INFO!D23*AL23*PROFILE!$G$7) -> 0 | AQ23: =MAX(COUNTRY_INFO!D23*AK23*PROFILE!$G$8,COUNTRY_INFO!D23*AL23*PROFILE!$G$8,COUNTRY_INFO!D23*AM23*PROFILE!$G$8) -> 422653.2015 | AR23: =MAX(COUNTRY_INFO!D23*AK23*PROFILE!$G$9,COUNTRY_INFO!D23*AL23*PROFILE!$G$9,COUNTRY_INFO!D23*AM23*PROFILE!$G$9,IF(AND(DISTRICT!Z23<>"Unknown",Z23<>"Not required"),COUNTRY_INFO!O23*DISTRICT!AN23,0)) -> 984472.3256 | AS23: =MAX(COUNTRY_INFO!D23*AK23*PROFILE!$G$10,COUNTRY_INFO!D23*AL23*PROFILE!$G$10,IF(AND(DISTRICT!Z23<>"Unknown",Z23<>"Not required"),COUNTRY_INFO!O23*DISTRICT!AO23,0)) -> 0 | AT23: 1407125.527 | AU23: Y | AV23: =MAX('MDA2'!J23,'T1'!L23,'T2'!J23,T3_R1!K23,T3_R2!K23) -> 0 | AW23: =MAX('MDA1'!K23,'MDA2'!K23,'MDA3'!I23,'MDA3'!L23,'T1'!M23,'T2'!K23,T3_R1!L23,T3_R2!L23) -> 661130 | AX23: =MAX('MDA1'!L23,'MDA2'!L23,'MDA3'!J23,'MDA3'!M23,'T1'!N23,'T2'!L23,T3_R1!M23,T3_R2!M23) -> 0 | AY23: 661130 | AZ23: =MAX('MDA2'!J23,T23) -> 0 | BA23: =MAX('MDA1'!K23,'MDA2'!K23,'MDA3'!I23,'MDA3'!L23,V23,AD23) -> 661130 | BB23: =MAX('MDA1'!L23,'MDA2'!L23,'MDA3'!J23,'MDA3'!M23,AF23) -> 0 | BC23: 661130 | BD23: 46.98443652
A24: =IF(COUNTRY_INFO!A24=0," ",COUNTRY_INFO!A24) -> South Africa | B24: =IF(COUNTRY_INFO!B24=0," ",COUNTRY_INFO!B24) -> Gauteng | C24: =IF(COUNTRY_INFO!C24=0," ",COUNTRY_INFO!C24) -> Sedibeng DM | D24: =COUNTRY_INFO!L24 -> 0 | G24: =MAX('MDA1'!M24,'MDA2'!M24) -> 0 | H24: =IF(AND(COUNTRY_INFO!H24>0,COUNTRY_INFO!H24<4),IF(D24>MAX('MDA1'!M24,'MDA2'!M24),MAX('MDA1'!M24,'MDA2'!M24),D24),0) -> 0 | I24: =IF(AND(COUNTRY_INFO!H24>0,COUNTRY_INFO!H24<4), IF(G24/D24*100<>0, IF(G24/D24*100>100,100,G24/D24*100), "-"),0) -> 0 | J24: =COUNTRY_INFO!M24 -> 0 | M24: =MAX('MDA1'!M24,MAX('MDA3'!I24,'MDA3'!L24)+MAX('MDA3'!J24,'MDA3'!M24)) -> 0 | N24: =IF(AND(COUNTRY_INFO!I24>0,COUNTRY_INFO!I24<4),IF(J24>MAX('MDA1'!M24,MAX('MDA3'!I24,'MDA3'!L24)+MAX('MDA3'!J24,'MDA3'!M24)),MAX('MDA1'!M24,MAX('MDA3'!I24,'MDA3'!L24)+MAX('MDA3'!J24,'MDA3'!M24)),J24),0) -> 0 | O24: =IF(AND(COUNTRY_INFO!I24>0,COUNTRY_INFO!I24<4), IF(M24/J24*100<>0, IF(M24/J24*100>100,100,M24/J24*100), "-"),0) -> 0 | P24: =COUNTRY_INFO!N24 -> 267597 | S24: =SUM(MAX('MDA2'!J24, 'T1'!L24, MAX(T3_R1!K24, T3_R2!K24)), MAX('MDA1'!K24, 'MDA2'!K24, 'T1'!M24, MAX(T3_R1!L24, T3_R2!L24)), MAX('MDA1'!L24, 'MDA2'!L24, 'T1'!N24, MAX(T3_R1!M24, T3_R2!M24))) -> 125729 | T24: =IF(AND(COUNTRY_INFO!J24>1,COUNTRY_INFO!J24<4),IF(COUNTRY_INFO!E24>MAX('MDA2'!J24,'T1'!L24,MAX(T3_R1!K24,T3_R2!K24)),MAX('MDA2'!J24,'T1'!L24,MAX(T3_R1!K24,T3_R2!K24)),COUNTRY_INFO!E24),0) -> 0 | U24: =IF(AND(COUNTRY_INFO!J24>1,COUNTRY_INFO!J24<4), IF(T24/COUNTRY_INFO!E24*100<>0, IF(T24/COUNTRY_INFO!E24*100>100,100,T24/COUNTRY_INFO!E24*100), "-"),0) -> - | V24: =IF(AND(COUNTRY_INFO!J24>1,COUNTRY_INFO!J24<4),IF(COUNTRY_INFO!F24>MAX('MDA1'!K24,'MDA2'!K24,'T1'!M24,MAX(T3_R1!L24,T3_R2!L24)),MAX('MDA1'!K24,'MDA2'!K24,'T1'!M24,MAX(T3_R1!L24,T3_R2!L24)),COUNTRY_INFO!F24),0) -> 125729 | W24: =IF(AND(COUNTRY_INFO!J24>1,COUNTRY_INFO!J24<4), IF(V24/COUNTRY_INFO!F24*100<>0, IF(V24/COUNTRY_INFO!F24*100>100,100,V24/COUNTRY_INFO!F24*100), "-"),0) -> 67.15575259 | X24: 125729 | Y24: =IF(AND(COUNTRY_INFO!J24>1,COUNTRY_INFO!J24<4), IF(S24/P24*100<>0, IF(X24/P24*100>100,100,X24/P24*100), "-"),0) -> 46.98445797 | Z24: =COUNTRY_INFO!O24 -> 0 | AC24: =MAX('T1'!L24,'T2'!J24)+MAX('T1'!M24,'T2'!K24)+MAX('T1'!N24,'T2'!L24) -> 0 | AD24: =IF(COUNTRY_INFO!K24=1,IF(COUNTRY_INFO!F24*0.33>MAX('T1'!M24,'T2'!K24),MAX('T1'!M24,'T2'!K24),COUNTRY_INFO!F24*0.33),IF(COUNTRY_INFO!K24=2,IF(COUNTRY_INFO!F24*0.5>MAX('T1'!M24,'T2'!K24),MAX('T1'!M24,'T2'!K24),COUNTRY_INFO!F24*0.5),IF(COUNTRY_INFO!K24=3,IF(COUNTRY_INFO!F24>MAX('T1'!M24,'T2'!K24),MAX('T1'!M24,'T2'!K24),COUNTRY_INFO!F24),0))) -> 0 | AE24: =IF(AND(COUNTRY_INFO!K24>0,COUNTRY_INFO!K24<4),IF(Z24>0,IF(COUNTRY_INFO!K24=1, AD24/(COUNTRY_INFO!F24*0.33)*100, IF(COUNTRY_INFO!K24=2, AD24/(COUNTRY_INFO!F24*0.5)*100, IF(COUNTRY_INFO!K24=3, AD24/COUNTRY_INFO!F24*100))),"-"),0) -> - | AF24: =IF(COUNTRY_INFO!K24=2,IF(COUNTRY_INFO!G24*0.2>MAX('T1'!N24,'T2'!L24),MAX('T1'!N24,'T2'!L24),COUNTRY_INFO!G24*0.2),IF(COUNTRY_INFO!K24=3,IF(COUNTRY_INFO!G24>MAX('T1'!N24,'T2'!L24),MAX('T1'!N24,'T2'!L24),COUNTRY_INFO!G24),0)) -> 0 | AG24: =IF(AND(COUNTRY_INFO!K24>0,COUNTRY_INFO!K24<4),IF(Z24>0,IF(COUNTRY_INFO!K24=1, 0, IF(COUNTRY_INFO!K24=2, AF24/(COUNTRY_INFO!G24*0.2)*100, IF(COUNTRY_INFO!K24=3, AF24/COUNTRY_INFO!G24*100))),"-"),0) -> - | AH24: 0 | AI24: =IF(AND(COUNTRY_INFO!K24>0,COUNTRY_INFO!K24<4), IF(AC24/Z24*100<>0, IF(AH24/Z24*100>100,100,AH24/Z24*100), "-"),0) ->  | AK24: =IF(AND(D24<>0, D24<>"Unknown",D24<>"Stopped",D24<>"Not required"),D24/COUNTRY_INFO!D24, 0) -> 0 | AL24: =IF(AND(J24<>0,J24<>"Unknown",J24<>"Stopped",J24<>"Not required"),J24/COUNTRY_INFO!D24, 0) -> 0 | AM24: =IF(AND(P24<>0,P24<>"Unknown",P24<>"Not required"),P24/(COUNTRY_INFO!E24+COUNTRY_INFO!F24), 0) -> 1 | AN24: =IF(AND(Z24<>0,Z24<>"Unknown",Z24<>"Not required"),IF(COUNTRY_INFO!K24=1,1,IF(COUNTRY_INFO!K24=2,0.5*COUNTRY_INFO!F24/(0.5*COUNTRY_INFO!F24+0.2*COUNTRY_INFO!G24),IF(COUNTRY_INFO!K24=3,COUNTRY_INFO!F24/(COUNTRY_INFO!F24+COUNTRY_INFO!G24)))),0) -> 0 | AO24: =IF(AND(Z24<>0,Z24<>"Unknown",Z24<>"Not required"),IF(COUNTRY_INFO!K24=1,0,IF(COUNTRY_INFO!K24=2,0.2*COUNTRY_INFO!G24/(0.5*COUNTRY_INFO!F24+0.2*COUNTRY_INFO!G24),IF(COUNTRY_INFO!K24=3,COUNTRY_INFO!G24/(COUNTRY_INFO!F24+COUNTRY_INFO!G24)))),0) -> 0 | AP24: =MAX(COUNTRY_INFO!D24*AK24*PROFILE!$G$7,COUNTRY_INFO!D24*AL24*PROFILE!$G$7) -> 0 | AQ24: =MAX(COUNTRY_INFO!D24*AK24*PROFILE!$G$8,COUNTRY_INFO!D24*AL24*PROFILE!$G$8,COUNTRY_INFO!D24*AM24*PROFILE!$G$8) -> 80377.33841 | AR24: =MAX(COUNTRY_INFO!D24*AK24*PROFILE!$G$9,COUNTRY_INFO!D24*AL24*PROFILE!$G$9,COUNTRY_INFO!D24*AM24*PROFILE!$G$9,IF(AND(DISTRICT!Z24<>"Unknown",Z24<>"Not required"),COUNTRY_INFO!O24*DISTRICT!AN24,0)) -> 187220.3144 | AS24: =MAX(COUNTRY_INFO!D24*AK24*PROFILE!$G$10,COUNTRY_INFO!D24*AL24*PROFILE!$G$10,IF(AND(DISTRICT!Z24<>"Unknown",Z24<>"Not required"),COUNTRY_INFO!O24*DISTRICT!AO24,0)) -> 0 | AT24: 267597.6528 | AU24: Y | AV24: =MAX('MDA2'!J24,'T1'!L24,'T2'!J24,T3_R1!K24,T3_R2!K24) -> 0 | AW24: =MAX('MDA1'!K24,'MDA2'!K24,'MDA3'!I24,'MDA3'!L24,'T1'!M24,'T2'!K24,T3_R1!L24,T3_R2!L24) -> 125729 | AX24: =MAX('MDA1'!L24,'MDA2'!L24,'MDA3'!J24,'MDA3'!M24,'T1'!N24,'T2'!L24,T3_R1!M24,T3_R2!M24) -> 0 | AY24: 125729 | AZ24: =MAX('MDA2'!J24,T24) -> 0 | BA24: =MAX('MDA1'!K24,'MDA2'!K24,'MDA3'!I24,'MDA3'!L24,V24,AD24) -> 125729 | BB24: =MAX('MDA1'!L24,'MDA2'!L24,'MDA3'!J24,'MDA3'!M24,AF24) -> 0 | BC24: 125729 | BD24: 46.98434335
A25: =IF(COUNTRY_INFO!A25=0," ",COUNTRY_INFO!A25) -> South Africa | B25: =IF(COUNTRY_INFO!B25=0," ",COUNTRY_INFO!B25) -> Gauteng | C25: =IF(COUNTRY_INFO!C25=0," ",COUNTRY_INFO!C25) -> Tshwane MM | D25: =COUNTRY_INFO!L25 -> 0 | G25: =MAX('MDA1'!M25,'MDA2'!M25) -> 0 | H25: =IF(AND(COUNTRY_INFO!H25>0,COUNTRY_INFO!H25<4),IF(D25>MAX('MDA1'!M25,'MDA2'!M25),MAX('MDA1'!M25,'MDA2'!M25),D25),0) -> 0 | I25: =IF(AND(COUNTRY_INFO!H25>0,COUNTRY_INFO!H25<4), IF(G25/D25*100<>0, IF(G25/D25*100>100,100,G25/D25*100), "-"),0) -> 0 | J25: =COUNTRY_INFO!M25 -> 0 | M25: =MAX('MDA1'!M25,MAX('MDA3'!I25,'MDA3'!L25)+MAX('MDA3'!J25,'MDA3'!M25)) -> 0 | N25: =IF(AND(COUNTRY_INFO!I25>0,COUNTRY_INFO!I25<4),IF(J25>MAX('MDA1'!M25,MAX('MDA3'!I25,'MDA3'!L25)+MAX('MDA3'!J25,'MDA3'!M25)),MAX('MDA1'!M25,MAX('MDA3'!I25,'MDA3'!L25)+MAX('MDA3'!J25,'MDA3'!M25)),J25),0) -> 0 | O25: =IF(AND(COUNTRY_INFO!I25>0,COUNTRY_INFO!I25<4), IF(M25/J25*100<>0, IF(M25/J25*100>100,100,M25/J25*100), "-"),0) -> 0 | P25: =COUNTRY_INFO!N25 -> 934456 | S25: =SUM(MAX('MDA2'!J25, 'T1'!L25, MAX(T3_R1!K25, T3_R2!K25)), MAX('MDA1'!K25, 'MDA2'!K25, 'T1'!M25, MAX(T3_R1!L25, T3_R2!L25)), MAX('MDA1'!L25, 'MDA2'!L25, 'T1'!N25, MAX(T3_R1!M25, T3_R2!M25))) -> 439049 | T25: =IF(AND(COUNTRY_INFO!J25>1,COUNTRY_INFO!J25<4),IF(COUNTRY_INFO!E25>MAX('MDA2'!J25,'T1'!L25,MAX(T3_R1!K25,T3_R2!K25)),MAX('MDA2'!J25,'T1'!L25,MAX(T3_R1!K25,T3_R2!K25)),COUNTRY_INFO!E25),0) -> 0 | U25: =IF(AND(COUNTRY_INFO!J25>1,COUNTRY_INFO!J25<4), IF(T25/COUNTRY_INFO!E25*100<>0, IF(T25/COUNTRY_INFO!E25*100>100,100,T25/COUNTRY_INFO!E25*100), "-"),0) -> - | V25: =IF(AND(COUNTRY_INFO!J25>1,COUNTRY_INFO!J25<4),IF(COUNTRY_INFO!F25>MAX('MDA1'!K25,'MDA2'!K25,'T1'!M25,MAX(T3_R1!L25,T3_R2!L25)),MAX('MDA1'!K25,'MDA2'!K25,'T1'!M25,MAX(T3_R1!L25,T3_R2!L25)),COUNTRY_INFO!F25),0) -> 439049 | W25: =IF(AND(COUNTRY_INFO!J25>1,COUNTRY_INFO!J25<4), IF(V25/COUNTRY_INFO!F25*100<>0, IF(V25/COUNTRY_INFO!F25*100>100,100,V25/COUNTRY_INFO!F25*100), "-"),0) -> 67.1557733 | X25: 439049 | Y25: =IF(AND(COUNTRY_INFO!J25>1,COUNTRY_INFO!J25<4), IF(S25/P25*100<>0, IF(X25/P25*100>100,100,X25/P25*100), "-"),0) -> 46.98444871 | Z25: =COUNTRY_INFO!O25 -> 0 | AC25: =MAX('T1'!L25,'T2'!J25)+MAX('T1'!M25,'T2'!K25)+MAX('T1'!N25,'T2'!L25) -> 0 | AD25: =IF(COUNTRY_INFO!K25=1,IF(COUNTRY_INFO!F25*0.33>MAX('T1'!M25,'T2'!K25),MAX('T1'!M25,'T2'!K25),COUNTRY_INFO!F25*0.33),IF(COUNTRY_INFO!K25=2,IF(COUNTRY_INFO!F25*0.5>MAX('T1'!M25,'T2'!K25),MAX('T1'!M25,'T2'!K25),COUNTRY_INFO!F25*0.5),IF(COUNTRY_INFO!K25=3,IF(COUNTRY_INFO!F25>MAX('T1'!M25,'T2'!K25),MAX('T1'!M25,'T2'!K25),COUNTRY_INFO!F25),0))) -> 0 | AE25: =IF(AND(COUNTRY_INFO!K25>0,COUNTRY_INFO!K25<4),IF(Z25>0,IF(COUNTRY_INFO!K25=1, AD25/(COUNTRY_INFO!F25*0.33)*100, IF(COUNTRY_INFO!K25=2, AD25/(COUNTRY_INFO!F25*0.5)*100, IF(COUNTRY_INFO!K25=3, AD25/COUNTRY_INFO!F25*100))),"-"),0) -> - | AF25: =IF(COUNTRY_INFO!K25=2,IF(COUNTRY_INFO!G25*0.2>MAX('T1'!N25,'T2'!L25),MAX('T1'!N25,'T2'!L25),COUNTRY_INFO!G25*0.2),IF(COUNTRY_INFO!K25=3,IF(COUNTRY_INFO!G25>MAX('T1'!N25,'T2'!L25),MAX('T1'!N25,'T2'!L25),COUNTRY_INFO!G25),0)) -> 0 | AG25: =IF(AND(COUNTRY_INFO!K25>0,COUNTRY_INFO!K25<4),IF(Z25>0,IF(COUNTRY_INFO!K25=1, 0, IF(COUNTRY_INFO!K25=2, AF25/(COUNTRY_INFO!G25*0.2)*100, IF(COUNTRY_INFO!K25=3, AF25/COUNTRY_INFO!G25*100))),"-"),0) -> - | AH25: 0 | AI25: =IF(AND(COUNTRY_INFO!K25>0,COUNTRY_INFO!K25<4), IF(AC25/Z25*100<>0, IF(AH25/Z25*100>100,100,AH25/Z25*100), "-"),0) ->  | AK25: =IF(AND(D25<>0, D25<>"Unknown",D25<>"Stopped",D25<>"Not required"),D25/COUNTRY_INFO!D25, 0) -> 0 | AL25: =IF(AND(J25<>0,J25<>"Unknown",J25<>"Stopped",J25<>"Not required"),J25/COUNTRY_INFO!D25, 0) -> 0 | AM25: =IF(AND(P25<>0,P25<>"Unknown",P25<>"Not required"),P25/(COUNTRY_INFO!E25+COUNTRY_INFO!F25), 0) -> 1 | AN25: =IF(AND(Z25<>0,Z25<>"Unknown",Z25<>"Not required"),IF(COUNTRY_INFO!K25=1,1,IF(COUNTRY_INFO!K25=2,0.5*COUNTRY_INFO!F25/(0.5*COUNTRY_INFO!F25+0.2*COUNTRY_INFO!G25),IF(COUNTRY_INFO!K25=3,COUNTRY_INFO!F25/(COUNTRY_INFO!F25+COUNTRY_INFO!G25)))),0) -> 0 | AO25: =IF(AND(Z25<>0,Z25<>"Unknown",Z25<>"Not required"),IF(COUNTRY_INFO!K25=1,0,IF(COUNTRY_INFO!K25=2,0.2*COUNTRY_INFO!G25/(0.5*COUNTRY_INFO!F25+0.2*COUNTRY_INFO!G25),IF(COUNTRY_INFO!K25=3,COUNTRY_INFO!G25/(COUNTRY_INFO!F25+COUNTRY_INFO!G25)))),0) -> 0 | AP25: =MAX(COUNTRY_INFO!D25*AK25*PROFILE!$G$7,COUNTRY_INFO!D25*AL25*PROFILE!$G$7) -> 0 | AQ25: =MAX(COUNTRY_INFO!D25*AK25*PROFILE!$G$8,COUNTRY_INFO!D25*AL25*PROFILE!$G$8,COUNTRY_INFO!D25*AM25*PROFILE!$G$8) -> 280679.1571 | AR25: =MAX(COUNTRY_INFO!D25*AK25*PROFILE!$G$9,COUNTRY_INFO!D25*AL25*PROFILE!$G$9,COUNTRY_INFO!D25*AM25*PROFILE!$G$9,IF(AND(DISTRICT!Z25<>"Unknown",Z25<>"Not required"),COUNTRY_INFO!O25*DISTRICT!AN25,0)) -> 653776.8119 | AS25: =MAX(COUNTRY_INFO!D25*AK25*PROFILE!$G$10,COUNTRY_INFO!D25*AL25*PROFILE!$G$10,IF(AND(DISTRICT!Z25<>"Unknown",Z25<>"Not required"),COUNTRY_INFO!O25*DISTRICT!AO25,0)) -> 0 | AT25: 934455.969 | AU25: Y | AV25: =MAX('MDA2'!J25,'T1'!L25,'T2'!J25,T3_R1!K25,T3_R2!K25) -> 0 | AW25: =MAX('MDA1'!K25,'MDA2'!K25,'MDA3'!I25,'MDA3'!L25,'T1'!M25,'T2'!K25,T3_R1!L25,T3_R2!L25) -> 439049 | AX25: =MAX('MDA1'!L25,'MDA2'!L25,'MDA3'!J25,'MDA3'!M25,'T1'!N25,'T2'!L25,T3_R1!M25,T3_R2!M25) -> 0 | AY25: 439049 | AZ25: =MAX('MDA2'!J25,T25) -> 0 | BA25: =MAX('MDA1'!K25,'MDA2'!K25,'MDA3'!I25,'MDA3'!L25,V25,AD25) -> 439049 | BB25: =MAX('MDA1'!L25,'MDA2'!L25,'MDA3'!J25,'MDA3'!M25,AF25) -> 0 | BC25: 439049 | BD25: 46.98445026
A26: =IF(COUNTRY_INFO!A26=0," ",COUNTRY_INFO!A26) -> South Africa | B26: =IF(COUNTRY_INFO!B26=0," ",COUNTRY_INFO!B26) -> Gauteng | C26: =IF(COUNTRY_INFO!C26=0," ",COUNTRY_INFO!C26) -> West Rand DM | D26: =COUNTRY_INFO!L26 -> 0 | G26: =MAX('MDA1'!M26,'MDA2'!M26) -> 0 | H26: =IF(AND(COUNTRY_INFO!H26>0,COUNTRY_INFO!H26<4),IF(D26>MAX('MDA1'!M26,'MDA2'!M26),MAX('MDA1'!M26,'MDA2'!M26),D26),0) -> 0 | I26: =IF(AND(COUNTRY_INFO!H26>0,COUNTRY_INFO!H26<4), IF(G26/D26*100<>0, IF(G26/D26*100>100,100,G26/D26*100), "-"),0) -> 0 | J26: =COUNTRY_INFO!M26 -> 0 | M26: =MAX('MDA1'!M26,MAX('MDA3'!I26,'MDA3'!L26)+MAX('MDA3'!J26,'MDA3'!M26)) -> 0 | N26: =IF(AND(COUNTRY_INFO!I26>0,COUNTRY_INFO!I26<4),IF(J26>MAX('MDA1'!M26,MAX('MDA3'!I26,'MDA3'!L26)+MAX('MDA3'!J26,'MDA3'!M26)),MAX('MDA1'!M26,MAX('MDA3'!I26,'MDA3'!L26)+MAX('MDA3'!J26,'MDA3'!M26)),J26),0) -> 0 | O26: =IF(AND(COUNTRY_INFO!I26>0,COUNTRY_INFO!I26<4), IF(M26/J26*100<>0, IF(M26/J26*100>100,100,M26/J26*100), "-"),0) -> 0 | P26: =COUNTRY_INFO!N26 -> 251246 | S26: =SUM(MAX('MDA2'!J26, 'T1'!L26, MAX(T3_R1!K26, T3_R2!K26)), MAX('MDA1'!K26, 'MDA2'!K26, 'T1'!M26, MAX(T3_R1!L26, T3_R2!L26)), MAX('MDA1'!L26, 'MDA2'!L26, 'T1'!N26, MAX(T3_R1!M26, T3_R2!M26))) -> 118046 | T26: =IF(AND(COUNTRY_INFO!J26>1,COUNTRY_INFO!J26<4),IF(COUNTRY_INFO!E26>MAX('MDA2'!J26,'T1'!L26,MAX(T3_R1!K26,T3_R2!K26)),MAX('MDA2'!J26,'T1'!L26,MAX(T3_R1!K26,T3_R2!K26)),COUNTRY_INFO!E26),0) -> 0 | U26: =IF(AND(COUNTRY_INFO!J26>1,COUNTRY_INFO!J26<4), IF(T26/COUNTRY_INFO!E26*100<>0, IF(T26/COUNTRY_INFO!E26*100>100,100,T26/COUNTRY_INFO!E26*100), "-"),0) -> - | V26: =IF(AND(COUNTRY_INFO!J26>1,COUNTRY_INFO!J26<4),IF(COUNTRY_INFO!F26>MAX('MDA1'!K26,'MDA2'!K26,'T1'!M26,MAX(T3_R1!L26,T3_R2!L26)),MAX('MDA1'!K26,'MDA2'!K26,'T1'!M26,MAX(T3_R1!L26,T3_R2!L26)),COUNTRY_INFO!F26),0) -> 118046 | W26: =IF(AND(COUNTRY_INFO!J26>1,COUNTRY_INFO!J26<4), IF(V26/COUNTRY_INFO!F26*100<>0, IF(V26/COUNTRY_INFO!F26*100>100,100,V26/COUNTRY_INFO!F26*100), "-"),0) -> 67.15553533 | X26: 118046 | Y26: =IF(AND(COUNTRY_INFO!J26>1,COUNTRY_INFO!J26<4), IF(S26/P26*100<>0, IF(X26/P26*100>100,100,X26/P26*100), "-"),0) -> 46.98423059 | Z26: =COUNTRY_INFO!O26 -> 0 | AC26: =MAX('T1'!L26,'T2'!J26)+MAX('T1'!M26,'T2'!K26)+MAX('T1'!N26,'T2'!L26) -> 0 | AD26: =IF(COUNTRY_INFO!K26=1,IF(COUNTRY_INFO!F26*0.33>MAX('T1'!M26,'T2'!K26),MAX('T1'!M26,'T2'!K26),COUNTRY_INFO!F26*0.33),IF(COUNTRY_INFO!K26=2,IF(COUNTRY_INFO!F26*0.5>MAX('T1'!M26,'T2'!K26),MAX('T1'!M26,'T2'!K26),COUNTRY_INFO!F26*0.5),IF(COUNTRY_INFO!K26=3,IF(COUNTRY_INFO!F26>MAX('T1'!M26,'T2'!K26),MAX('T1'!M26,'T2'!K26),COUNTRY_INFO!F26),0))) -> 0 | AE26: =IF(AND(COUNTRY_INFO!K26>0,COUNTRY_INFO!K26<4),IF(Z26>0,IF(COUNTRY_INFO!K26=1, AD26/(COUNTRY_INFO!F26*0.33)*100, IF(COUNTRY_INFO!K26=2, AD26/(COUNTRY_INFO!F26*0.5)*100, IF(COUNTRY_INFO!K26=3, AD26/COUNTRY_INFO!F26*100))),"-"),0) -> - | AF26: =IF(COUNTRY_INFO!K26=2,IF(COUNTRY_INFO!G26*0.2>MAX('T1'!N26,'T2'!L26),MAX('T1'!N26,'T2'!L26),COUNTRY_INFO!G26*0.2),IF(COUNTRY_INFO!K26=3,IF(COUNTRY_INFO!G26>MAX('T1'!N26,'T2'!L26),MAX('T1'!N26,'T2'!L26),COUNTRY_INFO!G26),0)) -> 0 | AG26: =IF(AND(COUNTRY_INFO!K26>0,COUNTRY_INFO!K26<4),IF(Z26>0,IF(COUNTRY_INFO!K26=1, 0, IF(COUNTRY_INFO!K26=2, AF26/(COUNTRY_INFO!G26*0.2)*100, IF(COUNTRY_INFO!K26=3, AF26/COUNTRY_INFO!G26*100))),"-"),0) -> - | AH26: 0 | AI26: =IF(AND(COUNTRY_INFO!K26>0,COUNTRY_INFO!K26<4), IF(AC26/Z26*100<>0, IF(AH26/Z26*100>100,100,AH26/Z26*100), "-"),0) ->  | AK26: =IF(AND(D26<>0, D26<>"Unknown",D26<>"Stopped",D26<>"Not required"),D26/COUNTRY_INFO!D26, 0) -> 0 | AL26: =IF(AND(J26<>0,J26<>"Unknown",J26<>"Stopped",J26<>"Not required"),J26/COUNTRY_INFO!D26, 0) -> 0 | AM26: =IF(AND(P26<>0,P26<>"Unknown",P26<>"Not required"),P26/(COUNTRY_INFO!E26+COUNTRY_INFO!F26), 0) -> 1 | AN26: =IF(AND(Z26<>0,Z26<>"Unknown",Z26<>"Not required"),IF(COUNTRY_INFO!K26=1,1,IF(COUNTRY_INFO!K26=2,0.5*COUNTRY_INFO!F26/(0.5*COUNTRY_INFO!F26+0.2*COUNTRY_INFO!G26),IF(COUNTRY_INFO!K26=3,COUNTRY_INFO!F26/(COUNTRY_INFO!F26+COUNTRY_INFO!G26)))),0) -> 0 | AO26: =IF(AND(Z26<>0,Z26<>"Unknown",Z26<>"Not required"),IF(COUNTRY_INFO!K26=1,0,IF(COUNTRY_INFO!K26=2,0.2*COUNTRY_INFO!G26/(0.5*COUNTRY_INFO!F26+0.2*COUNTRY_INFO!G26),IF(COUNTRY_INFO!K26=3,COUNTRY_INFO!G26/(COUNTRY_INFO!F26+COUNTRY_INFO!G26)))),0) -> 0 | AP26: =MAX(COUNTRY_INFO!D26*AK26*PROFILE!$G$7,COUNTRY_INFO!D26*AL26*PROFILE!$G$7) -> 0 | AQ26: =MAX(COUNTRY_INFO!D26*AK26*PROFILE!$G$8,COUNTRY_INFO!D26*AL26*PROFILE!$G$8,COUNTRY_INFO!D26*AM26*PROFILE!$G$8) -> 75465.78218 | AR26: =MAX(COUNTRY_INFO!D26*AK26*PROFILE!$G$9,COUNTRY_INFO!D26*AL26*PROFILE!$G$9,COUNTRY_INFO!D26*AM26*PROFILE!$G$9,IF(AND(DISTRICT!Z26<>"Unknown",Z26<>"Not required"),COUNTRY_INFO!O26*DISTRICT!AN26,0)) -> 175779.9866 | AS26: =MAX(COUNTRY_INFO!D26*AK26*PROFILE!$G$10,COUNTRY_INFO!D26*AL26*PROFILE!$G$10,IF(AND(DISTRICT!Z26<>"Unknown",Z26<>"Not required"),COUNTRY_INFO!O26*DISTRICT!AO26,0)) -> 0 | AT26: 251245.7688 | AU26: Y | AV26: =MAX('MDA2'!J26,'T1'!L26,'T2'!J26,T3_R1!K26,T3_R2!K26) -> 0 | AW26: =MAX('MDA1'!K26,'MDA2'!K26,'MDA3'!I26,'MDA3'!L26,'T1'!M26,'T2'!K26,T3_R1!L26,T3_R2!L26) -> 118046 | AX26: =MAX('MDA1'!L26,'MDA2'!L26,'MDA3'!J26,'MDA3'!M26,'T1'!N26,'T2'!L26,T3_R1!M26,T3_R2!M26) -> 0 | AY26: 118046 | AZ26: =MAX('MDA2'!J26,T26) -> 0 | BA26: =MAX('MDA1'!K26,'MDA2'!K26,'MDA3'!I26,'MDA3'!L26,V26,AD26) -> 118046 | BB26: =MAX('MDA1'!L26,'MDA2'!L26,'MDA3'!J26,'MDA3'!M26,AF26) -> 0 | BC26: 118046 | BD26: 46.98427383
A27: =IF(COUNTRY_INFO!A27=0," ",COUNTRY_INFO!A27) -> South Africa | B27: =IF(COUNTRY_INFO!B27=0," ",COUNTRY_INFO!B27) -> KwaZulu-Natal | C27: =IF(COUNTRY_INFO!C27=0," ",COUNTRY_INFO!C27) -> Amajuba DM | D27: =COUNTRY_INFO!L27 -> 0 | G27: =MAX('MDA1'!M27,'MDA2'!M27) -> 0 | H27: =IF(AND(COUNTRY_INFO!H27>0,COUNTRY_INFO!H27<4),IF(D27>MAX('MDA1'!M27,'MDA2'!M27),MAX('MDA1'!M27,'MDA2'!M27),D27),0) -> 0 | I27: =IF(AND(COUNTRY_INFO!H27>0,COUNTRY_INFO!H27<4), IF(G27/D27*100<>0, IF(G27/D27*100>100,100,G27/D27*100), "-"),0) -> 0 | J27: =COUNTRY_INFO!M27 -> 0 | M27: =MAX('MDA1'!M27,MAX('MDA3'!I27,'MDA3'!L27)+MAX('MDA3'!J27,'MDA3'!M27)) -> 0 | N27: =IF(AND(COUNTRY_INFO!I27>0,COUNTRY_INFO!I27<4),IF(J27>MAX('MDA1'!M27,MAX('MDA3'!I27,'MDA3'!L27)+MAX('MDA3'!J27,'MDA3'!M27)),MAX('MDA1'!M27,MAX('MDA3'!I27,'MDA3'!L27)+MAX('MDA3'!J27,'MDA3'!M27)),J27),0) -> 0 | O27: =IF(AND(COUNTRY_INFO!I27>0,COUNTRY_INFO!I27<4), IF(M27/J27*100<>0, IF(M27/J27*100>100,100,M27/J27*100), "-"),0) -> 0 | P27: =COUNTRY_INFO!N27 -> 150568 | S27: =SUM(MAX('MDA2'!J27, 'T1'!L27, MAX(T3_R1!K27, T3_R2!K27)), MAX('MDA1'!K27, 'MDA2'!K27, 'T1'!M27, MAX(T3_R1!L27, T3_R2!L27)), MAX('MDA1'!L27, 'MDA2'!L27, 'T1'!N27, MAX(T3_R1!M27, T3_R2!M27))) -> 128785 | T27: =IF(AND(COUNTRY_INFO!J27>1,COUNTRY_INFO!J27<4),IF(COUNTRY_INFO!E27>MAX('MDA2'!J27,'T1'!L27,MAX(T3_R1!K27,T3_R2!K27)),MAX('MDA2'!J27,'T1'!L27,MAX(T3_R1!K27,T3_R2!K27)),COUNTRY_INFO!E27),0) -> 22443 | U27: =IF(AND(COUNTRY_INFO!J27>1,COUNTRY_INFO!J27<4), IF(T27/COUNTRY_INFO!E27*100<>0, IF(T27/COUNTRY_INFO!E27*100>100,100,T27/COUNTRY_INFO!E27*100), "-"),0) -> 49.62411003 | V27: =IF(AND(COUNTRY_INFO!J27>1,COUNTRY_INFO!J27<4),IF(COUNTRY_INFO!F27>MAX('MDA1'!K27,'MDA2'!K27,'T1'!M27,MAX(T3_R1!L27,T3_R2!L27)),MAX('MDA1'!K27,'MDA2'!K27,'T1'!M27,MAX(T3_R1!L27,T3_R2!L27)),COUNTRY_INFO!F27),0) -> 105342 | W27: =IF(AND(COUNTRY_INFO!J27>1,COUNTRY_INFO!J27<4), IF(V27/COUNTRY_INFO!F27*100<>0, IF(V27/COUNTRY_INFO!F27*100>100,100,V27/COUNTRY_INFO!F27*100), "-"),0) -> 100 | X27: 127785 | Y27: =IF(AND(COUNTRY_INFO!J27>1,COUNTRY_INFO!J27<4), IF(S27/P27*100<>0, IF(X27/P27*100>100,100,X27/P27*100), "-"),0) -> 84.86863078 | Z27: =COUNTRY_INFO!O27 -> 0 | AC27: =MAX('T1'!L27,'T2'!J27)+MAX('T1'!M27,'T2'!K27)+MAX('T1'!N27,'T2'!L27) -> 0 | AD27: =IF(COUNTRY_INFO!K27=1,IF(COUNTRY_INFO!F27*0.33>MAX('T1'!M27,'T2'!K27),MAX('T1'!M27,'T2'!K27),COUNTRY_INFO!F27*0.33),IF(COUNTRY_INFO!K27=2,IF(COUNTRY_INFO!F27*0.5>MAX('T1'!M27,'T2'!K27),MAX('T1'!M27,'T2'!K27),COUNTRY_INFO!F27*0.5),IF(COUNTRY_INFO!K27=3,IF(COUNTRY_INFO!F27>MAX('T1'!M27,'T2'!K27),MAX('T1'!M27,'T2'!K27),COUNTRY_INFO!F27),0))) -> 0 | AE27: =IF(AND(COUNTRY_INFO!K27>0,COUNTRY_INFO!K27<4),IF(Z27>0,IF(COUNTRY_INFO!K27=1, AD27/(COUNTRY_INFO!F27*0.33)*100, IF(COUNTRY_INFO!K27=2, AD27/(COUNTRY_INFO!F27*0.5)*100, IF(COUNTRY_INFO!K27=3, AD27/COUNTRY_INFO!F27*100))),"-"),0) -> - | AF27: =IF(COUNTRY_INFO!K27=2,IF(COUNTRY_INFO!G27*0.2>MAX('T1'!N27,'T2'!L27),MAX('T1'!N27,'T2'!L27),COUNTRY_INFO!G27*0.2),IF(COUNTRY_INFO!K27=3,IF(COUNTRY_INFO!G27>MAX('T1'!N27,'T2'!L27),MAX('T1'!N27,'T2'!L27),COUNTRY_INFO!G27),0)) -> 0 | AG27: =IF(AND(COUNTRY_INFO!K27>0,COUNTRY_INFO!K27<4),IF(Z27>0,IF(COUNTRY_INFO!K27=1, 0, IF(COUNTRY_INFO!K27=2, AF27/(COUNTRY_INFO!G27*0.2)*100, IF(COUNTRY_INFO!K27=3, AF27/COUNTRY_INFO!G27*100))),"-"),0) -> - | AH27: 0 | AI27: =IF(AND(COUNTRY_INFO!K27>0,COUNTRY_INFO!K27<4), IF(AC27/Z27*100<>0, IF(AH27/Z27*100>100,100,AH27/Z27*100), "-"),0) ->  | AK27: =IF(AND(D27<>0, D27<>"Unknown",D27<>"Stopped",D27<>"Not required"),D27/COUNTRY_INFO!D27, 0) -> 0 | AL27: =IF(AND(J27<>0,J27<>"Unknown",J27<>"Stopped",J27<>"Not required"),J27/COUNTRY_INFO!D27, 0) -> 0 | AM27: =IF(AND(P27<>0,P27<>"Unknown",P27<>"Not required"),P27/(COUNTRY_INFO!E27+COUNTRY_INFO!F27), 0) -> 1 | AN27: =IF(AND(Z27<>0,Z27<>"Unknown",Z27<>"Not required"),IF(COUNTRY_INFO!K27=1,1,IF(COUNTRY_INFO!K27=2,0.5*COUNTRY_INFO!F27/(0.5*COUNTRY_INFO!F27+0.2*COUNTRY_INFO!G27),IF(COUNTRY_INFO!K27=3,COUNTRY_INFO!F27/(COUNTRY_INFO!F27+COUNTRY_INFO!G27)))),0) -> 0 | AO27: =IF(AND(Z27<>0,Z27<>"Unknown",Z27<>"Not required"),IF(COUNTRY_INFO!K27=1,0,IF(COUNTRY_INFO!K27=2,0.2*COUNTRY_INFO!G27/(0.5*COUNTRY_INFO!F27+0.2*COUNTRY_INFO!G27),IF(COUNTRY_INFO!K27=3,COUNTRY_INFO!G27/(COUNTRY_INFO!F27+COUNTRY_INFO!G27)))),0) -> 0 | AP27: =MAX(COUNTRY_INFO!D27*AK27*PROFILE!$G$7,COUNTRY_INFO!D27*AL27*PROFILE!$G$7) -> 0 | AQ27: =MAX(COUNTRY_INFO!D27*AK27*PROFILE!$G$8,COUNTRY_INFO!D27*AL27*PROFILE!$G$8,COUNTRY_INFO!D27*AM27*PROFILE!$G$8) -> 45225.56249 | AR27: =MAX(COUNTRY_INFO!D27*AK27*PROFILE!$G$9,COUNTRY_INFO!D27*AL27*PROFILE!$G$9,COUNTRY_INFO!D27*AM27*PROFILE!$G$9,IF(AND(DISTRICT!Z27<>"Unknown",Z27<>"Not required"),COUNTRY_INFO!O27*DISTRICT!AN27,0)) -> 105342.4286 | AS27: =MAX(COUNTRY_INFO!D27*AK27*PROFILE!$G$10,COUNTRY_INFO!D27*AL27*PROFILE!$G$10,IF(AND(DISTRICT!Z27<>"Unknown",Z27<>"Not required"),COUNTRY_INFO!O27*DISTRICT!AO27,0)) -> 0 | AT27: 150567.991 | AU27: Y | AV27: =MAX('MDA2'!J27,'T1'!L27,'T2'!J27,T3_R1!K27,T3_R2!K27) -> 22443 | AW27: =MAX('MDA1'!K27,'MDA2'!K27,'MDA3'!I27,'MDA3'!L27,'T1'!M27,'T2'!K27,T3_R1!L27,T3_R2!L27) -> 106342 | AX27: =MAX('MDA1'!L27,'MDA2'!L27,'MDA3'!J27,'MDA3'!M27,'T1'!N27,'T2'!L27,T3_R1!M27,T3_R2!M27) -> 0 | AY27: 128785 | AZ27: =MAX('MDA2'!J27,T27) -> 22443 | BA27: =MAX('MDA1'!K27,'MDA2'!K27,'MDA3'!I27,'MDA3'!L27,V27,AD27) -> 105342 | BB27: =MAX('MDA1'!L27,'MDA2'!L27,'MDA3'!J27,'MDA3'!M27,AF27) -> 0 | BC27: 127785 | BD27: 84.86863583
A28: =IF(COUNTRY_INFO!A28=0," ",COUNTRY_INFO!A28) -> South Africa | B28: =IF(COUNTRY_INFO!B28=0," ",COUNTRY_INFO!B28) -> KwaZulu-Natal | C28: =IF(COUNTRY_INFO!C28=0," ",COUNTRY_INFO!C28) -> eThekwini MM | D28: =COUNTRY_INFO!L28 -> 0 | G28: =MAX('MDA1'!M28,'MDA2'!M28) -> 0 | H28: =IF(AND(COUNTRY_INFO!H28>0,COUNTRY_INFO!H28<4),IF(D28>MAX('MDA1'!M28,'MDA2'!M28),MAX('MDA1'!M28,'MDA2'!M28),D28),0) -> 0 | I28: =IF(AND(COUNTRY_INFO!H28>0,COUNTRY_INFO!H28<4), IF(G28/D28*100<>0, IF(G28/D28*100>100,100,G28/D28*100), "-"),0) -> 0 | J28: =COUNTRY_INFO!M28 -> 0 | M28: =MAX('MDA1'!M28,MAX('MDA3'!I28,'MDA3'!L28)+MAX('MDA3'!J28,'MDA3'!M28)) -> 0 | N28: =IF(AND(COUNTRY_INFO!I28>0,COUNTRY_INFO!I28<4),IF(J28>MAX('MDA1'!M28,MAX('MDA3'!I28,'MDA3'!L28)+MAX('MDA3'!J28,'MDA3'!M28)),MAX('MDA1'!M28,MAX('MDA3'!I28,'MDA3'!L28)+MAX('MDA3'!J28,'MDA3'!M28)),J28),0) -> 0 | O28: =IF(AND(COUNTRY_INFO!I28>0,COUNTRY_INFO!I28<4), IF(M28/J28*100<>0, IF(M28/J28*100>100,100,M28/J28*100), "-"),0) -> 0 | P28: =COUNTRY_INFO!N28 -> 1014246 | S28: =SUM(MAX('MDA2'!J28, 'T1'!L28, MAX(T3_R1!K28, T3_R2!K28)), MAX('MDA1'!K28, 'MDA2'!K28, 'T1'!M28, MAX(T3_R1!L28, T3_R2!L28)), MAX('MDA1'!L28, 'MDA2'!L28, 'T1'!N28, MAX(T3_R1!M28, T3_R2!M28))) -> 408060 | T28: =IF(AND(COUNTRY_INFO!J28>1,COUNTRY_INFO!J28<4),IF(COUNTRY_INFO!E28>MAX('MDA2'!J28,'T1'!L28,MAX(T3_R1!K28,T3_R2!K28)),MAX('MDA2'!J28,'T1'!L28,MAX(T3_R1!K28,T3_R2!K28)),COUNTRY_INFO!E28),0) -> 151178 | U28: =IF(AND(COUNTRY_INFO!J28>1,COUNTRY_INFO!J28<4), IF(T28/COUNTRY_INFO!E28*100<>0, IF(T28/COUNTRY_INFO!E28*100>100,100,T28/COUNTRY_INFO!E28*100), "-"),0) -> 49.62431683 | V28: =IF(AND(COUNTRY_INFO!J28>1,COUNTRY_INFO!J28<4),IF(COUNTRY_INFO!F28>MAX('MDA1'!K28,'MDA2'!K28,'T1'!M28,MAX(T3_R1!L28,T3_R2!L28)),MAX('MDA1'!K28,'MDA2'!K28,'T1'!M28,MAX(T3_R1!L28,T3_R2!L28)),COUNTRY_INFO!F28),0) -> 256882 | W28: =IF(AND(COUNTRY_INFO!J28>1,COUNTRY_INFO!J28<4), IF(V28/COUNTRY_INFO!F28*100<>0, IF(V28/COUNTRY_INFO!F28*100>100,100,V28/COUNTRY_INFO!F28*100), "-"),0) -> 36.20090727 | X28: 408060 | Y28: =IF(AND(COUNTRY_INFO!J28>1,COUNTRY_INFO!J28<4), IF(S28/P28*100<>0, IF(X28/P28*100>100,100,X28/P28*100), "-"),0) -> 40.23284292 | Z28: =COUNTRY_INFO!O28 -> 0 | AC28: =MAX('T1'!L28,'T2'!J28)+MAX('T1'!M28,'T2'!K28)+MAX('T1'!N28,'T2'!L28) -> 0 | AD28: =IF(COUNTRY_INFO!K28=1,IF(COUNTRY_INFO!F28*0.33>MAX('T1'!M28,'T2'!K28),MAX('T1'!M28,'T2'!K28),COUNTRY_INFO!F28*0.33),IF(COUNTRY_INFO!K28=2,IF(COUNTRY_INFO!F28*0.5>MAX('T1'!M28,'T2'!K28),MAX('T1'!M28,'T2'!K28),COUNTRY_INFO!F28*0.5),IF(COUNTRY_INFO!K28=3,IF(COUNTRY_INFO!F28>MAX('T1'!M28,'T2'!K28),MAX('T1'!M28,'T2'!K28),COUNTRY_INFO!F28),0))) -> 0 | AE28: =IF(AND(COUNTRY_INFO!K28>0,COUNTRY_INFO!K28<4),IF(Z28>0,IF(COUNTRY_INFO!K28=1, AD28/(COUNTRY_INFO!F28*0.33)*100, IF(COUNTRY_INFO!K28=2, AD28/(COUNTRY_INFO!F28*0.5)*100, IF(COUNTRY_INFO!K28=3, AD28/COUNTRY_INFO!F28*100))),"-"),0) -> - | AF28: =IF(COUNTRY_INFO!K28=2,IF(COUNTRY_INFO!G28*0.2>MAX('T1'!N28,'T2'!L28),MAX('T1'!N28,'T2'!L28),COUNTRY_INFO!G28*0.2),IF(COUNTRY_INFO!K28=3,IF(COUNTRY_INFO!G28>MAX('T1'!N28,'T2'!L28),MAX('T1'!N28,'T2'!L28),COUNTRY_INFO!G28),0)) -> 0 | AG28: =IF(AND(COUNTRY_INFO!K28>0,COUNTRY_INFO!K28<4),IF(Z28>0,IF(COUNTRY_INFO!K28=1, 0, IF(COUNTRY_INFO!K28=2, AF28/(COUNTRY_INFO!G28*0.2)*100, IF(COUNTRY_INFO!K28=3, AF28/COUNTRY_INFO!G28*100))),"-"),0) -> - | AH28: 0 | AI28: =IF(AND(COUNTRY_INFO!K28>0,COUNTRY_INFO!K28<4), IF(AC28/Z28*100<>0, IF(AH28/Z28*100>100,100,AH28/Z28*100), "-"),0) ->  | AK28: =IF(AND(D28<>0, D28<>"Unknown",D28<>"Stopped",D28<>"Not required"),D28/COUNTRY_INFO!D28, 0) -> 0 | AL28: =IF(AND(J28<>0,J28<>"Unknown",J28<>"Stopped",J28<>"Not required"),J28/COUNTRY_INFO!D28, 0) -> 0 | AM28: =IF(AND(P28<>0,P28<>"Unknown",P28<>"Not required"),P28/(COUNTRY_INFO!E28+COUNTRY_INFO!F28), 0) -> 1 | AN28: =IF(AND(Z28<>0,Z28<>"Unknown",Z28<>"Not required"),IF(COUNTRY_INFO!K28=1,1,IF(COUNTRY_INFO!K28=2,0.5*COUNTRY_INFO!F28/(0.5*COUNTRY_INFO!F28+0.2*COUNTRY_INFO!G28),IF(COUNTRY_INFO!K28=3,COUNTRY_INFO!F28/(COUNTRY_INFO!F28+COUNTRY_INFO!G28)))),0) -> 0 | AO28: =IF(AND(Z28<>0,Z28<>"Unknown",Z28<>"Not required"),IF(COUNTRY_INFO!K28=1,0,IF(COUNTRY_INFO!K28=2,0.2*COUNTRY_INFO!G28/(0.5*COUNTRY_INFO!F28+0.2*COUNTRY_INFO!G28),IF(COUNTRY_INFO!K28=3,COUNTRY_INFO!G28/(COUNTRY_INFO!F28+COUNTRY_INFO!G28)))),0) -> 0 | AP28: =MAX(COUNTRY_INFO!D28*AK28*PROFILE!$G$7,COUNTRY_INFO!D28*AL28*PROFILE!$G$7) -> 0 | AQ28: =MAX(COUNTRY_INFO!D28*AK28*PROFILE!$G$8,COUNTRY_INFO!D28*AL28*PROFILE!$G$8,COUNTRY_INFO!D28*AM28*PROFILE!$G$8) -> 304645.39 | AR28: =MAX(COUNTRY_INFO!D28*AK28*PROFILE!$G$9,COUNTRY_INFO!D28*AL28*PROFILE!$G$9,COUNTRY_INFO!D28*AM28*PROFILE!$G$9,IF(AND(DISTRICT!Z28<>"Unknown",Z28<>"Not required"),COUNTRY_INFO!O28*DISTRICT!AN28,0)) -> 709600.5769 | AS28: =MAX(COUNTRY_INFO!D28*AK28*PROFILE!$G$10,COUNTRY_INFO!D28*AL28*PROFILE!$G$10,IF(AND(DISTRICT!Z28<>"Unknown",Z28<>"Not required"),COUNTRY_INFO!O28*DISTRICT!AO28,0)) -> 0 | AT28: 1014245.967 | AU28: Y | AV28: =MAX('MDA2'!J28,'T1'!L28,'T2'!J28,T3_R1!K28,T3_R2!K28) -> 151178 | AW28: =MAX('MDA1'!K28,'MDA2'!K28,'MDA3'!I28,'MDA3'!L28,'T1'!M28,'T2'!K28,T3_R1!L28,T3_R2!L28) -> 256882 | AX28: =MAX('MDA1'!L28,'MDA2'!L28,'MDA3'!J28,'MDA3'!M28,'T1'!N28,'T2'!L28,T3_R1!M28,T3_R2!M28) -> 0 | AY28: 408060 | AZ28: =MAX('MDA2'!J28,T28) -> 151178 | BA28: =MAX('MDA1'!K28,'MDA2'!K28,'MDA3'!I28,'MDA3'!L28,V28,AD28) -> 256882 | BB28: =MAX('MDA1'!L28,'MDA2'!L28,'MDA3'!J28,'MDA3'!M28,AF28) -> 0 | BC28: 408060 | BD28: 40.23284423
A29: =IF(COUNTRY_INFO!A29=0," ",COUNTRY_INFO!A29) -> South Africa | B29: =IF(COUNTRY_INFO!B29=0," ",COUNTRY_INFO!B29) -> KwaZulu-Natal | C29: =IF(COUNTRY_INFO!C29=0," ",COUNTRY_INFO!C29) -> Harry Gwala DM | D29: =COUNTRY_INFO!L29 -> 0 | G29: =MAX('MDA1'!M29,'MDA2'!M29) -> 0 | H29: =IF(AND(COUNTRY_INFO!H29>0,COUNTRY_INFO!H29<4),IF(D29>MAX('MDA1'!M29,'MDA2'!M29),MAX('MDA1'!M29,'MDA2'!M29),D29),0) -> 0 | I29: =IF(AND(COUNTRY_INFO!H29>0,COUNTRY_INFO!H29<4), IF(G29/D29*100<>0, IF(G29/D29*100>100,100,G29/D29*100), "-"),0) -> 0 | J29: =COUNTRY_INFO!M29 -> 0 | M29: =MAX('MDA1'!M29,MAX('MDA3'!I29,'MDA3'!L29)+MAX('MDA3'!J29,'MDA3'!M29)) -> 0 | N29: =IF(AND(COUNTRY_INFO!I29>0,COUNTRY_INFO!I29<4),IF(J29>MAX('MDA1'!M29,MAX('MDA3'!I29,'MDA3'!L29)+MAX('MDA3'!J29,'MDA3'!M29)),MAX('MDA1'!M29,MAX('MDA3'!I29,'MDA3'!L29)+MAX('MDA3'!J29,'MDA3'!M29)),J29),0) -> 0 | O29: =IF(AND(COUNTRY_INFO!I29>0,COUNTRY_INFO!I29<4), IF(M29/J29*100<>0, IF(M29/J29*100>100,100,M29/J29*100), "-"),0) -> 0 | P29: =COUNTRY_INFO!N29 -> 139813 | S29: =SUM(MAX('MDA2'!J29, 'T1'!L29, MAX(T3_R1!K29, T3_R2!K29)), MAX('MDA1'!K29, 'MDA2'!K29, 'T1'!M29, MAX(T3_R1!L29, T3_R2!L29)), MAX('MDA1'!L29, 'MDA2'!L29, 'T1'!N29, MAX(T3_R1!M29, T3_R2!M29))) -> 191540 | T29: =IF(AND(COUNTRY_INFO!J29>1,COUNTRY_INFO!J29<4),IF(COUNTRY_INFO!E29>MAX('MDA2'!J29,'T1'!L29,MAX(T3_R1!K29,T3_R2!K29)),MAX('MDA2'!J29,'T1'!L29,MAX(T3_R1!K29,T3_R2!K29)),COUNTRY_INFO!E29),0) -> 20840 | U29: =IF(AND(COUNTRY_INFO!J29>1,COUNTRY_INFO!J29<4), IF(T29/COUNTRY_INFO!E29*100<>0, IF(T29/COUNTRY_INFO!E29*100>100,100,T29/COUNTRY_INFO!E29*100), "-"),0) -> 49.62495535 | V29: =IF(AND(COUNTRY_INFO!J29>1,COUNTRY_INFO!J29<4),IF(COUNTRY_INFO!F29>MAX('MDA1'!K29,'MDA2'!K29,'T1'!M29,MAX(T3_R1!L29,T3_R2!L29)),MAX('MDA1'!K29,'MDA2'!K29,'T1'!M29,MAX(T3_R1!L29,T3_R2!L29)),COUNTRY_INFO!F29),0) -> 97818 | W29: =IF(AND(COUNTRY_INFO!J29>1,COUNTRY_INFO!J29<4), IF(V29/COUNTRY_INFO!F29*100<>0, IF(V29/COUNTRY_INFO!F29*100>100,100,V29/COUNTRY_INFO!F29*100), "-"),0) -> 100 | X29: 118658 | Y29: =IF(AND(COUNTRY_INFO!J29>1,COUNTRY_INFO!J29<4), IF(S29/P29*100<>0, IF(X29/P29*100>100,100,X29/P29*100), "-"),0) -> 84.86907512 | Z29: =COUNTRY_INFO!O29 -> 0 | AC29: =MAX('T1'!L29,'T2'!J29)+MAX('T1'!M29,'T2'!K29)+MAX('T1'!N29,'T2'!L29) -> 0 | AD29: =IF(COUNTRY_INFO!K29=1,IF(COUNTRY_INFO!F29*0.33>MAX('T1'!M29,'T2'!K29),MAX('T1'!M29,'T2'!K29),COUNTRY_INFO!F29*0.33),IF(COUNTRY_INFO!K29=2,IF(COUNTRY_INFO!F29*0.5>MAX('T1'!M29,'T2'!K29),MAX('T1'!M29,'T2'!K29),COUNTRY_INFO!F29*0.5),IF(COUNTRY_INFO!K29=3,IF(COUNTRY_INFO!F29>MAX('T1'!M29,'T2'!K29),MAX('T1'!M29,'T2'!K29),COUNTRY_INFO!F29),0))) -> 0 | AE29: =IF(AND(COUNTRY_INFO!K29>0,COUNTRY_INFO!K29<4),IF(Z29>0,IF(COUNTRY_INFO!K29=1, AD29/(COUNTRY_INFO!F29*0.33)*100, IF(COUNTRY_INFO!K29=2, AD29/(COUNTRY_INFO!F29*0.5)*100, IF(COUNTRY_INFO!K29=3, AD29/COUNTRY_INFO!F29*100))),"-"),0) -> - | AF29: =IF(COUNTRY_INFO!K29=2,IF(COUNTRY_INFO!G29*0.2>MAX('T1'!N29,'T2'!L29),MAX('T1'!N29,'T2'!L29),COUNTRY_INFO!G29*0.2),IF(COUNTRY_INFO!K29=3,IF(COUNTRY_INFO!G29>MAX('T1'!N29,'T2'!L29),MAX('T1'!N29,'T2'!L29),COUNTRY_INFO!G29),0)) -> 0 | AG29: =IF(AND(COUNTRY_INFO!K29>0,COUNTRY_INFO!K29<4),IF(Z29>0,IF(COUNTRY_INFO!K29=1, 0, IF(COUNTRY_INFO!K29=2, AF29/(COUNTRY_INFO!G29*0.2)*100, IF(COUNTRY_INFO!K29=3, AF29/COUNTRY_INFO!G29*100))),"-"),0) -> - | AH29: 0 | AI29: =IF(AND(COUNTRY_INFO!K29>0,COUNTRY_INFO!K29<4), IF(AC29/Z29*100<>0, IF(AH29/Z29*100>100,100,AH29/Z29*100), "-"),0) ->  | AK29: =IF(AND(D29<>0, D29<>"Unknown",D29<>"Stopped",D29<>"Not required"),D29/COUNTRY_INFO!D29, 0) -> 0 | AL29: =IF(AND(J29<>0,J29<>"Unknown",J29<>"Stopped",J29<>"Not required"),J29/COUNTRY_INFO!D29, 0) -> 0 | AM29: =IF(AND(P29<>0,P29<>"Unknown",P29<>"Not required"),P29/(COUNTRY_INFO!E29+COUNTRY_INFO!F29), 0) -> 1 | AN29: =IF(AND(Z29<>0,Z29<>"Unknown",Z29<>"Not required"),IF(COUNTRY_INFO!K29=1,1,IF(COUNTRY_INFO!K29=2,0.5*COUNTRY_INFO!F29/(0.5*COUNTRY_INFO!F29+0.2*COUNTRY_INFO!G29),IF(COUNTRY_INFO!K29=3,COUNTRY_INFO!F29/(COUNTRY_INFO!F29+COUNTRY_INFO!G29)))),0) -> 0 | AO29: =IF(AND(Z29<>0,Z29<>"Unknown",Z29<>"Not required"),IF(COUNTRY_INFO!K29=1,0,IF(COUNTRY_INFO!K29=2,0.2*COUNTRY_INFO!G29/(0.5*COUNTRY_INFO!F29+0.2*COUNTRY_INFO!G29),IF(COUNTRY_INFO!K29=3,COUNTRY_INFO!G29/(COUNTRY_INFO!F29+COUNTRY_INFO!G29)))),0) -> 0 | AP29: =MAX(COUNTRY_INFO!D29*AK29*PROFILE!$G$7,COUNTRY_INFO!D29*AL29*PROFILE!$G$7) -> 0 | AQ29: =MAX(COUNTRY_INFO!D29*AK29*PROFILE!$G$8,COUNTRY_INFO!D29*AL29*PROFILE!$G$8,COUNTRY_INFO!D29*AM29*PROFILE!$G$8) -> 41995.33502 | AR29: =MAX(COUNTRY_INFO!D29*AK29*PROFILE!$G$9,COUNTRY_INFO!D29*AL29*PROFILE!$G$9,COUNTRY_INFO!D29*AM29*PROFILE!$G$9,IF(AND(DISTRICT!Z29<>"Unknown",Z29<>"Not required"),COUNTRY_INFO!O29*DISTRICT!AN29,0)) -> 97818.36501 | AS29: =MAX(COUNTRY_INFO!D29*AK29*PROFILE!$G$10,COUNTRY_INFO!D29*AL29*PROFILE!$G$10,IF(AND(DISTRICT!Z29<>"Unknown",Z29<>"Not required"),COUNTRY_INFO!O29*DISTRICT!AO29,0)) -> 0 | AT29: 139813.7 | AU29: Y | AV29: =MAX('MDA2'!J29,'T1'!L29,'T2'!J29,T3_R1!K29,T3_R2!K29) -> 20840 | AW29: =MAX('MDA1'!K29,'MDA2'!K29,'MDA3'!I29,'MDA3'!L29,'T1'!M29,'T2'!K29,T3_R1!L29,T3_R2!L29) -> 170700 | AX29: =MAX('MDA1'!L29,'MDA2'!L29,'MDA3'!J29,'MDA3'!M29,'T1'!N29,'T2'!L29,T3_R1!M29,T3_R2!M29) -> 0 | AY29: 191540 | AZ29: =MAX('MDA2'!J29,T29) -> 20840 | BA29: =MAX('MDA1'!K29,'MDA2'!K29,'MDA3'!I29,'MDA3'!L29,V29,AD29) -> 97818 | BB29: =MAX('MDA1'!L29,'MDA2'!L29,'MDA3'!J29,'MDA3'!M29,AF29) -> 0 | BC29: 118658 | BD29: 84.86865019
